Workbook

Sheet LDC Info
AA3: Algoma Power Inc.
AA4: Atikokan Hydro Inc.
AA5: Attawapiskat Power Corporation
AA6: Bluewater Power Distribution Corp.
AA7: Brant County Power
AA8: Brantford Power Inc.
AA9: Burlington Hydro Inc.
AA10: Cambridge and North Dumfries Hydro
AA11: Canadian Niagara Power Inc. – Eastern Ontario Power/Fort Erie/Port Colborne
AA12: Centre Wellington Hydro Ltd.
AA13: Chapleau Public Utilities Corporation
D14: Utility Name | E14: Centre Wellington Hydro Ltd. | AA14: COLLUS Power Corp.
AA15: Cooperative Hydro Embrun Inc.
D16: Assigned EB Number | E16: EB-2017-0032 | AA16: E.L.K. Energy Inc.
AA17: Enersource Hydro Mississauga Inc.
D18: Name of Contact and Title | E18: Florence Thiessen, Vice President Finance & Regulatory | AA18: Entegrus Powerlines Inc.
AA19: ENWIN Utilities Ltd.
D20: Phone Number | E20: 519-843-2900 ext 225 | AA20: Erie Thames Powerlines Corp.
AA21: Espanola Regional Hydro Distribution Corporation
D22: Email Address | E22: thiessen@cwhydro,ca | AA22: Essex Powerlines Corporation
AA23: Festival Hydro Inc.
D24: Test Year | E24: 2016 | H24: 2018 | AA24: Fort Albany Power Corporation
AA25: Fort Frances Power Corporation
D26: Bridge Year | E26: 2017 | AA26: Greater Sudbury Hydro Inc.
AA27: Grimsby Power Inc.
D28: Last Rebasing Year | E28: 2013 | AA28: Guelph Hydro Electric Systems Inc.
AA29: Haldimand County Hydro Inc.
A30: Identify the accounting standard used for the test year
E31: MIFRS
A33: Did you update your depreciation and capitalization policies?
E34: Yes
A36: When did you update your depreciation and capitalization policies?
E37: 2001-01-01 | F37: 2013
A39: Identify the year that the applicant has adopted or is expected to adopt IFRS for financial reporting purposes
E40: 2015 or Later
A43: Are you applying for cost recovery for the test and/or future year(s) for Green Energy initiatives?
E44: No
A46: ="Is " & E14 & " an embedded distributor?" -> Is Centre Wellington Hydro Ltd. an embedded distributor? | E46: Yes
B49: Notes | AA49: Guelph Hydro Electric Systems Inc.
AA50: Halton Hills Hydro Inc.
C51: Pale green cells represent input cells. | AA51: Hearst Power Distribution Co. Ltd.
AA52: Horizon Utilities Corporation
C53: Pale blue cells represent drop-down lists. The applicant should select the appropriate item from the drop-down list. | AA53: Hydro 2000 Inc.
AA54: Hydro Hawkesbury Inc.
C55: White cells contain fixed values, automatically generated values or formulae. | AA55: Hydro One Brampton Networks Inc.
AA56: Hydro One Networks Inc.
AA57: Hydro One Remote Communities Inc.
AA58: Hydro Ottawa Limited
AA59: Innisfil Hydro Dist. Systems Limited
AA60: Kashechewan Power Corporation
AA61: Kenora Hydro Electric Corporation Ltd.
AA62: Kingston Hydro Corporation
AA63: Kitchener-Wilmot Hydro Inc.
AA64: Lakefront Utilities Inc.
AA65: Lakeland Power Distribution Ltd.
AA66: London Hydro Inc.
AA67: Midland Power Utility Corporation
AA68: Milton Hydro Distribution Inc.
AA69: Newmarket – Tay Power Distribution Ltd.
AA70: Niagara Peninsula Energy Inc.
AA71: Niagara-on-the-Lake Hydro Inc.
AA72: Norfolk Power Distribution Ltd.
AA73: North Bay Hydro Distribution Limited
AA74: Northern Ontario Wires Inc.
AA75: Oakville Hydro Distribution Inc.
AA76: Orangeville Hydro Limited
AA77: Orillia Power Distribution Corp.
AA78: Oshawa PUC Networks Inc.
AA79: Ottawa River Power Corporation
AA80: Parry Sound Power Corporation
AA81: Peterborough Distribution Inc.
AA82: PowerStream Inc.
AA83: PUC Distribution Inc.
AA84: Renfrew Hydro Inc.
AA85: Rideau St. Lawrence Distribution Inc.
AA86: St. Thomas Energy Inc.
AA87: Sioux Lookout Hydro Inc.
AA88: Thunder Bay Hydro Electricity Distribution
AA89: Tillsonburg Hydro Inc.
AA90: Toronto Hydro-Electric System Limited
AA91: Veridian Connections Inc.
AA92: Wasaga Distribution Inc.
AA93: Waterloo North Hydro Inc.
AA94: Welland Hydro Electric System Corp.
AA95: Wellington North Power Inc.
AA96: West Coast Huron Energy Inc.
AA97: Westario Power Inc.
AA98: Whitby Hydro Electric Corporation
AA99: Woodstock Hydro Services Inc.

Sheet App.2-B_Acct Instructions
A1: General Instructions to MIFRS Appendices
A2: Types of Schedules to File
A4: The purpose of this tab is to provide general instructions. The specific instructions to each appendix are listed in footnotes of each appendix.
A6: The typical applicant is expected to have made capitalization and depreciation policy changes under CGAAP as permitted by the Board on January 1, 2012 or mandated by the Board by January 1, 2013, and adopts IFRS for reporting purposes on January 1, 2015 (transition date January 1, 2014). In general, applicants under the two scenarios should provide the following information in the appendices:
E9: Accounting Policy Changes in 2012 and Adopts IFRS in 2015 | F9: Accounting Policy Changes in 2013 and Adopts IFRS in 2015
E10: (Date of Transition to IFRS 2014)
A11: Information to be filed in 2015 CoS Application | B11: 2015 | C11: Test | E11: MIFRS | F11: MIFRS
B12: 2014 | C12: Bridge | E12: MIFRS and Revised CGAAP* | F12: MIFRS and Revised CGAAP*
B13: 2013 | C13: Historical | E13: Revised CGAAP | F13: CGAAP and Revised CGAAP
B14: 2012 | C14: Historical | E14: CGAAP and Revised CGAAP | F14: CGAAP
B15: 2011 and Prior | C15: Historical | E15: CGAAP | F15: CGAAP
A17: 1) For the year that the applicant implemented changes to its capitalization and depreciation policies (2012 or 2013), the applicant must file two appendices, one before and one after the policy changes.
A20: 2) For the transition year (2014), the applicant may file two appendices, one under Revised CGAAP and one under MIFRS depending, on the materiality of impacts. See the specific instructions under each appendix below for further details.
A25: Appendix 2-BA - Fixed Asset Schedule
A27: Applicants are to provide Appendix 2-BA in accordance with the years and corresponding accounting standards noted in the above table to provide a year over year continuity in fixed assets.
A28: *For the transition year (2014), the applicant should file two appendices, one under Revised CGAAP and one under MIFRS if the change between Revised CGAAP and MIFRS is material. If the change from the accounting standards is not material, the applicant may choose to only provide one appendix under MIFRS. The applicant must also indicate the fixed asset net book value balance under Revised CGAAP, the total dollar value of the change and explain why it is not material.
A32: Regulatory Gross Assets of Property, Plant and Equipment
A34: For an applicant that is adopting IFRS on January 1, 2015 for financial reporting purposes, the applicant must establish the continuity of historic cost by using the December 31, 2013 regulatory gross assets of property, plant and equipment as the opening January 1, 2014 regulatory gross assets. The applicant must provide schedules (including Appendix 2-BA, Fixed Asset Continuity Schedule) which must identify the following details to substantiate the continuity of historic cost for regulatory purposes:
A37: · December 31, 2013 regulatory gross assets of property, plant and equipment, by asset class; and
A38: · January 1, 2014 regulatory gross assets of property, plant and equipment, by asset class.
A40: Accumulated Depreciation
A42: For an applicant that is adopting IFRS on January 1, 2015 for financial reporting purposes, the applicant must establish the continuity of historic cost by using the December 31, 2013 regulatory accumulated depreciation as the opening January 1, 2014 regulatory accumulated depreciation. The applicant must provide schedules (including Appendix 2-BA, Fixed Asset Continuity Schedule) which must identify the following details to substantiate the continuity of historic cost for regulatory purposes:
A45: · December 31, 2013 regulatory accumulated depreciation, by asset class; and
A46: · January 1, 2014 regulatory accumulated depreciation, by asset class.
A48: Appendix 2-C - Depreciation and Amortization
A50: Applicants are to provide Appendix 2-C starting in the year capitalization and depreciation policy changes were implemented in accordance with the years and corresponding accounting standards listed in the above table.
A51: If an applicant changed capitalization and depreciation policies effective January 1, 2012 and will adopt IFRS for reporting purposes effective January 1, 2015, the applicant must complete Appendix 2-CA to 2-CE (inclusive).
A52: If an applicant changed capitalization and depreciation policies effective January 1, 2013 and will adopt IFRS for reporting purposes effective January 1, 2015, the applicant must complete Appendix 2-CF to 2-CI (inclusive).
A53: *Depreciation accounting policy changes were mandated by the Board by January 1, 2013. These accounting changes should be implemented consistent with the Board’s regulatory accounting policies as set out for MIFRS as contained in the Report of the Board, Transition to International Financial Reporting Standards (EB-2008-0408), the Depreciation Study for Use by Electricity Distributors (EB-2010-0178) and the Revised 2012 Accounting Procedures Handbook for Electricity Distributors. In general, no further changes to an applicant's depreciation policy (i.e. assets' service lives) are expected after the Board mandated changes by January 1, 2013. The set of Appendix CA to CI assumes this to be the case. If the applicant has made any changes to its depreciation policy subsequent to the Board mandated changes, applicants must identify the change, explain the nature of the change, the reason for the change, quantify the impact of the change, and quantify the depreciation expense before and after the change.
A56: Appendix 2-E - Account 1575, IFRS-CGAAP Transitional PP&E Amounts (2-EA), Account 1576, Accounting Changes Under CGAAP (2-EB, 2-EC)
A58: If an applicant changed capitalization and depreciation policies effective January 1, 2012 and will adopt IFRS for reporting purposes effective January 1, 2015, the applicant must complete Appendix 2-EA and 2-EB. If the applicant does not make any further PP&E accounting policy changes beyond the capitalization and depreciation policy changes as permitted by the Board on January 1, 2012 (i.e. no further changes made on transition to IFRS), the applicant must indicate this and does not need to complete Appendix 2-EA.
A60: If an applicant changed capitalization and depreciation policies effective January 1, 2013 and will adopt IFRS for reporting purposes effective January 1, 2015, the applicant must complete Appendix 2-EA and 2-EC. If the applicant does not make any further PP&E accounting policy changes beyond the capitalization and depreciation policy changes as mandated by the Board by January 1, 2013 (i.e. no further changes made on transition to IFRS), the applicant must indicate this and does not need to complete Appendix 2-EA.
A62: Please refer to section 2.12.4 and 2.12.5 of the Filing Requirements for further details.
A64: Appendix 2-YA - Summary of Impacts to Revenue Requirement from Transition to MIFRS
A66: For applicants adopting MIFRS, the applicants must provide a summary of the dollar impacts of MIFRS to each component of the revenue requirement (e.g. rate base, operating costs, etc), including the overall impact on the proposed revenue requirement. Accordingly, the applicants must identify financial differences and resulting revenue requirement impacts arising from the adoption of MIFRS as compared to CGAAP prior to capitalization and depreciation policy changes.

Sheet Reconciliation Sheet (hidden)
C1: OLD CGAAP
P2: DIDN'T COMPLETE SCHEUDLES
C3: Year | F3: 2010Old | H3: 2011Old | J3: 2012Old | L3: 2013Old | N3: 2014Old | P3: 2015 Old | R3: 2016 Old | T3: 2017 Old | U3: 2018 Old
C4: Add smart meter if need be | V4: 1
C5: Remove smart meter if need be | V5: 2
C6: Gross Assets | D6: Opening | F6: ='App.2-BA_FA Cont 2010 OldCGAAP'!E60 -> 0 | H6: ='App.2-BA_FA Cont 2011 OldCGAAP'!E60 -> 0 | J6: ='App.2-BA_FA Cont 2012 OldCGAAP'!E60 -> 0 | L6: ='App.2-BA_FA Cont 2013 OldCGAAP'!D61 -> 19312790.02 | N6: ='App.2-BA_FA Cont 2014_OldCGAAP'!E62 -> 20873270.25 | P6: ='App.2-BA_FA Cont 2015_Old CGAAP'!E62 -> 22698672.49 | R6: ='App.2-BA_FA Cont 2016_Old CGAAP'!E62 -> 23980562.18 | T6: ='App.2-BA_FA Cont 2017_Old CGAAP'!E63 -> 23989201.83 | U6: ='App.2-BA_FA Cont 2018_Old CGAAP'!F63 -> 0
D7: Add | F7: ='App.2-BA_FA Cont 2010 OldCGAAP'!F60 -> 0 | H7: ='App.2-BA_FA Cont 2011 OldCGAAP'!F60 -> 0 | J7: ='App.2-BA_FA Cont 2012 OldCGAAP'!F60 -> 0 | L7: ='App.2-BA_FA Cont 2013 OldCGAAP'!E61 -> 2372444.14 | N7: ='App.2-BA_FA Cont 2014_OldCGAAP'!F62 -> 2398195.18 | P7: ='App.2-BA_FA Cont 2015_Old CGAAP'!F62 -> 1870375.75 | R7: ='App.2-BA_FA Cont 2016_Old CGAAP'!F62 -> 0 | T7: ='App.2-BA_FA Cont 2017_Old CGAAP'!F63 -> 0 | U7: ='App.2-BA_FA Cont 2018_Old CGAAP'!G63 -> 0
D8: Ret | F8: ='App.2-BA_FA Cont 2010 OldCGAAP'!G57 -> 0 | H8: ='App.2-BA_FA Cont 2011 OldCGAAP'!G60 -> 0 | J8: ='App.2-BA_FA Cont 2012 OldCGAAP'!G60 -> 0 | L8: ='App.2-BA_FA Cont 2013 OldCGAAP'!F61 -> -811963.9 | N8: ='App.2-BA_FA Cont 2014_OldCGAAP'!G62 -> -572792.94 | P8: ='App.2-BA_FA Cont 2015_Old CGAAP'!G62 -> -583883.56 | R8: ='App.2-BA_FA Cont 2016_Old CGAAP'!G62 -> 0 | T8: ='App.2-BA_FA Cont 2017_Old CGAAP'!G63 -> 0 | U8: ='App.2-BA_FA Cont 2018_Old CGAAP'!H63 -> 23989201.83
D9: Closing | F9: =SUM(F6:F8) -> 0 | H9: 0 | J9: 0 | L9: 20873270.26 | N9: 22698672.49 | P9: 23985164.68 | R9: 23980562.18 | T9: 23989201.83 | U9: =SUM(U6:U8) -> 23989201.83
C11: Year | F11: =F3 -> 2010Old | H11: 2011Old | J11: 2012Old | L11: 2013Old | N11: 2014Old | P11: 2015 Old | R11: 2016 Old | T11: 2017 Old | U11: =U3 -> 2018 Old
C12: Add smart meter if need be | V12: 3
C13: Remove smart meter if need be | V13: 4
C14: Accumulated Depreciation | D14: Opening | F14: ='App.2-BA_FA Cont 2010 OldCGAAP'!J60 -> 0 | H14: ='App.2-BA_FA Cont 2011 OldCGAAP'!J60 -> 0 | J14: ='App.2-BA_FA Cont 2012 OldCGAAP'!J60 -> 0 | L14: ='App.2-BA_FA Cont 2013 OldCGAAP'!I58 -> -10659217.76 | N14: ='App.2-BA_FA Cont 2014_OldCGAAP'!J62 -> -11861375.84 | P14: ='App.2-BA_FA Cont 2015_Old CGAAP'!J62 -> -12241368.26 | R14: ='App.2-BA_FA Cont 2016_Old CGAAP'!J62 -> -12226885.71 | T14: ='App.2-BA_FA Cont 2017_Old CGAAP'!J63 -> -12226885.71 | U14: ='App.2-BA_FA Cont 2018_Old CGAAP'!K63 -> 0
C15: Adjust.
D16: Add | F16: ='App.2-BA_FA Cont 2010 OldCGAAP'!K60 -> 0 | H16: ='App.2-BA_FA Cont 2011 OldCGAAP'!K60 -> 0 | J16: ='App.2-BA_FA Cont 2012 OldCGAAP'!K60 -> 0 | L16: ='App.2-BA_FA Cont 2013 OldCGAAP'!J58 -> -1302132.108 | N16: ='App.2-BA_FA Cont 2014_OldCGAAP'!K62 -> -946080.6298 | P16: ='App.2-BA_FA Cont 2015_Old CGAAP'!K62 -> 588339.47 | R16: ='App.2-BA_FA Cont 2016_Old CGAAP'!K62 -> 0 | T16: ='App.2-BA_FA Cont 2017_Old CGAAP'!K63 -> 0 | U16: ='App.2-BA_FA Cont 2018_Old CGAAP'!L63 -> 0
D17: Ret | F17: ='App.2-BA_FA Cont 2010 OldCGAAP'!L60 -> 0 | H17: ='App.2-BA_FA Cont 2011 OldCGAAP'!L60 -> 0 | J17: ='App.2-BA_FA Cont 2012 OldCGAAP'!L60 -> 0 | L17: ='App.2-BA_FA Cont 2013 OldCGAAP'!K58 -> 99974.03 | N17: ='App.2-BA_FA Cont 2014_OldCGAAP'!L62 -> 566037.21 | P17: ='App.2-BA_FA Cont 2015_Old CGAAP'!L62 -> -573856.92 | R17: ='App.2-BA_FA Cont 2016_Old CGAAP'!L62 -> 0 | T17: ='App.2-BA_FA Cont 2017_Old CGAAP'!L63 -> 0 | U17: ='App.2-BA_FA Cont 2018_Old CGAAP'!M63 -> -12226885.71
D18: Closing | F18: =SUM(F14:F17) -> 0 | H18: 0 | J18: 0 | L18: -11861375.84 | N18: -12241419.26 | P18: -12226885.71 | R18: -12226885.71 | T18: -12226885.71 | U18: =SUM(U14:U17) -> -12226885.71
F20: =F9+F18 -> 0 | H20: 0 | J20: 0 | L20: 9011894.417 | N20: 10457253.24 | P20: 11758278.98 | R20: 11753676.48 | T20: 11762316.13 | U20: =U9+U18 -> 11762316.13
C22: Net Book Value Integrity Check | F22: ='App.2-BA_FA Cont 2010 OldCGAAP'!N60 -> 0 | H22: ='App.2-BA_FA Cont 2011 OldCGAAP'!N60 -> 0 | J22: ='App.2-BA_FA Cont 2012 OldCGAAP'!N60 -> 0 | L22: ='App.2-BA_FA Cont 2013 OldCGAAP'!M61 -> 9011894.416 | N22: ='App.2-BA_FA Cont 2014_OldCGAAP'!N62 -> 10457253.24 | P22: ='App.2-BA_FA Cont 2015_Old CGAAP'!N62 -> 36212050.39 | R22: ='App.2-BA_FA Cont 2016_Old CGAAP'!N62 -> 11753676.48 | T22: ='App.2-BA_FA Cont 2017_Old CGAAP'!N63 -> 11762316.13 | U22: ='App.2-BA_FA Cont 2018_Old CGAAP'!O63 -> 0
C23: Net Book Value Integrity Check - diff | F23: =F20-F22 -> 0 | H23: 0 | J23: 0 | L23: =L20-L22 -> 0 | N23: 0 | P23: -24453771.42 | R23: 0 | T23: 0 | U23: =U20-U22 -> 11762316.13
C25: Depreciation Exp Integrity Check | F25: ='App.2-CA_OldCGAAP_DepExp_2010'!J75 -> 0 | H25: ='App.2-CA_OldCGAAP_DepExp_2011'!J76 -> 0 | J25: ='App.2-CA_OldCGAAP_DepExp_2012'!J79 -> 0 | L25: ='App.2-CA_OldCGAAP_DepExp_2013'!K85 -> 1302132.108 | N25: ='App.2-CA_OldCGAAP_DepExp_2014'!K75 -> 946080.6298 | P25: ='App.2-CA_OldCGAAP_DepExp_2015'!J76 -> 1212030.773 | R25: ='App.2-CA_OldCGAAP_DepExp_2016'!J77 -> 1252769.698 | T25: ='App.2-CA_OldCGAAP_DepExp_2017'!J78 -> 1262435.074 | U25: ='App.2-CA_OldCGAAP_DepExp_2018'!K78 -> 0
C26: Depreciation Exp Integrity Check - diff | F26: =F16+F25 -> 0 | G26: 5 | H26: 0 | I26: 6 | J26: 0 | K26: 7 | L26: =L16+L25 -> 0 | N26: =N16+N25 -> 0 | P26: 1800370.243 | R26: 1252769.698 | T26: 1262435.074 | U26: =U16+U25 -> 0
A28: Notes | B28: 1 | C28: Add notes
B29: 2 | C29: Add notes
B30: 3 | C30: Add notes
B31: 4 | C31: Add notes
B32: 5 | C32: Add notes
B33: 6 | C33: Add notes
B34: 7 | C34: Add notes
B35: 8 | C35: Add notes
B36: 9 | C36: Add notes
C39: New CGAAP
C41: Year | L41: 2013 New | N41: 2014 New
C43: Gross Assets | D43: Opening | L43: ='App.2-BA_FA Cont 2013 NewCGAAP'!E104 -> 19312790.01 | N43: ='App.2-BA_FA Cont 2014 NewCGAAP'!E103 -> 20839380.73
D44: Add | L44: ='App.2-BA_FA Cont 2013 NewCGAAP'!F104 -> 2372444.14 | N44: ='App.2-BA_FA Cont 2014 NewCGAAP'!F103 -> 2398195.18
D45: Ret | L45: ='App.2-BA_FA Cont 2013 NewCGAAP'!G104 -> -845853.42 | N45: ='App.2-BA_FA Cont 2014 NewCGAAP'!G103 -> -645110.64
D46: Closing | L46: =SUM(L43:L45) -> 20839380.73 | N46: =SUM(N43:N45) -> 22592465.27
C48: Year | L48: =L41 -> 2013 New | N48: =N41 -> 2014 New
C49: Accumulated Depreciation | D49: Opening | L49: ='App.2-BA_FA Cont 2013 NewCGAAP'!J104 -> -10659217.76 | N49: ='App.2-BA_FA Cont 2014 NewCGAAP'!J103 -> -10630670.25
C50: Adjust. | L50: ='App.2-BA_FA Cont 2013 NewCGAAP'!K104 -> 0
D51: Add | L51: ='App.2-BA_FA Cont 2013 NewCGAAP'!L104 -> -635489.01 | N51: ='App.2-BA_FA Cont 2014 NewCGAAP'!K103 -> -572662.34
D52: Ret | L52: ='App.2-BA_FA Cont 2013 NewCGAAP'!M104 -> 664036.52 | N52: ='App.2-BA_FA Cont 2014 NewCGAAP'!L103 -> 612082.2
D53: Closing | L53: =SUM(L49:L52) -> -10630670.25 | N53: =SUM(N49:N52) -> -10591250.39
L55: =L46+L53 -> 10208710.48 | N55: =N46+N53 -> 12001214.88
C57: Net Book Value Integrity Check | L57: ='App.2-BA_FA Cont 2013 NewCGAAP'!O104 -> 10208710.48 | N57: ='App.2-BA_FA Cont 2014 NewCGAAP'!N103 -> 12001214.88
C58: Net Book Value Integrity Check - diff | L58: =L55-L57 -> 0 | N58: =N55-N57 -> 0
C60: Depreciation Exp Integrity Check | L60: ='App.2-CC_NewCGAAP_DepExp_2013'!J99 -> 544833.9137 | N60: ='App.2-CD_NewCGAAP_DepExp_2014'!F101 -> 641775.1271
C61: Depreciation Exp Integrity Check - diff | L61: =L51+L60 -> -90655.09627 | N61: =N51+N60 -> 69112.78711
A63: Notes | B63: 9 | C63: Add notes
C66: MIFRS
C68: Year | N68: 2014 MIFRS | P68: 2015 MIFRS | R68: 2016 MIFRS | T68: 2017 MIFRS | U68: 2018 MIFRS
C69: Add smart meter if need be | V69: 1
C70: Remove smart meter if need be | V70: 2
C71: Gross Assets | D71: Opening | N71: ='App.2-BA_FA Cont 2014 MIFRS-'!E104 -> 20839380.73 | P71: ='App.2-BA_FA Cont 2015 MIFRS'!E103 -> 22592465.27 | R71: ='App.2-BA_FA Cont 2016 MIFRS'!E103 -> 23878957.46 | T71: ='App.2-BA_FA Cont 2017 MIFRS'!E103 -> 25615538.78 | U71: ='App.2-BA_FA Cont 2018 MIFRS'!E103 -> 26741741.83
D72: Add | N72: ='App.2-BA_FA Cont 2014 MIFRS-'!F104 -> 2398195.18 | P72: ='App.2-BA_FA Cont 2015 MIFRS'!F103 -> 1870375.75 | R72: ='App.2-BA_FA Cont 2016 MIFRS'!F103 -> 2132796.97 | T72: ='App.2-BA_FA Cont 2017 MIFRS'!F103 -> 1377600 | U72: ='App.2-BA_FA Cont 2018 MIFRS'!F103 -> 875300
D73: Ret | N73: ='App.2-BA_FA Cont 2014 MIFRS-'!G104 -> -645110.64 | P73: ='App.2-BA_FA Cont 2015 MIFRS'!G103 -> -583883.56 | R73: ='App.2-BA_FA Cont 2016 MIFRS'!G103 -> -396215.65 | T73: ='App.2-BA_FA Cont 2017 MIFRS'!G103 -> -251396.95 | U73: ='App.2-BA_FA Cont 2018 MIFRS'!G103 -> -27000
D74: Closing | N74: =SUM(N71:N73) -> 22592465.27 | P74: =SUM(P71:P73) -> 23878957.46 | R74: =SUM(R71:R73) -> 25615538.78 | T74: =SUM(T71:T73) -> 26741741.83 | U74: =SUM(U71:U73) -> 27590041.83
C76: Year | N76: =N68 -> 2014 MIFRS | P76: =P68 -> 2015 MIFRS | R76: =R68 -> 2016 MIFRS | T76: =T68 -> 2017 MIFRS | U76: =U68 -> 2018 MIFRS
C77: Add smart meter if need be | V77: 3
C78: Remove smart meter if need be | V78: 4
C79: Accumulated Depreciation | D79: Opening | N79: ='App.2-BA_FA Cont 2014 MIFRS-'!J104 -> -10630458.8 | P79: ='App.2-BA_FA Cont 2015 MIFRS'!J103 -> -10591250.39 | R79: ='App.2-BA_FA Cont 2016 MIFRS'!J103 -> -10605835.21 | T79: ='App.2-BA_FA Cont 2017 MIFRS'!J103 -> -10873769.13 | U79: ='App.2-BA_FA Cont 2018 MIFRS'!J103 -> -11276872.18
C80: Adjust. | P80: ='App.2-BA_FA Cont 2015 MIFRS'!M103 -> 0
D81: Add | N81: ='App.2-BA_FA Cont 2014 MIFRS-'!K104 -> -572662.34 | P81: ='App.2-BA_FA Cont 2015 MIFRS'!K103 -> -588441.74 | R81: ='App.2-BA_FA Cont 2016 MIFRS'!K103 -> -612580.4 | T81: ='App.2-BA_FA Cont 2017 MIFRS'!K103 -> -649000 | U81: ='App.2-BA_FA Cont 2018 MIFRS'!K103 -> -694200
D82: Ret | N82: ='App.2-BA_FA Cont 2014 MIFRS-'!L104 -> 612082.2 | P82: ='App.2-BA_FA Cont 2015 MIFRS'!L103 -> 573856.92 | R82: ='App.2-BA_FA Cont 2016 MIFRS'!L103 -> 344646.48 | T82: ='App.2-BA_FA Cont 2017 MIFRS'!L103 -> 245896.95 | U82: ='App.2-BA_FA Cont 2018 MIFRS'!L103 -> 21500
D83: Closing | N83: =SUM(N79:N82) -> -10591038.94 | P83: =SUM(P79:P82) -> -10605835.21 | R83: =SUM(R79:R82) -> -10873769.13 | T83: =SUM(T79:T82) -> -11276872.18 | U83: =SUM(U79:U82) -> -11949572.18
N85: =N74+N83 -> 12001426.33 | P85: =P74+P83 -> 13273122.25 | R85: =R74+R83 -> 14741769.65 | T85: =T74+T83 -> 15464869.65 | U85: =U74+U83 -> 15640469.65
C87: Net Book Value Integrity Check | N87: ='App.2-BA_FA Cont 2014 MIFRS-'!N104 -> 12001426.33 | P87: ='App.2-BA_FA Cont 2015 MIFRS'!O103 -> 13273122.25 | R87: ='App.2-BA_FA Cont 2016 MIFRS'!N103 -> 14741769.66 | T87: ='App.2-BA_FA Cont 2017 MIFRS'!N103 -> 15464869.65 | U87: ='App.2-BA_FA Cont 2018 MIFRS'!N103 -> 15640469.65
C88: Net Book Value Integrity Check - diff | N88: =N85-N87 -> 0 | P88: =P85-P87 -> 0 | R88: =R85-R87 -> 0 | T88: =T85-T87 -> 0 | U88: =U85-U87 -> 0
C90: Depreciation Exp Integrity Check | N90: ='App.2-CD_MIFRS_DepExp_2014'!F101 -> 621020.4071 | P90: ='App.2-CD_MIFRS_DepExp_2015'!F100 -> 664438.0216 | R90: ='App.2-CD_MIFRS_DepExp_2016'!F99 -> 713299.7217 | T90: ='App.2-CE_MIFRS_DepExp_2017'!F99 -> 738323.7409 | U90: ='App.2-CE_MIFRS_DepExp_2017'!G99 -> 649000
C91: Depreciation Exp Integrity Check - diff | N91: =N81+N90 -> 48358.06711 | P91: =P81+P90 -> 75996.28158 | R91: =R81+R90 -> 100719.3217 | T91: =T81+T90 -> 89323.74088 | U91: =U81+U90 -> -45200
A93: Notes | B93: 1 | C93: Add notes
B94: 2 | C94: Add notes
B95: 3 | C95: Add notes
B96: 4 | C96: Add notes
B97: 10 | C97: Add notes
B98: 11 | C98: Add notes
C102: FINAL CONTINUITY SCHEDULE
C104: Year | F104: 2010Old | H104: 2011Old | J104: 2012Old | L104: 2013 New | N104: 2014 New | P104: 2015 MIFRS | R104: 2016 MIFRS | T104: 2017 MIFRS | U104: 2018 MIFRS
C105: Add smart meter if need be | V105: 1
C106: Remove smart meter if need be | V106: 2
C107: Gross Assets | D107: Opening | F107: ='App.2-BA_FA Cont 2010 OldCGAAP'!E60 -> 0 | H107: ='App.2-BA_FA Cont 2011 OldCGAAP'!E60 -> 0 | J107: ='App.2-BA_FA Cont 2012 OldCGAAP'!E60 -> 0 | L107: ='App.2-BA_FA Cont 2013 NewCGAAP'!E104 -> 19312790.01 | N107: ='App.2-BA_FA Cont 2014 NewCGAAP'!E103 -> 20839380.73 | P107: ='App.2-BA_FA Cont 2015 MIFRS'!E103 -> 22592465.27 | R107: ='App.2-BA_FA Cont 2016 MIFRS'!E103 -> 23878957.46 | T107: ='App.2-BA_FA Cont 2017 MIFRS'!E103 -> 25615538.78 | U107: ='App.2-BA_FA Cont 2018 MIFRS'!E103 -> 26741741.83
D108: Add | F108: ='App.2-BA_FA Cont 2010 OldCGAAP'!F60 -> 0 | H108: ='App.2-BA_FA Cont 2011 OldCGAAP'!F60 -> 0 | J108: ='App.2-BA_FA Cont 2012 OldCGAAP'!F60 -> 0 | L108: ='App.2-BA_FA Cont 2013 NewCGAAP'!F104 -> 2372444.14 | N108: ='App.2-BA_FA Cont 2014 NewCGAAP'!F103 -> 2398195.18 | P108: ='App.2-BA_FA Cont 2015 MIFRS'!F103 -> 1870375.75 | R108: ='App.2-BA_FA Cont 2016 MIFRS'!F103 -> 2132796.97 | T108: ='App.2-BA_FA Cont 2017 MIFRS'!F103 -> 1377600 | U108: ='App.2-BA_FA Cont 2018 MIFRS'!F103 -> 875300
D109: Ret | F109: ='App.2-BA_FA Cont 2010 OldCGAAP'!G57 -> 0 | H109: ='App.2-BA_FA Cont 2011 OldCGAAP'!G60 -> 0 | J109: ='App.2-BA_FA Cont 2012 OldCGAAP'!G60 -> 0 | L109: ='App.2-BA_FA Cont 2013 NewCGAAP'!G104 -> -845853.42 | N109: ='App.2-BA_FA Cont 2014 NewCGAAP'!G103 -> -645110.64 | P109: ='App.2-BA_FA Cont 2015 MIFRS'!G103 -> -583883.56 | R109: ='App.2-BA_FA Cont 2016 MIFRS'!G103 -> -396215.65 | T109: ='App.2-BA_FA Cont 2017 MIFRS'!G103 -> -251396.95 | U109: ='App.2-BA_FA Cont 2018 MIFRS'!G103 -> -27000
D110: Closing | F110: =SUM(F107:F109) -> 0 | H110: 0 | J110: 0 | L110: 20839380.73 | N110: 22592465.27 | P110: 23878957.46 | R110: 25615538.78 | T110: 26741741.83 | U110: =SUM(U107:U109) -> 27590041.83
C112: Year | F112: =F104 -> 2010Old | H112: 2011Old | J112: 2012Old | L112: 2013 New | N112: 2014 New | P112: 2015 MIFRS | R112: 2016 MIFRS | T112: 2017 MIFRS | U112: =U104 -> 2018 MIFRS
C113: Add smart meter if need be | V113: 3
C114: Remove smart meter if need be | V114: 4
C115: Accumulated Depreciation | D115: Opening | F115: ='App.2-BA_FA Cont 2010 OldCGAAP'!J60 -> 0 | H115: ='App.2-BA_FA Cont 2011 OldCGAAP'!J60 -> 0 | J115: ='App.2-BA_FA Cont 2012 OldCGAAP'!J60 -> 0 | L115: ='App.2-BA_FA Cont 2013 NewCGAAP'!J104 -> -10659217.76 | N115: ='App.2-BA_FA Cont 2014 NewCGAAP'!J103 -> -10630670.25 | P115: ='App.2-BA_FA Cont 2015 MIFRS'!J103 -> -10591250.39 | R115: ='App.2-BA_FA Cont 2016 MIFRS'!J103 -> -10605835.21 | T115: ='App.2-BA_FA Cont 2017 MIFRS'!J103 -> -10873769.13 | U115: ='App.2-BA_FA Cont 2018 MIFRS'!J103 -> -11276872.18
C116: Adjust. | L116: ='App.2-BA_FA Cont 2013 NewCGAAP'!K104 -> 0 | P116: ='App.2-BA_FA Cont 2015 MIFRS'!M103 -> 0
D117: Add | F117: ='App.2-BA_FA Cont 2010 OldCGAAP'!K60 -> 0 | H117: ='App.2-BA_FA Cont 2011 OldCGAAP'!K60 -> 0 | J117: ='App.2-BA_FA Cont 2012 OldCGAAP'!K60 -> 0 | L117: ='App.2-BA_FA Cont 2013 NewCGAAP'!L104 -> -635489.01 | N117: ='App.2-BA_FA Cont 2014 NewCGAAP'!K103 -> -572662.34 | P117: ='App.2-BA_FA Cont 2015 MIFRS'!K103 -> -588441.74 | R117: ='App.2-BA_FA Cont 2016 MIFRS'!K103 -> -612580.4 | T117: ='App.2-BA_FA Cont 2017 MIFRS'!K103 -> -649000 | U117: ='App.2-BA_FA Cont 2018 MIFRS'!K103 -> -694200
D118: Ret | F118: ='App.2-BA_FA Cont 2010 OldCGAAP'!L60 -> 0 | H118: ='App.2-BA_FA Cont 2011 OldCGAAP'!L60 -> 0 | J118: ='App.2-BA_FA Cont 2012 OldCGAAP'!L60 -> 0 | L118: ='App.2-BA_FA Cont 2013 NewCGAAP'!M104 -> 664036.52 | N118: ='App.2-BA_FA Cont 2014 NewCGAAP'!L103 -> 612082.2 | P118: ='App.2-BA_FA Cont 2015 MIFRS'!L103 -> 573856.92 | R118: ='App.2-BA_FA Cont 2016 MIFRS'!L103 -> 344646.48 | T118: ='App.2-BA_FA Cont 2017 MIFRS'!L103 -> 245896.95 | U118: =+'App.2-BA_FA Cont 2018 MIFRS'!L103 -> 21500
D119: Closing | F119: =SUM(F115:F118) -> 0 | H119: 0 | J119: 0 | L119: -10630670.25 | N119: -10591250.39 | P119: -10605835.21 | R119: -10873769.13 | T119: -11276872.18 | U119: =SUM(U115:U118) -> -11949572.18
F121: =F110+F119 -> 0 | H121: 0 | J121: 0 | L121: 10208710.48 | N121: 12001214.88 | P121: 13273122.25 | R121: 14741769.65 | T121: 15464869.65 | U121: =U110+U119 -> 15640469.65
C123: Net Book Value Integrity Check | F123: ='App.2-BA_FA Cont 2010 OldCGAAP'!N60 -> 0 | H123: ='App.2-BA_FA Cont 2011 OldCGAAP'!N60 -> 0 | J123: ='App.2-BA_FA Cont 2012 OldCGAAP'!N60 -> 0 | L123: ='App.2-BA_FA Cont 2013 NewCGAAP'!O104 -> 10208710.48 | N123: ='App.2-BA_FA Cont 2014 NewCGAAP'!N103 -> 12001214.88 | P123: ='App.2-BA_FA Cont 2015 MIFRS'!O103 -> 13273122.25 | R123: ='App.2-BA_FA Cont 2016 MIFRS'!N103 -> 14741769.66 | T123: ='App.2-BA_FA Cont 2017 MIFRS'!N103 -> 15464869.65 | U123: ='App.2-BA_FA Cont 2018 MIFRS'!N103 -> 15640469.65
C124: Net Book Value Integrity Check - diff | F124: =F121-F123 -> 0 | H124: 0 | J124: 0 | L124: 0 | N124: 0 | P124: 0 | R124: 0 | T124: 0 | U124: =U121-U123 -> 0
C126: Depreciation Exp Integrity Check | F126: =F25 -> 0 | H126: =H25 -> 0 | J126: =J25 -> 0 | L126: =L60 -> 544833.9137 | N126: =N60 -> 641775.1271 | P126: =P90 -> 664438.0216 | R126: =R90 -> 713299.7217 | T126: =T90 -> 738323.7409 | U126: =U90 -> 649000
C127: Depreciation Exp Integrity Check - diff | F127: =F117+F126 -> 0 | G127: 5 | H127: 0 | I127: 6 | J127: 0 | K127: 7 | L127: -90655.09627 | N127: 69112.78711 | P127: 75996.28158 | R127: 100719.3217 | T127: 89323.74088 | U127: =U117+U126 -> -45200 | V127: 11
A130: Notes | B130: 1 | C130: Add notes
B131: 2 | C131: Add notes
B132: 3 | C132: Add notes
B133: 4 | C133: Add notes
B134: 5 | C134: Add notes
B135: 6 | C135: Add notes
B136: 7 | C136: Add notes
B137: 8 | C137: Add notes
B138: 9 | C138: Add notes
B139: 10 | C139: Add notes
B140: 11 | C140: Add notes

Sheet App.2-BA_FA Cont 2010 OldCGAAP (hidden)
M1: File Number: | N1: =EBNUMBER -> 
M2: Exhibit:
M3: Tab:
M4: Schedule:
M5: Page:
M7: Date:
B9: Appendix 2-BA
B10: Fixed Asset Continuity Schedule
F12: Accounting Standard | G12: CGAAP | H12: Old CGAAP
F13: Year | G13: 2010
A15: RHI | B15: OEB | E15: Cost | K15: Accumulated Depreciation
A16: CCA Class | B16: CCA Class | C16: OEB | D16: Description | E16: Opening Balance | F16: Additions | G16: Disposals | H16: Closing Balance | J16: Opening Balance | K16: Additions | L16: Disposals | M16: Closing Balance | N16: Net Book Value
A17: 12 | B17: 12 | C17: 1611 | D17: Computer Software (Formally known as Account 1925) | H17: =E17+F17+G17 -> 0 | M17: =J17+K17+L17 -> 0 | N17: =H17+M17 -> 0
A18: CEC | B18: CEC | C18: 1612 | D18: Land Rights (Formally known as Account 1906) | H18: =E18+F18+G18 -> 0 | M18: =J18+K18+L18 -> 0 | N18: =H18+M18 -> 0
A19: N/A | B19: N/A | C19: 1805 | D19: Land | H19: =E19+F19+G19 -> 0 | M19: =J19+K19+L19 -> 0 | N19: =H19+M19 -> 0
A20: 1 | B20: 47 | C20: 1808 | D20: Buildings | H20: =E20+F20+G20 -> 0 | M20: =J20+K20+L20 -> 0 | N20: =H20+M20 -> 0
B21: 13 | C21: 1810 | D21: Leasehold Improvements | H21: 0 | M21: 0 | N21: 0
B22: 47 | C22: 1815 | D22: Transformer Station Equipment >50 kV | H22: 0 | M22: 0 | N22: 0
A23: 1/47 | B23: 47 | C23: 1820 | D23: Distribution Station Equipment <50 kV | H23: 0 | M23: 0 | N23: 0
B24: 47 | C24: 1825 | D24: Storage Battery Equipment | H24: 0 | M24: 0 | N24: 0
A25: 1/47 | B25: 47 | C25: 1830 | D25: Poles, Towers & Fixtures | H25: 0 | M25: 0 | N25: 0
A26: 1/47 | B26: 47 | C26: 1835 | D26: Overhead Conductors & Devices | H26: 0 | M26: 0 | N26: 0
A27: 1/47 | B27: 47 | C27: 1840 | D27: Underground Conduit | H27: 0 | M27: 0 | N27: 0
A28: 1/47 | B28: 47 | C28: 1845 | D28: Underground Conductors & Devices | H28: 0 | M28: 0 | N28: 0
A29: 1/47 | B29: 47 | C29: 1850 | D29: Line Transformers | H29: 0 | M29: 0 | N29: 0
A30: 1/47 | B30: 47 | C30: 1855 | D30: Services (Overhead & Underground) | H30: 0 | M30: 0 | N30: 0
A31: 1/47 | B31: 47 | C31: 1860 | D31: Meters | H31: 0 | M31: 0 | N31: 0
A32: 47 | B32: 47 | C32: 1860 | D32: Meters (Smart Meters) | H32: 0 | M32: 0 | N32: 0
A33: N/A | B33: N/A | C33: 1905 | D33: Land | H33: 0 | M33: 0 | N33: 0
B34: 47 | C34: 1908 | D34: Buildings & Fixtures | H34: 0 | M34: 0 | N34: 0
A35: 13 | B35: 13 | C35: 1910 | D35: Leasehold Improvements | H35: 0 | M35: 0 | N35: 0
A36: 8 | B36: 8 | C36: 1915 | D36: Office Furniture & Equipment (10 years) | H36: 0 | M36: 0 | N36: 0
A37: 8 | B37: 8 | C37: 1915 | D37: Office Furniture & Equipment (5 years) | H37: 0 | M37: 0 | N37: 0
A38: 10 | B38: 10 | C38: 1920 | D38: Computer Equipment - Hardware | H38: 0 | M38: 0 | N38: 0
B39: 45 | C39: 1920 | D39: Computer Equip.-Hardware(Post Mar. 22/04) | H39: 0 | M39: 0 | N39: 0
B40: 45.1 | C40: 1920 | D40: Computer Equip.-Hardware(Post Mar. 19/07) | H40: 0 | M40: 0 | N40: 0
A41: 10 | B41: 10 | C41: 1930 | D41: Transportation Equipment | H41: 0 | M41: 0 | N41: 0
A42: 8 | B42: 8 | C42: 1935 | D42: Stores Equipment | H42: 0 | M42: 0 | N42: 0
A43: 8 | B43: 8 | C43: 1940 | D43: Tools, Shop & Garage Equipment | H43: 0 | M43: 0 | N43: 0
A44: 8 | B44: 8 | C44: 1945 | D44: Measurement & Testing Equipment | H44: 0 | M44: 0 | N44: 0
A45: 8 | B45: 8 | C45: 1950 | D45: Power Operated Equipment | H45: 0 | M45: 0 | N45: 0
A46: 8 | B46: 8 | C46: 1955 | D46: Communications Equipment | H46: 0 | M46: 0 | N46: 0
A47: 8 | B47: 8 | C47: 1955 | D47: Communication Equipment (Smart Meters) | H47: 0 | M47: 0 | N47: 0
A48: 8 | B48: 8 | C48: 1960 | D48: Miscellaneous Equipment | H48: 0 | M48: 0 | N48: 0
A49: 47 | B49: 47 | C49: 1970 | D49: Load Management Controls Customer Premises | H49: 0 | M49: 0 | N49: 0
A50: 47 | B50: 47 | C50: 1975 | D50: Load Management Controls Utility Premises | H50: 0 | M50: 0 | N50: 0
A51: 47 | B51: 47 | C51: 1980 | D51: System Supervisor Equipment | H51: 0 | M51: 0 | N51: 0
A52: 47 | B52: 47 | C52: 1985 | D52: Miscellaneous Fixed Assets | H52: 0 | M52: 0 | N52: 0
A53: 47 | B53: 47 | C53: 1990 | D53: Other Tangible Property | H53: 0 | M53: 0 | N53: 0
A54: 47 | B54: 47 | C54: 1995 | D54: Contributions & Grants | H54: 0 | M54: 0 | N54: 0
C55: 2440 | D55: Deferred Revenue5
H56: 0 | M56: 0 | N56: 0
D57: Sub-Total | E57: =SUM(E17:E56) -> 0 | F57: =SUM(F17:F56) -> 0 | G57: =SUM(G17:G56) -> 0 | H57: =SUM(H17:H56) -> 0 | J57: =SUM(J17:J56) -> 0 | K57: =SUM(K17:K56) -> 0 | L57: =SUM(L17:L56) -> 0 | M57: =SUM(M17:M56) -> 0 | N57: =SUM(N17:N56) -> 0
D58: Less Socialized Renewable Energy Generation Investments (input as negative) | H58: =E58+F58+G58 -> 0 | M58: =J58+K58+L58 -> 0 | N58: =H58+M58 -> 0
D59: Less Other Non Rate-Regulated Utility Assets (input as negative) | H59: 0 | M59: 0 | N59: 0
D60: Total PP&E | E60: =SUM(E57:E59) -> 0 | F60: =SUM(F57:F59) -> 0 | G60: 0 | H60: 0 | J60: =SUM(J57:J59) -> 0 | K60: 0 | L60: 0 | M60: 0 | N60: 0
D61: Depreciation Expense adj. from gain or loss on the retirement of assets (pool of like assets), if applicable6
D62: Total | K62: =K60+K61 -> 0
J64: Less: Fully Allocated Depreciation
B65: 10 | D65: Transportation | J65: Transportation
B66: 8 | D66: Stores Equipment | J66: Stores Equipment
J67: Net Depreciation | L67: =K62-L65-L66 -> 0
B69: Originally hydro distribution assets were added to Class 1 for tax purposes. This was changed a few years ago and all new additions are now in Class 47.
B71: Notes:
B73: 1 | C73: Tables in the format outlined above covering all fixed asset accounts should be submitted for the Test Year, Bridge Year and all relevant historical years. At a minimum , the applicant must provide data for the earlier of: 1) all historical years back to its last rebasing; or 2) at least three years of historical actuals, in addition to Bridge Year and Test Year forecasts.
B76: 2 | C76: The "CCA Class" for fixed assets should agree with the CCA Class used for tax purposes in Tax Returns. Fixed Assets sub-components may be used where the underlying asset components are classified under multiple CCA Classes for tax purposes. If an applicant uses any different classes from those shown in the table, an explanation should be provided. (also see note 3 below).
B79: 3 | C79: The table may need to be customized for a utility's asset categories or for any new asset accounts announced or authorized by the Board.
B81: 4 | C81: The additions column (E) must not include construction work in progress (CWIP).
B83: 5 | C83: Effective on the date of IFRS adoption, customer contributions will no longer be recorded in Account 1995 Contributions & Grants, but will be recorded in Account 2440, Deferred Revenues.
B85: 6 | C85: Where a distributor for general financial reporting purposes under IFRS has accounted for the amount of gain or loss on the retirement of assets in a pool of like assets as a charge or credit to income, for reporting and rate application filings the distributor shall reclassify such gains and losses as depreciation expense, and disclose the amount separately.

Sheet App.2-BA_FA Cont 2011 OldCGAAP (hidden)
M1: File Number: | N1: =EBNUMBER -> 
M2: Exhibit:
M3: Tab:
M4: Schedule:
M5: Page:
M7: Date:
B9: Appendix 2-BA
B10: Fixed Asset Continuity Schedule
F12: Accounting Standard | G12: CGAAP | H12: Old CGAAP
F13: Year | G13: 2011
A15: RHI | B15: OEB | E15: Cost | K15: Accumulated Depreciation
A16: CCA Class | B16: CCA Class | C16: OEB | D16: Description | E16: Opening Balance | F16: Additions | G16: Disposals | H16: Closing Balance | J16: Opening Balance | K16: Additions | L16: Disposals | M16: Closing Balance | N16: Net Book Value
A17: 12 | B17: 12 | C17: 1611 | D17: Computer Software (Formally known as Account 1925) | E17: ='App.2-BA_FA Cont 2010 OldCGAAP'!H17 -> 0 | H17: =E17+F17+G17 -> 0 | J17: ='App.2-BA_FA Cont 2010 OldCGAAP'!M17 -> 0 | M17: =J17+K17+L17 -> 0 | N17: =H17+M17 -> 0
A18: CEC | B18: CEC | C18: 1612 | D18: Land Rights (Formally known as Account 1906) | E18: ='App.2-BA_FA Cont 2010 OldCGAAP'!H18 -> 0 | H18: =E18+F18+G18 -> 0 | J18: ='App.2-BA_FA Cont 2010 OldCGAAP'!M18 -> 0 | M18: =J18+K18+L18 -> 0 | N18: =H18+M18 -> 0
A19: N/A | B19: N/A | C19: 1805 | D19: Land | E19: ='App.2-BA_FA Cont 2010 OldCGAAP'!H19 -> 0 | H19: =E19+F19+G19 -> 0 | J19: ='App.2-BA_FA Cont 2010 OldCGAAP'!M19 -> 0 | M19: =J19+K19+L19 -> 0 | N19: =H19+M19 -> 0
A20: 1 | B20: 47 | C20: 1808 | D20: Buildings | E20: ='App.2-BA_FA Cont 2010 OldCGAAP'!H20 -> 0 | H20: =E20+F20+G20 -> 0 | J20: ='App.2-BA_FA Cont 2010 OldCGAAP'!M20 -> 0 | M20: =J20+K20+L20 -> 0 | N20: =H20+M20 -> 0
B21: 13 | C21: 1810 | D21: Leasehold Improvements | E21: ='App.2-BA_FA Cont 2010 OldCGAAP'!H21 -> 0 | H21: 0 | J21: ='App.2-BA_FA Cont 2010 OldCGAAP'!M21 -> 0 | M21: 0 | N21: 0
B22: 47 | C22: 1815 | D22: Transformer Station Equipment >50 kV | E22: ='App.2-BA_FA Cont 2010 OldCGAAP'!H22 -> 0 | H22: 0 | J22: ='App.2-BA_FA Cont 2010 OldCGAAP'!M22 -> 0 | M22: 0 | N22: 0
A23: 1/47 | B23: 47 | C23: 1820 | D23: Distribution Station Equipment <50 kV | E23: ='App.2-BA_FA Cont 2010 OldCGAAP'!H23 -> 0 | H23: 0 | J23: ='App.2-BA_FA Cont 2010 OldCGAAP'!M23 -> 0 | M23: 0 | N23: 0
B24: 47 | C24: 1825 | D24: Storage Battery Equipment | E24: ='App.2-BA_FA Cont 2010 OldCGAAP'!H24 -> 0 | H24: 0 | J24: ='App.2-BA_FA Cont 2010 OldCGAAP'!M24 -> 0 | M24: 0 | N24: 0
A25: 1/47 | B25: 47 | C25: 1830 | D25: Poles, Towers & Fixtures | E25: ='App.2-BA_FA Cont 2010 OldCGAAP'!H25 -> 0 | H25: 0 | J25: ='App.2-BA_FA Cont 2010 OldCGAAP'!M25 -> 0 | M25: 0 | N25: 0
A26: 1/47 | B26: 47 | C26: 1835 | D26: Overhead Conductors & Devices | E26: ='App.2-BA_FA Cont 2010 OldCGAAP'!H26 -> 0 | H26: 0 | J26: ='App.2-BA_FA Cont 2010 OldCGAAP'!M26 -> 0 | M26: 0 | N26: 0
A27: 1/47 | B27: 47 | C27: 1840 | D27: Underground Conduit | E27: ='App.2-BA_FA Cont 2010 OldCGAAP'!H27 -> 0 | H27: 0 | J27: ='App.2-BA_FA Cont 2010 OldCGAAP'!M27 -> 0 | M27: 0 | N27: 0
A28: 1/47 | B28: 47 | C28: 1845 | D28: Underground Conductors & Devices | E28: ='App.2-BA_FA Cont 2010 OldCGAAP'!H28 -> 0 | H28: 0 | J28: ='App.2-BA_FA Cont 2010 OldCGAAP'!M28 -> 0 | M28: 0 | N28: 0
A29: 1/47 | B29: 47 | C29: 1850 | D29: Line Transformers | E29: ='App.2-BA_FA Cont 2010 OldCGAAP'!H29 -> 0 | H29: 0 | J29: ='App.2-BA_FA Cont 2010 OldCGAAP'!M29 -> 0 | M29: 0 | N29: 0
A30: 1/47 | B30: 47 | C30: 1855 | D30: Services (Overhead & Underground) | E30: ='App.2-BA_FA Cont 2010 OldCGAAP'!H30 -> 0 | H30: 0 | J30: ='App.2-BA_FA Cont 2010 OldCGAAP'!M30 -> 0 | M30: 0 | N30: 0
A31: 1/47 | B31: 47 | C31: 1860 | D31: Meters | E31: ='App.2-BA_FA Cont 2010 OldCGAAP'!H31 -> 0 | H31: 0 | J31: ='App.2-BA_FA Cont 2010 OldCGAAP'!M31 -> 0 | M31: 0 | N31: 0
A32: 47 | B32: 47 | C32: 1860 | D32: Meters (Smart Meters) | E32: ='App.2-BA_FA Cont 2010 OldCGAAP'!H32 -> 0 | H32: 0 | J32: ='App.2-BA_FA Cont 2010 OldCGAAP'!M32 -> 0 | M32: 0 | N32: 0
A33: N/A | B33: N/A | C33: 1905 | D33: Land | E33: ='App.2-BA_FA Cont 2010 OldCGAAP'!H33 -> 0 | H33: 0 | J33: ='App.2-BA_FA Cont 2010 OldCGAAP'!M33 -> 0 | M33: 0 | N33: 0
B34: 47 | C34: 1908 | D34: Buildings & Fixtures | E34: ='App.2-BA_FA Cont 2010 OldCGAAP'!H34 -> 0 | H34: 0 | J34: ='App.2-BA_FA Cont 2010 OldCGAAP'!M34 -> 0 | M34: 0 | N34: 0
A35: 13 | B35: 13 | C35: 1910 | D35: Leasehold Improvements | E35: ='App.2-BA_FA Cont 2010 OldCGAAP'!H35 -> 0 | H35: 0 | J35: ='App.2-BA_FA Cont 2010 OldCGAAP'!M35 -> 0 | M35: 0 | N35: 0
A36: 8 | B36: 8 | C36: 1915 | D36: Office Furniture & Equipment (10 years) | E36: ='App.2-BA_FA Cont 2010 OldCGAAP'!H36 -> 0 | H36: 0 | J36: ='App.2-BA_FA Cont 2010 OldCGAAP'!M36 -> 0 | M36: 0 | N36: 0
A37: 8 | B37: 8 | C37: 1915 | D37: Office Furniture & Equipment (5 years) | E37: ='App.2-BA_FA Cont 2010 OldCGAAP'!H37 -> 0 | H37: 0 | J37: ='App.2-BA_FA Cont 2010 OldCGAAP'!M37 -> 0 | M37: 0 | N37: 0
A38: 10 | B38: 10 | C38: 1920 | D38: Computer Equipment - Hardware | E38: ='App.2-BA_FA Cont 2010 OldCGAAP'!H38 -> 0 | H38: 0 | J38: ='App.2-BA_FA Cont 2010 OldCGAAP'!M38 -> 0 | M38: 0 | N38: 0
B39: 45 | C39: 1920 | D39: Computer Equip.-Hardware(Post Mar. 22/04) | E39: ='App.2-BA_FA Cont 2010 OldCGAAP'!H39 -> 0 | H39: 0 | J39: ='App.2-BA_FA Cont 2010 OldCGAAP'!M39 -> 0 | M39: 0 | N39: 0
B40: 45.1 | C40: 1920 | D40: Computer Equip.-Hardware(Post Mar. 19/07) | E40: ='App.2-BA_FA Cont 2010 OldCGAAP'!H40 -> 0 | H40: 0 | J40: ='App.2-BA_FA Cont 2010 OldCGAAP'!M40 -> 0 | M40: 0 | N40: 0
A41: 10 | B41: 10 | C41: 1930 | D41: Transportation Equipment | E41: ='App.2-BA_FA Cont 2010 OldCGAAP'!H41 -> 0 | H41: 0 | J41: ='App.2-BA_FA Cont 2010 OldCGAAP'!M41 -> 0 | M41: 0 | N41: 0
A42: 8 | B42: 8 | C42: 1935 | D42: Stores Equipment | E42: ='App.2-BA_FA Cont 2010 OldCGAAP'!H42 -> 0 | H42: 0 | J42: ='App.2-BA_FA Cont 2010 OldCGAAP'!M42 -> 0 | M42: 0 | N42: 0
A43: 8 | B43: 8 | C43: 1940 | D43: Tools, Shop & Garage Equipment | E43: ='App.2-BA_FA Cont 2010 OldCGAAP'!H43 -> 0 | H43: 0 | J43: ='App.2-BA_FA Cont 2010 OldCGAAP'!M43 -> 0 | M43: 0 | N43: 0
A44: 8 | B44: 8 | C44: 1945 | D44: Measurement & Testing Equipment | E44: ='App.2-BA_FA Cont 2010 OldCGAAP'!H44 -> 0 | H44: 0 | J44: ='App.2-BA_FA Cont 2010 OldCGAAP'!M44 -> 0 | M44: 0 | N44: 0
A45: 8 | B45: 8 | C45: 1950 | D45: Power Operated Equipment | E45: ='App.2-BA_FA Cont 2010 OldCGAAP'!H45 -> 0 | H45: 0 | J45: ='App.2-BA_FA Cont 2010 OldCGAAP'!M45 -> 0 | M45: 0 | N45: 0
A46: 8 | B46: 8 | C46: 1955 | D46: Communications Equipment | E46: ='App.2-BA_FA Cont 2010 OldCGAAP'!H46 -> 0 | H46: 0 | J46: ='App.2-BA_FA Cont 2010 OldCGAAP'!M46 -> 0 | M46: 0 | N46: 0
A47: 8 | B47: 8 | C47: 1955 | D47: Communication Equipment (Smart Meters) | E47: ='App.2-BA_FA Cont 2010 OldCGAAP'!H47 -> 0 | H47: 0 | J47: ='App.2-BA_FA Cont 2010 OldCGAAP'!M47 -> 0 | M47: 0 | N47: 0
A48: 8 | B48: 8 | C48: 1960 | D48: Miscellaneous Equipment | E48: ='App.2-BA_FA Cont 2010 OldCGAAP'!H48 -> 0 | H48: 0 | J48: ='App.2-BA_FA Cont 2010 OldCGAAP'!M48 -> 0 | M48: 0 | N48: 0
A49: 47 | B49: 47 | C49: 1970 | D49: Load Management Controls Customer Premises | E49: ='App.2-BA_FA Cont 2010 OldCGAAP'!H49 -> 0 | H49: 0 | J49: ='App.2-BA_FA Cont 2010 OldCGAAP'!M49 -> 0 | M49: 0 | N49: 0
A50: 47 | B50: 47 | C50: 1975 | D50: Load Management Controls Utility Premises | E50: ='App.2-BA_FA Cont 2010 OldCGAAP'!H50 -> 0 | H50: 0 | J50: ='App.2-BA_FA Cont 2010 OldCGAAP'!M50 -> 0 | M50: 0 | N50: 0
A51: 47 | B51: 47 | C51: 1980 | D51: System Supervisor Equipment | E51: ='App.2-BA_FA Cont 2010 OldCGAAP'!H51 -> 0 | H51: 0 | J51: ='App.2-BA_FA Cont 2010 OldCGAAP'!M51 -> 0 | M51: 0 | N51: 0
A52: 47 | B52: 47 | C52: 1985 | D52: Miscellaneous Fixed Assets | E52: ='App.2-BA_FA Cont 2010 OldCGAAP'!H52 -> 0 | H52: 0 | J52: ='App.2-BA_FA Cont 2010 OldCGAAP'!M52 -> 0 | M52: 0 | N52: 0
A53: 47 | B53: 47 | C53: 1990 | D53: Other Tangible Property | E53: ='App.2-BA_FA Cont 2010 OldCGAAP'!H53 -> 0 | H53: 0 | J53: ='App.2-BA_FA Cont 2010 OldCGAAP'!M53 -> 0 | M53: 0 | N53: 0
C54: 1995 | D54: Contributions & Grants | E54: ='App.2-BA_FA Cont 2010 OldCGAAP'!H54 -> 0 | H54: 0 | J54: ='App.2-BA_FA Cont 2010 OldCGAAP'!M54 -> 0 | M54: 0 | N54: 0
C55: 2440 | D55: Deferred Revenue5 | E55: ='App.2-BA_FA Cont 2010 OldCGAAP'!H55 -> 0 | J55: ='App.2-BA_FA Cont 2010 OldCGAAP'!M55 -> 0
E56: ='App.2-BA_FA Cont 2010 OldCGAAP'!H56 -> 0 | H56: 0 | M56: 0 | N56: 0
D57: Sub-Total | E57: =SUM(E17:E56) -> 0 | F57: =SUM(F17:F56) -> 0 | G57: =SUM(G17:G56) -> 0 | H57: =SUM(H17:H56) -> 0 | J57: =SUM(J17:J56) -> 0 | K57: =SUM(K17:K56) -> 0 | L57: =SUM(L17:L56) -> 0 | M57: =SUM(M17:M56) -> 0 | N57: =SUM(N17:N56) -> 0
D58: Less Socialized Renewable Energy Generation Investments (input as negative) | H58: =E58+F58+G58 -> 0 | M58: =J58+K58+L58 -> 0 | N58: =H58+M58 -> 0
D59: Less Other Non Rate-Regulated Utility Assets (input as negative) | H59: 0 | M59: 0 | N59: 0
D60: Total PP&E | E60: =SUM(E57:E59) -> 0 | F60: =SUM(F57:F59) -> 0 | G60: 0 | H60: 0 | J60: =SUM(J57:J59) -> 0 | K60: 0 | L60: 0 | M60: 0 | N60: 0
D61: Depreciation Expense adj. from gain or loss on the retirement of assets (pool of like assets), if applicable6
D62: Total | K62: =K60+K61 -> 0
J64: Less: Fully Allocated Depreciation
B65: 10 | D65: Transportation | J65: Transportation
B66: 8 | D66: Stores Equipment | J66: Stores Equipment
J67: Net Depreciation | L67: =K62-L65-L66 -> 0
B69: Originally hydro distribution assets were added to Class 1 for tax purposes. This was changed a few years ago and all new additions are now in Class 47.
B70: Notes:
B72: 1 | C72: Tables in the format outlined above covering all fixed asset accounts should be submitted for the Test Year, Bridge Year and all relevant historical years. At a minimum , the applicant must provide data for the earlier of: 1) all historical years back to its last rebasing; or 2) at least three years of historical actuals, in addition to Bridge Year and Test Year forecasts.
B75: 2 | C75: The "CCA Class" for fixed assets should agree with the CCA Class used for tax purposes in Tax Returns. Fixed Assets sub-components may be used where the underlying asset components are classified under multiple CCA Classes for tax purposes. If an applicant uses any different classes from those shown in the table, an explanation should be provided. (also see note 3 below).
B78: 3 | C78: The table may need to be customized for a utility's asset categories or for any new asset accounts announced or authorized by the Board.
B80: 4 | C80: The additions column (E) must not include construction work in progress (CWIP).
B82: 5 | C82: Effective on the date of IFRS adoption, customer contributions will no longer be recorded in Account 1995 Contributions & Grants, but will be recorded in Account 2440, Deferred Revenues.
B84: 6 | C84: Where a distributor for general financial reporting purposes under IFRS has accounted for the amount of gain or loss on the retirement of assets in a pool of like assets as a charge or credit to income, for reporting and rate application filings the distributor shall reclassify such gains and losses as depreciation expense, and disclose the amount separately.

Sheet App.2-BA_FA Cont 2012 OldCGAAP (hidden)
M1: File Number: | N1: =EBNUMBER -> 
M2: Exhibit:
M3: Tab:
M4: Schedule:
M5: Page:
M7: Date:
B9: Appendix 2-BA
B10: Fixed Asset Continuity Schedule
F12: Accounting Standard | G12: CGAAP | H12: Old CGAAP
F13: Year | G13: 2012
A15: RHI | B15: OEB | E15: Cost | K15: Accumulated Depreciation
A16: CCA Class | B16: CCA Class | C16: OEB | D16: Description | E16: Opening Balance | F16: Additions | G16: Disposals | H16: Closing Balance | J16: Opening Balance | K16: Additions | L16: Disposals | M16: Closing Balance | N16: Net Book Value
A17: 12 | B17: 12 | C17: 1611 | D17: Computer Software (Formally known as Account 1925) | E17: ='App.2-BA_FA Cont 2011 OldCGAAP'!H17 -> 0 | H17: =E17+F17+G17 -> 0 | J17: ='App.2-BA_FA Cont 2011 OldCGAAP'!M17 -> 0 | M17: =J17+K17+L17 -> 0 | N17: =H17+M17 -> 0
A18: CEC | B18: CEC | C18: 1612 | D18: Land Rights (Formally known as Account 1906) | E18: ='App.2-BA_FA Cont 2011 OldCGAAP'!H18 -> 0 | H18: =E18+F18+G18 -> 0 | J18: ='App.2-BA_FA Cont 2011 OldCGAAP'!M18 -> 0 | M18: =J18+K18+L18 -> 0 | N18: =H18+M18 -> 0
A19: N/A | B19: N/A | C19: 1805 | D19: Land | E19: ='App.2-BA_FA Cont 2011 OldCGAAP'!H19 -> 0 | H19: =E19+F19+G19 -> 0 | J19: ='App.2-BA_FA Cont 2011 OldCGAAP'!M19 -> 0 | M19: =J19+K19+L19 -> 0 | N19: =H19+M19 -> 0
A20: 1 | B20: 47 | C20: 1808 | D20: Buildings | E20: ='App.2-BA_FA Cont 2011 OldCGAAP'!H20 -> 0 | H20: =E20+F20+G20 -> 0 | J20: ='App.2-BA_FA Cont 2011 OldCGAAP'!M20 -> 0 | M20: =J20+K20+L20 -> 0 | N20: =H20+M20 -> 0
B21: 13 | C21: 1810 | D21: Leasehold Improvements | E21: ='App.2-BA_FA Cont 2011 OldCGAAP'!H21 -> 0 | H21: 0 | J21: ='App.2-BA_FA Cont 2011 OldCGAAP'!M21 -> 0 | M21: 0 | N21: 0
B22: 47 | C22: 1815 | D22: Transformer Station Equipment >50 kV | E22: ='App.2-BA_FA Cont 2011 OldCGAAP'!H22 -> 0 | H22: 0 | J22: ='App.2-BA_FA Cont 2011 OldCGAAP'!M22 -> 0 | M22: 0 | N22: 0
A23: 1/47 | B23: 47 | C23: 1820 | D23: Distribution Station Equipment <50 kV | E23: ='App.2-BA_FA Cont 2011 OldCGAAP'!H23 -> 0 | H23: 0 | J23: ='App.2-BA_FA Cont 2011 OldCGAAP'!M23 -> 0 | M23: 0 | N23: 0
B24: 47 | C24: 1825 | D24: Storage Battery Equipment | E24: ='App.2-BA_FA Cont 2011 OldCGAAP'!H24 -> 0 | H24: 0 | J24: ='App.2-BA_FA Cont 2011 OldCGAAP'!M24 -> 0 | M24: 0 | N24: 0
A25: 1/47 | B25: 47 | C25: 1830 | D25: Poles, Towers & Fixtures | E25: ='App.2-BA_FA Cont 2011 OldCGAAP'!H25 -> 0 | H25: 0 | J25: ='App.2-BA_FA Cont 2011 OldCGAAP'!M25 -> 0 | M25: 0 | N25: 0
A26: 1/47 | B26: 47 | C26: 1835 | D26: Overhead Conductors & Devices | E26: ='App.2-BA_FA Cont 2011 OldCGAAP'!H26 -> 0 | H26: 0 | J26: ='App.2-BA_FA Cont 2011 OldCGAAP'!M26 -> 0 | M26: 0 | N26: 0
A27: 1/47 | B27: 47 | C27: 1840 | D27: Underground Conduit | E27: ='App.2-BA_FA Cont 2011 OldCGAAP'!H27 -> 0 | H27: 0 | J27: ='App.2-BA_FA Cont 2011 OldCGAAP'!M27 -> 0 | M27: 0 | N27: 0
A28: 1/47 | B28: 47 | C28: 1845 | D28: Underground Conductors & Devices | E28: ='App.2-BA_FA Cont 2011 OldCGAAP'!H28 -> 0 | H28: 0 | J28: ='App.2-BA_FA Cont 2011 OldCGAAP'!M28 -> 0 | M28: 0 | N28: 0
A29: 1/47 | B29: 47 | C29: 1850 | D29: Line Transformers | E29: ='App.2-BA_FA Cont 2011 OldCGAAP'!H29 -> 0 | H29: 0 | J29: ='App.2-BA_FA Cont 2011 OldCGAAP'!M29 -> 0 | M29: 0 | N29: 0
A30: 1/47 | B30: 47 | C30: 1855 | D30: Services (Overhead & Underground) | E30: ='App.2-BA_FA Cont 2011 OldCGAAP'!H30 -> 0 | H30: 0 | J30: ='App.2-BA_FA Cont 2011 OldCGAAP'!M30 -> 0 | M30: 0 | N30: 0
A31: 1/47 | B31: 47 | C31: 1860 | D31: Meters | E31: ='App.2-BA_FA Cont 2011 OldCGAAP'!H31 -> 0 | H31: 0 | J31: ='App.2-BA_FA Cont 2011 OldCGAAP'!M31 -> 0 | M31: 0 | N31: 0
A32: 47 | B32: 47 | C32: 1860 | D32: Meters (Smart Meters) | E32: ='App.2-BA_FA Cont 2011 OldCGAAP'!H32 -> 0 | H32: 0 | J32: ='App.2-BA_FA Cont 2011 OldCGAAP'!M32 -> 0 | M32: 0 | N32: 0
A33: N/A | B33: N/A | C33: 1905 | D33: Land | E33: ='App.2-BA_FA Cont 2011 OldCGAAP'!H33 -> 0 | H33: 0 | J33: ='App.2-BA_FA Cont 2011 OldCGAAP'!M33 -> 0 | M33: 0 | N33: 0
B34: 47 | C34: 1908 | D34: Buildings & Fixtures | E34: ='App.2-BA_FA Cont 2011 OldCGAAP'!H34 -> 0 | H34: 0 | J34: ='App.2-BA_FA Cont 2011 OldCGAAP'!M34 -> 0 | M34: 0 | N34: 0
A35: 13 | B35: 13 | C35: 1910 | D35: Leasehold Improvements | E35: ='App.2-BA_FA Cont 2011 OldCGAAP'!H35 -> 0 | H35: 0 | J35: ='App.2-BA_FA Cont 2011 OldCGAAP'!M35 -> 0 | M35: 0 | N35: 0
A36: 8 | B36: 8 | C36: 1915 | D36: Office Furniture & Equipment (10 years) | E36: ='App.2-BA_FA Cont 2011 OldCGAAP'!H36 -> 0 | H36: 0 | J36: ='App.2-BA_FA Cont 2011 OldCGAAP'!M36 -> 0 | M36: 0 | N36: 0
A37: 8 | B37: 8 | C37: 1915 | D37: Office Furniture & Equipment (5 years) | E37: ='App.2-BA_FA Cont 2011 OldCGAAP'!H37 -> 0 | H37: 0 | J37: ='App.2-BA_FA Cont 2011 OldCGAAP'!M37 -> 0 | M37: 0 | N37: 0
A38: 10 | B38: 10 | C38: 1920 | D38: Computer Equipment - Hardware | E38: ='App.2-BA_FA Cont 2011 OldCGAAP'!H38 -> 0 | H38: 0 | J38: ='App.2-BA_FA Cont 2011 OldCGAAP'!M38 -> 0 | M38: 0 | N38: 0
B39: 45 | C39: 1920 | D39: Computer Equip.-Hardware(Post Mar. 22/04) | E39: ='App.2-BA_FA Cont 2011 OldCGAAP'!H39 -> 0 | H39: 0 | J39: ='App.2-BA_FA Cont 2011 OldCGAAP'!M39 -> 0 | M39: 0 | N39: 0
B40: 45.1 | C40: 1920 | D40: Computer Equip.-Hardware(Post Mar. 19/07) | E40: ='App.2-BA_FA Cont 2011 OldCGAAP'!H40 -> 0 | H40: 0 | J40: ='App.2-BA_FA Cont 2011 OldCGAAP'!M40 -> 0 | M40: 0 | N40: 0
A41: 10 | B41: 10 | C41: 1930 | D41: Transportation Equipment | E41: ='App.2-BA_FA Cont 2011 OldCGAAP'!H41 -> 0 | H41: 0 | J41: ='App.2-BA_FA Cont 2011 OldCGAAP'!M41 -> 0 | M41: 0 | N41: 0
A42: 8 | B42: 8 | C42: 1935 | D42: Stores Equipment | E42: ='App.2-BA_FA Cont 2011 OldCGAAP'!H42 -> 0 | H42: 0 | J42: ='App.2-BA_FA Cont 2011 OldCGAAP'!M42 -> 0 | M42: 0 | N42: 0
A43: 8 | B43: 8 | C43: 1940 | D43: Tools, Shop & Garage Equipment | E43: ='App.2-BA_FA Cont 2011 OldCGAAP'!H43 -> 0 | H43: 0 | J43: ='App.2-BA_FA Cont 2011 OldCGAAP'!M43 -> 0 | M43: 0 | N43: 0
A44: 8 | B44: 8 | C44: 1945 | D44: Measurement & Testing Equipment | E44: ='App.2-BA_FA Cont 2011 OldCGAAP'!H44 -> 0 | H44: 0 | J44: ='App.2-BA_FA Cont 2011 OldCGAAP'!M44 -> 0 | M44: 0 | N44: 0
A45: 8 | B45: 8 | C45: 1950 | D45: Power Operated Equipment | E45: ='App.2-BA_FA Cont 2011 OldCGAAP'!H45 -> 0 | H45: 0 | J45: ='App.2-BA_FA Cont 2011 OldCGAAP'!M45 -> 0 | M45: 0 | N45: 0
A46: 8 | B46: 8 | C46: 1955 | D46: Communications Equipment | E46: ='App.2-BA_FA Cont 2011 OldCGAAP'!H46 -> 0 | H46: 0 | J46: ='App.2-BA_FA Cont 2011 OldCGAAP'!M46 -> 0 | M46: 0 | N46: 0
A47: 8 | B47: 8 | C47: 1955 | D47: Communication Equipment (Smart Meters) | E47: ='App.2-BA_FA Cont 2011 OldCGAAP'!H47 -> 0 | H47: 0 | J47: ='App.2-BA_FA Cont 2011 OldCGAAP'!M47 -> 0 | M47: 0 | N47: 0
A48: 8 | B48: 8 | C48: 1960 | D48: Miscellaneous Equipment | E48: ='App.2-BA_FA Cont 2011 OldCGAAP'!H48 -> 0 | H48: 0 | J48: ='App.2-BA_FA Cont 2011 OldCGAAP'!M48 -> 0 | M48: 0 | N48: 0
A49: 47 | B49: 47 | C49: 1970 | D49: Load Management Controls Customer Premises | E49: ='App.2-BA_FA Cont 2011 OldCGAAP'!H49 -> 0 | H49: 0 | J49: ='App.2-BA_FA Cont 2011 OldCGAAP'!M49 -> 0 | M49: 0 | N49: 0
A50: 47 | B50: 47 | C50: 1975 | D50: Load Management Controls Utility Premises | E50: ='App.2-BA_FA Cont 2011 OldCGAAP'!H50 -> 0 | H50: 0 | J50: ='App.2-BA_FA Cont 2011 OldCGAAP'!M50 -> 0 | M50: 0 | N50: 0
A51: 47 | B51: 47 | C51: 1980 | D51: System Supervisor Equipment | E51: ='App.2-BA_FA Cont 2011 OldCGAAP'!H51 -> 0 | H51: 0 | J51: ='App.2-BA_FA Cont 2011 OldCGAAP'!M51 -> 0 | M51: 0 | N51: 0
A52: 47 | B52: 47 | C52: 1985 | D52: Miscellaneous Fixed Assets | E52: ='App.2-BA_FA Cont 2011 OldCGAAP'!H52 -> 0 | H52: 0 | J52: ='App.2-BA_FA Cont 2011 OldCGAAP'!M52 -> 0 | M52: 0 | N52: 0
A53: 47 | B53: 47 | C53: 1990 | D53: Other Tangible Property | E53: ='App.2-BA_FA Cont 2011 OldCGAAP'!H53 -> 0 | H53: 0 | J53: ='App.2-BA_FA Cont 2011 OldCGAAP'!M53 -> 0 | M53: 0 | N53: 0
C54: 1995 | D54: Contributions & Grants | E54: ='App.2-BA_FA Cont 2011 OldCGAAP'!H54 -> 0 | H54: 0 | J54: ='App.2-BA_FA Cont 2011 OldCGAAP'!M54 -> 0 | M54: 0 | N54: 0
C55: 2440 | D55: Deferred Revenue5 | E55: ='App.2-BA_FA Cont 2011 OldCGAAP'!H55 -> 0 | J55: ='App.2-BA_FA Cont 2011 OldCGAAP'!M55 -> 0
H56: 0 | M56: 0 | N56: 0
D57: Sub-Total | E57: =SUM(E17:E56) -> 0 | F57: =SUM(F17:F56) -> 0 | G57: =SUM(G17:G56) -> 0 | H57: =SUM(H17:H56) -> 0 | J57: =SUM(J17:J56) -> 0 | K57: =SUM(K17:K56) -> 0 | L57: =SUM(L17:L56) -> 0 | M57: =SUM(M17:M56) -> 0 | N57: =SUM(N17:N56) -> 0
D58: Less Socialized Renewable Energy Generation Investments (input as negative) | H58: =E58+F58+G58 -> 0 | M58: =J58+K58+L58 -> 0 | N58: =H58+M58 -> 0
D59: Less Other Non Rate-Regulated Utility Assets (input as negative) | H59: 0 | M59: 0 | N59: 0
D60: Total PP&E | E60: =SUM(E57:E59) -> 0 | F60: =SUM(F57:F59) -> 0 | G60: 0 | H60: 0 | J60: =SUM(J57:J59) -> 0 | K60: 0 | L60: 0 | M60: 0 | N60: 0
D61: Depreciation Expense adj. from gain or loss on the retirement of assets (pool of like assets), if applicable6
D62: Total | K62: =K60+K61 -> 0
J64: Less: Fully Allocated Depreciation
B65: 10 | D65: Transportation | J65: Transportation
B66: 8 | D66: Stores Equipment | J66: Stores Equipment
J67: Net Depreciation | L67: =K62-L65-L66 -> 0
B69: Originally hydro distribution assets were added to Class 1 for tax purposes. This was changed a few years ago and all new additions are now in Class 47.
B71: Notes:
B73: 1 | C73: Tables in the format outlined above covering all fixed asset accounts should be submitted for the Test Year, Bridge Year and all relevant historical years. At a minimum , the applicant must provide data for the earlier of: 1) all historical years back to its last rebasing; or 2) at least three years of historical actuals, in addition to Bridge Year and Test Year forecasts.
B76: 2 | C76: The "CCA Class" for fixed assets should agree with the CCA Class used for tax purposes in Tax Returns. Fixed Assets sub-components may be used where the underlying asset components are classified under multiple CCA Classes for tax purposes. If an applicant uses any different classes from those shown in the table, an explanation should be provided. (also see note 3 below).
B79: 3 | C79: The table may need to be customized for a utility's asset categories or for any new asset accounts announced or authorized by the Board.
B81: 4 | C81: The additions column (E) must not include construction work in progress (CWIP).
B83: 5 | C83: Effective on the date of IFRS adoption, customer contributions will no longer be recorded in Account 1995 Contributions & Grants, but will be recorded in Account 2440, Deferred Revenues.
B85: 6 | C85: Where a distributor for general financial reporting purposes under IFRS has accounted for the amount of gain or loss on the retirement of assets in a pool of like assets as a charge or credit to income, for reporting and rate application filings the distributor shall reclassify such gains and losses as depreciation expense, and disclose the amount separately.

Sheet App.2-BA_FA Cont 2013 OldCGAAP
L1: File Number: | M1: =EBNUMBER -> 
L2: Exhibit:
L3: Tab:
L4: Schedule:
L5: Page:
L7: Date:
A9: Appendix 2-BA
A10: Fixed Asset Continuity Schedule
E12: Accounting Standard | F12: CGAAP | G12: Old CGAAP
E13: Year | F13: 2013
D15: Cost | J15: Accumulated Depreciation
A16: CCA Class | B16: OEB | C16: Description | D16: Opening Balance | E16: Additions | F16: Disposals | G16: Closing Balance | I16: Opening Balance | J16: Additions | K16: Disposals | L16: Closing Balance | M16: Net Book Value
A17: 12 | B17: 1611 | C17: Computer Software (Formally known as Account 1925) | D17: ='App.2-BA_FA Cont 2013 NewCGAAP'!E18 -> 414814 | E17: ='App.2-BA_FA Cont 2013 NewCGAAP'!F18 -> 171607.43 | F17: ='App.2-BA_FA Cont 2013 NewCGAAP'!G18 -> 0 | G17: =D17+E17+F17 -> 586421.43 | I17: ='App.2-BA_FA Cont 2013 NewCGAAP'!J18 -> -383372.04 | J17: -140422.19 | L17: =I17+J17+K17 -> -523794.23 | M17: =G17+L17 -> 62627.2
A18: CEC | B18: 1612 | C18: Land Rights (Formally known as Account 1906) | D18: ='App.2-BA_FA Cont 2013 NewCGAAP'!E19 -> 37132.16 | E18: ='App.2-BA_FA Cont 2013 NewCGAAP'!F19 -> 0 | F18: ='App.2-BA_FA Cont 2013 NewCGAAP'!G19 -> 0 | G18: =D18+E18+F18 -> 37132.16 | I18: ='App.2-BA_FA Cont 2013 NewCGAAP'!J19 -> -6963.4 | J18: -743.4 | L18: =I18+J18+K18 -> -7706.8 | M18: =G18+L18 -> 29425.36
A19: N/A | B19: 1805 | C19: Land | D19: ='App.2-BA_FA Cont 2013 NewCGAAP'!E20 -> 46065.54 | E19: ='App.2-BA_FA Cont 2013 NewCGAAP'!F20 -> 0 | F19: ='App.2-BA_FA Cont 2013 NewCGAAP'!G20 -> 0 | G19: =D19+E19+F19 -> 46065.54 | I19: ='App.2-BA_FA Cont 2012 OldCGAAP'!M19 -> 0 | L19: =I19+J19+K19 -> 0 | M19: =G19+L19 -> 46065.54
A20: 47 | B20: 1808 | C20: Buildings | D20: ='App.2-BA_FA Cont 2013 NewCGAAP'!E21 -> 2307.56 | E20: ='App.2-BA_FA Cont 2013 NewCGAAP'!F21 -> 0 | F20: ='App.2-BA_FA Cont 2013 NewCGAAP'!G21 -> 0 | G20: =D20+E20+F20 -> 2307.56 | I20: ='App.2-BA_FA Cont 2013 NewCGAAP'!J21 -> -2307.56 | J20: 0 | L20: =I20+J20+K20 -> -2307.56 | M20: =G20+L20 -> 0
A21: 13 | B21: 1810 | C21: Leasehold Improvements | G21: 0 | I21: ='App.2-BA_FA Cont 2012 OldCGAAP'!M21 -> 0 | L21: 0 | M21: 0
A22: 47 | B22: 1815 | C22: Transformer Station Equipment >50 kV | G22: 0 | I22: ='App.2-BA_FA Cont 2012 OldCGAAP'!M22 -> 0 | L22: 0 | M22: 0
A23: 47 | B23: 1820 | C23: Distribution Station Equipment <50 kV | D23: ='App.2-BA_FA Cont 2013 NewCGAAP'!E26 -> 2391027.15 | E23: ='App.2-BA_FA Cont 2013 NewCGAAP'!F26 -> 1238510.45 | F23: ='App.2-BA_FA Cont 2013 NewCGAAP'!G26 -> -43321.03 | G23: 3586216.57 | I23: ='App.2-BA_FA Cont 2013 NewCGAAP'!J26 -> -856539.05 | J23: -72080.79 | K23: 38752.03 | L23: -889867.81 | M23: 2696348.76
A25: 47 | B25: 1825 | C25: Storage Battery Equipment | D25: ='App.2-BA_FA Cont 2013 NewCGAAP'!E48 -> 2154.99 | E25: ='App.2-BA_FA Cont 2013 NewCGAAP'!F48 -> 0 | F25: ='App.2-BA_FA Cont 2013 NewCGAAP'!G48 -> 0 | G25: 2154.99 | I25: ='App.2-BA_FA Cont 2013 NewCGAAP'!J48 -> -2154.99 | J25: 0 | K25: 0 | L25: -2154.99 | M25: 0
A26: 47 | B26: 1830 | C26: Poles, Towers & Fixtures | D26: ='App.2-BA_FA Cont 2013 NewCGAAP'!E49+'App.2-BA_FA Cont 2013 NewCGAAP'!E50 -> 2109807.57 | E26: ='App.2-BA_FA Cont 2013 NewCGAAP'!F49+'App.2-BA_FA Cont 2013 NewCGAAP'!F50 -> 226218.67 | G26: 2336026.24 | I26: ='App.2-BA_FA Cont 2013 NewCGAAP'!J49+'App.2-BA_FA Cont 2013 NewCGAAP'!J50 -> -964330.4 | J26: -77939.58 | K26: 0 | L26: -1042269.98 | M26: 1293756.26
A27: 47 | B27: 1835 | C27: Overhead Conductors & Devices | D27: ='App.2-BA_FA Cont 2013 NewCGAAP'!E51 -> 1503509.87 | E27: ='App.2-BA_FA Cont 2013 NewCGAAP'!F51 -> 175901.4 | G27: 1679411.27 | I27: ='App.2-BA_FA Cont 2013 NewCGAAP'!J51 -> -680467.58 | J27: -56766.04 | K27: 0 | L27: -737233.62 | M27: 942177.65
A28: 47 | B28: 1840 | C28: Underground Conduit | D28: ='App.2-BA_FA Cont 2013 NewCGAAP'!E52 -> 1365762.93 | E28: ='App.2-BA_FA Cont 2013 NewCGAAP'!F52 -> 211337.7 | F28: ='App.2-BA_FA Cont 2013 NewCGAAP'!G52 -> 0 | G28: 1577100.63 | I28: ='App.2-BA_FA Cont 2013 NewCGAAP'!J52 -> -704006.58 | J28: -54478.73 | K28: 0 | L28: -758485.31 | M28: 818615.32
A29: 47 | B29: 1845 | C29: Underground Conductors & Devices | D29: ='App.2-BA_FA Cont 2013 NewCGAAP'!E53 -> 1781739.98 | E29: ='App.2-BA_FA Cont 2013 NewCGAAP'!F53 -> 161871.16 | G29: 1943611.14 | I29: ='App.2-BA_FA Cont 2013 NewCGAAP'!J53 -> -1047270.66 | J29: -66841.86 | L29: -1114112.52 | M29: 829498.62
A30: 47 | B30: 1850 | C30: Line Transformers | D30: ='App.2-BA_FA Cont 2013 NewCGAAP'!E54+'App.2-BA_FA Cont 2013 NewCGAAP'!E55 -> 3192223.76 | E30: ='App.2-BA_FA Cont 2013 NewCGAAP'!F54+'App.2-BA_FA Cont 2013 NewCGAAP'!F55 -> 100683.16 | F30: ='App.2-BA_FA Cont 2013 NewCGAAP'!G54+'App.2-BA_FA Cont 2013 NewCGAAP'!G55 -> -55606 | G30: 3237300.92 | I30: ='App.2-BA_FA Cont 2013 NewCGAAP'!J54+'App.2-BA_FA Cont 2013 NewCGAAP'!J55 -> -1779373.6 | J30: =-23033.02-80909.6 -> -103942.62 | K30: =19694+35912 -> 55606 | L30: -1827710.22 | M30: 1409590.7
A31: 47 | B31: 1855 | C31: Services (Overhead & Underground) | D31: ='App.2-BA_FA Cont 2013 NewCGAAP'!E56+'App.2-BA_FA Cont 2013 NewCGAAP'!E57 -> 3186724.39 | E31: ='App.2-BA_FA Cont 2013 NewCGAAP'!F56+'App.2-BA_FA Cont 2013 NewCGAAP'!F57 -> 99205.07 | F31: ='App.2-BA_FA Cont 2013 NewCGAAP'!G56+'App.2-BA_FA Cont 2013 NewCGAAP'!G57 -> 0 | G31: 3285929.46 | I31: ='App.2-BA_FA Cont 2013 NewCGAAP'!J56+'App.2-BA_FA Cont 2013 NewCGAAP'!J57 -> -2156509.26 | J31: =-15442.44-95148.09 -> -110590.53 | L31: -2267099.79 | M31: 1018829.67
A32: 47 | B32: 1860 | C32: Meters | D32: ='App.2-BA_FA Cont 2013 NewCGAAP'!E58+'App.2-BA_FA Cont 2013 NewCGAAP'!E59 -> 874666.53 | E32: ='App.2-BA_FA Cont 2013 NewCGAAP'!F58+'App.2-BA_FA Cont 2013 NewCGAAP'!F59 -> 1458.6 | F32: ='App.2-BA_FA Cont 2013 NewCGAAP'!G58+'App.2-BA_FA Cont 2013 NewCGAAP'!G59 -> -706205.45 | G32: 169919.68 | I32: ='App.2-BA_FA Cont 2013 NewCGAAP'!J58+'App.2-BA_FA Cont 2013 NewCGAAP'!J59 -> -598758.75 | J32: -26186.57 | L32: -624945.32 | M32: -455025.64
A33: 47 | B33: 1860 | C33: Meters (Smart Meters) | D33: ='App.2-BA_FA Cont 2013 NewCGAAP'!E60 -> 1191255.27 | E33: ='App.2-BA_FA Cont 2013 NewCGAAP'!F60 -> 13984.88 | F33: ='App.2-BA_FA Cont 2013 NewCGAAP'!G60 -> 0 | G33: 1205240.15 | I33: ='App.2-BA_FA Cont 2013 NewCGAAP'!J60 -> -263140 | J33: =(D33+I33)*-0.55 -> -510463.3985 | L33: -773603.3985 | M33: 431636.7515
A34: N/A | B34: 1905 | C34: Land | D34: ='App.2-BA_FA Cont 2013 NewCGAAP'!E61 -> 8639.65 | E34: ='App.2-BA_FA Cont 2013 NewCGAAP'!F61 -> 0 | F34: ='App.2-BA_FA Cont 2013 NewCGAAP'!G61 -> 0 | G34: 8639.65 | I34: ='App.2-BA_FA Cont 2012 OldCGAAP'!M33 -> 0 | J34: 0 | L34: 0 | M34: 8639.65
A35: 47 | B35: 1908 | C35: Buildings & Fixtures | D35: ='App.2-BA_FA Cont 2013 NewCGAAP'!E62+'App.2-BA_FA Cont 2013 NewCGAAP'!E63 -> 1088697.62 | E35: ='App.2-BA_FA Cont 2013 NewCGAAP'!F62+'App.2-BA_FA Cont 2013 NewCGAAP'!F63 -> 0 | F35: ='App.2-BA_FA Cont 2013 NewCGAAP'!G62+'App.2-BA_FA Cont 2013 NewCGAAP'!G63 -> 0 | G35: 1088697.62 | I35: ='App.2-BA_FA Cont 2013 NewCGAAP'!J62+'App.2-BA_FA Cont 2013 NewCGAAP'!J63 -> -323175.34 | J35: -23549.97 | L35: -346725.31 | M35: 741972.31
A36: 13 | B36: 1910 | C36: Leasehold Improvements | D36: =+'App.2-BA_FA Cont 2012 OldCGAAP'!H35 -> 0 | E36: =+'App.2-BA_FA Cont 2012 OldCGAAP'!I35 -> 0 | F36: =+'App.2-BA_FA Cont 2012 OldCGAAP'!J35 -> 0 | G36: 0 | I36: ='App.2-BA_FA Cont 2012 OldCGAAP'!M35 -> 0 | L36: 0 | M36: 0
A37: 8 | B37: 1915 | C37: Office Furniture & Equipment (10 years) | D37: ='App.2-BA_FA Cont 2013 NewCGAAP'!E65 -> 94602.03 | E37: ='App.2-BA_FA Cont 2013 NewCGAAP'!F65 -> 4295 | F37: ='App.2-BA_FA Cont 2013 NewCGAAP'!G65 -> 0 | G37: 98897.03 | I37: ='App.2-BA_FA Cont 2013 NewCGAAP'!J65 -> -65755.73 | J37: -5878.92 | L37: -71634.65 | M37: 27262.38
A38: 8 | B38: 1915 | C38: Office Furniture & Equipment (5 years) | D38: =+'App.2-BA_FA Cont 2012 OldCGAAP'!H37 -> 0 | E38: =+'App.2-BA_FA Cont 2012 OldCGAAP'!I37 -> 0 | F38: =+'App.2-BA_FA Cont 2012 OldCGAAP'!J37 -> 0 | G38: 0 | I38: ='App.2-BA_FA Cont 2012 OldCGAAP'!M37 -> 0 | L38: 0 | M38: 0
A39: 10 | B39: 1920 | C39: Computer Equipment - Hardware | D39: ='App.2-BA_FA Cont 2013 NewCGAAP'!E67+'App.2-BA_FA Cont 2013 NewCGAAP'!E68+'App.2-BA_FA Cont 2013 NewCGAAP'!E69 -> 239734.135 | E39: ='App.2-BA_FA Cont 2013 NewCGAAP'!F67+'App.2-BA_FA Cont 2013 NewCGAAP'!F68+'App.2-BA_FA Cont 2013 NewCGAAP'!F69+'App.2-BA_FA Cont 2013 NewCGAAP'!F72 -> 64467.22 | F39: ='App.2-BA_FA Cont 2013 NewCGAAP'!G67+'App.2-BA_FA Cont 2013 NewCGAAP'!G68+'App.2-BA_FA Cont 2013 NewCGAAP'!G69 -> 0 | G39: 304201.355 | I39: ='App.2-BA_FA Cont 2013 NewCGAAP'!J67+'App.2-BA_FA Cont 2013 NewCGAAP'!J68+'App.2-BA_FA Cont 2013 NewCGAAP'!J69 -> -201468.02 | J39: -37445.95 | L39: -238913.97 | M39: 65287.385
A40: 45 | B40: 1920 | C40: Computer Equip.-Hardware(Post Mar. 22/04) | D40: =+'App.2-BA_FA Cont 2012 OldCGAAP'!H39 -> 0 | E40: =+'App.2-BA_FA Cont 2012 OldCGAAP'!I39 -> 0 | F40: =+'App.2-BA_FA Cont 2012 OldCGAAP'!J39 -> 0 | G40: 0 | I40: ='App.2-BA_FA Cont 2012 OldCGAAP'!M39 -> 0 | L40: 0 | M40: 0
A41: 45.1 | B41: 1920 | C41: Computer Equip.-Hardware(Post Mar. 19/07) | D41: =+'App.2-BA_FA Cont 2012 OldCGAAP'!H40 -> 0 | E41: =+'App.2-BA_FA Cont 2012 OldCGAAP'!I40 -> 0 | F41: =+'App.2-BA_FA Cont 2012 OldCGAAP'!J40 -> 0 | G41: 0 | I41: ='App.2-BA_FA Cont 2012 OldCGAAP'!M40 -> 0 | L41: 0 | M41: 0
A42: 10 | B42: 1930 | C42: Transportation Equipment | D42: ='App.2-BA_FA Cont 2013 NewCGAAP'!E73+'App.2-BA_FA Cont 2013 NewCGAAP'!E74+'App.2-BA_FA Cont 2013 NewCGAAP'!E75 -> 870342.46 | E42: ='App.2-BA_FA Cont 2013 NewCGAAP'!F73+'App.2-BA_FA Cont 2013 NewCGAAP'!F74+'App.2-BA_FA Cont 2013 NewCGAAP'!F75 -> 15150 | F42: ='App.2-BA_FA Cont 2013 NewCGAAP'!G73+'App.2-BA_FA Cont 2013 NewCGAAP'!G74+'App.2-BA_FA Cont 2013 NewCGAAP'!G75 -> 0 | G42: 885492.46 | I42: ='App.2-BA_FA Cont 2013 NewCGAAP'!J73+'App.2-BA_FA Cont 2013 NewCGAAP'!J74+'App.2-BA_FA Cont 2013 NewCGAAP'!J75 -> -763186.19 | J42: -54098.22 | L42: -817284.41 | M42: 68208.05
A43: 8 | B43: 1935 | C43: Stores Equipment | D43: ='App.2-BA_FA Cont 2013 NewCGAAP'!E76 -> 19934.24 | E43: ='App.2-BA_FA Cont 2013 NewCGAAP'!F76 -> 0 | F43: ='App.2-BA_FA Cont 2013 NewCGAAP'!G76 -> -5616 | G43: 14318.24 | I43: =+'App.2-BA_FA Cont 2013 NewCGAAP'!J76 -> -19870.64 | J43: -42 | K43: =-F43 -> 5616 | L43: -14296.64 | M43: 21.6
A44: 8 | B44: 1940 | C44: Tools, Shop & Garage Equipment | D44: ='App.2-BA_FA Cont 2013 NewCGAAP'!E77 -> 76941.28 | E44: ='App.2-BA_FA Cont 2013 NewCGAAP'!F77 -> 7491.42 | F44: ='App.2-BA_FA Cont 2013 NewCGAAP'!G77 -> 0 | G44: 84432.7 | I44: =+'App.2-BA_FA Cont 2013 NewCGAAP'!J77 -> -53284.97 | J44: -5962.63 | L44: -59247.6 | M44: 25185.1
A45: 8 | B45: 1945 | C45: Measurement & Testing Equipment | D45: ='App.2-BA_FA Cont 2013 NewCGAAP'!E78 -> 56664.23 | E45: ='App.2-BA_FA Cont 2013 NewCGAAP'!F78 -> 0 | F45: ='App.2-BA_FA Cont 2013 NewCGAAP'!G78 -> -1215.42 | G45: 55448.81 | I45: =+'App.2-BA_FA Cont 2013 NewCGAAP'!J78 -> -43926.37 | J45: -1537.16 | L45: -45463.53 | M45: 9985.28
A46: 8 | B46: 1950 | C46: Power Operated Equipment | D46: ='App.2-BA_FA Cont 2013 NewCGAAP'!E79 -> 66172.85 | E46: ='App.2-BA_FA Cont 2013 NewCGAAP'!F79 -> 0 | F46: ='App.2-BA_FA Cont 2013 NewCGAAP'!G79 -> 0 | G46: 66172.85 | I46: =+'App.2-BA_FA Cont 2013 NewCGAAP'!J79 -> -65265.89 | J46: -906.96 | L46: -66172.85 | M46: 0
A47: 8 | B47: 1955 | C47: Communications Equipment | D47: ='App.2-BA_FA Cont 2013 NewCGAAP'!E80 -> 31304.6 | E47: ='App.2-BA_FA Cont 2013 NewCGAAP'!F80 -> 4814.97 | F47: ='App.2-BA_FA Cont 2013 NewCGAAP'!G80 -> 0 | G47: 36119.57 | I47: =+'App.2-BA_FA Cont 2013 NewCGAAP'!J80+'App.2-BA_FA Cont 2013 NewCGAAP'!J81 -> -29316.01 | J47: -666.43 | L47: -29982.44 | M47: 6137.13
A48: 8 | B48: 1955 | C48: Communication Equipment (Smart Meters) | D48: =+'App.2-BA_FA Cont 2012 OldCGAAP'!H47 -> 0 | E48: =+'App.2-BA_FA Cont 2012 OldCGAAP'!I47 -> 0 | F48: =+'App.2-BA_FA Cont 2012 OldCGAAP'!J47 -> 0 | G48: 0 | I48: ='App.2-BA_FA Cont 2012 OldCGAAP'!M47 -> 0 | L48: 0 | M48: 0
A49: 8 | B49: 1960 | C49: Miscellaneous Equipment | D49: ='App.2-BA_FA Cont 2013 NewCGAAP'!E82 -> 12803.51 | E49: ='App.2-BA_FA Cont 2013 NewCGAAP'!F82 -> 0 | F49: ='App.2-BA_FA Cont 2013 NewCGAAP'!G82 -> 0 | G49: 12803.51 | I49: =+'App.2-BA_FA Cont 2013 NewCGAAP'!J82 -> -12012.9 | J49: -410.66 | L49: -12423.56 | M49: 379.95
A50: 47 | B50: 1970 | C50: Load Management Controls Customer Premises | D50: =+'App.2-BA_FA Cont 2012 OldCGAAP'!H49 -> 0 | E50: =+'App.2-BA_FA Cont 2012 OldCGAAP'!I49 -> 0 | F50: =+'App.2-BA_FA Cont 2012 OldCGAAP'!J49 -> 0 | G50: 0 | I50: ='App.2-BA_FA Cont 2012 OldCGAAP'!M49 -> 0 | L50: 0 | M50: 0
A51: 47 | B51: 1975 | C51: Load Management Controls Utility Premises | D51: =+'App.2-BA_FA Cont 2012 OldCGAAP'!H50 -> 0 | E51: =+'App.2-BA_FA Cont 2012 OldCGAAP'!I50 -> 0 | F51: =+'App.2-BA_FA Cont 2012 OldCGAAP'!J50 -> 0 | G51: 0 | I51: =+'App.2-BA_FA Cont 2013 NewCGAAP'!J84 -> 0 | L51: 0 | M51: 0
A52: 47 | B52: 1980 | C52: System Supervisor Equipment | D52: ='App.2-BA_FA Cont 2013 NewCGAAP'!E85 -> 258806.31 | E52: ='App.2-BA_FA Cont 2013 NewCGAAP'!F85 -> 0 | F52: ='App.2-BA_FA Cont 2013 NewCGAAP'!G85 -> 0 | G52: 258806.31 | I52: =+'App.2-BA_FA Cont 2013 NewCGAAP'!J85 -> -135575.94 | J52: -17201 | L52: -152776.94 | M52: 106029.37
A53: 47 | B53: 1985 | C53: Miscellaneous Fixed Assets | D53: ='App.2-BA_FA Cont 2013 NewCGAAP'!E86 -> 2516.21 | E53: ='App.2-BA_FA Cont 2013 NewCGAAP'!F86 -> 0 | F53: ='App.2-BA_FA Cont 2013 NewCGAAP'!G86 -> 0 | G53: 2516.21 | I53: =+'App.2-BA_FA Cont 2013 NewCGAAP'!J86 -> -2516.21 | L53: -2516.21 | M53: 0
A54: 47 | B54: 1990 | C54: Other Tangible Property | D54: =+'App.2-BA_FA Cont 2012 OldCGAAP'!H53 -> 0 | E54: =+'App.2-BA_FA Cont 2012 OldCGAAP'!I53 -> 0 | F54: =+'App.2-BA_FA Cont 2012 OldCGAAP'!J53 -> 0 | G54: 0 | I54: ='App.2-BA_FA Cont 2012 OldCGAAP'!M53 -> 0 | L54: 0 | M54: 0
A55: 47 | B55: 1995 | C55: Contributions & Grants | D55: ='App.2-BA_FA Cont 2013 NewCGAAP'!E88+'App.2-BA_FA Cont 2013 NewCGAAP'!E89+'App.2-BA_FA Cont 2013 NewCGAAP'!E90+'App.2-BA_FA Cont 2013 NewCGAAP'!E91+'App.2-BA_FA Cont 2013 NewCGAAP'!E92+'App.2-BA_FA Cont 2013 NewCGAAP'!E93+'App.2-BA_FA Cont 2013 NewCGAAP'!E94+'App.2-BA_FA Cont 2013 NewCGAAP'!E95+'App.2-BA_FA Cont 2013 NewCGAAP'!E96+'App.2-BA_FA Cont 2013 NewCGAAP'!E97 -> -1613560.81 | E55: ='App.2-BA_FA Cont 2013 NewCGAAP'!F88+'App.2-BA_FA Cont 2013 NewCGAAP'!F89+'App.2-BA_FA Cont 2013 NewCGAAP'!F90+'App.2-BA_FA Cont 2013 NewCGAAP'!F91+'App.2-BA_FA Cont 2013 NewCGAAP'!F92+'App.2-BA_FA Cont 2013 NewCGAAP'!F93+'App.2-BA_FA Cont 2013 NewCGAAP'!F94+'App.2-BA_FA Cont 2013 NewCGAAP'!F95+'App.2-BA_FA Cont 2013 NewCGAAP'!F96+'App.2-BA_FA Cont 2013 NewCGAAP'!F97 -> -124552.99 | F55: ='App.2-BA_FA Cont 2013 NewCGAAP'!G88+'App.2-BA_FA Cont 2013 NewCGAAP'!G89+'App.2-BA_FA Cont 2013 NewCGAAP'!G90+'App.2-BA_FA Cont 2013 NewCGAAP'!G91+'App.2-BA_FA Cont 2013 NewCGAAP'!G92+'App.2-BA_FA Cont 2013 NewCGAAP'!G93+'App.2-BA_FA Cont 2013 NewCGAAP'!G94+'App.2-BA_FA Cont 2013 NewCGAAP'!G95+'App.2-BA_FA Cont 2013 NewCGAAP'!G96+'App.2-BA_FA Cont 2013 NewCGAAP'!G97 -> 0 | G55: -1738113.8 | I55: =+'App.2-BA_FA Cont 2013 NewCGAAP'!J88+'App.2-BA_FA Cont 2013 NewCGAAP'!J89+'App.2-BA_FA Cont 2013 NewCGAAP'!J90+'App.2-BA_FA Cont 2013 NewCGAAP'!J91+'App.2-BA_FA Cont 2013 NewCGAAP'!J92+'App.2-BA_FA Cont 2013 NewCGAAP'!J93+'App.2-BA_FA Cont 2013 NewCGAAP'!J94+'App.2-BA_FA Cont 2013 NewCGAAP'!J95+'App.2-BA_FA Cont 2013 NewCGAAP'!J96+'App.2-BA_FA Cont 2013 NewCGAAP'!J97 -> 501330.32 | J55: =6280.05+2713.23+13123.38+16049.88+167.43+11708.01+302.79+14119.74+1558.99 -> 66023.5 | L55: 567353.82 | M55: -1170759.98
A56: 47 | B56: 2440 | C56: Deferred Revenue5 | D56: =+'App.2-BA_FA Cont 2012 OldCGAAP'!H55 -> 0 | E56: =+'App.2-BA_FA Cont 2012 OldCGAAP'!I55 -> 0 | F56: =+'App.2-BA_FA Cont 2012 OldCGAAP'!J55 -> 0 | I56: ='App.2-BA_FA Cont 2012 OldCGAAP'!M55 -> 0
G57: 0 | I57: ='App.2-BA_FA Cont 2011 OldCGAAP'!M56 -> 0 | L57: 0 | M57: 0
C58: Sub-Total | D58: =SUM(D17:D57) -> 19312790.02 | E58: =SUM(E17:E57) -> 2372444.14 | F58: =SUM(F17:F57) -> -811963.9 | G58: =SUM(G17:G57) -> 20873270.25 | I58: =SUM(I17:I57) -> -10659217.76 | J58: =SUM(J17:J57) -> -1302132.108 | K58: =SUM(K17:K57) -> 99974.03 | L58: =SUM(L17:L57) -> -11861375.84 | M58: =SUM(M17:M57) -> 9011894.416
C59: Less Socialized Renewable Energy Generation Investments (input as negative) | G59: =D59+E59+F59 -> 0 | L59: =I59+J59+K59 -> 0 | M59: =G59+L59 -> 0
C60: Less Other Non Rate-Regulated Utility Assets (input as negative) | G60: 0 | L60: 0 | M60: 0
C61: Total PP&E | D61: =SUM(D58:D60) -> 19312790.02 | E61: =SUM(E58:E60) -> 2372444.14 | F61: -811963.9 | G61: 20873270.25 | I61: =SUM(I58:I60) -> -10659217.76 | J61: -1302132.108 | K61: 99974.03 | L61: -11861375.84 | M61: 9011894.416
C62: Depreciation Expense adj. from gain or loss on the retirement of assets (pool of like assets), if applicable6
C63: Total | J63: =J61+J62 -> -1302132.108
I65: Less: Fully Allocated Depreciation
A66: 10 | C66: Transportation | I66: Transportation | K66: =-J42 -> 54098.22
A67: 8 | C67: Stores Equipment | I67: Stores Equipment | K67: =-J43 -> 42
I68: Net Depreciation | K68: =-J63-K66-K67 -> 1247991.888
A70: Notes:
A72: 1 | B72: Tables in the format outlined above covering all fixed asset accounts should be submitted for the Test Year, Bridge Year and all relevant historical years. At a minimum , the applicant must provide data for the earlier of: 1) all historical years back to its last rebasing; or 2) at least three years of historical actuals, in addition to Bridge Year and Test Year forecasts.
A75: 2 | B75: The "CCA Class" for fixed assets should agree with the CCA Class used for tax purposes in Tax Returns. Fixed Assets sub-components may be used where the underlying asset components are classified under multiple CCA Classes for tax purposes. If an applicant uses any different classes from those shown in the table, an explanation should be provided. (also see note 3 below).
A78: 3 | B78: The table may need to be customized for a utility's asset categories or for any new asset accounts announced or authorized by the Board.
A80: 4 | B80: The additions column (E) must not include construction work in progress (CWIP).
A82: 5 | B82: Effective on the date of IFRS adoption, customer contributions will no longer be recorded in Account 1995 Contributions & Grants, but will be recorded in Account 2440, Deferred Revenues.
A84: 6 | B84: Where a distributor for general financial reporting purposes under IFRS has accounted for the amount of gain or loss on the retirement of assets in a pool of like assets as a charge or credit to income, for reporting and rate application filings the distributor shall reclassify such gains and losses as depreciation expense, and disclose the amount separately.

Sheet App.2-BA_FA Cont 2014_OldCGAAP
M1: File Number: | N1: =EBNUMBER -> 
M2: Exhibit:
M3: Tab:
M4: Schedule:
M5: Page:
M7: Date:
B9: Appendix 2-BA
B10: Fixed Asset Continuity Schedule
F12: Accounting Standard | G12: CGAAP | H12: Old CGAAP
F13: Year | G13: 2014
A15: RHI | B15: OEB | E15: Cost | K15: Accumulated Depreciation
A16: CCA Class | B16: CCA Class | C16: OEB | D16: Description | E16: Opening Balance | F16: Additions | G16: Disposals | H16: Closing Balance | J16: Opening Balance | K16: Additions | L16: Disposals | M16: Closing Balance | N16: Net Book Value
A17: 12 | B17: 12 | C17: 1611 | D17: Computer Software (Formally known as Account 1925) | E17: ='App.2-BA_FA Cont 2013 OldCGAAP'!G17 -> 586421.43 | F17: ='App.2-BA_FA Cont 2014 NewCGAAP'!F18 -> 26363.07 | G17: -107086.93 | H17: =E17+F17+G17 -> 505697.57 | J17: ='App.2-BA_FA Cont 2013 OldCGAAP'!L17 -> -523794.23 | K17: -44728.76 | L17: 123878.29 | M17: =J17+K17+L17 -> -444644.7 | N17: =H17+M17 -> 61052.87
A18: CEC | B18: CEC | C18: 1612 | D18: Land Rights (Formally known as Account 1906) | E18: ='App.2-BA_FA Cont 2013 OldCGAAP'!G18 -> 37132.16 | F18: ='App.2-BA_FA Cont 2014 NewCGAAP'!F19 -> 0 | G18: 0 | H18: =E18+F18+G18 -> 37132.16 | J18: ='App.2-BA_FA Cont 2013 OldCGAAP'!L18 -> -7706.8 | K18: -743.4 | L18: 0 | M18: =J18+K18+L18 -> -8450.2 | N18: =H18+M18 -> 28681.96
A19: N/A | B19: N/A | C19: 1805 | D19: Land | E19: ='App.2-BA_FA Cont 2013 OldCGAAP'!G19 -> 46065.54 | F19: ='App.2-BA_FA Cont 2014 NewCGAAP'!F20 -> 0 | G19: 0 | H19: =E19+F19+G19 -> 46065.54 | J19: ='App.2-BA_FA Cont 2013 OldCGAAP'!L19 -> 0 | K19: 0 | L19: 0 | M19: 0 | N19: 46065.54
A20: 1 | B20: 47 | C20: 1808 | D20: Buildings | E20: ='App.2-BA_FA Cont 2013 OldCGAAP'!G20 -> 2307.56 | F20: ='App.2-BA_FA Cont 2014 NewCGAAP'!F21 -> 0 | G20: 0 | H20: =E20+F20+G20 -> 2307.56 | J20: ='App.2-BA_FA Cont 2013 OldCGAAP'!L20 -> -2307.56 | K20: 0 | L20: 0 | M20: -2307.56 | N20: 0
B21: 13 | C21: 1810 | D21: Leasehold Improvements | E21: ='App.2-BA_FA Cont 2013 OldCGAAP'!G21 -> 0 | F21: ='App.2-BA_FA Cont 2014 NewCGAAP'!F22 -> 0 | G21: 0 | H21: 0 | J21: ='App.2-BA_FA Cont 2013 OldCGAAP'!I21 -> 0 | K21: 0 | L21: 0 | M21: 0 | N21: 0
B22: 47 | C22: 1815 | D22: Transformer Station Equipment >50 kV | E22: ='App.2-BA_FA Cont 2013 OldCGAAP'!G22 -> 0 | F22: ='App.2-BA_FA Cont 2014 NewCGAAP'!F23 -> 0 | G22: 0 | H22: 0 | J22: ='App.2-BA_FA Cont 2013 OldCGAAP'!I22 -> 0 | K22: 0 | L22: 0 | M22: 0 | N22: 0
A23: 1/47 | B23: 47 | C23: 1820 | D23: Distribution Station Equipment <50 kV | E23: ='App.2-BA_FA Cont 2013 OldCGAAP'!G23 -> 3586216.57 | F23: ='App.2-BA_FA Cont 2014 NewCGAAP'!F26 -> 1925636.4 | G23: ='App.2-BA_FA Cont 2014 NewCGAAP'!G26 -> -293974.23 | H23: 5217878.74 | J23: ='App.2-BA_FA Cont 2013 OldCGAAP'!L23 -> -889867.81 | K23: -107237.98 | L23: 275432.72 | M23: -721673.07 | N23: 4496205.67
B24: 47 | C24: 1825 | D24: Storage Battery Equipment | E24: ='App.2-BA_FA Cont 2013 OldCGAAP'!G25 -> 2154.99 | F24: 0 | G24: 0 | H24: 2154.99 | J24: ='App.2-BA_FA Cont 2013 OldCGAAP'!L25 -> -2154.99 | K24: 0 | L24: 0 | M24: -2154.99 | N24: 0
A25: 1/47 | B25: 47 | C25: 1830 | D25: Poles, Towers & Fixtures | E25: ='App.2-BA_FA Cont 2013 OldCGAAP'!G26 -> 2336026.24 | F25: ='App.2-BA_FA Cont 2014 NewCGAAP'!F49+'App.2-BA_FA Cont 2014 NewCGAAP'!F50 -> 126155.22 | H25: 2462181.46 | J25: ='App.2-BA_FA Cont 2013 OldCGAAP'!L26 -> -1042269.98 | K25: -83232.77 | L25: 0 | M25: -1125502.75 | N25: 1336678.71
A26: 1/47 | B26: 47 | C26: 1835 | D26: Overhead Conductors & Devices | E26: ='App.2-BA_FA Cont 2013 OldCGAAP'!G27 -> 1679411.27 | F26: ='App.2-BA_FA Cont 2014 NewCGAAP'!F51 -> 93155.04 | H26: 1772566.31 | J26: ='App.2-BA_FA Cont 2013 OldCGAAP'!L27 -> -737233.62 | K26: -61045.61 | L26: 0 | M26: -798279.23 | N26: 974287.08
A27: 1/47 | B27: 47 | C27: 1840 | D27: Underground Conduit | E27: ='App.2-BA_FA Cont 2013 OldCGAAP'!G28 -> 1577100.63 | F27: ='App.2-BA_FA Cont 2014 NewCGAAP'!F52 -> 10522.87 | H27: 1587623.5 | J27: ='App.2-BA_FA Cont 2013 OldCGAAP'!L28 -> -758485.31 | K27: -56821.54 | L27: 0 | M27: -815306.85 | N27: 772316.65
A28: 1/47 | B28: 47 | C28: 1845 | D28: Underground Conductors & Devices | E28: ='App.2-BA_FA Cont 2013 OldCGAAP'!G29 -> 1943611.14 | F28: ='App.2-BA_FA Cont 2014 NewCGAAP'!F53 -> 143421.49 | H28: 2087032.63 | J28: ='App.2-BA_FA Cont 2013 OldCGAAP'!L29 -> -1114112.52 | K28: -69282.51 | M28: -1183395.03 | N28: 903637.6
A29: 1/47 | B29: 47 | C29: 1850 | D29: Line Transformers | E29: ='App.2-BA_FA Cont 2013 OldCGAAP'!G30 -> 3237300.92 | F29: ='App.2-BA_FA Cont 2014 NewCGAAP'!F54+'App.2-BA_FA Cont 2014 NewCGAAP'!F55 -> 6545.71 | G29: ='App.2-BA_FA Cont 2014 NewCGAAP'!G54+'App.2-BA_FA Cont 2014 NewCGAAP'!G55 -> -4130.55 | H29: 3239716.08 | J29: ='App.2-BA_FA Cont 2013 OldCGAAP'!L30 -> -1827710.22 | K29: =-24411.85-80967.25 -> -105379.1 | L29: ='App.2-BA_FA Cont 2014 NewCGAAP'!L54+'App.2-BA_FA Cont 2014 NewCGAAP'!L55 -> 1223.53 | M29: -1931865.79 | N29: 1307850.29
A30: 1/47 | B30: 47 | C30: 1855 | D30: Services (Overhead & Underground) | E30: ='App.2-BA_FA Cont 2013 OldCGAAP'!G31 -> 3285929.46 | F30: ='App.2-BA_FA Cont 2014 NewCGAAP'!F56+'App.2-BA_FA Cont 2014 NewCGAAP'!F57 -> 25929.32 | H30: 3311858.78 | J30: ='App.2-BA_FA Cont 2013 OldCGAAP'!L31 -> -2267099.79 | K30: =-90020.48-15177.19 -> -105197.67 | M30: -2372297.46 | N30: 939561.32
A31: 1/47 | B31: 47 | C31: 1860 | D31: Meters | E31: ='App.2-BA_FA Cont 2013 OldCGAAP'!G32 -> 169919.68 | F31: ='App.2-BA_FA Cont 2014 NewCGAAP'!F58+'App.2-BA_FA Cont 2014 NewCGAAP'!F59 -> 976.5 | G31: 0 | H31: 170896.18 | J31: ='App.2-BA_FA Cont 2013 OldCGAAP'!L32 -> -624945.32 | K31: -24534.28 | L31: 0 | M31: -649479.6 | N31: -478583.42
A32: 47 | B32: 47 | C32: 1860 | D32: Meters (Smart Meters) | E32: ='App.2-BA_FA Cont 2013 OldCGAAP'!G33 -> 1205240.15 | F32: ='App.2-BA_FA Cont 2014 NewCGAAP'!F60 -> 5952.43 | G32: 0 | H32: 1211192.58 | J32: ='App.2-BA_FA Cont 2013 OldCGAAP'!L33 -> -773603.3985 | K32: =(H32+J32)*(-0.55) -> -240674.0498 | L32: 0 | M32: -1014277.448 | N32: 196915.1317
A33: N/A | B33: N/A | C33: 1905 | D33: Land | E33: ='App.2-BA_FA Cont 2013 OldCGAAP'!G34 -> 8639.65 | F33: 0 | G33: 0 | H33: 8639.65 | J33: ='App.2-BA_FA Cont 2013 OldCGAAP'!L34 -> 0 | K33: 0 | L33: 0 | M33: 0 | N33: 8639.65
B34: 47 | C34: 1908 | D34: Buildings & Fixtures | E34: ='App.2-BA_FA Cont 2013 OldCGAAP'!G35 -> 1088697.62 | F34: 0 | G34: 0 | H34: 1088697.62 | J34: ='App.2-BA_FA Cont 2013 OldCGAAP'!L35 -> -346725.31 | K34: -23549.97 | L34: 0 | M34: -370275.28 | N34: 718422.34
A35: 13 | B35: 13 | C35: 1910 | D35: Leasehold Improvements | E35: ='App.2-BA_FA Cont 2013 OldCGAAP'!G36 -> 0 | F35: 0 | G35: 0 | H35: 0 | J35: ='App.2-BA_FA Cont 2013 OldCGAAP'!L36 -> 0 | K35: 0 | L35: 0 | M35: 0 | N35: 0
A36: 8 | B36: 8 | C36: 1915 | D36: Office Furniture & Equipment (10 years) | E36: ='App.2-BA_FA Cont 2013 OldCGAAP'!G37 -> 98897.03 | F36: ='App.2-BA_FA Cont 2014 NewCGAAP'!F65 -> 1227.45 | G36: ='App.2-BA_FA Cont 2014 NewCGAAP'!G65 -> -7770.6 | H36: 92353.88 | J36: ='App.2-BA_FA Cont 2013 OldCGAAP'!L37 -> -71634.65 | K36: -5722.25 | L36: 7770.6 | M36: -69586.3 | N36: 22767.58
A37: 8 | B37: 8 | C37: 1915 | D37: Office Furniture & Equipment (5 years) | E37: ='App.2-BA_FA Cont 2013 OldCGAAP'!G38 -> 0 | F37: 0 | G37: 0 | H37: 0 | J37: ='App.2-BA_FA Cont 2013 OldCGAAP'!L38 -> 0 | K37: 0 | L37: 0 | M37: 0 | N37: 0
A38: 10 | B38: 10 | C38: 1920 | D38: Computer Equipment - Hardware | E38: ='App.2-BA_FA Cont 2013 OldCGAAP'!G39 -> 304201.355 | F38: ='App.2-BA_FA Cont 2014 NewCGAAP'!F68 -> 4801.65 | G38: ='App.2-BA_FA Cont 2014 NewCGAAP'!G68+'App.2-BA_FA Cont 2014 NewCGAAP'!G67+'App.2-BA_FA Cont 2014 NewCGAAP'!G69 -> -120930.14 | H38: 188072.865 | J38: ='App.2-BA_FA Cont 2013 OldCGAAP'!L39 -> -238913.97 | K38: -25468.86 | L38: 120260.81 | M38: -144122.02 | N38: 43950.845
B39: 45 | C39: 1920 | D39: Computer Equip.-Hardware(Post Mar. 22/04) | E39: ='App.2-BA_FA Cont 2013 OldCGAAP'!G40 -> 0 | F39: ='App.2-BA_FA Cont 2014 NewCGAAP'!F69 -> 0 | G39: 0 | H39: 0 | J39: ='App.2-BA_FA Cont 2013 OldCGAAP'!I40 -> 0 | K39: 0 | L39: 0 | M39: 0 | N39: 0
B40: 45.1 | C40: 1920 | D40: Computer Equip.-Hardware(Post Mar. 19/07) | E40: ='App.2-BA_FA Cont 2013 OldCGAAP'!G41 -> 0 | F40: ='App.2-BA_FA Cont 2014 NewCGAAP'!F70 -> 0 | G40: 0 | H40: 0 | J40: ='App.2-BA_FA Cont 2013 OldCGAAP'!I41 -> 0 | K40: 0 | L40: 0 | M40: 0 | N40: 0
A41: 10 | B41: 10 | C41: 1930 | D41: Transportation Equipment | E41: ='App.2-BA_FA Cont 2013 OldCGAAP'!G42 -> 885492.46 | F41: ='App.2-BA_FA Cont 2014 NewCGAAP'!F74 -> 37625.72 | G41: 0 | H41: 923118.18 | J41: ='App.2-BA_FA Cont 2013 OldCGAAP'!L42 -> -817284.41 | K41: -37075.33 | L41: 0 | M41: -854359.74 | N41: 68758.44
A42: 8 | B42: 8 | C42: 1935 | D42: Stores Equipment | E42: ='App.2-BA_FA Cont 2013 OldCGAAP'!G43 -> 14318.24 | F42: 0 | G42: 0 | H42: 14318.24 | J42: ='App.2-BA_FA Cont 2013 OldCGAAP'!L43 -> -14296.64 | K42: -21.6 | L42: 0 | M42: -14318.24 | N42: 0
A43: 8 | B43: 8 | C43: 1940 | D43: Tools, Shop & Garage Equipment | E43: ='App.2-BA_FA Cont 2013 OldCGAAP'!G44 -> 84432.7 | F43: ='App.2-BA_FA Cont 2014 NewCGAAP'!F77 -> 9895.65 | G43: ='App.2-BA_FA Cont 2014 NewCGAAP'!G77 -> -7471.14 | H43: 86857.21 | J43: ='App.2-BA_FA Cont 2013 OldCGAAP'!L44 -> -59247.6 | K43: -6366.23 | L43: 6499.75 | M43: -59114.08 | N43: 27743.13
A44: 8 | B44: 8 | C44: 1945 | D44: Measurement & Testing Equipment | E44: ='App.2-BA_FA Cont 2013 OldCGAAP'!G45 -> 55448.81 | F44: 0 | G44: ='App.2-BA_FA Cont 2014 NewCGAAP'!G78 -> -12332.14 | H44: 43116.67 | J44: ='App.2-BA_FA Cont 2013 OldCGAAP'!L45 -> -45463.53 | K44: -1537.16 | L44: 12332.14 | M44: -34668.55 | N44: 8448.12
A45: 8 | B45: 8 | C45: 1950 | D45: Power Operated Equipment | E45: ='App.2-BA_FA Cont 2013 OldCGAAP'!G46 -> 66172.85 | F45: 0 | G45: ='App.2-BA_FA Cont 2014 NewCGAAP'!G79 -> 0 | H45: 66172.85 | J45: ='App.2-BA_FA Cont 2013 OldCGAAP'!L46 -> -66172.85 | K45: 0 | L45: 0 | M45: -66172.85 | N45: 0
A46: 8 | B46: 8 | C46: 1955 | D46: Communications Equipment | E46: ='App.2-BA_FA Cont 2013 OldCGAAP'!G47 -> 36119.57 | F46: 0 | G46: ='App.2-BA_FA Cont 2014 NewCGAAP'!G80 -> -19097.21 | H46: 17022.36 | J46: ='App.2-BA_FA Cont 2013 OldCGAAP'!L47 -> -29982.44 | K46: -907.16 | L46: 18639.37 | M46: -12250.23 | N46: 4772.13
A47: 8 | B47: 8 | C47: 1955 | D47: Communication Equipment (Smart Meters) | E47: ='App.2-BA_FA Cont 2013 OldCGAAP'!G48 -> 0 | F47: 0 | G47: 0 | H47: 0 | J47: ='App.2-BA_FA Cont 2013 OldCGAAP'!L48 -> 0 | K47: 0 | L47: 0 | M47: 0 | N47: 0
A48: 8 | B48: 8 | C48: 1960 | D48: Miscellaneous Equipment | E48: ='App.2-BA_FA Cont 2013 OldCGAAP'!G49 -> 12803.51 | F48: 0 | G48: 0 | H48: 12803.51 | J48: ='App.2-BA_FA Cont 2013 OldCGAAP'!L49 -> -12423.56 | K48: -152 | L48: 0 | M48: -12575.56 | N48: 227.95
A49: 47 | B49: 47 | C49: 1970 | D49: Load Management Controls Customer Premises | E49: ='App.2-BA_FA Cont 2013 OldCGAAP'!G50 -> 0 | F49: 0 | G49: 0 | H49: 0 | K49: 0 | L49: 0 | M49: 0 | N49: 0
A50: 47 | B50: 47 | C50: 1975 | D50: Load Management Controls Utility Premises | E50: ='App.2-BA_FA Cont 2013 OldCGAAP'!G51 -> 0 | F50: 0 | G50: 0 | H50: 0 | J50: ='App.2-BA_FA Cont 2013 OldCGAAP'!I50 -> 0 | K50: 0 | L50: 0 | M50: 0 | N50: 0
A51: 47 | B51: 47 | C51: 1980 | D51: System Supervisor Equipment | E51: ='App.2-BA_FA Cont 2013 OldCGAAP'!G52 -> 258806.31 | F51: 0 | G51: 0 | H51: 258806.31 | J51: ='App.2-BA_FA Cont 2013 OldCGAAP'!L52 -> -152776.94 | K51: -16452 | L51: 0 | M51: -169228.94 | N51: 89577.37
A52: 47 | B52: 47 | C52: 1985 | D52: Miscellaneous Fixed Assets | E52: ='App.2-BA_FA Cont 2013 OldCGAAP'!G53 -> 2516.21 | F52: 0 | G52: 0 | H52: 2516.21 | J52: ='App.2-BA_FA Cont 2013 OldCGAAP'!L53 -> -2516.21 | K52: 0 | L52: 0 | M52: -2516.21 | N52: 0
A53: 47 | B53: 47 | C53: 1990 | D53: Other Tangible Property | E53: ='App.2-BA_FA Cont 2013 OldCGAAP'!G54 -> 0 | F53: 0 | G53: 0 | H53: 0 | K53: 0 | L53: 0 | M53: 0 | N53: 0
C54: 1995 | D54: Contributions & Grants | E54: ='App.2-BA_FA Cont 2013 OldCGAAP'!G55 -> -1738113.8 | F54: ='App.2-BA_FA Cont 2014 NewCGAAP'!$F$88+'App.2-BA_FA Cont 2014 NewCGAAP'!$F$89+'App.2-BA_FA Cont 2014 NewCGAAP'!$F$90+'App.2-BA_FA Cont 2014 NewCGAAP'!$F$91+'App.2-BA_FA Cont 2014 NewCGAAP'!$F$92+'App.2-BA_FA Cont 2014 NewCGAAP'!$F$93+'App.2-BA_FA Cont 2014 NewCGAAP'!$F$94+'App.2-BA_FA Cont 2014 NewCGAAP'!$F$95+'App.2-BA_FA Cont 2014 NewCGAAP'!$F$96+'App.2-BA_FA Cont 2014 NewCGAAP'!$F$97 -> -24615.84 | G54: 0 | H54: -1762729.64 | J54: ='App.2-BA_FA Cont 2013 OldCGAAP'!L55 -> 567353.82 | K54: =6401.4+2857.96+14054.84+16481.4+266.39+13277.58+322.17+14790.45+1648.41 -> 70100.6 | M54: =J54+K54+L54 -> 637454.42 | N54: -1125275.22
C55: 1995 | E55: ='App.2-BA_FA Cont 2013 OldCGAAP'!G56 -> 0 | G55: 0 | H55: 0 | M55: 0 | N55: 0
C56: 1995 | E56: ='App.2-BA_FA Cont 2013 OldCGAAP'!G57 -> 0 | G56: 0 | H56: 0 | J56: ='App.2-BA_FA Cont 2013 OldCGAAP'!I56 -> 0 | M56: =J56+K56+L56 -> 0 | N56: 0
C57: 2440 | D57: Deferred Revenue5 | E57: ='App.2-BA_FA Cont 2013 OldCGAAP'!G57 -> 0 | G57: 0 | J57: ='App.2-BA_FA Cont 2013 OldCGAAP'!I57 -> 0 | M57: 0 | N57: 0
C58: 1609 | D58: Capital Contribution Paid | F58: ='App.2-BA_FA Cont 2014 NewCGAAP'!F17 -> 4602.5 | G58: 0 | H58: 4602.5 | J58: 0 | K58: -51 | M58: -51 | N58: 4551.5
D59: Sub-Total | E59: =SUM(E17:E58) -> 20873270.25 | F59: =SUM(F17:F58) -> 2398195.18 | G59: =SUM(G17:G58) -> -572792.94 | H59: =SUM(H17:H58) -> 22698672.49 | J59: =SUM(J17:J58) -> -11861375.84 | K59: -946080.6298 | L59: 566037.21 | M59: -12241419.26 | N59: =SUM(N17:N58) -> 10457253.24
D60: Less Socialized Renewable Energy Generation Investments (input as negative) | H60: =E60+F60+G60 -> 0 | M60: 0 | N60: =H60+M60 -> 0
D61: Less Other Non Rate-Regulated Utility Assets (input as negative) | H61: 0 | M61: 0 | N61: =H61+M61 -> 0
D62: Total PP&E | E62: =SUM(E59:E61) -> 20873270.25 | F62: =SUM(F59:F61) -> 2398195.18 | G62: -572792.94 | H62: 22698672.49 | J62: =SUM(J59:J61) -> -11861375.84 | K62: -946080.6298 | L62: 566037.21 | M62: -12241419.26 | N62: 10457253.24
D63: Depreciation Expense adj. from gain or loss on the retirement of assets (pool of like assets), if applicable6
D64: Total | K64: =K62+K63 -> -946080.6298
J66: Less: Fully Allocated Depreciation
B67: 10 | D67: Transportation | J67: Transportation | L67: =-K41 -> 37075.33
B68: 8 | D68: Stores Equipment | J68: Stores Equipment | L68: =-K42 -> 21.6
J69: Net Depreciation | L69: =-K64-L67-L68 -> 908983.6998
B71: Originally hydro distribution assets were added to Class 1 for tax purposes. This was changed a few years ago and all new additions are now in Class 47.
B73: Notes:
B75: 1 | C75: Tables in the format outlined above covering all fixed asset accounts should be submitted for the Test Year, Bridge Year and all relevant historical years. At a minimum , the applicant must provide data for the earlier of: 1) all historical years back to its last rebasing; or 2) at least three years of historical actuals, in addition to Bridge Year and Test Year forecasts.
B78: 2 | C78: The "CCA Class" for fixed assets should agree with the CCA Class used for tax purposes in Tax Returns. Fixed Assets sub-components may be used where the underlying asset components are classified under multiple CCA Classes for tax purposes. If an applicant uses any different classes from those shown in the table, an explanation should be provided. (also see note 3 below).
B81: 3 | C81: The table may need to be customized for a utility's asset categories or for any new asset accounts announced or authorized by the Board.
B83: 4 | C83: The additions column (E) must not include construction work in progress (CWIP).
B85: 5 | C85: Effective on the date of IFRS adoption, customer contributions will no longer be recorded in Account 1995 Contributions & Grants, but will be recorded in Account 2440, Deferred Revenues.
B87: 6 | C87: Where a distributor for general financial reporting purposes under IFRS has accounted for the amount of gain or loss on the retirement of assets in a pool of like assets as a charge or credit to income, for reporting and rate application filings the distributor shall reclassify such gains and losses as depreciation expense, and disclose the amount separately.

Sheet App.2-BA_FA Cont 2015_Old CGAAP (hidden)
M1: File Number: | N1: =EBNUMBER -> 
M2: Exhibit:
M3: Tab:
M4: Schedule:
M5: Page:
M7: Date:
B9: Appendix 2-BA
B10: Fixed Asset Continuity Schedule
F12: Accounting Standard | G12: CGAAP | H12: Old CGAAP
F13: Year | G13: 2015
A15: RHI | B15: OEB | E15: Cost | K15: Accumulated Depreciation
A16: CCA Class | B16: CCA Class | C16: OEB | D16: Description | E16: Opening Balance | F16: Additions | G16: Disposals | H16: Closing Balance | J16: Opening Balance | K16: Additions | L16: Disposals | M16: Closing Balance | N16: Net Book Value
A17: 12 | B17: 12 | C17: 1611 | D17: Computer Software (Formally known as Account 1925) | E17: =+'App.2-BA_FA Cont 2014_OldCGAAP'!H17 -> 505697.57 | F17: 68020.08 | G17: -208783.74 | H17: =E17+F17+G17 -> 364933.91 | J17: =+'App.2-BA_FA Cont 2014_OldCGAAP'!M17 -> -444644.7 | K17: 49832.76 | L17: -208783.74 | M17: =J17+K17+L17 -> -603595.68 | N17: =H17-M17 -> 968529.59
A18: CEC | B18: CEC | C18: 1612 | D18: Land Rights (Formally known as Account 1906) | E18: =+'App.2-BA_FA Cont 2014_OldCGAAP'!H18 -> 37132.16 | F18: 0 | G18: 0 | H18: =E18+F18+G18 -> 37132.16 | J18: =+'App.2-BA_FA Cont 2014_OldCGAAP'!M18 -> -8450.2 | K18: 743.4 | L18: 0 | M18: =J18+K18+L18 -> -7706.8 | N18: =H18-M18 -> 44838.96
A19: N/A | B19: N/A | C19: 1805 | D19: Land | E19: =+'App.2-BA_FA Cont 2014_OldCGAAP'!H19 -> 46065.54 | F19: 0 | G19: 0 | H19: =E19+F19+G19 -> 46065.54 | J19: =+'App.2-BA_FA Cont 2014_OldCGAAP'!M19 -> 0 | K19: 0 | L19: 0 | M19: 0 | N19: 46065.54
A20: 1 | B20: 47 | C20: 1808 | D20: Buildings | E20: =+'App.2-BA_FA Cont 2014_OldCGAAP'!H20 -> 2307.56 | F20: 0 | G20: -2307.56 | H20: =E20+F20+G20 -> 0 | J20: =+'App.2-BA_FA Cont 2014_OldCGAAP'!M20 -> -2307.56 | K20: 0 | L20: -2307.56 | M20: -4615.12 | N20: 4615.12
B21: 13 | C21: 1810 | D21: Leasehold Improvements | E21: =+'App.2-BA_FA Cont 2014_OldCGAAP'!H21 -> 0 | F21: 0 | G21: 0 | H21: 0 | J21: =+'App.2-BA_FA Cont 2014_OldCGAAP'!M21 -> 0 | K21: 0 | L21: 0 | M21: 0 | N21: 0
B22: 47 | C22: 1815 | D22: Transformer Station Equipment >50 kV | E22: =+'App.2-BA_FA Cont 2014_OldCGAAP'!H22 -> 0 | F22: 0 | G22: 0 | H22: 0 | J22: =+'App.2-BA_FA Cont 2014_OldCGAAP'!M22 -> 0 | K22: 0 | L22: 0 | M22: 0 | N22: 0
A23: 1/47 | B23: 47 | C23: 1820 | D23: Distribution Station Equipment <50 kV | E23: =+'App.2-BA_FA Cont 2014_OldCGAAP'!H23 -> 5217878.74 | F23: 817428.96 | G23: -52494.64 | H23: 5982813.06 | J23: =+'App.2-BA_FA Cont 2014_OldCGAAP'!M23 -> -721673.07 | K23: 146078.12 | L23: -52494.64 | M23: -628089.59 | N23: 6610902.65
B24: 47 | C24: 1825 | D24: Storage Battery Equipment | E24: =+'App.2-BA_FA Cont 2014_OldCGAAP'!H24 -> 2154.99 | F24: 0 | G24: -2154.99 | H24: 0 | J24: =+'App.2-BA_FA Cont 2014_OldCGAAP'!M24 -> -2154.99 | K24: 0 | L24: -2154.99 | M24: -4309.98 | N24: 4309.98
A25: 1/47 | B25: 47 | C25: 1830 | D25: Poles, Towers & Fixtures | E25: =+'App.2-BA_FA Cont 2014_OldCGAAP'!H25 -> 2462181.46 | F25: 161764.65 | G25: -14500.31 | H25: 2609445.8 | J25: =+'App.2-BA_FA Cont 2014_OldCGAAP'!M25 -> -1125502.75 | K25: 40144.92 | L25: -10268.79 | M25: -1095626.62 | N25: 3705072.42
A26: 1/47 | B26: 47 | C26: 1835 | D26: Overhead Conductors & Devices | E26: =+'App.2-BA_FA Cont 2014_OldCGAAP'!H26 -> 1772566.31 | F26: 92259.04 | G26: -11205.08 | H26: 1853620.27 | J26: =+'App.2-BA_FA Cont 2014_OldCGAAP'!M26 -> -798279.23 | K26: 22163.29 | L26: -11175.11 | M26: -787291.05 | N26: 2640911.32
A27: 1/47 | B27: 47 | C27: 1840 | D27: Underground Conduit | E27: =+'App.2-BA_FA Cont 2014_OldCGAAP'!H27 -> 1587623.5 | F27: 63798.69 | G27: 0 | H27: 1651422.19 | J27: =+'App.2-BA_FA Cont 2014_OldCGAAP'!M27 -> -815306.85 | K27: 15106.86 | L27: 0 | M27: -800199.99 | N27: 2451622.18
A28: 1/47 | B28: 47 | C28: 1845 | D28: Underground Conductors & Devices | E28: =+'App.2-BA_FA Cont 2014_OldCGAAP'!H28 -> 2087032.63 | F28: 31906.95 | G28: -22171.89 | H28: 2096767.69 | J28: =+'App.2-BA_FA Cont 2014_OldCGAAP'!M28 -> -1183395.03 | K28: 23220.57 | L28: -21436.07 | M28: -1181610.53 | N28: 3278378.22
A29: 1/47 | B29: 47 | C29: 1850 | D29: Line Transformers | E29: =+'App.2-BA_FA Cont 2014_OldCGAAP'!H29 -> 3239716.08 | F29: 37204.93 | G29: 0 | H29: 3276921.01 | J29: =+'App.2-BA_FA Cont 2014_OldCGAAP'!M29 -> -1931865.79 | K29: 85045.68 | L29: 0 | M29: -1846820.11 | N29: 5123741.12
A30: 1/47 | B30: 47 | C30: 1855 | D30: Services (Overhead & Underground) | E30: =+'App.2-BA_FA Cont 2014_OldCGAAP'!H30 -> 3311858.78 | F30: 81411.78 | G30: 0 | H30: 3393270.56 | J30: =+'App.2-BA_FA Cont 2014_OldCGAAP'!M30 -> -2372297.46 | K30: 28955.74 | L30: 0 | M30: -2343341.72 | N30: 5736612.28
A31: 1/47 | B31: 47 | C31: 1860 | D31: Meters | E31: =+'App.2-BA_FA Cont 2014_OldCGAAP'!H31 -> 170896.18 | F31: 12956.25 | G31: -42564.91 | H31: 141287.52 | J31: =+'App.2-BA_FA Cont 2014_OldCGAAP'!M31 -> -649479.6 | K31: 90217.71 | L31: -38021.09 | M31: -597282.98 | N31: 738570.5
A32: 47 | B32: 47 | C32: 1860 | D32: Meters (Smart Meters) | E32: =+'App.2-BA_FA Cont 2014_OldCGAAP'!H32 -> 1211192.58 | F32: 0 | G32: 0 | H32: 1211192.58 | J32: =+'App.2-BA_FA Cont 2014_OldCGAAP'!M32 -> -1014277.448 | K32: 0 | L32: 0 | M32: -1014277.448 | N32: 2225470.028
A33: N/A | B33: N/A | C33: 1905 | D33: Land | E33: =+'App.2-BA_FA Cont 2014_OldCGAAP'!H33 -> 8639.65 | F33: 0 | G33: 0 | H33: 8639.65 | J33: =+'App.2-BA_FA Cont 2014_OldCGAAP'!M33 -> 0 | K33: 0 | L33: 0 | M33: 0 | N33: 8639.65
B34: 47 | C34: 1908 | D34: Buildings & Fixtures | E34: =+'App.2-BA_FA Cont 2014_OldCGAAP'!H34 -> 1088697.62 | F34: 0 | G34: 0 | H34: 1088697.62 | J34: =+'App.2-BA_FA Cont 2014_OldCGAAP'!M34 -> -370275.28 | K34: 23550 | L34: 0 | M34: -346725.28 | N34: 1435422.9
A35: 13 | B35: 13 | C35: 1910 | D35: Leasehold Improvements | E35: =+'App.2-BA_FA Cont 2014_OldCGAAP'!H35 -> 0 | F35: 0 | G35: 0 | H35: 0 | J35: =+'App.2-BA_FA Cont 2014_OldCGAAP'!M35 -> 0 | K35: 0 | L35: 0 | M35: 0 | N35: 0
A36: 8 | B36: 8 | C36: 1915 | D36: Office Furniture & Equipment (10 years) | E36: =+'App.2-BA_FA Cont 2014_OldCGAAP'!H36 -> 92353.88 | F36: 3294.59 | G36: -1078.91 | H36: 94569.56 | J36: =+'App.2-BA_FA Cont 2014_OldCGAAP'!M36 -> -69586.3 | K36: 5778.34 | L36: -593.4 | M36: -64401.36 | N36: 158970.92
A37: 8 | B37: 8 | C37: 1915 | D37: Office Furniture & Equipment (5 years) | E37: =+'App.2-BA_FA Cont 2014_OldCGAAP'!H37 -> 0 | F37: 0 | G37: 0 | H37: 0 | J37: =+'App.2-BA_FA Cont 2014_OldCGAAP'!M37 -> 0 | K37: 0 | L37: 0 | M37: 0 | N37: 0
A38: 10 | B38: 10 | C38: 1920 | D38: Computer Equipment - Hardware | E38: =+'App.2-BA_FA Cont 2014_OldCGAAP'!H38 -> 188072.865 | F38: 71184.04 | G38: -21836.62 | H38: 237420.285 | J38: =+'App.2-BA_FA Cont 2014_OldCGAAP'!M38 -> -144122.02 | K38: 23046.73 | L38: -21836.62 | M38: -142911.91 | N38: 380332.195
B39: 45 | C39: 1920 | D39: Computer Equip.-Hardware(Post Mar. 22/04) | E39: =+'App.2-BA_FA Cont 2014_OldCGAAP'!H39 -> 0 | F39: 0 | G39: 0 | H39: 0 | J39: =+'App.2-BA_FA Cont 2014_OldCGAAP'!M39 -> 0 | K39: 0 | L39: 0 | M39: 0 | N39: 0
B40: 45.1 | C40: 1920 | D40: Computer Equip.-Hardware(Post Mar. 19/07) | E40: =+'App.2-BA_FA Cont 2014_OldCGAAP'!H40 -> 0 | F40: 0 | G40: 0 | H40: 0 | J40: =+'App.2-BA_FA Cont 2014_OldCGAAP'!M40 -> 0 | K40: 0 | L40: 0 | M40: 0 | N40: 0
A41: 10 | B41: 10 | C41: 1930 | D41: Transportation Equipment | E41: =+'App.2-BA_FA Cont 2014_OldCGAAP'!H41 -> 923118.18 | F41: 421051.52 | G41: -191567.2 | H41: 1152602.5 | J41: =+'App.2-BA_FA Cont 2014_OldCGAAP'!M41 -> -854359.74 | K41: 45546.07 | L41: -191567.2 | M41: -1000380.87 | N41: 2152983.37
A42: 8 | B42: 8 | C42: 1935 | D42: Stores Equipment | E42: =+'App.2-BA_FA Cont 2014_OldCGAAP'!H42 -> 14318.24 | F42: 0 | G42: 0 | H42: 14318.24 | J42: =+'App.2-BA_FA Cont 2014_OldCGAAP'!M42 -> -14318.24 | K42: 0 | L42: 0 | M42: -14318.24 | N42: 28636.48
A43: 8 | B43: 8 | C43: 1940 | D43: Tools, Shop & Garage Equipment | E43: =+'App.2-BA_FA Cont 2014_OldCGAAP'!H43 -> 86857.21 | F43: 2357.45 | G43: -1134 | H43: 88080.66 | J43: =+'App.2-BA_FA Cont 2014_OldCGAAP'!M43 -> -59114.08 | K43: 5857.67 | L43: -1134 | M43: -54390.41 | N43: 142471.07
A44: 8 | B44: 8 | C44: 1945 | D44: Measurement & Testing Equipment | E44: =+'App.2-BA_FA Cont 2014_OldCGAAP'!H44 -> 43116.67 | F44: 0 | G44: 0 | H44: 43116.67 | J44: =+'App.2-BA_FA Cont 2014_OldCGAAP'!M44 -> -34668.55 | K44: 1537.18 | L44: 0 | M44: -33131.37 | N44: 76248.04
A45: 8 | B45: 8 | C45: 1950 | D45: Power Operated Equipment | E45: =+'App.2-BA_FA Cont 2014_OldCGAAP'!H45 -> 66172.85 | F45: 6261.97 | G45: 0 | H45: 72434.82 | J45: =+'App.2-BA_FA Cont 2014_OldCGAAP'!M45 -> -66172.85 | K45: 390.49 | L45: 0 | M45: -65782.36 | N45: 138217.18
A46: 8 | B46: 8 | C46: 1955 | D46: Communications Equipment | E46: =+'App.2-BA_FA Cont 2014_OldCGAAP'!H46 -> 17022.36 | F46: 13100 | G46: -11710.61 | H46: 18411.75 | J46: =+'App.2-BA_FA Cont 2014_OldCGAAP'!M46 -> -12250.23 | K46: 1375.38 | L46: -11710.61 | M46: -22585.46 | N46: 40997.21
A47: 8 | B47: 8 | C47: 1955 | D47: Communication Equipment (Smart Meters) | E47: =+'App.2-BA_FA Cont 2014_OldCGAAP'!H47 -> 0 | F47: 0 | G47: 0 | H47: 0 | J47: =+'App.2-BA_FA Cont 2014_OldCGAAP'!M47 -> 0 | K47: 0 | L47: 0 | M47: 0 | N47: 0
A48: 8 | B48: 8 | C48: 1960 | D48: Miscellaneous Equipment | E48: =+'App.2-BA_FA Cont 2014_OldCGAAP'!H48 -> 12803.51 | F48: 0 | G48: -373.1 | H48: 12430.41 | J48: =+'App.2-BA_FA Cont 2014_OldCGAAP'!M48 -> -12575.56 | K48: 152 | L48: -373.1 | M48: -12796.66 | N48: 25227.07
A49: 47 | B49: 47 | C49: 1970 | D49: Load Management Controls Customer Premises | E49: =+'App.2-BA_FA Cont 2014_OldCGAAP'!H49 -> 0 | F49: 0 | G49: 0 | H49: 0 | J49: =+'App.2-BA_FA Cont 2014_OldCGAAP'!M49 -> 0 | K49: 0 | L49: 0 | M49: 0 | N49: 0
A50: 47 | B50: 47 | C50: 1975 | D50: Load Management Controls Utility Premises | E50: =+'App.2-BA_FA Cont 2014_OldCGAAP'!H50 -> 0 | F50: 0 | G50: 0 | H50: 0 | J50: =+'App.2-BA_FA Cont 2014_OldCGAAP'!M50 -> 0 | K50: 0 | L50: 0 | M50: 0 | N50: 0
A51: 47 | B51: 47 | C51: 1980 | D51: System Supervisor Equipment | E51: =+'App.2-BA_FA Cont 2014_OldCGAAP'!H51 -> 258806.31 | F51: 0 | G51: 0 | H51: 258806.31 | J51: =+'App.2-BA_FA Cont 2014_OldCGAAP'!M51 -> -169228.94 | K51: 16445.99 | L51: 0 | M51: -152782.95 | N51: 411589.26
A52: 47 | B52: 47 | C52: 1985 | D52: Miscellaneous Fixed Assets | E52: =+'App.2-BA_FA Cont 2014_OldCGAAP'!H52 -> 2516.21 | F52: 0 | G52: 0 | H52: 2516.21 | J52: =+'App.2-BA_FA Cont 2014_OldCGAAP'!M52 -> -2516.21 | K52: 0 | L52: 0 | M52: -2516.21 | N52: 5032.42
A53: 47 | B53: 47 | C53: 1990 | D53: Other Tangible Property | E53: =+'App.2-BA_FA Cont 2014_OldCGAAP'!H53 -> 0 | F53: 0 | G53: 0 | H53: 0 | J53: =+'App.2-BA_FA Cont 2014_OldCGAAP'!M53 -> 0 | K53: 0 | L53: 0 | M53: 0 | N53: 0
C54: 1995 | D54: Contributions & Grants - O/H Conductor | E54: =+'App.2-BA_FA Cont 2014_OldCGAAP'!H54 -> -1762729.64 | F54: 0 | G54: 0 | H54: -1762729.64 | J54: =+'App.2-BA_FA Cont 2014_OldCGAAP'!M54 -> 637454.42 | K54: 0 | L54: 0 | M54: 637454.42 | N54: -2400184.06
C55: 1995 | D55: Contributions & Grants - Poles | E55: =+'App.2-BA_FA Cont 2014_OldCGAAP'!H55 -> 0 | F55: 0 | G55: 0 | H55: 0 | J55: =+'App.2-BA_FA Cont 2014_OldCGAAP'!M55 -> 0 | K55: 0 | L55: 0 | M55: 0 | N55: 0
C56: 1995 | D56: Contributions & Grants - Transformers | E56: =+'App.2-BA_FA Cont 2014_OldCGAAP'!H56 -> 0 | F56: -13625.15 | G56: 0 | H56: -13625.15 | J56: =+'App.2-BA_FA Cont 2014_OldCGAAP'!M56 -> 0 | K56: -36849.43 | L56: 0 | M56: -36849.43 | N56: 23224.28
C57: 2440 | D57: Deferred Revenue5 | E57: =+'App.2-BA_FA Cont 2014_OldCGAAP'!H57 -> 0 | H57: 0 | M57: 0 | N57: 0
E58: =+'App.2-BA_FA Cont 2014_OldCGAAP'!H58 -> 4602.5 | H58: 4602.5 | M58: 0 | N58: 4602.5
D59: Sub-Total | E59: =SUM(E17:E58) -> 22698672.49 | F59: =SUM(F17:F58) -> 1870375.75 | G59: =SUM(G17:G58) -> -583883.56 | H59: =SUM(H17:H58) -> 23985164.68 | J59: =SUM(J17:J58) -> -12241368.26 | K59: 588339.47 | L59: -573856.92 | M59: -12226885.71 | N59: 36212050.39
D60: Less Socialized Renewable Energy Generation Investments (input as negative) | H60: =E60+F60+G60 -> 0 | M60: 0 | N60: =H60+M60 -> 0
D61: Less Other Non Rate-Regulated Utility Assets (input as negative) | H61: 0 | M61: 0 | N61: =H61+M61 -> 0
D62: Total PP&E | E62: =SUM(E59:E61) -> 22698672.49 | F62: =SUM(F59:F61) -> 1870375.75 | G62: -583883.56 | H62: 23985164.68 | J62: =SUM(J59:J61) -> -12241368.26 | K62: 588339.47 | L62: -573856.92 | M62: -12226885.71 | N62: 36212050.39
D63: Depreciation Expense adj. from gain or loss on the retirement of assets (pool of like assets), if applicable6
D64: Total | K64: =K62+K63 -> 588339.47
J66: Less: Fully Allocated Depreciation
B67: 10 | D67: Transportation | J67: Transportation
B68: 8 | D68: Stores Equipment | J68: Stores Equipment
J69: Net Depreciation | L69: =K64-L67-L68 -> 588339.47
B71: Originally hydro distribution assets were added to Class 1 for tax purposes. This was changed a few years ago and all new additions are now in Class 47.
B73: Notes:
B75: 1 | C75: Tables in the format outlined above covering all fixed asset accounts should be submitted for the Test Year, Bridge Year and all relevant historical years. At a minimum , the applicant must provide data for the earlier of: 1) all historical years back to its last rebasing; or 2) at least three years of historical actuals, in addition to Bridge Year and Test Year forecasts.
B78: 2 | C78: The "CCA Class" for fixed assets should agree with the CCA Class used for tax purposes in Tax Returns. Fixed Assets sub-components may be used where the underlying asset components are classified under multiple CCA Classes for tax purposes. If an applicant uses any different classes from those shown in the table, an explanation should be provided. (also see note 3 below).
B81: 3 | C81: The table may need to be customized for a utility's asset categories or for any new asset accounts announced or authorized by the Board.
B83: 4 | C83: The additions column (E) must not include construction work in progress (CWIP).
B85: 5 | C85: Effective on the date of IFRS adoption, customer contributions will no longer be recorded in Account 1995 Contributions & Grants, but will be recorded in Account 2440, Deferred Revenues.
B87: 6 | C87: Where a distributor for general financial reporting purposes under IFRS has accounted for the amount of gain or loss on the retirement of assets in a pool of like assets as a charge or credit to income, for reporting and rate application filings the distributor shall reclassify such gains and losses as depreciation expense, and disclose the amount separately.

Sheet App.2-BA_FA Cont 2016_Old CGAAP (hidden)
M1: File Number: | N1: =EBNUMBER -> 
M2: Exhibit:
M3: Tab:
M4: Schedule:
M5: Page:
M7: Date:
B9: Appendix 2-BA
B10: Fixed Asset Continuity Schedule
F12: Accounting Standard | G12: CGAAP | H12: Old CGAAP
F13: Year | G13: 2016
A15: RHI | B15: OEB | E15: Cost | K15: Accumulated Depreciation
A16: CCA Class | B16: CCA Class | C16: OEB | D16: Description | E16: Opening Balance | F16: Additions | G16: Disposals | H16: Closing Balance | J16: Opening Balance | K16: Additions | L16: Disposals | M16: Closing Balance | N16: Net Book Value
A17: 12 | B17: 12 | C17: 1611 | D17: Computer Software (Formally known as Account 1925) | E17: =+'App.2-BA_FA Cont 2015_Old CGAAP'!H17 -> 364933.91 | H17: =E17+F17+G17 -> 364933.91 | J17: =+'App.2-BA_FA Cont 2015_Old CGAAP'!M17 -> -603595.68 | M17: =J17+K17+L17 -> -603595.68 | N17: =H17+M17 -> -238661.77
A18: CEC | B18: CEC | C18: 1612 | D18: Land Rights (Formally known as Account 1906) | E18: =+'App.2-BA_FA Cont 2015_Old CGAAP'!H18 -> 37132.16 | H18: =E18+F18+G18 -> 37132.16 | J18: =+'App.2-BA_FA Cont 2015_Old CGAAP'!M18 -> -7706.8 | M18: =J18+K18+L18 -> -7706.8 | N18: =H18+M18 -> 29425.36
A19: N/A | B19: N/A | C19: 1805 | D19: Land | E19: =+'App.2-BA_FA Cont 2015_Old CGAAP'!H19 -> 46065.54 | H19: =E19+F19+G19 -> 46065.54 | J19: =+'App.2-BA_FA Cont 2015_Old CGAAP'!M19 -> 0 | M19: 0 | N19: 46065.54
A20: 1 | B20: 47 | C20: 1808 | D20: Buildings | E20: =+'App.2-BA_FA Cont 2015_Old CGAAP'!H20 -> 0 | H20: =E20+F20+G20 -> 0 | J20: =+'App.2-BA_FA Cont 2015_Old CGAAP'!M20 -> -4615.12 | M20: -4615.12 | N20: -4615.12
B21: 13 | C21: 1810 | D21: Leasehold Improvements | E21: =+'App.2-BA_FA Cont 2015_Old CGAAP'!H21 -> 0 | H21: 0 | J21: =+'App.2-BA_FA Cont 2015_Old CGAAP'!M21 -> 0 | M21: 0 | N21: 0
B22: 47 | C22: 1815 | D22: Transformer Station Equipment >50 kV | E22: =+'App.2-BA_FA Cont 2015_Old CGAAP'!H22 -> 0 | H22: 0 | J22: =+'App.2-BA_FA Cont 2015_Old CGAAP'!M22 -> 0 | M22: 0 | N22: 0
A23: 1/47 | B23: 47 | C23: 1820 | D23: Distribution Station Equipment <50 kV | E23: =+'App.2-BA_FA Cont 2015_Old CGAAP'!H23 -> 5982813.06 | H23: 5982813.06 | J23: =+'App.2-BA_FA Cont 2015_Old CGAAP'!M23 -> -628089.59 | M23: -628089.59 | N23: 5354723.47
B24: 47 | C24: 1825 | D24: Storage Battery Equipment | E24: =+'App.2-BA_FA Cont 2015_Old CGAAP'!H24 -> 0 | H24: 0 | J24: =+'App.2-BA_FA Cont 2015_Old CGAAP'!M24 -> -4309.98 | M24: -4309.98 | N24: -4309.98
A25: 1/47 | B25: 47 | C25: 1830 | D25: Poles, Towers & Fixtures | E25: =+'App.2-BA_FA Cont 2015_Old CGAAP'!H25 -> 2609445.8 | H25: 2609445.8 | J25: =+'App.2-BA_FA Cont 2015_Old CGAAP'!M25 -> -1095626.62 | M25: -1095626.62 | N25: 1513819.18
A26: 1/47 | B26: 47 | C26: 1835 | D26: Overhead Conductors & Devices | E26: =+'App.2-BA_FA Cont 2015_Old CGAAP'!H26 -> 1853620.27 | H26: 1853620.27 | J26: =+'App.2-BA_FA Cont 2015_Old CGAAP'!M26 -> -787291.05 | M26: -787291.05 | N26: 1066329.22
A27: 1/47 | B27: 47 | C27: 1840 | D27: Underground Conduit | E27: =+'App.2-BA_FA Cont 2015_Old CGAAP'!H27 -> 1651422.19 | H27: 1651422.19 | J27: =+'App.2-BA_FA Cont 2015_Old CGAAP'!M27 -> -800199.99 | M27: -800199.99 | N27: 851222.2
A28: 1/47 | B28: 47 | C28: 1845 | D28: Underground Conductors & Devices | E28: =+'App.2-BA_FA Cont 2015_Old CGAAP'!H28 -> 2096767.69 | H28: 2096767.69 | J28: =+'App.2-BA_FA Cont 2015_Old CGAAP'!M28 -> -1181610.53 | M28: -1181610.53 | N28: 915157.16
A29: 1/47 | B29: 47 | C29: 1850 | D29: Line Transformers | E29: =+'App.2-BA_FA Cont 2015_Old CGAAP'!H29 -> 3276921.01 | H29: 3276921.01 | J29: =+'App.2-BA_FA Cont 2015_Old CGAAP'!M29 -> -1846820.11 | M29: -1846820.11 | N29: 1430100.9
A30: 1/47 | B30: 47 | C30: 1855 | D30: Services (Overhead & Underground) | E30: =+'App.2-BA_FA Cont 2015_Old CGAAP'!H30 -> 3393270.56 | H30: 3393270.56 | J30: =+'App.2-BA_FA Cont 2015_Old CGAAP'!M30 -> -2343341.72 | M30: -2343341.72 | N30: 1049928.84
A31: 1/47 | B31: 47 | C31: 1860 | D31: Meters | E31: =+'App.2-BA_FA Cont 2015_Old CGAAP'!H31 -> 141287.52 | H31: 141287.52 | J31: =+'App.2-BA_FA Cont 2015_Old CGAAP'!M31 -> -597282.98 | M31: -597282.98 | N31: -455995.46
A32: 47 | B32: 47 | C32: 1860 | D32: Meters (Smart Meters) | E32: =+'App.2-BA_FA Cont 2015_Old CGAAP'!H32 -> 1211192.58 | H32: 1211192.58 | J32: =+'App.2-BA_FA Cont 2015_Old CGAAP'!M32 -> -1014277.448 | M32: -1014277.448 | N32: 196915.1317
A33: N/A | B33: N/A | C33: 1905 | D33: Land | E33: =+'App.2-BA_FA Cont 2015_Old CGAAP'!H33 -> 8639.65 | H33: 8639.65 | J33: =+'App.2-BA_FA Cont 2015_Old CGAAP'!M33 -> 0 | M33: 0 | N33: 8639.65
B34: 47 | C34: 1908 | D34: Buildings & Fixtures | E34: =+'App.2-BA_FA Cont 2015_Old CGAAP'!H34 -> 1088697.62 | H34: 1088697.62 | J34: =+'App.2-BA_FA Cont 2015_Old CGAAP'!M34 -> -346725.28 | M34: -346725.28 | N34: 741972.34
A35: 13 | B35: 13 | C35: 1910 | D35: Leasehold Improvements | E35: =+'App.2-BA_FA Cont 2015_Old CGAAP'!H35 -> 0 | H35: 0 | J35: =+'App.2-BA_FA Cont 2015_Old CGAAP'!M35 -> 0 | M35: 0 | N35: 0
A36: 8 | B36: 8 | C36: 1915 | D36: Office Furniture & Equipment (10 years) | E36: =+'App.2-BA_FA Cont 2015_Old CGAAP'!H36 -> 94569.56 | H36: 94569.56 | J36: =+'App.2-BA_FA Cont 2015_Old CGAAP'!M36 -> -64401.36 | M36: -64401.36 | N36: 30168.2
A37: 8 | B37: 8 | C37: 1915 | D37: Office Furniture & Equipment (5 years) | E37: =+'App.2-BA_FA Cont 2015_Old CGAAP'!H37 -> 0 | H37: 0 | J37: =+'App.2-BA_FA Cont 2015_Old CGAAP'!M37 -> 0 | M37: 0 | N37: 0
A38: 10 | B38: 10 | C38: 1920 | D38: Computer Equipment - Hardware | E38: =+'App.2-BA_FA Cont 2015_Old CGAAP'!H38 -> 237420.285 | H38: 237420.285 | J38: =+'App.2-BA_FA Cont 2015_Old CGAAP'!M38 -> -142911.91 | M38: -142911.91 | N38: 94508.375
B39: 45 | C39: 1920 | D39: Computer Equip.-Hardware(Post Mar. 22/04) | E39: =+'App.2-BA_FA Cont 2015_Old CGAAP'!H39 -> 0 | H39: 0 | J39: =+'App.2-BA_FA Cont 2015_Old CGAAP'!M39 -> 0 | M39: 0 | N39: 0
B40: 45.1 | C40: 1920 | D40: Computer Equip.-Hardware(Post Mar. 19/07) | E40: =+'App.2-BA_FA Cont 2015_Old CGAAP'!H40 -> 0 | H40: 0 | J40: =+'App.2-BA_FA Cont 2015_Old CGAAP'!M40 -> 0 | M40: 0 | N40: 0
A41: 10 | B41: 10 | C41: 1930 | D41: Transportation Equipment | E41: =+'App.2-BA_FA Cont 2015_Old CGAAP'!H41 -> 1152602.5 | H41: 1152602.5 | J41: =+'App.2-BA_FA Cont 2015_Old CGAAP'!M41 -> -1000380.87 | M41: =J41+K41+L41 -> -1000380.87 | N41: =H41+M41 -> 152221.63
A42: 8 | B42: 8 | C42: 1935 | D42: Stores Equipment | E42: =+'App.2-BA_FA Cont 2015_Old CGAAP'!H42 -> 14318.24 | H42: 14318.24 | J42: =+'App.2-BA_FA Cont 2015_Old CGAAP'!M42 -> -14318.24 | M42: -14318.24 | N42: 0
A43: 8 | B43: 8 | C43: 1940 | D43: Tools, Shop & Garage Equipment | E43: =+'App.2-BA_FA Cont 2015_Old CGAAP'!H43 -> 88080.66 | H43: 88080.66 | J43: =+'App.2-BA_FA Cont 2015_Old CGAAP'!M43 -> -54390.41 | M43: -54390.41 | N43: 33690.25
A44: 8 | B44: 8 | C44: 1945 | D44: Measurement & Testing Equipment | E44: =+'App.2-BA_FA Cont 2015_Old CGAAP'!H44 -> 43116.67 | H44: 43116.67 | J44: =+'App.2-BA_FA Cont 2015_Old CGAAP'!M44 -> -33131.37 | M44: -33131.37 | N44: 9985.3
A45: 8 | B45: 8 | C45: 1950 | D45: Power Operated Equipment | E45: =+'App.2-BA_FA Cont 2015_Old CGAAP'!H45 -> 72434.82 | H45: 72434.82 | J45: =+'App.2-BA_FA Cont 2015_Old CGAAP'!M45 -> -65782.36 | M45: -65782.36 | N45: 6652.46
A46: 8 | B46: 8 | C46: 1955 | D46: Communications Equipment | E46: =+'App.2-BA_FA Cont 2015_Old CGAAP'!H46 -> 18411.75 | H46: 18411.75 | J46: =+'App.2-BA_FA Cont 2015_Old CGAAP'!M46 -> -22585.46 | M46: -22585.46 | N46: -4173.71
A47: 8 | B47: 8 | C47: 1955 | D47: Communication Equipment (Smart Meters) | E47: =+'App.2-BA_FA Cont 2015_Old CGAAP'!H47 -> 0 | H47: 0 | J47: =+'App.2-BA_FA Cont 2015_Old CGAAP'!M47 -> 0 | M47: 0 | N47: 0
A48: 8 | B48: 8 | C48: 1960 | D48: Miscellaneous Equipment | E48: =+'App.2-BA_FA Cont 2015_Old CGAAP'!H48 -> 12430.41 | H48: 12430.41 | J48: =+'App.2-BA_FA Cont 2015_Old CGAAP'!M48 -> -12796.66 | M48: -12796.66 | N48: -366.25
A49: 47 | B49: 47 | C49: 1970 | D49: Load Management Controls Customer Premises | E49: =+'App.2-BA_FA Cont 2015_Old CGAAP'!H49 -> 0 | H49: 0 | J49: =+'App.2-BA_FA Cont 2015_Old CGAAP'!M49 -> 0 | M49: 0 | N49: 0
A50: 47 | B50: 47 | C50: 1975 | D50: Load Management Controls Utility Premises | E50: =+'App.2-BA_FA Cont 2015_Old CGAAP'!H50 -> 0 | H50: 0 | J50: =+'App.2-BA_FA Cont 2015_Old CGAAP'!M50 -> 0 | M50: 0 | N50: 0
A51: 47 | B51: 47 | C51: 1980 | D51: System Supervisor Equipment | E51: =+'App.2-BA_FA Cont 2015_Old CGAAP'!H51 -> 258806.31 | H51: 258806.31 | J51: =+'App.2-BA_FA Cont 2015_Old CGAAP'!M51 -> -152782.95 | M51: -152782.95 | N51: 106023.36
A52: 47 | B52: 47 | C52: 1985 | D52: Miscellaneous Fixed Assets | E52: =+'App.2-BA_FA Cont 2015_Old CGAAP'!H52 -> 2516.21 | H52: 2516.21 | J52: =+'App.2-BA_FA Cont 2015_Old CGAAP'!M52 -> -2516.21 | M52: -2516.21 | N52: 0
A53: 47 | B53: 47 | C53: 1990 | D53: Other Tangible Property | E53: =+'App.2-BA_FA Cont 2015_Old CGAAP'!H53 -> 0 | H53: 0 | J53: =+'App.2-BA_FA Cont 2015_Old CGAAP'!M53 -> 0 | M53: 0 | N53: 0
C54: 1995 | D54: Contributions & Grants - O/H Conductor | E54: =+'App.2-BA_FA Cont 2015_Old CGAAP'!H54 -> -1762729.64 | H54: -1762729.64 | J54: =+'App.2-BA_FA Cont 2015_Old CGAAP'!M54 -> 637454.42 | M54: 637454.42 | N54: -1125275.22
C55: 1995 | D55: Contributions & Grants - Poles | E55: =+'App.2-BA_FA Cont 2015_Old CGAAP'!H55 -> 0 | H55: 0 | J55: =+'App.2-BA_FA Cont 2015_Old CGAAP'!M55 -> 0 | M55: 0 | N55: 0
C56: 1995 | D56: Contributions & Grants - Transformers | E56: =+'App.2-BA_FA Cont 2015_Old CGAAP'!H56 -> -13625.15 | H56: -13625.15 | J56: =+'App.2-BA_FA Cont 2015_Old CGAAP'!M56 -> -36849.43 | M56: -36849.43 | N56: -50474.58
C57: 2440 | D57: Deferred Revenue5 | E57: =+'App.2-BA_FA Cont 2015_Old CGAAP'!H57 -> 0 | H57: 0 | J57: =+'App.2-BA_FA Cont 2015_Old CGAAP'!M57 -> 0 | M57: 0 | N57: 0
H58: 0 | M58: 0 | N58: =H58+M58 -> 0
D59: Sub-Total | E59: =SUM(E17:E58) -> 23980562.18 | F59: =SUM(F17:F58) -> 0 | G59: =SUM(G17:G58) -> 0 | H59: =SUM(H17:H58) -> 23980562.18 | J59: =SUM(J17:J58) -> -12226885.71 | K59: 0 | L59: 0 | M59: -12226885.71 | N59: 11753676.48
D60: Less Socialized Renewable Energy Generation Investments (input as negative) | H60: =E60+F60+G60 -> 0 | M60: 0 | N60: =H60+M60 -> 0
D61: Less Other Non Rate-Regulated Utility Assets (input as negative) | H61: 0 | M61: 0 | N61: =H61+M61 -> 0
D62: Total PP&E | E62: =SUM(E59:E61) -> 23980562.18 | F62: =SUM(F59:F61) -> 0 | G62: 0 | H62: 23980562.18 | J62: =SUM(J59:J61) -> -12226885.71 | K62: 0 | L62: 0 | M62: -12226885.71 | N62: 11753676.48
D63: Depreciation Expense adj. from gain or loss on the retirement of assets (pool of like assets), if applicable6
D64: Total | K64: =K62+K63 -> 0
J66: Less: Fully Allocated Depreciation
B67: 10 | D67: Transportation | J67: Transportation
B68: 8 | D68: Stores Equipment | J68: Stores Equipment
J69: Net Depreciation | L69: =K64-L67-L68 -> 0
B71: Originally hydro distribution assets were added to Class 1 for tax purposes. This was changed a few years ago and all new additions are now in Class 47.
B73: Notes:
B75: 1 | C75: Tables in the format outlined above covering all fixed asset accounts should be submitted for the Test Year, Bridge Year and all relevant historical years. At a minimum , the applicant must provide data for the earlier of: 1) all historical years back to its last rebasing; or 2) at least three years of historical actuals, in addition to Bridge Year and Test Year forecasts.
B78: 2 | C78: The "CCA Class" for fixed assets should agree with the CCA Class used for tax purposes in Tax Returns. Fixed Assets sub-components may be used where the underlying asset components are classified under multiple CCA Classes for tax purposes. If an applicant uses any different classes from those shown in the table, an explanation should be provided. (also see note 3 below).
B81: 3 | C81: The table may need to be customized for a utility's asset categories or for any new asset accounts announced or authorized by the Board.
B83: 4 | C83: The additions column (E) must not include construction work in progress (CWIP).
B85: 5 | C85: Effective on the date of IFRS adoption, customer contributions will no longer be recorded in Account 1995 Contributions & Grants, but will be recorded in Account 2440, Deferred Revenues.
B87: 6 | C87: Where a distributor for general financial reporting purposes under IFRS has accounted for the amount of gain or loss on the retirement of assets in a pool of like assets as a charge or credit to income, for reporting and rate application filings the distributor shall reclassify such gains and losses as depreciation expense, and disclose the amount separately.

Sheet App.2-BA_FA Cont 2017_Old CGAAP (hidden)
M1: File Number: | N1: =EBNUMBER -> 
M2: Exhibit:
M3: Tab:
M4: Schedule:
M5: Page:
M7: Date:
B9: Appendix 2-BA
B10: Fixed Asset Continuity Schedule
F12: Accounting Standard | G12: CGAAP | H12: Old CGAAP
F13: Year | G13: 2017
A15: RHI | E15: Cost | K15: Accumulated Depreciation
A16: CCA Class | B16: CCA Class | C16: OEB | D16: Description | E16: Opening Balance | F16: Additions | G16: Disposals | H16: Closing Balance | J16: Opening Balance | K16: Additions | L16: Disposals | M16: Closing Balance | N16: Net Book Value
A17: 12 | B17: 12 | C17: 1611 | D17: Computer Software (Formally known as Account 1925) | E17: =+'App.2-BA_FA Cont 2016_Old CGAAP'!H17 -> 364933.91 | H17: =E17+F17+G17 -> 364933.91 | J17: =+'App.2-BA_FA Cont 2016_Old CGAAP'!M17 -> -603595.68 | M17: =J17+K17+L17 -> -603595.68 | N17: =H17+M17 -> -238661.77
A18: CEC | B18: CEC | C18: 1612 | D18: Land Rights (Formally known as Account 1906) | E18: =+'App.2-BA_FA Cont 2016_Old CGAAP'!H18 -> 37132.16 | H18: =E18+F18+G18 -> 37132.16 | J18: =+'App.2-BA_FA Cont 2016_Old CGAAP'!M18 -> -7706.8 | M18: =J18+K18+L18 -> -7706.8 | N18: =H18+M18 -> 29425.36
A19: N/A | B19: N/A | C19: 1805 | D19: Land | E19: =+'App.2-BA_FA Cont 2016_Old CGAAP'!H19 -> 46065.54 | H19: =E19+F19+G19 -> 46065.54 | J19: =+'App.2-BA_FA Cont 2016_Old CGAAP'!M19 -> 0 | M19: 0 | N19: 46065.54
A20: 1 | B20: 47 | C20: 1808 | D20: Buildings | E20: =+'App.2-BA_FA Cont 2016_Old CGAAP'!H20 -> 0 | H20: =E20+F20+G20 -> 0 | J20: =+'App.2-BA_FA Cont 2016_Old CGAAP'!M20 -> -4615.12 | M20: -4615.12 | N20: -4615.12
B21: 13 | C21: 1810 | D21: Leasehold Improvements | E21: =+'App.2-BA_FA Cont 2016_Old CGAAP'!H21 -> 0 | H21: 0 | J21: =+'App.2-BA_FA Cont 2016_Old CGAAP'!M21 -> 0 | M21: 0 | N21: 0
B22: 47 | C22: 1815 | D22: Transformer Station Equipment >50 kV | E22: =+'App.2-BA_FA Cont 2016_Old CGAAP'!H22 -> 0 | H22: 0 | J22: =+'App.2-BA_FA Cont 2016_Old CGAAP'!M22 -> 0 | M22: 0 | N22: 0
A23: 1/47 | B23: 47 | C23: 1820 | D23: Distribution Station Equipment <50 kV | E23: =+'App.2-BA_FA Cont 2016_Old CGAAP'!H23 -> 5982813.06 | H23: 5982813.06 | J23: =+'App.2-BA_FA Cont 2016_Old CGAAP'!M23 -> -628089.59 | M23: -628089.59 | N23: 5354723.47
B24: 47 | C24: 1825 | D24: Storage Battery Equipment | E24: =+'App.2-BA_FA Cont 2016_Old CGAAP'!H24 -> 0 | H24: 0 | J24: =+'App.2-BA_FA Cont 2016_Old CGAAP'!M24 -> -4309.98 | M24: -4309.98 | N24: -4309.98
A25: 1/47 | B25: 47 | C25: 1830 | D25: Poles, Towers & Fixtures | E25: =+'App.2-BA_FA Cont 2016_Old CGAAP'!H25 -> 2609445.8 | H25: 2609445.8 | J25: =+'App.2-BA_FA Cont 2016_Old CGAAP'!M25 -> -1095626.62 | M25: -1095626.62 | N25: 1513819.18
A26: 1/47 | B26: 47 | C26: 1835 | D26: Overhead Conductors & Devices | E26: =+'App.2-BA_FA Cont 2016_Old CGAAP'!H26 -> 1853620.27 | H26: 1853620.27 | J26: =+'App.2-BA_FA Cont 2016_Old CGAAP'!M26 -> -787291.05 | M26: -787291.05 | N26: 1066329.22
A27: 1/47 | B27: 47 | C27: 1840 | D27: Underground Conduit | E27: =+'App.2-BA_FA Cont 2016_Old CGAAP'!H27 -> 1651422.19 | H27: 1651422.19 | J27: =+'App.2-BA_FA Cont 2016_Old CGAAP'!M27 -> -800199.99 | M27: -800199.99 | N27: 851222.2
A28: 1/47 | B28: 47 | C28: 1845 | D28: Underground Conductors & Devices | E28: =+'App.2-BA_FA Cont 2016_Old CGAAP'!H28 -> 2096767.69 | H28: 2096767.69 | J28: =+'App.2-BA_FA Cont 2016_Old CGAAP'!M28 -> -1181610.53 | M28: -1181610.53 | N28: 915157.16
A29: 1/47 | B29: 47 | C29: 1850 | D29: Line Transformers | E29: =+'App.2-BA_FA Cont 2016_Old CGAAP'!H29 -> 3276921.01 | H29: 3276921.01 | J29: =+'App.2-BA_FA Cont 2016_Old CGAAP'!M29 -> -1846820.11 | M29: -1846820.11 | N29: 1430100.9
A30: 1/47 | B30: 47 | C30: 1855 | D30: Services (Overhead & Underground) | E30: =+'App.2-BA_FA Cont 2016_Old CGAAP'!H30 -> 3393270.56 | H30: 3393270.56 | J30: =+'App.2-BA_FA Cont 2016_Old CGAAP'!M30 -> -2343341.72 | M30: -2343341.72 | N30: 1049928.84
A31: 1/47 | B31: 47 | C31: 1860 | D31: Meters | E31: =+'App.2-BA_FA Cont 2016_Old CGAAP'!H31 -> 141287.52 | H31: 141287.52 | J31: =+'App.2-BA_FA Cont 2016_Old CGAAP'!M31 -> -597282.98 | M31: -597282.98 | N31: -455995.46
A32: 47 | B32: 47 | C32: 1860 | D32: Meters (Smart Meters) | E32: =+'App.2-BA_FA Cont 2016_Old CGAAP'!H32 -> 1211192.58 | H32: 1211192.58 | J32: =+'App.2-BA_FA Cont 2016_Old CGAAP'!M32 -> -1014277.448 | M32: -1014277.448 | N32: 196915.1317
A33: 47 | B33: 47 | C33: 1860 | D33: Smart Meter - Additions | E33: =+'App.2-BA_FA Cont 2016_Old CGAAP'!H33 -> 8639.65 | H33: 8639.65 | J33: =+'App.2-BA_FA Cont 2016_Old CGAAP'!M33 -> 0 | M33: 0 | N33: 8639.65
A34: N/A | B34: N/A | C34: 1905 | D34: Land | E34: =+'App.2-BA_FA Cont 2016_Old CGAAP'!H33 -> 8639.65 | H34: 8639.65 | J34: =+'App.2-BA_FA Cont 2016_Old CGAAP'!M34 -> -346725.28 | M34: -346725.28 | N34: -338085.63
B35: 47 | C35: 1908 | D35: Buildings & Fixtures | E35: =+'App.2-BA_FA Cont 2016_Old CGAAP'!H34 -> 1088697.62 | H35: 1088697.62 | J35: =+'App.2-BA_FA Cont 2016_Old CGAAP'!M35 -> 0 | M35: 0 | N35: 1088697.62
A36: 13 | B36: 13 | C36: 1910 | D36: Leasehold Improvements | E36: =+'App.2-BA_FA Cont 2016_Old CGAAP'!H35 -> 0 | H36: 0 | J36: =+'App.2-BA_FA Cont 2016_Old CGAAP'!M35 -> 0 | M36: 0 | N36: 0
A37: 8 | B37: 8 | C37: 1915 | D37: Office Furniture & Equipment (10 years) | E37: =+'App.2-BA_FA Cont 2016_Old CGAAP'!H36 -> 94569.56 | H37: 94569.56 | J37: =+'App.2-BA_FA Cont 2016_Old CGAAP'!M36 -> -64401.36 | M37: -64401.36 | N37: 30168.2
A38: 8 | B38: 8 | C38: 1915 | D38: Office Furniture & Equipment (5 years) | E38: =+'App.2-BA_FA Cont 2016_Old CGAAP'!H37 -> 0 | H38: 0 | J38: =+'App.2-BA_FA Cont 2016_Old CGAAP'!M37 -> 0 | M38: 0 | N38: 0
A39: 10 | B39: 10 | C39: 1920 | D39: Computer Equipment - Hardware | E39: =+'App.2-BA_FA Cont 2016_Old CGAAP'!H38 -> 237420.285 | H39: 237420.285 | J39: =+'App.2-BA_FA Cont 2016_Old CGAAP'!M38 -> -142911.91 | M39: -142911.91 | N39: 94508.375
B40: 45 | C40: 1920 | D40: Computer Equip.-Hardware(Post Mar. 22/04) | E40: =+'App.2-BA_FA Cont 2016_Old CGAAP'!H39 -> 0 | H40: 0 | J40: =+'App.2-BA_FA Cont 2016_Old CGAAP'!M39 -> 0 | M40: 0 | N40: 0
B41: 45.1 | C41: 1920 | D41: Computer Equip.-Hardware(Post Mar. 19/07) | E41: =+'App.2-BA_FA Cont 2016_Old CGAAP'!H40 -> 0 | H41: 0 | J41: =+'App.2-BA_FA Cont 2016_Old CGAAP'!M40 -> 0 | M41: 0 | N41: 0
A42: 10 | B42: 10 | C42: 1930 | D42: Transportation Equipment | E42: =+'App.2-BA_FA Cont 2016_Old CGAAP'!H41 -> 1152602.5 | H42: 1152602.5 | J42: =+'App.2-BA_FA Cont 2016_Old CGAAP'!M41 -> -1000380.87 | M42: =J42+K42+L42 -> -1000380.87 | N42: =H42+M42 -> 152221.63
A43: 8 | B43: 8 | C43: 1935 | D43: Stores Equipment | E43: =+'App.2-BA_FA Cont 2016_Old CGAAP'!H42 -> 14318.24 | H43: 14318.24 | J43: =+'App.2-BA_FA Cont 2016_Old CGAAP'!M42 -> -14318.24 | M43: -14318.24 | N43: 0
A44: 8 | B44: 8 | C44: 1940 | D44: Tools, Shop & Garage Equipment | E44: =+'App.2-BA_FA Cont 2016_Old CGAAP'!H43 -> 88080.66 | H44: 88080.66 | J44: =+'App.2-BA_FA Cont 2016_Old CGAAP'!M43 -> -54390.41 | M44: -54390.41 | N44: 33690.25
A45: 8 | B45: 8 | C45: 1945 | D45: Measurement & Testing Equipment | E45: =+'App.2-BA_FA Cont 2016_Old CGAAP'!H44 -> 43116.67 | H45: 43116.67 | J45: =+'App.2-BA_FA Cont 2016_Old CGAAP'!M44 -> -33131.37 | M45: -33131.37 | N45: 9985.3
A46: 8 | B46: 8 | C46: 1950 | D46: Power Operated Equipment | E46: =+'App.2-BA_FA Cont 2016_Old CGAAP'!H45 -> 72434.82 | H46: 72434.82 | J46: =+'App.2-BA_FA Cont 2016_Old CGAAP'!M45 -> -65782.36 | M46: -65782.36 | N46: 6652.46
A47: 8 | B47: 8 | C47: 1955 | D47: Communications Equipment | E47: =+'App.2-BA_FA Cont 2016_Old CGAAP'!H46 -> 18411.75 | H47: 18411.75 | J47: =+'App.2-BA_FA Cont 2016_Old CGAAP'!M46 -> -22585.46 | M47: -22585.46 | N47: -4173.71
A48: 8 | B48: 8 | C48: 1955 | D48: Communication Equipment (Smart Meters) | E48: =+'App.2-BA_FA Cont 2016_Old CGAAP'!H47 -> 0 | H48: 0 | J48: =+'App.2-BA_FA Cont 2016_Old CGAAP'!M47 -> 0 | M48: 0 | N48: 0
A49: 8 | B49: 8 | C49: 1960 | D49: Miscellaneous Equipment | E49: =+'App.2-BA_FA Cont 2016_Old CGAAP'!H48 -> 12430.41 | H49: 12430.41 | J49: =+'App.2-BA_FA Cont 2016_Old CGAAP'!M48 -> -12796.66 | M49: -12796.66 | N49: -366.25
A50: 47 | B50: 47 | C50: 1970 | D50: Load Management Controls Customer Premises | E50: =+'App.2-BA_FA Cont 2016_Old CGAAP'!H49 -> 0 | H50: 0 | J50: =+'App.2-BA_FA Cont 2016_Old CGAAP'!M49 -> 0 | M50: 0 | N50: 0
A51: 47 | B51: 47 | C51: 1975 | D51: Load Management Controls Utility Premises | E51: =+'App.2-BA_FA Cont 2016_Old CGAAP'!H50 -> 0 | H51: 0 | J51: =+'App.2-BA_FA Cont 2016_Old CGAAP'!M50 -> 0 | M51: 0 | N51: 0
A52: 47 | B52: 47 | C52: 1980 | D52: System Supervisor Equipment | E52: =+'App.2-BA_FA Cont 2016_Old CGAAP'!H51 -> 258806.31 | H52: 258806.31 | J52: =+'App.2-BA_FA Cont 2016_Old CGAAP'!M51 -> -152782.95 | M52: -152782.95 | N52: 106023.36
A53: 47 | B53: 47 | C53: 1985 | D53: Miscellaneous Fixed Assets | E53: =+'App.2-BA_FA Cont 2016_Old CGAAP'!H52 -> 2516.21 | H53: 2516.21 | J53: =+'App.2-BA_FA Cont 2016_Old CGAAP'!M52 -> -2516.21 | M53: -2516.21 | N53: 0
A54: 47 | B54: 47 | C54: 1990 | D54: Other Tangible Property | E54: =+'App.2-BA_FA Cont 2016_Old CGAAP'!H53 -> 0 | H54: 0 | J54: =+'App.2-BA_FA Cont 2016_Old CGAAP'!M53 -> 0 | M54: 0 | N54: 0
C55: 1995 | D55: Contributions & Grants - O/H Conductor | E55: =+'App.2-BA_FA Cont 2016_Old CGAAP'!H54 -> -1762729.64 | H55: -1762729.64 | J55: =+'App.2-BA_FA Cont 2016_Old CGAAP'!M54 -> 637454.42 | M55: 637454.42 | N55: -1125275.22
C56: 1995 | D56: Contributions & Grants - Poles | E56: =+'App.2-BA_FA Cont 2016_Old CGAAP'!H55 -> 0 | H56: 0 | J56: =+'App.2-BA_FA Cont 2016_Old CGAAP'!M55 -> 0 | M56: 0 | N56: 0
C57: 1995 | D57: Contributions & Grants - Transformers | E57: =+'App.2-BA_FA Cont 2016_Old CGAAP'!H56 -> -13625.15 | H57: -13625.15 | J57: =+'App.2-BA_FA Cont 2016_Old CGAAP'!M56 -> -36849.43 | M57: -36849.43 | N57: -50474.58
C58: 2440 | D58: Deferred Revenue5 | E58: =+'App.2-BA_FA Cont 2016_Old CGAAP'!H57 -> 0 | H58: 0 | J58: =+'App.2-BA_FA Cont 2016_Old CGAAP'!M57 -> 0 | M58: 0 | N58: 0
H59: 0 | M59: 0 | N59: =H59+M59 -> 0
D60: Sub-Total | E60: =SUM(E17:E59) -> 23989201.83 | F60: =SUM(F17:F59) -> 0 | G60: =SUM(G17:G59) -> 0 | H60: =SUM(H17:H59) -> 23989201.83 | J60: =SUM(J17:J59) -> -12226885.71 | K60: 0 | L60: 0 | M60: -12226885.71 | N60: 11762316.13
D61: Less Socialized Renewable Energy Generation Investments (input as negative) | H61: =E61+F61+G61 -> 0 | M61: 0 | N61: =H61+M61 -> 0
D62: Less Other Non Rate-Regulated Utility Assets (input as negative) | H62: 0 | M62: 0 | N62: =H62+M62 -> 0
D63: Total PP&E | E63: =SUM(E60:E62) -> 23989201.83 | F63: =SUM(F60:F62) -> 0 | G63: 0 | H63: 23989201.83 | J63: =SUM(J60:J62) -> -12226885.71 | K63: 0 | L63: 0 | M63: -12226885.71 | N63: 11762316.13
D64: Depreciation Expense adj. from gain or loss on the retirement of assets (pool of like assets), if applicable6
D65: Total | K65: =K63+K64 -> 0
J67: Less: Fully Allocated Depreciation
B68: 10 | D68: Transportation | J68: Transportation
B69: 8 | D69: Stores Equipment | J69: Stores Equipment
J70: Net Depreciation | L70: =K65-L68-L69 -> 0
B72: Originally hydro distribution assets were added to Class 1 for tax purposes. This was changed a few years ago and all new additions are now in Class 47.
B74: Notes:
B76: 1 | C76: Tables in the format outlined above covering all fixed asset accounts should be submitted for the Test Year, Bridge Year and all relevant historical years. At a minimum , the applicant must provide data for the earlier of: 1) all historical years back to its last rebasing; or 2) at least three years of historical actuals, in addition to Bridge Year and Test Year forecasts.
B79: 2 | C79: The "CCA Class" for fixed assets should agree with the CCA Class used for tax purposes in Tax Returns. Fixed Assets sub-components may be used where the underlying asset components are classified under multiple CCA Classes for tax purposes. If an applicant uses any different classes from those shown in the table, an explanation should be provided. (also see note 3 below).
B82: 3 | C82: The table may need to be customized for a utility's asset categories or for any new asset accounts announced or authorized by the Board.
B84: 4 | C84: The additions column (E) must not include construction work in progress (CWIP).
B86: 5 | C86: Effective on the date of IFRS adoption, customer contributions will no longer be recorded in Account 1995 Contributions & Grants, but will be recorded in Account 2440, Deferred Revenues.
B88: 6 | C88: Where a distributor for general financial reporting purposes under IFRS has accounted for the amount of gain or loss on the retirement of assets in a pool of like assets as a charge or credit to income, for reporting and rate application filings the distributor shall reclassify such gains and losses as depreciation expense, and disclose the amount separately.

Sheet App.2-CA_OldCGAAP_DepExp_2010 (hidden)
K1: File Number: | L1: =EBNUMBER -> 
K2: Exhibit:
K3: Tab:
K4: Schedule:
K5: Page:
K7: Date:
A9: Appendix 2-CA
A10: Depreciation and Amortization Expense
B11: Assumes the applicant made capitalization and depreciation expense accounting policy changes under CGAAP effective January 1, 2013 and will adopt IFRS for financial reporting purposes effective January 1, 2015.
C13: Year | D13: 2010 | E13: Former CGAAP
A14: Account | B14: Description | C14: Opening Regulatory Gross PP&E as at Jan 1, 2010 | D14: Less Fully Depreciated | E14: Net for Depreciation | F14: Additions | G14: Total for Depreciation | H14: Years | I14: Depreciation Rate | J14: 2010 Depreciation Expense | K14: 2010 Depreciation Expense per Appendix 2-B Fixed Assets, Column K (l) | L14: Variance 2
C15: (a) | D15: (b) | E15: (c) | F15: (d) | G15: (e) = (c) + ½ x (d) 1 | H15: (f) | I15: (g) = 1 / (f) | J15: (h) = (e) / (f) | L15: (m) = (h) - (l)
A16: 1611 | B16: Computer Software (Formally known as Account 1925) | E16: =C16-D16 -> 0 | G16: =E16+0.5*F16 -> 0 | H16: 5 | I16: =IF(H16=0,"",1/H16) -> 0.2 | J16: =IF(H16=0,0,G16/H16) -> 0 | K16: =-'App.2-BA_FA Cont 2010 OldCGAAP'!K17 -> 0 | L16: =IF(ISERROR(+J16-K16), "", +J16-K16) -> 0
A17: 1612 | B17: Land Rights (Formally known as Account 1906) | E17: =C17-D17 -> 0 | G17: =E17+0.5*F17 -> 0 | H17: 20 | I17: 0.05 | J17: =IF(H17=0,0,G17/H17) -> 0 | K17: =-'App.2-BA_FA Cont 2010 OldCGAAP'!K18 -> 0 | L17: =IF(ISERROR(+J17-K17), "", +J17-K17) -> 0
A18: 1612 | B18: Land Rights (Formally known as Account 1906) | E18: 0 | G18: =E18+0.5*F18 -> 0 | H18: 25 | I18: 0.04 | J18: =IF(H18=0,0,G18/H18) -> 0 | K18: =-'App.2-BA_FA Cont 2010 OldCGAAP'!K19 -> 0 | L18: 0
A19: 1805 | B19: Land | E19: 0 | G19: 0 | H19: 0 | J19: 0 | K19: =-'App.2-BA_FA Cont 2010 OldCGAAP'!K20 -> 0 | L19: 0
A20: 1808 | B20: Buildings - Equipment | E20: 0 | G20: 0 | H20: 10 | I20: 0.1 | J20: 0 | K20: =-'App.2-BA_FA Cont 2010 OldCGAAP'!K21 -> 0 | L20: 0
A21: 1808 | B21: Buildings - Equipment | E21: 0 | G21: 0 | H21: 20 | I21: 0.05 | J21: 0 | K21: =-'App.2-BA_FA Cont 2010 OldCGAAP'!K22 -> 0
A22: 1808 | B22: Buildings - Major Repairs | E22: 0 | G22: 0 | H22: 25 | I22: 0.04 | J22: 0 | K22: =-'App.2-BA_FA Cont 2010 OldCGAAP'!K23 -> 0 | L22: 0
A23: 1808 | B23: Buildings - Major Repairs | E23: 0 | G23: 0 | H23: 30 | I23: 0.03333333333 | J23: 0 | K23: =-'App.2-BA_FA Cont 2010 OldCGAAP'!K24 -> 0 | L23: 0
A24: 1808 | B24: Buildings - Brick, Stone, Concrete and Steel | E24: 0 | G24: 0 | H24: 50 | I24: 0.02 | J24: 0 | K24: =-'App.2-BA_FA Cont 2010 OldCGAAP'!K25 -> 0 | L24: 0
A25: 1808 | B25: Buildings - Other | E25: 0 | G25: 0 | H25: 25 | I25: 0.04 | J25: 0 | K25: =-'App.2-BA_FA Cont 2010 OldCGAAP'!K26 -> 0 | L25: 0
A26: 1810 | B26: Leasehold Improvements | E26: 0 | G26: 0 | J26: 0 | K26: =-'App.2-BA_FA Cont 2010 OldCGAAP'!K27 -> 0 | L26: 0
A27: 1815 | B27: Transformer Station Equipment >50 kV | E27: 0 | G27: 0 | J27: 0 | K27: =-'App.2-BA_FA Cont 2010 OldCGAAP'!K28 -> 0 | L27: 0
A28: 1820 | B28: Distribution Station Equipment <50 kV | E28: 0 | G28: 0 | H28: 30 | I28: 0.03333333333 | J28: 0 | K28: =-'App.2-BA_FA Cont 2010 OldCGAAP'!K29 -> 0 | L28: 0
A29: 1825 | B29: Storage Battery Equipment | E29: 0 | G29: 0 | J29: 0 | K29: =-'App.2-BA_FA Cont 2010 OldCGAAP'!K30 -> 0 | L29: 0
A30: 1830 | B30: Poles, Towers & Fixtures | E30: 0 | G30: 0 | H30: 25 | I30: 0.04 | J30: 0 | K30: =-'App.2-BA_FA Cont 2010 OldCGAAP'!K31 -> 0 | L30: 0
A31: 1835 | B31: Overhead Conductors & Devices | E31: 0 | G31: 0 | H31: 25 | I31: 0.04 | J31: 0 | K31: =-'App.2-BA_FA Cont 2010 OldCGAAP'!K32 -> 0 | L31: 0
A32: 1840 | B32: Underground Conduit | E32: 0 | G32: 0 | H32: 25 | I32: 0.04 | J32: 0 | K32: =-'App.2-BA_FA Cont 2010 OldCGAAP'!K33 -> 0 | L32: 0
A33: 1845 | B33: Underground Conductors & Devices | E33: 0 | G33: 0 | H33: 25 | I33: 0.04 | J33: 0 | K33: =-'App.2-BA_FA Cont 2010 OldCGAAP'!K34 -> 0 | L33: 0
A34: 1850 | B34: Line Transformers | E34: 0 | G34: 0 | H34: 25 | I34: 0.04 | J34: 0 | K34: =-'App.2-BA_FA Cont 2010 OldCGAAP'!K35 -> 0 | L34: 0
A35: 1855 | B35: Services (Overhead & Underground) | E35: 0 | G35: 0 | H35: 25 | I35: 0.04 | J35: 0 | K35: =-'App.2-BA_FA Cont 2010 OldCGAAP'!K36 -> 0 | L35: 0
A36: 1860 | B36: Meters | E36: 0 | G36: 0 | H36: 25 | I36: 0.04 | J36: 0 | K36: =-'App.2-BA_FA Cont 2010 OldCGAAP'!K37 -> 0 | L36: 0
A37: 1860 | B37: Meters (Smart Meters) | E37: 0 | G37: 0 | J37: 0 | K37: =-'App.2-BA_FA Cont 2010 OldCGAAP'!K38 -> 0 | L37: 0
A38: 1905 | B38: Land | E38: 0 | G38: 0 | H38: 0 | J38: 0 | K38: =-'App.2-BA_FA Cont 2010 OldCGAAP'!K39 -> 0 | L38: 0
A39: 1908 | B39: Buildings & Fixtures - Equipment | E39: 0 | G39: 0 | H39: 10 | I39: 0.1 | J39: 0 | K39: =-'App.2-BA_FA Cont 2010 OldCGAAP'!K40 -> 0 | L39: 0
A40: 1908 | B40: Buildings & Fixtures - Driveways | E40: 0 | G40: 0 | H40: 20 | I40: 0.05 | J40: 0 | K40: =-'App.2-BA_FA Cont 2010 OldCGAAP'!K41 -> 0 | L40: 0
A41: 1908 | B41: Buildings & Fixtures - Major Repairs | E41: 0 | G41: 0 | H41: 25 | I41: 0.04 | J41: 0 | K41: =-'App.2-BA_FA Cont 2010 OldCGAAP'!K42 -> 0 | L41: 0
A42: 1908 | B42: Buildings & Fixtures - Brick Store etc | E42: 0 | G42: 0 | H42: 50 | I42: 0.02 | J42: 0 | K42: =-'App.2-BA_FA Cont 2010 OldCGAAP'!K43 -> 0 | L42: 0
A43: 1910 | B43: Leasehold Improvements | E43: 0 | G43: 0 | J43: 0 | K43: =-'App.2-BA_FA Cont 2010 OldCGAAP'!K44 -> 0 | L43: 0
A44: 1915 | B44: Office Furniture & Equipment (10 years) | E44: 0 | G44: 0 | H44: 10 | I44: 0.1 | J44: 0 | K44: =-'App.2-BA_FA Cont 2010 OldCGAAP'!K45 -> 0 | L44: 0
A45: 1915 | B45: Office Furniture & Equipment (5 years) | E45: 0 | G45: 0 | J45: 0 | K45: =-'App.2-BA_FA Cont 2010 OldCGAAP'!K46 -> 0 | L45: 0
A46: 1920 | B46: Computer Equipment - Hardware | E46: 0 | G46: 0 | H46: 5 | I46: 0.2 | J46: 0 | K46: =-'App.2-BA_FA Cont 2010 OldCGAAP'!K47 -> 0 | L46: 0
A47: 1920 | B47: Computer Equip.-Hardware(Post Mar. 22/04) | E47: 0 | G47: 0 | J47: 0 | K47: =-'App.2-BA_FA Cont 2010 OldCGAAP'!K48 -> 0 | L47: 0
A48: 1920 | B48: Computer Equip.-Hardware(Post Mar. 19/07) | E48: 0 | G48: 0 | J48: 0 | K48: =-'App.2-BA_FA Cont 2010 OldCGAAP'!K49 -> 0 | L48: 0
A49: 1930 | B49: Transportation Equipment - under 3 Tons | E49: 0 | G49: 0 | H49: 5 | I49: 0.2 | J49: 0 | K49: =-'App.2-BA_FA Cont 2010 OldCGAAP'!K50 -> 0 | L49: 0
A50: 1930 | B50: Transportation Equipment - 3 Tons & Over | E50: =C50-D50 -> 0 | G50: 0 | H50: 8 | I50: 0.125 | J50: =IF(H50=0,0,G50/H50) -> 0 | K50: =-'App.2-BA_FA Cont 2010 OldCGAAP'!K51 -> 0 | L50: 0
A51: 1935 | B51: Stores Equipment | E51: 0 | G51: 0 | H51: 10 | I51: 0.1 | J51: 0 | K51: =-'App.2-BA_FA Cont 2010 OldCGAAP'!K52 -> 0 | L51: 0
A52: 1940 | B52: Tools, Shop & Garage Equipment | E52: 0 | G52: 0 | H52: 10 | I52: 0.1 | J52: 0 | K52: =-'App.2-BA_FA Cont 2010 OldCGAAP'!K53 -> 0 | L52: 0
A53: 1945 | B53: Measurement & Testing Equipment | E53: 0 | G53: 0 | H53: 10 | I53: 0.1 | J53: 0 | K53: =-'App.2-BA_FA Cont 2010 OldCGAAP'!K54 -> 0 | L53: 0
A54: 1950 | B54: Power Operated Equipment | E54: 0 | G54: 0 | J54: 0 | K54: =-'App.2-BA_FA Cont 2010 OldCGAAP'!K55 -> 0 | L54: 0
A55: 1955 | B55: Communications Equipment | E55: 0 | G55: 0 | H55: 5 | I55: 0.2 | J55: 0 | K55: =-'App.2-BA_FA Cont 2010 OldCGAAP'!K56 -> 0 | L55: 0
A56: 1955 | B56: Communication Equipment (Smart Meters) | E56: 0 | G56: 0 | J56: 0 | K56: =-'App.2-BA_FA Cont 2010 OldCGAAP'!K57 -> 0 | L56: 0
A57: 1960 | B57: Miscellaneous Equipment | E57: 0 | G57: 0 | J57: 0 | K57: =-'App.2-BA_FA Cont 2010 OldCGAAP'!K58 -> 0 | L57: 0
A58: 1970 | B58: Load Management Controls Customer Premises | E58: =C58-D58 -> 0 | G58: =E58+0.5*F58 -> 0 | H58: 10 | I58: =IF(H58=0,"",1/H58) -> 0.1 | J58: =IF(H58=0,0,G58/H58) -> 0 | K58: =-'App.2-BA_FA Cont 2010 OldCGAAP'!K59 -> 0 | L58: =IF(ISERROR(+J58-K58), "", +J58-K58) -> 0
A59: 1975 | B59: Load Management Controls Utility Premises | E59: 0 | G59: =E59+0.5*F59 -> 0 | H59: 10 | I59: 0.1 | J59: 0 | K59: =-'App.2-BA_FA Cont 2010 OldCGAAP'!K60 -> 0 | L59: 0
A60: 1980 | B60: System Supervisor Equipment | E60: 0 | G60: =E60+0.5*F60 -> 0 | H60: 15 | I60: 0.06666666667 | J60: 0 | K60: =-'App.2-BA_FA Cont 2010 OldCGAAP'!K61 -> 0 | L60: 0
A61: 1985 | B61: Miscellaneous Fixed Assets | E61: 0 | G61: 0 | J61: 0 | K61: =-'App.2-BA_FA Cont 2010 OldCGAAP'!K62 -> 0 | L61: 0
A62: 1990 | B62: Other Tangible Property | E62: =C62-D62 -> 0 | G62: =E62+0.5*F62 -> 0 | I62: =IF(H62=0,"",1/H62) ->  | J62: =IF(H62=0,0,G62/H62) -> 0 | K62: =-'App.2-BA_FA Cont 2010 OldCGAAP'!K63 -> 0 | L62: =IF(ISERROR(+J62-K62), "", +J62-K62) -> 0
A63: 1995 | B63: Contributions & Grants | E63: 0 | G63: 0 | J63: 0 | K63: =-'App.2-BA_FA Cont 2010 OldCGAAP'!K64 -> 0 | L63: 0
B75: Total | C75: =SUM(C16:C74) -> 0 | D75: =SUM(D16:D74) -> 0 | E75: =SUM(E16:E74) -> 0 | F75: =SUM(F16:F74) -> 0 | G75: =SUM(G16:G74) -> 0 | J75: =SUM(J16:J74) -> 0 | K75: =SUM(K16:K74) -> 0 | L75: =SUM(L16:L74) -> 0
C77: =+'App.2-BA_FA Cont 2010 OldCGAAP'!E60 -> 0 | F77: =+'App.2-BA_FA Cont 2010 OldCGAAP'!F60 -> 0 | K77: =-'App.2-BA_FA Cont 2010 OldCGAAP'!K62 -> 0
C78: =+C75-C77 -> 0 | F78: =+F75-F77 -> 0 | K78: =+K75-K77 -> 0

Sheet App.2-CA_OldCGAAP_DepExp_2011 (hidden)
K1: File Number: | L1: =EBNUMBER -> 
K2: Exhibit:
K3: Tab:
K4: Schedule:
K5: Page:
K7: Date:
A9: Appendix 2-CA
A10: Depreciation and Amortization Expense
B11: Assumes the applicant made capitalization and depreciation expense accounting policy changes under CGAAP effective January 1, 2013 and will adopt IFRS for financial reporting purposes effective January 1, 2015.
C13: Year | D13: 2011 | E13: Former CGAAP
A14: Account | B14: Description | C14: Opening Regulatory Gross PP&E as at Jan 1, 2011 | D14: Less Fully Depreciated | E14: Net for Depreciation | F14: Additions | G14: Total for Depreciation | H14: Years | I14: Depreciation Rate | J14: 2011 Depreciation Expense | K14: 2011 Depreciation Expense per Appendix 2-B Fixed Assets, Column K (l) | L14: Variance 2
C15: (a) | D15: (b) | E15: (c) | F15: (d) | G15: (e) = (c) + ½ x (d) 1 | H15: (f) | I15: (g) = 1 / (f) | J15: (h) = (e) / (f) | L15: (m) = (h) - (l)
A16: 1611 | B16: Computer Software (Formally known as Account 1925) | E16: =C16-D16 -> 0 | G16: =E16+0.5*F16 -> 0 | H16: 5 | I16: =IF(H16=0,"",1/H16) -> 0.2 | J16: =IF(H16=0,0,G16/H16) -> 0 | K16: =-'App.2-BA_FA Cont 2011 OldCGAAP'!K17 -> 0 | L16: =IF(ISERROR(+J16-K16), "", +J16-K16) -> 0
A17: 1612 | B17: Land Rights (Formally known as Account 1906) | E17: =C17-D17 -> 0 | G17: =E17+0.5*F17 -> 0 | H17: 20 | I17: 0.05 | J17: 0 | K17: =-'App.2-BA_FA Cont 2011 OldCGAAP'!K18 -> 0 | L17: =IF(ISERROR(+J17-K17), "", +J17-K17) -> 0
A18: 1612 | B18: Land Rights (Formally known as Account 1906) | E18: 0 | G18: 0 | H18: 25 | I18: 0.04 | J18: 0 | K18: =-'App.2-BA_FA Cont 2011 OldCGAAP'!K19 -> 0 | L18: 0
A19: 1805 | B19: Land | E19: 0 | G19: 0 | H19: 0 | J19: 0 | K19: =-'App.2-BA_FA Cont 2011 OldCGAAP'!K20 -> 0 | L19: 0
A20: 1808 | B20: Buildings - Equipment | E20: 0 | G20: 0 | J20: 0 | K20: =-'App.2-BA_FA Cont 2011 OldCGAAP'!K21 -> 0 | L20: 0
A21: 1808 | B21: Buildings - Equipment | E21: 0 | G21: 0 | J21: 0 | K21: =-'App.2-BA_FA Cont 2011 OldCGAAP'!K22 -> 0
A22: 1808 | B22: Buildings - Major Repairs | E22: 0 | G22: 0 | J22: 0 | K22: =-'App.2-BA_FA Cont 2011 OldCGAAP'!K23 -> 0 | L22: 0
A23: 1808 | B23: Buildings - Major Repairs | E23: 0 | G23: 0 | J23: 0 | K23: =-'App.2-BA_FA Cont 2011 OldCGAAP'!K24 -> 0
A24: 1808 | B24: Buildings - Brick, Stone, Concrete and Steel | E24: 0 | G24: =E24+0.5*F24 -> 0 | H24: 50 | I24: 0.02 | J24: 0 | K24: =-'App.2-BA_FA Cont 2011 OldCGAAP'!K25 -> 0 | L24: 0
A25: 1808 | B25: Buildings - Other | E25: 0 | G25: 0 | H25: 25 | I25: 0.04 | J25: 0 | K25: =-'App.2-BA_FA Cont 2011 OldCGAAP'!K26 -> 0 | L25: 0
A26: 1810 | B26: Leasehold Improvements | E26: 0 | G26: 0 | J26: 0 | K26: =-'App.2-BA_FA Cont 2011 OldCGAAP'!K27 -> 0 | L26: 0
A27: 1815 | B27: Transformer Station Equipment >50 kV | E27: 0 | G27: 0 | J27: 0 | K27: =-'App.2-BA_FA Cont 2011 OldCGAAP'!K28 -> 0 | L27: 0
A28: 1820 | B28: Distribution Station Equipment <50 kV | E28: 0 | G28: 0 | H28: 30 | I28: 0.03333333333 | J28: 0 | K28: =-'App.2-BA_FA Cont 2011 OldCGAAP'!K29 -> 0 | L28: 0
A29: 1825 | B29: Storage Battery Equipment | E29: 0 | G29: 0 | J29: 0 | K29: =-'App.2-BA_FA Cont 2011 OldCGAAP'!K30 -> 0 | L29: 0
A30: 1830 | B30: Poles, Towers & Fixtures | E30: 0 | G30: 0 | H30: 25 | I30: 0.04 | J30: 0 | K30: =-'App.2-BA_FA Cont 2011 OldCGAAP'!K31 -> 0 | L30: 0
A31: 1835 | B31: Overhead Conductors & Devices | E31: 0 | G31: 0 | H31: 25 | I31: 0.04 | J31: 0 | K31: =-'App.2-BA_FA Cont 2011 OldCGAAP'!K32 -> 0 | L31: 0
A32: 1840 | B32: Underground Conduit | E32: 0 | G32: 0 | H32: 25 | I32: 0.04 | J32: 0 | K32: =-'App.2-BA_FA Cont 2011 OldCGAAP'!K33 -> 0 | L32: 0
A33: 1845 | B33: Underground Conductors & Devices | E33: 0 | G33: 0 | H33: 25 | I33: 0.04 | J33: 0 | K33: =-'App.2-BA_FA Cont 2011 OldCGAAP'!K34 -> 0 | L33: 0
A34: 1850 | B34: Line Transformers | E34: 0 | G34: 0 | H34: 25 | I34: 0.04 | J34: 0 | K34: =-'App.2-BA_FA Cont 2011 OldCGAAP'!K35 -> 0 | L34: 0
A35: 1855 | B35: Services (Overhead & Underground) | E35: 0 | G35: 0 | H35: 25 | I35: 0.04 | J35: 0 | K35: =-'App.2-BA_FA Cont 2011 OldCGAAP'!K36 -> 0 | L35: 0
A36: 1860 | B36: Meters | E36: 0 | G36: 0 | H36: 25 | I36: 0.04 | J36: 0 | K36: =-'App.2-BA_FA Cont 2011 OldCGAAP'!K37 -> 0 | L36: 0
A37: 1860 | B37: Meters (Smart Meters) | E37: 0 | G37: 0 | J37: 0 | K37: =-'App.2-BA_FA Cont 2011 OldCGAAP'!K38 -> 0 | L37: 0
A38: 1905 | B38: Land | E38: 0 | G38: 0 | H38: 0 | J38: 0 | K38: =-'App.2-BA_FA Cont 2011 OldCGAAP'!K39 -> 0 | L38: 0
A39: 1908 | B39: Buildings & Fixtures - Equipment | E39: 0 | G39: 0 | J39: 0 | K39: =-'App.2-BA_FA Cont 2011 OldCGAAP'!K40 -> 0 | L39: 0
A40: 1908 | B40: Buildings & Fixtures - Driveways | E40: 0 | G40: 0 | J40: 0 | K40: =-'App.2-BA_FA Cont 2011 OldCGAAP'!K41 -> 0 | L40: 0
A41: 1908 | B41: Buildings & Fixtures - Major Repairs | E41: 0 | G41: 0 | J41: 0 | K41: =-'App.2-BA_FA Cont 2011 OldCGAAP'!K42 -> 0 | L41: 0
A42: 1908 | B42: Buildings & Fixtures - Brick Store etc | E42: 0 | G42: 0 | J42: 0 | K42: =-'App.2-BA_FA Cont 2011 OldCGAAP'!K43 -> 0 | L42: 0
A43: 1910 | B43: Leasehold Improvements | E43: 0 | G43: 0 | J43: 0 | K43: =-'App.2-BA_FA Cont 2011 OldCGAAP'!K44 -> 0 | L43: 0
A44: 1915 | B44: Office Furniture & Equipment (10 years) | E44: 0 | G44: 0 | J44: 0 | K44: =-'App.2-BA_FA Cont 2011 OldCGAAP'!K45 -> 0 | L44: 0
A45: 1915 | B45: Office Furniture & Equipment (5 years) | E45: 0 | G45: 0 | J45: 0 | K45: =-'App.2-BA_FA Cont 2011 OldCGAAP'!K46 -> 0 | L45: 0
A46: 1920 | B46: Computer Equipment - Hardware | E46: 0 | G46: 0 | H46: 5 | I46: 0.2 | J46: 0 | K46: =-'App.2-BA_FA Cont 2011 OldCGAAP'!K47 -> 0 | L46: 0
A47: 1920 | B47: Computer Equip.-Hardware(Post Mar. 22/04) | E47: 0 | G47: 0 | J47: 0 | K47: =-'App.2-BA_FA Cont 2011 OldCGAAP'!K48 -> 0 | L47: 0
A48: 1920 | B48: Computer Equip.-Hardware(Post Mar. 19/07) | E48: 0 | G48: 0 | J48: 0 | K48: =-'App.2-BA_FA Cont 2011 OldCGAAP'!K49 -> 0 | L48: 0
A49: 1930 | B49: Transportation Equipment - under 3 Tons | E49: 0 | G49: 0 | H49: 5 | I49: 0.2 | J49: 0 | K49: =-'App.2-BA_FA Cont 2011 OldCGAAP'!K50 -> 0 | L49: 0
A50: 1930 | B50: Transportation Equipment - 3 Tons & Over | E50: 0 | G50: 0 | H50: 8 | I50: 0.125 | J50: 0 | K50: =-'App.2-BA_FA Cont 2011 OldCGAAP'!K51 -> 0 | L50: 0
A51: 1935 | B51: Stores Equipment | E51: 0 | G51: 0 | J51: 0 | K51: =-'App.2-BA_FA Cont 2011 OldCGAAP'!K52 -> 0 | L51: 0
A52: 1940 | B52: Tools, Shop & Garage Equipment | E52: 0 | G52: =E52+0.5*F52 -> 0 | H52: 10 | I52: 0.1 | J52: 0 | K52: =-'App.2-BA_FA Cont 2011 OldCGAAP'!K53 -> 0 | L52: 0
A53: 1945 | B53: Measurement & Testing Equipment | E53: 0 | G53: 0 | H53: 10 | I53: 0.1 | J53: 0 | K53: =-'App.2-BA_FA Cont 2011 OldCGAAP'!K54 -> 0 | L53: 0
A54: 1950 | B54: Power Operated Equipment | E54: 0 | G54: 0 | J54: 0 | K54: =-'App.2-BA_FA Cont 2011 OldCGAAP'!K55 -> 0 | L54: 0
A55: 1955 | B55: Communications Equipment | E55: 0 | G55: 0 | H55: 5 | I55: 0.2 | J55: 0 | K55: =-'App.2-BA_FA Cont 2011 OldCGAAP'!K56 -> 0 | L55: 0
A56: 1955 | B56: Communication Equipment (Smart Meters) | E56: 0 | G56: 0 | J56: 0 | K56: =-'App.2-BA_FA Cont 2011 OldCGAAP'!K57 -> 0 | L56: 0
A57: 1960 | B57: Miscellaneous Equipment | E57: 0 | G57: 0 | J57: 0 | K57: =-'App.2-BA_FA Cont 2011 OldCGAAP'!K58 -> 0 | L57: 0
A58: 1970 | B58: Load Management Controls Customer Premises | E58: =C58-D58 -> 0 | G58: 0 | H58: 10 | I58: =IF(H58=0,"",1/H58) -> 0.1 | J58: =IF(H58=0,0,G58/H58) -> 0 | K58: =-'App.2-BA_FA Cont 2011 OldCGAAP'!K59 -> 0 | L58: =IF(ISERROR(+J58-K58), "", +J58-K58) -> 0
A59: 1975 | B59: Load Management Controls Utility Premises | E59: 0 | G59: 0 | H59: 10 | I59: 0.1 | J59: 0 | K59: =-'App.2-BA_FA Cont 2011 OldCGAAP'!K60 -> 0 | L59: 0
A60: 1980 | B60: System Supervisor Equipment | E60: 0 | G60: 0 | H60: 15 | I60: 0.06666666667 | J60: 0 | K60: =-'App.2-BA_FA Cont 2011 OldCGAAP'!K61 -> 0 | L60: 0
A61: 1985 | B61: Miscellaneous Fixed Assets | E61: 0 | G61: 0 | J61: 0 | K61: =-'App.2-BA_FA Cont 2011 OldCGAAP'!K62 -> 0 | L61: 0
A62: 1990 | B62: Other Tangible Property | E62: =C62-D62 -> 0 | G62: 0 | I62: =IF(H62=0,"",1/H62) ->  | J62: =IF(H62=0,0,G62/H62) -> 0 | K62: =-'App.2-BA_FA Cont 2011 OldCGAAP'!K63 -> 0 | L62: =IF(ISERROR(+J62-K62), "", +J62-K62) -> 0
A63: 1995 | B63: Contributions & Grants | E63: 0 | G63: 0 | H63: 25 | I63: 0.04 | J63: 0 | K63: =-'App.2-BA_FA Cont 2011 OldCGAAP'!K64 -> 0 | L63: 0
A64: 1609 | B64: Other Tangible Property | E64: 0 | G64: 0 | J64: 0 | L64: 0
G65: 0
G66: 0
G67: 0
G68: 0
G69: 0
G70: 0
G71: 0
G72: 0
G73: 0
G74: 0
E75: 0 | G75: 0 | J75: 0 | L75: 0
B76: Total | C76: =SUM(C16:C75) -> 0 | D76: =SUM(D16:D75) -> 0 | E76: =SUM(E16:E75) -> 0 | F76: =SUM(F16:F75) -> 0 | G76: =SUM(G16:G75) -> 0 | J76: =SUM(J16:J75) -> 0 | K76: =SUM(K16:K75) -> 0 | L76: =SUM(L16:L75) -> 0
C78: =+'App.2-BA_FA Cont 2011 OldCGAAP'!E60 -> 0 | F78: =+'App.2-BA_FA Cont 2011 OldCGAAP'!F60 -> 0 | K78: =-'App.2-BA_FA Cont 2011 OldCGAAP'!K60 -> 0
C79: =+C76-C78 -> 0 | F79: =+F76-F78 -> 0 | K79: =+K76-K78 -> 0

Sheet App.2-CA_OldCGAAP_DepExp_2012 (hidden)
K1: File Number: | L1: =EBNUMBER -> 
K2: Exhibit:
K3: Tab:
K4: Schedule:
K5: Page:
K7: Date:
A9: Appendix 2-CA
A10: Depreciation and Amortization Expense
B11: Assumes the applicant made capitalization and depreciation expense accounting policy changes under CGAAP effective January 1, 2013 and will adopt IFRS for financial reporting purposes effective January 1, 2015.
C13: Year | D13: 2012 | E13: Former CGAAP
A14: Account | B14: Description | C14: Opening Regulatory Gross PP&E as at Jan 1, 2012 | D14: Less Fully Depreciated | E14: Net for Depreciation | F14: Additions | G14: Total for Depreciation | H14: Years | I14: Depreciation Rate | J14: 2012 Depreciation Expense | K14: 2012 Depreciation Expense per Appendix 2-B Fixed Assets, Column K (l) | L14: Variance 2
C15: (a) | D15: (b) | E15: (c) | F15: (d) | G15: (e) = (c) + ½ x (d) 1 | H15: (f) | I15: (g) = 1 / (f) | J15: (h) = (e) / (f) | L15: (m) = (h) - (l)
A16: 1611 | B16: Computer Software (Formally known as Account 1925) | E16: =C16-D16 -> 0 | G16: =E16+0.5*F16 -> 0 | H16: 5 | I16: =IF(H16=0,"",1/H16) -> 0.2 | J16: =IF(H16=0,0,G16/H16) -> 0 | K16: =-'App.2-BA_FA Cont 2012 OldCGAAP'!K17 -> 0 | L16: =IF(ISERROR(+J16-K16), "", +J16-K16) -> 0
A17: 1612 | B17: Land Rights (Formally known as Account 1906) | E17: =C17-D17 -> 0 | G17: =E17+0.5*F17 -> 0 | H17: 20 | I17: 0.05 | J17: 0 | K17: =-'App.2-BA_FA Cont 2012 OldCGAAP'!K18 -> 0 | L17: =IF(ISERROR(+J17-K17), "", +J17-K17) -> 0
A18: 1612 | B18: Land Rights (Formally known as Account 1906) | E18: 0 | G18: 0 | H18: 25 | I18: 0.04 | J18: 0 | K18: =-'App.2-BA_FA Cont 2012 OldCGAAP'!K19 -> 0 | L18: 0
A19: 1805 | B19: Land | E19: 0 | G19: 0 | H19: 0 | J19: 0 | K19: =-'App.2-BA_FA Cont 2012 OldCGAAP'!K20 -> 0 | L19: 0
A20: 1808 | B20: Buildings - Equipment | E20: 0 | G20: 0 | J20: 0 | K20: =-'App.2-BA_FA Cont 2012 OldCGAAP'!K21 -> 0 | L20: 0
A21: 1808 | B21: Buildings - Equipment | E21: 0 | G21: 0 | J21: 0 | K21: =-'App.2-BA_FA Cont 2012 OldCGAAP'!K22 -> 0 | L21: 0
A22: 1808 | B22: Buildings - Equipment | E22: 0 | G22: 0 | J22: 0 | K22: =-'App.2-BA_FA Cont 2012 OldCGAAP'!K23 -> 0 | L22: 0
A23: 1808 | B23: Buildings - Major Repairs | E23: 0 | G23: 0 | J23: 0 | K23: =-'App.2-BA_FA Cont 2012 OldCGAAP'!K24 -> 0 | L23: 0
A24: 1808 | B24: Buildings - Major Repairs | E24: 0 | G24: 0 | H24: 25 | I24: 0.04 | J24: 0 | K24: =-'App.2-BA_FA Cont 2012 OldCGAAP'!K25 -> 0 | L24: 0
A25: 1808 | B25: Buildings - Brick, Stone, Concrete and Steel | E25: 0 | G25: 0 | H25: 50 | I25: 0.02 | J25: 0 | K25: =-'App.2-BA_FA Cont 2012 OldCGAAP'!K26 -> 0 | L25: 0
A26: 1808 | B26: Buildings - Other | E26: 0 | G26: 0 | H26: 25 | I26: 0.04 | J26: 0 | K26: =-'App.2-BA_FA Cont 2012 OldCGAAP'!K27 -> 0 | L26: 0
A27: 1810 | B27: Leasehold Improvements | E27: 0 | G27: 0 | J27: 0 | K27: =-'App.2-BA_FA Cont 2012 OldCGAAP'!K28 -> 0 | L27: 0
A28: 1815 | B28: Transformer Station Equipment >50 kV | E28: 0 | G28: 0 | J28: 0 | K28: =-'App.2-BA_FA Cont 2012 OldCGAAP'!K29 -> 0 | L28: 0
A29: 1820 | B29: Distribution Station Equipment <50 kV | E29: 0 | G29: 0 | H29: 30 | I29: 0.03333333333 | J29: 0 | K29: =-'App.2-BA_FA Cont 2012 OldCGAAP'!K30 -> 0 | L29: 0
A30: 1825 | B30: Storage Battery Equipment | E30: 0 | G30: 0 | J30: 0 | K30: =-'App.2-BA_FA Cont 2012 OldCGAAP'!K31 -> 0 | L30: 0
A31: 1830 | B31: Poles, Towers & Fixtures | E31: 0 | G31: 0 | H31: 25 | I31: 0.04 | J31: 0 | K31: =-'App.2-BA_FA Cont 2012 OldCGAAP'!K32 -> 0 | L31: 0
A32: 1835 | B32: Overhead Conductors & Devices | E32: 0 | G32: 0 | H32: 25 | I32: 0.04 | J32: 0 | K32: =-'App.2-BA_FA Cont 2012 OldCGAAP'!K33 -> 0 | L32: 0
A33: 1840 | B33: Underground Conduit | E33: 0 | G33: 0 | H33: 25 | I33: 0.04 | J33: 0 | K33: =-'App.2-BA_FA Cont 2012 OldCGAAP'!K34 -> 0 | L33: 0
A34: 1845 | B34: Underground Conductors & Devices | E34: 0 | G34: 0 | H34: 25 | I34: 0.04 | J34: 0 | K34: =-'App.2-BA_FA Cont 2012 OldCGAAP'!K35 -> 0 | L34: 0
A35: 1850 | B35: Line Transformers | E35: 0 | G35: 0 | H35: 25 | I35: 0.04 | J35: 0 | K35: =-'App.2-BA_FA Cont 2012 OldCGAAP'!K36 -> 0 | L35: 0
A36: 1855 | B36: Services (Overhead & Underground) | E36: 0 | G36: 0 | H36: 25 | I36: 0.04 | J36: 0 | K36: =-'App.2-BA_FA Cont 2012 OldCGAAP'!K37 -> 0 | L36: 0
A37: 1860 | B37: Meters | E37: 0 | G37: 0 | H37: 25 | I37: 0.04 | J37: 0 | K37: =-'App.2-BA_FA Cont 2012 OldCGAAP'!K38 -> 0 | L37: 0 | M37: only took 1/2 on the 2010 additions
A38: 1860 | B38: Meters (Smart Meters) | E38: 0 | G38: 0 | J38: 0 | K38: =-'App.2-BA_FA Cont 2012 OldCGAAP'!K39 -> 0 | L38: 0
A39: 1905 | B39: Land | E39: 0 | G39: 0 | H39: 0 | J39: 0 | K39: =-'App.2-BA_FA Cont 2012 OldCGAAP'!K40 -> 0 | L39: 0
A40: 1908 | B40: Buildings & Fixtures | E40: 0 | G40: 0 | J40: 0 | K40: =-'App.2-BA_FA Cont 2012 OldCGAAP'!K41 -> 0 | L40: 0
A41: 1908 | B41: Buildings & Fixtures | E41: 0 | G41: 0 | J41: 0 | K41: =-'App.2-BA_FA Cont 2012 OldCGAAP'!K42 -> 0 | L41: 0
A42: 1908 | B42: Buildings & Fixtures | E42: 0 | G42: 0 | J42: 0 | K42: =-'App.2-BA_FA Cont 2012 OldCGAAP'!K43 -> 0 | L42: 0
A43: 1908 | B43: Buildings & Fixtures | E43: 0 | G43: 0 | J43: 0 | K43: =-'App.2-BA_FA Cont 2012 OldCGAAP'!K44 -> 0 | L43: 0
A44: 1908 | B44: Buildings & Fixtures | E44: 0 | G44: 0 | J44: 0 | K44: =-'App.2-BA_FA Cont 2012 OldCGAAP'!K45 -> 0 | L44: 0
A45: 1908 | B45: Buildings & Fixtures | E45: 0 | G45: 0 | J45: 0 | K45: =-'App.2-BA_FA Cont 2012 OldCGAAP'!K46 -> 0 | L45: 0
A46: 1910 | B46: Leasehold Improvements | E46: 0 | G46: 0 | J46: 0 | K46: =-'App.2-BA_FA Cont 2012 OldCGAAP'!K47 -> 0 | L46: 0
A47: 1915 | B47: Office Furniture & Equipment (10 years) | E47: 0 | G47: 0 | H47: 10 | I47: 0.1 | J47: 0 | K47: =-'App.2-BA_FA Cont 2012 OldCGAAP'!K48 -> 0 | L47: 0
A48: 1915 | B48: Office Furniture & Equipment (5 years) | E48: 0 | G48: 0 | J48: 0 | K48: =-'App.2-BA_FA Cont 2012 OldCGAAP'!K49 -> 0 | L48: 0
A49: 1920 | B49: Computer Equipment - Hardware | E49: 0 | G49: 0 | H49: 5 | I49: 0.2 | J49: 0 | K49: =-'App.2-BA_FA Cont 2012 OldCGAAP'!K50 -> 0 | L49: 0
A50: 1920 | B50: Computer Equip.-Hardware(Post Mar. 22/04) | E50: 0 | G50: 0 | J50: 0 | K50: =-'App.2-BA_FA Cont 2012 OldCGAAP'!K51 -> 0 | L50: 0
A51: 1920 | B51: Computer Equip.-Hardware(Post Mar. 19/07) | E51: 0 | G51: 0 | H51: 5 | I51: 0.2 | J51: 0 | K51: =-'App.2-BA_FA Cont 2012 OldCGAAP'!K52 -> 0 | L51: 0
A52: 1930 | B52: Transportation Equipment - under 3 Tons | E52: 0 | G52: 0 | H52: 5 | I52: 0.2 | J52: 0 | K52: =-'App.2-BA_FA Cont 2012 OldCGAAP'!K53 -> 0 | L52: 0
A53: 1930 | B53: Transportation Equipment - 3 Tons & Over | E53: 0 | G53: 0 | H53: 8 | I53: 0.125 | J53: 0 | K53: =-'App.2-BA_FA Cont 2012 OldCGAAP'!K54 -> 0 | L53: 0
A54: 1935 | B54: Stores Equipment | E54: 0 | G54: 0 | H54: 10 | I54: 0.1 | J54: 0 | K54: =-'App.2-BA_FA Cont 2012 OldCGAAP'!K55 -> 0 | L54: 0
A55: 1940 | B55: Tools, Shop & Garage Equipment | E55: 0 | G55: 0 | H55: 10 | I55: 0.1 | J55: 0 | K55: =-'App.2-BA_FA Cont 2012 OldCGAAP'!K56 -> 0 | L55: 0
A56: 1945 | B56: Measurement & Testing Equipment | E56: 0 | G56: 0 | J56: 0 | K56: =-'App.2-BA_FA Cont 2012 OldCGAAP'!K57 -> 0 | L56: 0
A57: 1950 | B57: Power Operated Equipment | E57: 0 | G57: 0 | J57: 0 | K57: =-'App.2-BA_FA Cont 2012 OldCGAAP'!K58 -> 0 | L57: 0
A58: 1955 | B58: Communications Equipment | E58: 0 | G58: 0 | H58: 5 | I58: 0.2 | J58: 0 | K58: =-'App.2-BA_FA Cont 2012 OldCGAAP'!K59 -> 0 | L58: 0
A59: 1955 | B59: Communication Equipment (Smart Meters) | E59: 0 | G59: 0 | J59: 0 | K59: =-'App.2-BA_FA Cont 2012 OldCGAAP'!K60 -> 0 | L59: 0
A60: 1960 | B60: Miscellaneous Equipment | E60: 0 | G60: 0 | J60: 0 | K60: =-'App.2-BA_FA Cont 2012 OldCGAAP'!K61 -> 0 | L60: 0
A61: 1970 | B61: Load Management Controls Customer Premises | E61: =C61-D61 -> 0 | G61: =E61+0.5*F61 -> 0 | H61: 10 | I61: =IF(H61=0,"",1/H61) -> 0.1 | J61: =IF(H61=0,0,G61/H61) -> 0 | K61: =-'App.2-BA_FA Cont 2012 OldCGAAP'!K62 -> 0 | L61: 0
A62: 1975 | B62: Load Management Controls Utility Premises | E62: 0 | G62: 0 | H62: 10 | I62: 0.1 | J62: 0 | K62: =-'App.2-BA_FA Cont 2012 OldCGAAP'!K63 -> 0 | L62: 0
A63: 1980 | B63: System Supervisor Equipment | E63: 0 | G63: 0 | H63: 15 | I63: 0.06666666667 | J63: 0 | K63: =-'App.2-BA_FA Cont 2012 OldCGAAP'!K64 -> 0 | L63: 0
A64: 1985 | B64: Miscellaneous Fixed Assets | E64: 0 | G64: 0 | J64: 0 | K64: =-'App.2-BA_FA Cont 2012 OldCGAAP'!K65 -> 0 | L64: 0
A65: 1990 | B65: Other Tangible Property | E65: =C65-D65 -> 0 | G65: =E65+0.5*F65 -> 0 | I65: =IF(H65=0,"",1/H65) ->  | J65: =IF(H65=0,0,G65/H65) -> 0 | K65: =-'App.2-BA_FA Cont 2012 OldCGAAP'!K66 -> 0 | L65: 0
A66: 1995 | B66: Contributions & Grants | E66: 0 | G66: 0 | H66: 25 | I66: 0.04 | J66: 0 | K66: =-'App.2-BA_FA Cont 2012 OldCGAAP'!K67 -> 0 | L66: 0
A67: 1609 | B67: Other Tangible Property | E67: 0 | F67: 0 | G67: 0 | J67: 0 | L67: 0
B79: Total | C79: =SUM(C16:C78) -> 0 | D79: =SUM(D16:D78) -> 0 | E79: =SUM(E16:E78) -> 0 | F79: =SUM(F16:F78) -> 0 | G79: =SUM(G16:G78) -> 0 | J79: =SUM(J16:J78) -> 0 | K79: =SUM(K16:K78) -> 0 | L79: =SUM(L16:L78) -> 0
C81: =+'App.2-BA_FA Cont 2012 OldCGAAP'!E60 -> 0 | F81: =+'App.2-BA_FA Cont 2012 OldCGAAP'!F60 -> 0 | K81: =-'App.2-BA_FA Cont 2012 OldCGAAP'!K60 -> 0
C82: =+C79-C81 -> 0 | F82: =+F79-F81 -> 0 | K82: =+K79-K81 -> 0

Sheet App.2-BA_FA Cont 2018_Old CGAAP (hidden)
M1: File Number: | N1: =EBNUMBER -> 
M2: Exhibit:
M3: Tab:
M4: Schedule:
M5: Page:
M7: Date:
B9: Appendix 2-BA
B10: Fixed Asset Continuity Schedule
F12: Accounting Standard | G12: CGAAP | H12: Old CGAAP
F13: Year | G13: 2018
A15: RHI | E15: Cost | K15: Accumulated Depreciation
A16: CCA Class | B16: CCA Class | C16: OEB | D16: Description | E16: Opening Balance | F16: Additions | G16: Disposals | H16: Closing Balance | J16: Opening Balance | K16: Additions | L16: Disposals | M16: Closing Balance | N16: Net Book Value
A17: 12 | B17: 12 | C17: 1611 | D17: Computer Software (Formally known as Account 1925) | E17: =+'App.2-BA_FA Cont 2016_Old CGAAP'!H17 -> 364933.91 | H17: =E17+F17+G17 -> 364933.91 | J17: =+'App.2-BA_FA Cont 2016_Old CGAAP'!M17 -> -603595.68 | M17: =J17+K17+L17 -> -603595.68 | N17: =H17+M17 -> -238661.77
A18: CEC | B18: CEC | C18: 1612 | D18: Land Rights (Formally known as Account 1906) | E18: =+'App.2-BA_FA Cont 2016_Old CGAAP'!H18 -> 37132.16 | H18: =E18+F18+G18 -> 37132.16 | J18: =+'App.2-BA_FA Cont 2016_Old CGAAP'!M18 -> -7706.8 | M18: =J18+K18+L18 -> -7706.8 | N18: =H18+M18 -> 29425.36
A19: N/A | B19: N/A | C19: 1805 | D19: Land | E19: =+'App.2-BA_FA Cont 2016_Old CGAAP'!H19 -> 46065.54 | H19: =E19+F19+G19 -> 46065.54 | J19: =+'App.2-BA_FA Cont 2016_Old CGAAP'!M19 -> 0 | M19: 0 | N19: 46065.54
A20: 1 | B20: 47 | C20: 1808 | D20: Buildings | E20: =+'App.2-BA_FA Cont 2016_Old CGAAP'!H20 -> 0 | H20: =E20+F20+G20 -> 0 | J20: =+'App.2-BA_FA Cont 2016_Old CGAAP'!M20 -> -4615.12 | M20: -4615.12 | N20: -4615.12
B21: 13 | C21: 1810 | D21: Leasehold Improvements | E21: =+'App.2-BA_FA Cont 2016_Old CGAAP'!H21 -> 0 | H21: 0 | J21: =+'App.2-BA_FA Cont 2016_Old CGAAP'!M21 -> 0 | M21: 0 | N21: 0
B22: 47 | C22: 1815 | D22: Transformer Station Equipment >50 kV | E22: =+'App.2-BA_FA Cont 2016_Old CGAAP'!H22 -> 0 | H22: 0 | J22: =+'App.2-BA_FA Cont 2016_Old CGAAP'!M22 -> 0 | M22: 0 | N22: 0
A23: 1/47 | B23: 47 | C23: 1820 | D23: Distribution Station Equipment <50 kV | E23: =+'App.2-BA_FA Cont 2016_Old CGAAP'!H23 -> 5982813.06 | H23: 5982813.06 | J23: =+'App.2-BA_FA Cont 2016_Old CGAAP'!M23 -> -628089.59 | M23: -628089.59 | N23: 5354723.47
B24: 47 | C24: 1825 | D24: Storage Battery Equipment | E24: =+'App.2-BA_FA Cont 2016_Old CGAAP'!H24 -> 0 | H24: 0 | J24: =+'App.2-BA_FA Cont 2016_Old CGAAP'!M24 -> -4309.98 | M24: -4309.98 | N24: -4309.98
A25: 1/47 | B25: 47 | C25: 1830 | D25: Poles, Towers & Fixtures | E25: =+'App.2-BA_FA Cont 2016_Old CGAAP'!H25 -> 2609445.8 | H25: 2609445.8 | J25: =+'App.2-BA_FA Cont 2016_Old CGAAP'!M25 -> -1095626.62 | M25: -1095626.62 | N25: 1513819.18
A26: 1/47 | B26: 47 | C26: 1835 | D26: Overhead Conductors & Devices | E26: =+'App.2-BA_FA Cont 2016_Old CGAAP'!H26 -> 1853620.27 | H26: 1853620.27 | J26: =+'App.2-BA_FA Cont 2016_Old CGAAP'!M26 -> -787291.05 | M26: -787291.05 | N26: 1066329.22
A27: 1/47 | B27: 47 | C27: 1840 | D27: Underground Conduit | E27: =+'App.2-BA_FA Cont 2016_Old CGAAP'!H27 -> 1651422.19 | H27: 1651422.19 | J27: =+'App.2-BA_FA Cont 2016_Old CGAAP'!M27 -> -800199.99 | M27: -800199.99 | N27: 851222.2
A28: 1/47 | B28: 47 | C28: 1845 | D28: Underground Conductors & Devices | E28: =+'App.2-BA_FA Cont 2016_Old CGAAP'!H28 -> 2096767.69 | H28: 2096767.69 | J28: =+'App.2-BA_FA Cont 2016_Old CGAAP'!M28 -> -1181610.53 | M28: -1181610.53 | N28: 915157.16
A29: 1/47 | B29: 47 | C29: 1850 | D29: Line Transformers | E29: =+'App.2-BA_FA Cont 2016_Old CGAAP'!H29 -> 3276921.01 | H29: 3276921.01 | J29: =+'App.2-BA_FA Cont 2016_Old CGAAP'!M29 -> -1846820.11 | M29: -1846820.11 | N29: 1430100.9
A30: 1/47 | B30: 47 | C30: 1855 | D30: Services (Overhead & Underground) | E30: =+'App.2-BA_FA Cont 2016_Old CGAAP'!H30 -> 3393270.56 | H30: 3393270.56 | J30: =+'App.2-BA_FA Cont 2016_Old CGAAP'!M30 -> -2343341.72 | M30: -2343341.72 | N30: 1049928.84
A31: 1/47 | B31: 47 | C31: 1860 | D31: Meters | E31: =+'App.2-BA_FA Cont 2016_Old CGAAP'!H31 -> 141287.52 | H31: 141287.52 | J31: =+'App.2-BA_FA Cont 2016_Old CGAAP'!M31 -> -597282.98 | M31: -597282.98 | N31: -455995.46
A32: 47 | B32: 47 | C32: 1860 | D32: Meters (Smart Meters) | E32: =+'App.2-BA_FA Cont 2016_Old CGAAP'!H32 -> 1211192.58 | H32: 1211192.58 | J32: =+'App.2-BA_FA Cont 2016_Old CGAAP'!M32 -> -1014277.448 | M32: -1014277.448 | N32: 196915.1317
A33: 47 | B33: 47 | C33: 1860 | D33: Smart Meter - Additions | E33: =+'App.2-BA_FA Cont 2016_Old CGAAP'!H33 -> 8639.65 | H33: 8639.65 | J33: =+'App.2-BA_FA Cont 2016_Old CGAAP'!M33 -> 0 | M33: 0 | N33: 8639.65
A34: N/A | B34: N/A | C34: 1905 | D34: Land | E34: =+'App.2-BA_FA Cont 2016_Old CGAAP'!H33 -> 8639.65 | H34: 8639.65 | J34: =+'App.2-BA_FA Cont 2016_Old CGAAP'!M34 -> -346725.28 | M34: -346725.28 | N34: -338085.63
B35: 47 | C35: 1908 | D35: Buildings & Fixtures | E35: =+'App.2-BA_FA Cont 2016_Old CGAAP'!H34 -> 1088697.62 | H35: 1088697.62 | J35: =+'App.2-BA_FA Cont 2016_Old CGAAP'!M35 -> 0 | M35: 0 | N35: 1088697.62
A36: 13 | B36: 13 | C36: 1910 | D36: Leasehold Improvements | E36: =+'App.2-BA_FA Cont 2016_Old CGAAP'!H35 -> 0 | H36: 0 | J36: =+'App.2-BA_FA Cont 2016_Old CGAAP'!M35 -> 0 | M36: 0 | N36: 0
A37: 8 | B37: 8 | C37: 1915 | D37: Office Furniture & Equipment (10 years) | E37: =+'App.2-BA_FA Cont 2016_Old CGAAP'!H36 -> 94569.56 | H37: 94569.56 | J37: =+'App.2-BA_FA Cont 2016_Old CGAAP'!M36 -> -64401.36 | M37: -64401.36 | N37: 30168.2
A38: 8 | B38: 8 | C38: 1915 | D38: Office Furniture & Equipment (5 years) | E38: =+'App.2-BA_FA Cont 2016_Old CGAAP'!H37 -> 0 | H38: 0 | J38: =+'App.2-BA_FA Cont 2016_Old CGAAP'!M37 -> 0 | M38: 0 | N38: 0
A39: 10 | B39: 10 | C39: 1920 | D39: Computer Equipment - Hardware | E39: =+'App.2-BA_FA Cont 2016_Old CGAAP'!H38 -> 237420.285 | H39: 237420.285 | J39: =+'App.2-BA_FA Cont 2016_Old CGAAP'!M38 -> -142911.91 | M39: -142911.91 | N39: 94508.375
B40: 45 | C40: 1920 | D40: Computer Equip.-Hardware(Post Mar. 22/04) | E40: =+'App.2-BA_FA Cont 2016_Old CGAAP'!H39 -> 0 | H40: 0 | J40: =+'App.2-BA_FA Cont 2016_Old CGAAP'!M39 -> 0 | M40: 0 | N40: 0
B41: 45.1 | C41: 1920 | D41: Computer Equip.-Hardware(Post Mar. 19/07) | E41: =+'App.2-BA_FA Cont 2016_Old CGAAP'!H40 -> 0 | H41: 0 | J41: =+'App.2-BA_FA Cont 2016_Old CGAAP'!M40 -> 0 | M41: 0 | N41: 0
A42: 10 | B42: 10 | C42: 1930 | D42: Transportation Equipment | E42: =+'App.2-BA_FA Cont 2016_Old CGAAP'!H41 -> 1152602.5 | H42: 1152602.5 | J42: =+'App.2-BA_FA Cont 2016_Old CGAAP'!M41 -> -1000380.87 | M42: =J42+K42+L42 -> -1000380.87 | N42: =H42+M42 -> 152221.63
A43: 8 | B43: 8 | C43: 1935 | D43: Stores Equipment | E43: =+'App.2-BA_FA Cont 2016_Old CGAAP'!H42 -> 14318.24 | H43: 14318.24 | J43: =+'App.2-BA_FA Cont 2016_Old CGAAP'!M42 -> -14318.24 | M43: -14318.24 | N43: 0
A44: 8 | B44: 8 | C44: 1940 | D44: Tools, Shop & Garage Equipment | E44: =+'App.2-BA_FA Cont 2016_Old CGAAP'!H43 -> 88080.66 | H44: 88080.66 | J44: =+'App.2-BA_FA Cont 2016_Old CGAAP'!M43 -> -54390.41 | M44: -54390.41 | N44: 33690.25
A45: 8 | B45: 8 | C45: 1945 | D45: Measurement & Testing Equipment | E45: =+'App.2-BA_FA Cont 2016_Old CGAAP'!H44 -> 43116.67 | H45: 43116.67 | J45: =+'App.2-BA_FA Cont 2016_Old CGAAP'!M44 -> -33131.37 | M45: -33131.37 | N45: 9985.3
A46: 8 | B46: 8 | C46: 1950 | D46: Power Operated Equipment | E46: =+'App.2-BA_FA Cont 2016_Old CGAAP'!H45 -> 72434.82 | H46: 72434.82 | J46: =+'App.2-BA_FA Cont 2016_Old CGAAP'!M45 -> -65782.36 | M46: -65782.36 | N46: 6652.46
A47: 8 | B47: 8 | C47: 1955 | D47: Communications Equipment | E47: =+'App.2-BA_FA Cont 2016_Old CGAAP'!H46 -> 18411.75 | H47: 18411.75 | J47: =+'App.2-BA_FA Cont 2016_Old CGAAP'!M46 -> -22585.46 | M47: -22585.46 | N47: -4173.71
A48: 8 | B48: 8 | C48: 1955 | D48: Communication Equipment (Smart Meters) | E48: =+'App.2-BA_FA Cont 2016_Old CGAAP'!H47 -> 0 | H48: 0 | J48: =+'App.2-BA_FA Cont 2016_Old CGAAP'!M47 -> 0 | M48: 0 | N48: 0
A49: 8 | B49: 8 | C49: 1960 | D49: Miscellaneous Equipment | E49: =+'App.2-BA_FA Cont 2016_Old CGAAP'!H48 -> 12430.41 | H49: 12430.41 | J49: =+'App.2-BA_FA Cont 2016_Old CGAAP'!M48 -> -12796.66 | M49: -12796.66 | N49: -366.25
A50: 47 | B50: 47 | C50: 1970 | D50: Load Management Controls Customer Premises | E50: =+'App.2-BA_FA Cont 2016_Old CGAAP'!H49 -> 0 | H50: 0 | J50: =+'App.2-BA_FA Cont 2016_Old CGAAP'!M49 -> 0 | M50: 0 | N50: 0
A51: 47 | B51: 47 | C51: 1975 | D51: Load Management Controls Utility Premises | E51: =+'App.2-BA_FA Cont 2016_Old CGAAP'!H50 -> 0 | H51: 0 | J51: =+'App.2-BA_FA Cont 2016_Old CGAAP'!M50 -> 0 | M51: 0 | N51: 0
A52: 47 | B52: 47 | C52: 1980 | D52: System Supervisor Equipment | E52: =+'App.2-BA_FA Cont 2016_Old CGAAP'!H51 -> 258806.31 | H52: 258806.31 | J52: =+'App.2-BA_FA Cont 2016_Old CGAAP'!M51 -> -152782.95 | M52: -152782.95 | N52: 106023.36
A53: 47 | B53: 47 | C53: 1985 | D53: Miscellaneous Fixed Assets | E53: =+'App.2-BA_FA Cont 2016_Old CGAAP'!H52 -> 2516.21 | H53: 2516.21 | J53: =+'App.2-BA_FA Cont 2016_Old CGAAP'!M52 -> -2516.21 | M53: -2516.21 | N53: 0
A54: 47 | B54: 47 | C54: 1990 | D54: Other Tangible Property | E54: =+'App.2-BA_FA Cont 2016_Old CGAAP'!H53 -> 0 | H54: 0 | J54: =+'App.2-BA_FA Cont 2016_Old CGAAP'!M53 -> 0 | M54: 0 | N54: 0
C55: 1995 | D55: Contributions & Grants - O/H Conductor | E55: =+'App.2-BA_FA Cont 2016_Old CGAAP'!H54 -> -1762729.64 | H55: -1762729.64 | J55: =+'App.2-BA_FA Cont 2016_Old CGAAP'!M54 -> 637454.42 | M55: 637454.42 | N55: -1125275.22
C56: 1995 | D56: Contributions & Grants - Poles | E56: =+'App.2-BA_FA Cont 2016_Old CGAAP'!H55 -> 0 | H56: 0 | J56: =+'App.2-BA_FA Cont 2016_Old CGAAP'!M55 -> 0 | M56: 0 | N56: 0
C57: 1995 | D57: Contributions & Grants - Transformers | E57: =+'App.2-BA_FA Cont 2016_Old CGAAP'!H56 -> -13625.15 | H57: -13625.15 | J57: =+'App.2-BA_FA Cont 2016_Old CGAAP'!M56 -> -36849.43 | M57: -36849.43 | N57: -50474.58
C58: 2440 | D58: Deferred Revenue5 | E58: =+'App.2-BA_FA Cont 2016_Old CGAAP'!H57 -> 0 | H58: 0 | J58: =+'App.2-BA_FA Cont 2016_Old CGAAP'!M57 -> 0 | M58: 0 | N58: 0
H59: 0 | M59: 0 | N59: =H59+M59 -> 0
D60: Sub-Total | E60: =SUM(E17:E59) -> 23989201.83 | F60: =SUM(F17:F59) -> 0 | G60: =SUM(G17:G59) -> 0 | H60: =SUM(H17:H59) -> 23989201.83 | J60: =SUM(J17:J59) -> -12226885.71 | K60: 0 | L60: 0 | M60: -12226885.71 | N60: 11762316.13
D61: Less Socialized Renewable Energy Generation Investments (input as negative) | H61: =E61+F61+G61 -> 0 | M61: 0 | N61: =H61+M61 -> 0
D62: Less Other Non Rate-Regulated Utility Assets (input as negative) | H62: 0 | M62: 0 | N62: =H62+M62 -> 0
D63: Total PP&E | E63: =SUM(E60:E62) -> 23989201.83 | F63: =SUM(F60:F62) -> 0 | G63: 0 | H63: 23989201.83 | J63: =SUM(J60:J62) -> -12226885.71 | K63: 0 | L63: 0 | M63: -12226885.71 | N63: 11762316.13
D64: Depreciation Expense adj. from gain or loss on the retirement of assets (pool of like assets), if applicable6
D65: Total | K65: =K63+K64 -> 0
J67: Less: Fully Allocated Depreciation
B68: 10 | D68: Transportation | J68: Transportation
B69: 8 | D69: Stores Equipment | J69: Stores Equipment
J70: Net Depreciation | L70: =K65-L68-L69 -> 0
B72: Originally hydro distribution assets were added to Class 1 for tax purposes. This was changed a few years ago and all new additions are now in Class 47.
B74: Notes:
B76: 1 | C76: Tables in the format outlined above covering all fixed asset accounts should be submitted for the Test Year, Bridge Year and all relevant historical years. At a minimum , the applicant must provide data for the earlier of: 1) all historical years back to its last rebasing; or 2) at least three years of historical actuals, in addition to Bridge Year and Test Year forecasts.
B79: 2 | C79: The "CCA Class" for fixed assets should agree with the CCA Class used for tax purposes in Tax Returns. Fixed Assets sub-components may be used where the underlying asset components are classified under multiple CCA Classes for tax purposes. If an applicant uses any different classes from those shown in the table, an explanation should be provided. (also see note 3 below).
B82: 3 | C82: The table may need to be customized for a utility's asset categories or for any new asset accounts announced or authorized by the Board.
B84: 4 | C84: The additions column (E) must not include construction work in progress (CWIP).
B86: 5 | C86: Effective on the date of IFRS adoption, customer contributions will no longer be recorded in Account 1995 Contributions & Grants, but will be recorded in Account 2440, Deferred Revenues.
B88: 6 | C88: Where a distributor for general financial reporting purposes under IFRS has accounted for the amount of gain or loss on the retirement of assets in a pool of like assets as a charge or credit to income, for reporting and rate application filings the distributor shall reclassify such gains and losses as depreciation expense, and disclose the amount separately.

Sheet App.2-CA_OldCGAAP_DepExp_2013
K1: File Number: | L1: =EBNUMBER -> 
K2: Exhibit:
K3: Tab:
K4: Schedule:
K5: Page:
K7: Date:
A9: Appendix 2-CA
A10: Depreciation and Amortization Expense
B11: Assumes the applicant made capitalization and depreciation expense accounting policy changes under CGAAP effective January 1, 2013 and will adopt IFRS for financial reporting purposes effective January 1, 2015.
C13: Year | D13: 2013 | E13: Former CGAAP
A14: Account | B14: Description | C14: Opening Regulatory Gross PP&E as at Jan 1, 2013 | D14: Less Fully Depreciated | E14: Net for Depreciation | F14: Additions | G14: Total for Depreciation | H14: Years | I14: Depreciation Rate | J14: 2013 Depreciation Expense | K14: 2013 Depreciation Expense - old CGAAP (l) | L14: Variance 2
C15: (a) | D15: (b) | E15: (c) | F15: (d) | G15: (e) = (c) + ½ x (d) 1 | H15: (f) | I15: (g) = 1 / (f) | J15: (h) = (e) / (f) | L15: (m) = (h) - (l)
A16: 1611 | B16: Computer Software (Formally known as Account 1925) | C16: ='App.2-BA_FA Cont 2013 OldCGAAP'!D17 -> 414814 | D16: 300952.04 | E16: =C16-D16 -> 113861.96 | F16: ='App.2-BA_FA Cont 2013 OldCGAAP'!E17 -> 171607.43 | G16: =E16+0.5*F16 -> 199665.675 | H16: 3 | I16: =IF(H16=0,"",1/H16) -> 0.3333333333 | J16: =IF(H16=0,0,G16/H16) -> 66555.225 | K16: =-'App.2-BA_FA Cont 2013 OldCGAAP'!J17 -> 140422.19 | L16: =IF(ISERROR(+J16-K16), "", +J16-K16) -> -73866.965 | M16: smart meter asset transfer in 2013
A17: 1612 | B17: Land Rights (Formally known as Account 1906) | C17: ='App.2-BA_FA Cont 2013 OldCGAAP'!D18 -> 37132.16 | D17: 0 | E17: =C17-D17 -> 37132.16 | F17: ='App.2-BA_FA Cont 2013 OldCGAAP'!E18 -> 0 | G17: =E17+0.5*F17 -> 37132.16 | H17: 50 | I17: 0.02 | J17: =IF(H17=0,0,G17/H17) -> 742.6432 | K17: =-'App.2-BA_FA Cont 2013 OldCGAAP'!J18 -> 743.4 | L17: =IF(ISERROR(+J17-K17), "", +J17-K17) -> -0.7568
A18: 1612 | B18: Land Rights (Formally known as Account 1906) | E18: 0 | G18: 0 | J18: 0 | L18: =IF(ISERROR(+J18-K18), "", +J18-K18) -> 0
A19: 1805 | B19: Land | C19: ='App.2-BA_FA Cont 2013 OldCGAAP'!D19 -> 46065.54 | D19: 0 | E19: 46065.54 | F19: ='App.2-BA_FA Cont 2013 OldCGAAP'!E19 -> 0 | G19: 46065.54 | H19: 0 | J19: 0 | K19: ='App.2-BA_FA Cont 2013 OldCGAAP'!J19 -> 0 | L19: 0
A20: 1808 | B20: Buildings - Equipment | C20: ='App.2-BA_FA Cont 2013 OldCGAAP'!D20 -> 2307.56 | D20: =C20 -> 2307.56 | E20: 0 | F20: ='App.2-BA_FA Cont 2013 OldCGAAP'!E20 -> 0 | G20: 0 | J20: 0 | K20: ='App.2-BA_FA Cont 2013 OldCGAAP'!J20 -> 0 | L20: 0
A21: 1808 | B21: Buildings - Equipment | E21: 0 | G21: 0 | J21: 0 | L21: 0
A22: 1808 | B22: Buildings - Equipment | E22: 0 | G22: 0 | J22: 0 | L22: 0
A23: 1808 | B23: Buildings - Major Repairs | E23: 0 | G23: 0 | J23: 0 | L23: 0
A24: 1808 | B24: Buildings - Major Repairs | E24: 0 | G24: 0 | J24: 0 | L24: 0
A25: 1808 | B25: Buildings - Brick, Stone, Concrete and Steel | E25: 0 | G25: 0 | J25: 0 | L25: 0
A26: 1808 | B26: Buildings - Other | E26: 0 | G26: 0 | J26: 0 | L26: 0
A27: 1810 | B27: Leasehold Improvements | E27: 0 | G27: 0 | J27: 0 | L27: 0
A28: 1815 | B28: Transformer Station Equipment >50 kV | E28: 0 | G28: 0 | J28: 0 | L28: 0
A29: 1820 | B29: Distribution Station Equipment <50 kV | C29: ='App.2-BA_FA Cont 2013 OldCGAAP'!D23 -> 2391027.15 | D29: 257110.75 | E29: 2133916.4 | F29: ='App.2-BA_FA Cont 2013 OldCGAAP'!E23 -> 1238510.45 | G29: =E29+0.5*F29 -> 2753171.625 | H29: 45 | I29: 0.02222222222 | J29: 61181.59167 | K29: =-'App.2-BA_FA Cont 2013 OldCGAAP'!J23 -> 72080.79 | L29: -10899.19833 | M29: Mill, PME Fergus are 30 years, queen st is 45 years
A30: 1820 | B30: Distribution Station Equipment <50 kV | E30: =C30-D30 -> 0 | G30: =E30+0.5*F30 -> 0 | I30: =IF(H30=0,"",1/H30) ->  | J30: =IF(H30=0,0,G30/H30) -> 0 | L30: =IF(ISERROR(+J30-K30), "", +J30-K30) -> 0
A31: 1820 | B31: Distribution Station Equipment <50 kV | E31: =C31-D31 -> 0 | G31: =E31+0.5*F31 -> 0 | I31: =IF(H31=0,"",1/H31) ->  | J31: =IF(H31=0,0,G31/H31) -> 0 | L31: =IF(ISERROR(+J31-K31), "", +J31-K31) -> 0
A32: 1820 | B32: Distribution Station Equipment <50 kV | E32: 0 | G32: 0 | J32: 0 | L32: 0
A33: 1825 | B33: Storage Battery Equipment | C33: ='App.2-BA_FA Cont 2013 OldCGAAP'!D25 -> 2154.99 | D33: 2154.99 | E33: 0 | F33: ='App.2-BA_FA Cont 2013 OldCGAAP'!E25 -> 0 | G33: 0 | J33: 0 | K33: ='App.2-BA_FA Cont 2013 OldCGAAP'!J25 -> 0 | L33: 0
A34: 1830 | B34: Poles, Towers & Fixtures | C34: ='App.2-BA_FA Cont 2013 OldCGAAP'!D26 -> 2109807.57 | D34: 199706.97 | E34: 1910100.6 | F34: ='App.2-BA_FA Cont 2013 OldCGAAP'!E26 -> 226218.67 | G34: 2023209.935 | H34: 25 | I34: 0.04 | J34: 80928.3974 | K34: =-'App.2-BA_FA Cont 2013 OldCGAAP'!J26 -> 77939.58 | L34: 2988.8174
A35: 1830 | B35: Poles, Towers & Fixtures
A36: 1835 | B36: Overhead Conductors & Devices | C36: ='App.2-BA_FA Cont 2013 OldCGAAP'!D27 -> 1503509.87 | D36: 125401.02 | E36: 1378108.85 | F36: ='App.2-BA_FA Cont 2013 OldCGAAP'!E27 -> 175901.4 | G36: 1466059.55 | H36: 25 | I36: 0.04 | J36: 58642.382 | K36: =-'App.2-BA_FA Cont 2013 OldCGAAP'!J27 -> 56766.04 | L36: 1876.342
A37: 1840 | B37: Underground Conduit | C37: ='App.2-BA_FA Cont 2013 OldCGAAP'!D28 -> 1365762.93 | D37: 65309.82 | E37: 1300453.11 | F37: ='App.2-BA_FA Cont 2013 OldCGAAP'!E28 -> 211337.7 | G37: 1406121.96 | H37: 25 | I37: 0.04 | J37: 56244.8784 | K37: =-'App.2-BA_FA Cont 2013 OldCGAAP'!J28 -> 54478.73 | L37: 1766.1484
A38: 1845 | B38: Underground Conductors & Devices | C38: ='App.2-BA_FA Cont 2013 OldCGAAP'!D29 -> 1781739.98 | D38: 114292.19 | E38: 1667447.79 | F38: ='App.2-BA_FA Cont 2013 OldCGAAP'!E29 -> 161871.16 | G38: 1748383.37 | H38: 25 | I38: 0.04 | J38: 69935.3348 | K38: =-'App.2-BA_FA Cont 2013 OldCGAAP'!J29 -> 66841.86 | L38: 3093.4748
A39: 1850 | B39: Line Transformers | C39: ='App.2-BA_FA Cont 2013 OldCGAAP'!D30 -> 3192223.76 | D39: =123869.66+247776.48 -> 371646.14 | E39: 2820577.62 | F39: ='App.2-BA_FA Cont 2013 OldCGAAP'!E30 -> 100683.16 | G39: 2870919.2 | H39: 25 | I39: 0.04 | J39: 114836.768 | K39: =-'App.2-BA_FA Cont 2013 OldCGAAP'!J30 -> 103942.62 | L39: 10894.148
A40: 1855 | B40: Services (Overhead & Underground) | C40: ='App.2-BA_FA Cont 2013 OldCGAAP'!D31 -> 3186724.39 | D40: =61715.02+228584.38 -> 290299.4 | E40: 2896424.99 | F40: ='App.2-BA_FA Cont 2013 OldCGAAP'!E31 -> 99205.07 | G40: 2946027.525 | H40: 25 | I40: 0.04 | J40: 117841.101 | K40: =-'App.2-BA_FA Cont 2013 OldCGAAP'!J31 -> 110590.53 | L40: 7250.571
A41: 1860 | B41: Meters | C41: ='App.2-BA_FA Cont 2013 OldCGAAP'!D32 -> 874666.53 | D41: 140849.33 | E41: 733817.2 | F41: ='App.2-BA_FA Cont 2013 OldCGAAP'!E32 -> 1458.6 | G41: 734546.5 | H41: 25 | I41: 0.04 | J41: 29381.86 | K41: =-'App.2-BA_FA Cont 2013 OldCGAAP'!J32 -> 26186.57 | L41: 3195.29
A42: 1860 | B42: Meters (Smart Meters) | C42: ='App.2-BA_FA Cont 2013 OldCGAAP'!D33 -> 1191255.27 | D42: 0 | E42: 1191255.27 | F42: ='App.2-BA_FA Cont 2013 OldCGAAP'!E33 -> 13984.88 | G42: 1198247.71 | H42: 15 | I42: 0.06666666667 | J42: 79883.18067 | K42: =-'App.2-BA_FA Cont 2013 OldCGAAP'!J33 -> 510463.3985 | L42: -430580.2178 | M42: smart meter asset transfer in 2013
A43: 1905 | B43: Land | C43: ='App.2-BA_FA Cont 2013 OldCGAAP'!D34 -> 8639.65 | D43: 0 | E43: 8639.65 | F43: ='App.2-BA_FA Cont 2013 OldCGAAP'!E34 -> 0 | G43: 8639.65 | H43: 0 | J43: 0 | K43: =-'App.2-BA_FA Cont 2013 OldCGAAP'!J34 -> 0 | L43: 0
A44: 1908 | B44: Buildings & Fixtures | C44: ='App.2-BA_FA Cont 2013 OldCGAAP'!D35 -> 1088697.62 | D44: 0 | E44: 1088697.62 | F44: ='App.2-BA_FA Cont 2013 OldCGAAP'!E35 -> 0 | G44: 1088697.62 | H44: 50 | I44: 0.02 | J44: 21773.9524 | K44: =-'App.2-BA_FA Cont 2013 OldCGAAP'!J35 -> 23549.97 | L44: -1776.0176
A45: 1908 | B45: Buildings & Fixtures | E45: 0 | G45: 0 | J45: 0 | L45: 0
A46: 1908 | B46: Buildings & Fixtures | E46: 0 | G46: 0 | J46: 0 | L46: 0
A47: 1908 | B47: Buildings & Fixtures | E47: 0 | G47: 0 | J47: 0 | L47: 0
A48: 1908 | B48: Buildings & Fixtures | E48: 0 | G48: 0 | J48: 0 | L48: 0
A49: 1908 | B49: Buildings & Fixtures | E49: 0 | G49: 0 | J49: 0 | L49: 0
A50: 1910 | B50: Leasehold Improvements | C50: ='App.2-BA_FA Cont 2013 OldCGAAP'!D36 -> 0 | E50: 0 | F50: ='App.2-BA_FA Cont 2013 OldCGAAP'!G36 -> 0 | G50: 0 | J50: 0 | K50: ='App.2-BA_FA Cont 2013 OldCGAAP'!L36 -> 0 | L50: 0
A51: 1915 | B51: Office Furniture & Equipment (10 years) | C51: ='App.2-BA_FA Cont 2013 OldCGAAP'!D37 -> 94602.03 | D51: 34077.68 | E51: 60524.35 | F51: ='App.2-BA_FA Cont 2013 OldCGAAP'!E37 -> 4295 | G51: 62671.85 | H51: 10 | I51: 0.1 | J51: 6267.185 | K51: =-'App.2-BA_FA Cont 2013 OldCGAAP'!J37 -> 5878.92 | L51: 388.265
A52: 1915 | B52: Office Furniture & Equipment (5 years) | C52: 0 | E52: 0 | F52: 0 | G52: 0 | J52: 0 | K52: 0 | L52: 0
A53: 1920 | B53: Computer Equipment - Hardware | C53: ='App.2-BA_FA Cont 2013 OldCGAAP'!D39 -> 239734.135 | D53: =150429.12-389.22 -> 150039.9 | E53: 89694.235 | F53: ='App.2-BA_FA Cont 2013 OldCGAAP'!E39 -> 64467.22 | G53: 121927.845 | H53: 4 | I53: 0.25 | J53: 30481.96125 | K53: =-'App.2-BA_FA Cont 2013 OldCGAAP'!J39 -> 37445.95 | L53: -6963.98875 | M53: smart meter asset transfer in 2013
A54: 1920 | B54: Computer Equip.-Hardware(Post Mar. 22/04) | E54: 0 | G54: 0 | J54: 0 | L54: 0
A55: 1920 | B55: Computer Equip.-Hardware(Post Mar. 19/07) | E55: 0 | G55: 0 | H55: 5 | I55: 0.2 | J55: 0 | L55: 0
A56: 1930 | B56: Transportation Equipment - under 3 Tons | C56: =152363.61-37625.72 -> 114737.89 | D56: 56901.53 | E56: 57836.36 | F56: 0 | G56: 57836.36 | H56: 5 | I56: 0.2 | J56: 11567.272 | K56: 11697 | L56: -129.728
A57: 1930 | B57: Transportation Equipment - 3 Tons & Over | C57: =707111.44+48493.13 -> 755604.57 | D57: 424794.88 | E57: 330809.69 | F57: 15150 | G57: 338384.69 | H57: 8 | I57: 0.125 | J57: 42298.08625 | K57: 42401.22 | L57: -103.13375
A58: 1935 | B58: Stores Equipment | C58: ='App.2-BA_FA Cont 2013 OldCGAAP'!D43 -> 19934.24 | D58: 19513.04 | E58: 421.2 | F58: ='App.2-BA_FA Cont 2013 OldCGAAP'!E43 -> 0 | G58: 421.2 | H58: 10 | I58: 0.1 | J58: 42.12 | K58: 42 | L58: 0.12
A59: 1940 | B59: Tools, Shop & Garage Equipment | C59: ='App.2-BA_FA Cont 2013 OldCGAAP'!D44 -> 76941.28 | D59: 21015.33 | E59: 55925.95 | F59: ='App.2-BA_FA Cont 2013 OldCGAAP'!E44 -> 7491.42 | G59: 59671.66 | H59: 10 | I59: 0.1 | J59: 5967.166 | K59: =-'App.2-BA_FA Cont 2013 OldCGAAP'!J44 -> 5962.63 | L59: 4.536
A60: 1945 | B60: Measurement & Testing Equipment | C60: ='App.2-BA_FA Cont 2013 OldCGAAP'!D45 -> 56664.23 | D60: 40383.97 | E60: 16280.26 | F60: ='App.2-BA_FA Cont 2013 OldCGAAP'!E45 -> 0 | G60: 16280.26 | H60: 10 | I60: 0.1 | J60: 1628.026 | K60: =-'App.2-BA_FA Cont 2013 OldCGAAP'!J45 -> 1537.16 | L60: 90.866
A61: 1950 | B61: Power Operated Equipment | C61: ='App.2-BA_FA Cont 2013 OldCGAAP'!D46 -> 66172.85 | D61: =331.85+51357.08 -> 51688.93 | E61: 14483.92 | F61: ='App.2-BA_FA Cont 2013 OldCGAAP'!E46 -> 0 | G61: 14483.92 | H61: 8 | I61: 0.125 | J61: 1810.49 | K61: =-'App.2-BA_FA Cont 2013 OldCGAAP'!J46 -> 906.96 | L61: 903.53
A62: 1955 | B62: Communications Equipment | C62: ='App.2-BA_FA Cont 2013 OldCGAAP'!D47 -> 31304.6 | D62: 23379.81 | E62: 7924.79 | F62: ='App.2-BA_FA Cont 2013 OldCGAAP'!E47 -> 4814.97 | G62: 10332.275 | H62: 10 | I62: 0.1 | J62: 1033.2275 | K62: =-'App.2-BA_FA Cont 2013 OldCGAAP'!J47 -> 666.43 | L62: 366.7975
A63: 1955 | B63: Communication Equipment (Smart Meters) | C63: ='App.2-BA_FA Cont 2013 OldCGAAP'!D48 -> 0 | E63: 0 | F63: ='App.2-BA_FA Cont 2013 OldCGAAP'!E48 -> 0 | G63: 0 | J63: 0 | K63: =-'App.2-BA_FA Cont 2013 OldCGAAP'!J48 -> 0 | L63: 0
A64: 1960 | B64: Miscellaneous Equipment | C64: ='App.2-BA_FA Cont 2013 OldCGAAP'!D49 -> 12803.51 | D64: 9462.28 | E64: 3341.23 | F64: ='App.2-BA_FA Cont 2013 OldCGAAP'!E49 -> 0 | G64: 3341.23 | H64: 5 | I64: 0.2 | J64: 668.246 | K64: =-'App.2-BA_FA Cont 2013 OldCGAAP'!J49 -> 410.66 | L64: 257.586
A65: 1970 | B65: Load Management Controls Customer Premises | C65: ='App.2-BA_FA Cont 2013 OldCGAAP'!D50 -> 0 | E65: =C65-D65 -> 0 | F65: ='App.2-BA_FA Cont 2013 OldCGAAP'!E50 -> 0 | G65: =E65+0.5*F65 -> 0 | H65: 10 | I65: =IF(H65=0,"",1/H65) -> 0.1 | J65: =IF(H65=0,0,G65/H65) -> 0 | K65: =-'App.2-BA_FA Cont 2013 OldCGAAP'!J50 -> 0 | L65: 0
A66: 1975 | B66: Load Management Controls Utility Premises | C66: ='App.2-BA_FA Cont 2013 OldCGAAP'!D51 -> 0 | E66: 0 | F66: ='App.2-BA_FA Cont 2013 OldCGAAP'!E51 -> 0 | G66: 0 | H66: 10 | I66: 0.1 | J66: 0 | K66: =-'App.2-BA_FA Cont 2013 OldCGAAP'!J51 -> 0 | L66: 0
A67: 1980 | B67: System Supervisor Equipment | C67: ='App.2-BA_FA Cont 2013 OldCGAAP'!D52 -> 258806.31 | D67: 115448 | E67: 143358.31 | F67: ='App.2-BA_FA Cont 2013 OldCGAAP'!E52 -> 0 | G67: 143358.31 | H67: 8 | I67: 0.125 | J67: 17919.78875 | K67: =-'App.2-BA_FA Cont 2013 OldCGAAP'!J52 -> 17201 | L67: 718.78875
A68: 1985 | B68: Miscellaneous Fixed Assets | C68: ='App.2-BA_FA Cont 2013 OldCGAAP'!D53 -> 2516.21 | D68: 2516.21 | E68: 0 | F68: ='App.2-BA_FA Cont 2013 OldCGAAP'!E53 -> 0 | G68: 0 | H68: 10 | I68: 0.1 | J68: 0 | K68: =-'App.2-BA_FA Cont 2013 OldCGAAP'!J53 -> 0 | L68: 0
A69: 1990 | B69: Other Tangible Property | C69: ='App.2-BA_FA Cont 2013 OldCGAAP'!D54 -> 0 | E69: =C69-D69 -> 0 | F69: ='App.2-BA_FA Cont 2013 OldCGAAP'!E54 -> 0 | G69: =E69+0.5*F69 -> 0 | I69: =IF(H69=0,"",1/H69) ->  | J69: =IF(H69=0,0,G69/H69) -> 0 | K69: =-'App.2-BA_FA Cont 2013 OldCGAAP'!J54 -> 0 | L69: 0
A70: 1995 | B70: Contributions & Grants | C70: ='App.2-BA_FA Cont 2013 OldCGAAP'!D55 -> -1613560.81 | D70: 0 | E70: -1613560.81 | F70: ='App.2-BA_FA Cont 2013 OldCGAAP'!E55 -> -124552.99 | G70: -1675837.305 | H70: 25 | I70: 0.04 | J70: -67033.4922 | K70: =-'App.2-BA_FA Cont 2013 OldCGAAP'!J55 -> -66023.5 | L70: -1009.9922
E71: =C71-D71 -> 0 | F71: ='App.2-BA_FA Cont 2013 OldCGAAP'!E56 -> 0 | G71: =E71+0.5*F71 -> 0 | H71: 25 | I71: =IF(H71=0,"",1/H71) -> 0.04 | J71: =IF(H71=0,0,G71/H71) -> 0 | K71: =-'App.2-BA_FA Cont 2013 OldCGAAP'!J56 -> 0 | L71: =IF(ISERROR(+J71-K71), "", +J71-K71) -> 0
E72: 0 | F72: ='App.2-BA_FA Cont 2013 OldCGAAP'!E57 -> 0 | G72: 0 | H72: 25 | I72: 0.04 | J72: 0 | K72: 0 | L72: 0
A73: 1609 | B73: Other Tangible Property | E73: 0 | G73: 0 | J73: 0 | K73: 0 | L73: 0
B85: Total | C85: =SUM(C16:C84) -> 19312790.02 | D85: =SUM(D16:D84) -> 2819251.77 | E85: =SUM(E16:E84) -> 16493538.24 | F85: =SUM(F16:F84) -> 2372444.14 | G85: =SUM(G16:G84) -> 17679760.32 | J85: =SUM(J16:J84) -> 810597.3911 | K85: =SUM(K16:K84) -> 1302132.108 | L85: =SUM(L16:L84) -> -491534.7174
F87: One-time adjustment made to opening A/D for past year errors --------------------------_____
F88: (Eg. 2012 #1940 - NBV - negative ($4,952 - over depreciated) | K88: =SUM(K85:K87) -> 1302132.108
C90: =+'App.2-BA_FA Cont 2013 NewCGAAP'!E104 -> 19312790.01 | F90: =+'App.2-BA_FA Cont 2013 NewCGAAP'!F104 -> 2372444.14 | K90: =-'App.2-BA_FA Cont 2013 OldCGAAP'!J63 -> 1302132.108
C91: =+C85-C90 -> 0 | F91: =+F85-F90 -> 0 | K91: =+K88-K90 -> 0

Sheet App.2-CA_OldCGAAP_DepExp_2014
K1: File Number: | L1: =EBNUMBER -> 
K2: Exhibit:
K3: Tab:
K4: Schedule:
K5: Page:
K7: Date:
A9: Appendix 2-CA
A10: Depreciation and Amortization Expense
B11: Assumes the applicant made capitalization and depreciation expense accounting policy changes under CGAAP effective January 1, 2013 and will adopt IFRS for financial reporting purposes effective January 1, 2015.
C13: Year | D13: 2014 | E13: Former CGAAP
A14: Account | B14: Description | C14: Opening Regulatory Gross PP&E as at Jan 1, 2014 | D14: Less Fully Depreciated | E14: Net for Depreciation | F14: Additions | G14: Total for Depreciation | H14: Years | I14: Depreciation Rate | J14: 2014 Depreciation Expense | K14: 2014 Depreciation Expense - old CGAAP (l) | L14: Variance 2
C15: (a) | D15: (b) | E15: (c) | F15: (d) | G15: (e) = (c) + ½ x (d) 1 | H15: (f) | I15: (g) = 1 / (f) | J15: (h) = (e) / (f) | L15: (m) = (h) - (l)
A16: 1611 | B16: Computer Software (Formally known as Account 1925) | C16: =+'App.2-CA_OldCGAAP_DepExp_2013'!C16+'App.2-CA_OldCGAAP_DepExp_2013'!F16 -> 586421.43 | D16: 372111.85 | E16: =C16-D16 -> 214309.58 | F16: ='App.2-BA_FA Cont 2014_OldCGAAP'!F17 -> 26363.07 | G16: =E16+0.5*F16 -> 227491.115 | H16: ='App.2-CA_OldCGAAP_DepExp_2013'!H16 -> 3 | I16: =IF(H16=0,"",1/H16) -> 0.3333333333 | J16: =IF(H16=0,0,G16/H16) -> 75830.37167 | K16: =-'App.2-BA_FA Cont 2014_OldCGAAP'!K17 -> 44728.76 | L16: =IF(ISERROR(+J16-K16), "", +J16-K16) -> 31101.61167
A17: 1612 | B17: Land Rights (Formally known as Account 1906) | C17: =+'App.2-CA_OldCGAAP_DepExp_2013'!C17+'App.2-CA_OldCGAAP_DepExp_2013'!F17 -> 37132.16 | D17: 0 | E17: =C17-D17 -> 37132.16 | F17: ='App.2-BA_FA Cont 2014_OldCGAAP'!F18 -> 0 | G17: =E17+0.5*F17 -> 37132.16 | H17: ='App.2-CA_OldCGAAP_DepExp_2013'!H17 -> 50 | I17: 0.02 | J17: 742.6432 | K17: =-'App.2-BA_FA Cont 2014_OldCGAAP'!K18 -> 743.4 | L17: =IF(ISERROR(+J17-K17), "", +J17-K17) -> -0.7568
A18: 1612 | B18: Land Rights (Formally known as Account 1906) | C18: =+'App.2-CA_OldCGAAP_DepExp_2013'!C18+'App.2-CA_OldCGAAP_DepExp_2013'!F18 -> 0 | E18: 0 | G18: 0 | H18: ='App.2-CA_OldCGAAP_DepExp_2013'!H18 -> 0 | J18: 0 | L18: =IF(ISERROR(+J18-K18), "", +J18-K18) -> 0
A19: 1805 | B19: Land | C19: =+'App.2-CA_OldCGAAP_DepExp_2013'!C19+'App.2-CA_OldCGAAP_DepExp_2013'!F19 -> 46065.54 | D19: 0 | E19: 46065.54 | F19: ='App.2-BA_FA Cont 2014_OldCGAAP'!F19 -> 0 | G19: 46065.54 | H19: ='App.2-CA_OldCGAAP_DepExp_2013'!H19 -> 0 | J19: 0 | K19: ='App.2-BA_FA Cont 2014_OldCGAAP'!K19 -> 0 | L19: 0
A20: 1808 | B20: Buildings - Equipment | C20: =+'App.2-CA_OldCGAAP_DepExp_2013'!C20+'App.2-CA_OldCGAAP_DepExp_2013'!F20 -> 2307.56 | D20: 2307.56 | E20: 0 | F20: ='App.2-BA_FA Cont 2014_OldCGAAP'!F20 -> 0 | G20: 0 | H20: ='App.2-CA_OldCGAAP_DepExp_2013'!H20 -> 0 | J20: 0 | K20: ='App.2-BA_FA Cont 2014_OldCGAAP'!K20 -> 0 | L20: 0
A21: 1808 | B21: Buildings - Equipment | C21: =+'App.2-CA_OldCGAAP_DepExp_2013'!C21+'App.2-CA_OldCGAAP_DepExp_2013'!F21 -> 0 | E21: 0 | G21: 0 | H21: ='App.2-CA_OldCGAAP_DepExp_2013'!H21 -> 0 | J21: 0 | L21: 0
A22: 1808 | B22: Buildings - Equipment | C22: =+'App.2-CA_OldCGAAP_DepExp_2013'!C22+'App.2-CA_OldCGAAP_DepExp_2013'!F22 -> 0 | E22: 0 | G22: 0 | H22: ='App.2-CA_OldCGAAP_DepExp_2013'!H22 -> 0 | J22: 0 | L22: 0
A23: 1808 | B23: Buildings - Major Repairs | C23: =+'App.2-CA_OldCGAAP_DepExp_2013'!C23+'App.2-CA_OldCGAAP_DepExp_2013'!F23 -> 0 | E23: 0 | G23: 0 | H23: ='App.2-CA_OldCGAAP_DepExp_2013'!H23 -> 0 | J23: 0 | L23: 0
A24: 1808 | B24: Buildings - Major Repairs | C24: =+'App.2-CA_OldCGAAP_DepExp_2013'!C24+'App.2-CA_OldCGAAP_DepExp_2013'!F24 -> 0 | E24: 0 | G24: 0 | H24: ='App.2-CA_OldCGAAP_DepExp_2013'!H24 -> 0 | J24: 0 | L24: 0
A25: 1808 | B25: Buildings - Brick, Stone, Concrete and Steel | C25: =+'App.2-CA_OldCGAAP_DepExp_2013'!C25+'App.2-CA_OldCGAAP_DepExp_2013'!F25 -> 0 | E25: 0 | G25: 0 | H25: ='App.2-CA_OldCGAAP_DepExp_2013'!H25 -> 0 | J25: 0 | L25: 0
A26: 1808 | B26: Buildings - Other | C26: =+'App.2-CA_OldCGAAP_DepExp_2013'!C26+'App.2-CA_OldCGAAP_DepExp_2013'!F26 -> 0 | E26: 0 | G26: 0 | H26: ='App.2-CA_OldCGAAP_DepExp_2013'!H26 -> 0 | J26: 0 | L26: 0
A27: 1810 | B27: Leasehold Improvements | C27: =+'App.2-CA_OldCGAAP_DepExp_2013'!C27+'App.2-CA_OldCGAAP_DepExp_2013'!F27 -> 0 | E27: 0 | F27: ='App.2-BA_FA Cont 2014_OldCGAAP'!F21 -> 0 | G27: 0 | H27: ='App.2-CA_OldCGAAP_DepExp_2013'!H27 -> 0 | J27: 0 | K27: ='App.2-BA_FA Cont 2014_OldCGAAP'!K21 -> 0 | L27: 0
A28: 1815 | B28: Transformer Station Equipment >50 kV | C28: =+'App.2-CA_OldCGAAP_DepExp_2013'!C28+'App.2-CA_OldCGAAP_DepExp_2013'!F28 -> 0 | E28: 0 | F28: ='App.2-BA_FA Cont 2014_OldCGAAP'!F22 -> 0 | G28: 0 | H28: ='App.2-CA_OldCGAAP_DepExp_2013'!H28 -> 0 | J28: 0 | K28: ='App.2-BA_FA Cont 2014_OldCGAAP'!K22 -> 0 | L28: 0
A29: 1820 | B29: Distribution Station Equipment <50 kV | C29: =+'App.2-CA_OldCGAAP_DepExp_2013'!C29+'App.2-CA_OldCGAAP_DepExp_2013'!F29 -> 3629537.6 | D29: 0 | E29: 3629537.6 | F29: ='App.2-BA_FA Cont 2014_OldCGAAP'!F23 -> 1925636.4 | G29: 4592355.8 | H29: ='App.2-CA_OldCGAAP_DepExp_2013'!H29 -> 45 | I29: 0.02222222222 | J29: 102052.3511 | K29: =-'App.2-BA_FA Cont 2014_OldCGAAP'!K23 -> 107237.98 | L29: -5185.628889
A30: 1825 | B30: Storage Battery Equipment | C30: =+'App.2-CA_OldCGAAP_DepExp_2013'!C33+'App.2-CA_OldCGAAP_DepExp_2013'!F33 -> 2154.99 | D30: 2154.99 | E30: 0 | F30: ='App.2-BA_FA Cont 2014_OldCGAAP'!F24 -> 0 | G30: 0 | H30: ='App.2-CA_OldCGAAP_DepExp_2013'!H33 -> 0 | J30: 0 | K30: ='App.2-BA_FA Cont 2014_OldCGAAP'!K24 -> 0 | L30: 0
A31: 1830 | B31: Poles, Towers & Fixtures | C31: =+'App.2-CA_OldCGAAP_DepExp_2013'!C34+'App.2-CA_OldCGAAP_DepExp_2013'!F34 -> 2336026.24 | D31: 225798.48 | E31: 2110227.76 | F31: ='App.2-BA_FA Cont 2014_OldCGAAP'!F25 -> 126155.22 | G31: 2173305.37 | H31: ='App.2-CA_OldCGAAP_DepExp_2013'!H34 -> 25 | I31: 0.04 | J31: 86932.2148 | K31: =-'App.2-BA_FA Cont 2014_OldCGAAP'!K25 -> 83232.77 | L31: 3699.4448
A32: 1835 | B32: Overhead Conductors & Devices | C32: =+'App.2-CA_OldCGAAP_DepExp_2013'!C36+'App.2-CA_OldCGAAP_DepExp_2013'!F36 -> 1679411.27 | D32: 141784.53 | E32: 1537626.74 | F32: ='App.2-BA_FA Cont 2014_OldCGAAP'!F26 -> 93155.04 | G32: 1584204.26 | H32: ='App.2-CA_OldCGAAP_DepExp_2013'!H36 -> 25 | I32: 0.04 | J32: 63368.1704 | K32: =-'App.2-BA_FA Cont 2014_OldCGAAP'!K26 -> 61045.61 | L32: 2322.5604
A33: 1840 | B33: Underground Conduit | C33: =+'App.2-CA_OldCGAAP_DepExp_2013'!C37+'App.2-CA_OldCGAAP_DepExp_2013'!F37 -> 1577100.63 | D33: 104796.13 | E33: 1472304.5 | F33: ='App.2-BA_FA Cont 2014_OldCGAAP'!F27 -> 10522.87 | G33: 1477565.935 | H33: ='App.2-CA_OldCGAAP_DepExp_2013'!H37 -> 25 | I33: 0.04 | J33: 59102.6374 | K33: =-'App.2-BA_FA Cont 2014_OldCGAAP'!K27 -> 56821.54 | L33: 2281.0974
A34: 1845 | B34: Underground Conductors & Devices | C34: =+'App.2-CA_OldCGAAP_DepExp_2013'!C38+'App.2-CA_OldCGAAP_DepExp_2013'!F38 -> 1943611.14 | D34: 179277.8 | E34: 1764333.34 | F34: ='App.2-BA_FA Cont 2014_OldCGAAP'!F28 -> 143421.49 | G34: 1836044.085 | H34: ='App.2-CA_OldCGAAP_DepExp_2013'!H38 -> 25 | I34: 0.04 | J34: 73441.7634 | K34: =-'App.2-BA_FA Cont 2014_OldCGAAP'!K28 -> 69282.51 | L34: 4159.2534
A35: 1850 | B35: Line Transformers | C35: =+'App.2-CA_OldCGAAP_DepExp_2013'!C39+'App.2-CA_OldCGAAP_DepExp_2013'!F39 -> 3292906.92 | D35: =161614.16+323276.81 -> 484890.97 | E35: 2808015.95 | F35: ='App.2-BA_FA Cont 2014_OldCGAAP'!F29 -> 6545.71 | G35: 2811288.805 | H35: ='App.2-CA_OldCGAAP_DepExp_2013'!H39 -> 25 | I35: 0.04 | J35: 112451.5522 | K35: =-'App.2-BA_FA Cont 2014_OldCGAAP'!K29 -> 105379.1 | L35: 7072.4522
A36: 1855 | B36: Services (Overhead & Underground) | C36: =+'App.2-CA_OldCGAAP_DepExp_2013'!C40+'App.2-CA_OldCGAAP_DepExp_2013'!F40 -> 3285929.46 | D36: =70120.47+358555.59 -> 428676.06 | E36: 2857253.4 | F36: ='App.2-BA_FA Cont 2014_OldCGAAP'!F30 -> 25929.32 | G36: 2870218.06 | H36: ='App.2-CA_OldCGAAP_DepExp_2013'!H40 -> 25 | I36: 0.04 | J36: 114808.7224 | K36: =-'App.2-BA_FA Cont 2014_OldCGAAP'!K30 -> 105197.67 | L36: 9611.0524
A37: 1860 | B37: Meters | C37: =+'App.2-CA_OldCGAAP_DepExp_2013'!C41+'App.2-CA_OldCGAAP_DepExp_2013'!F41 -> 876125.13 | D37: 164761.44 | E37: 711363.69 | F37: ='App.2-BA_FA Cont 2014_OldCGAAP'!F31 -> 976.5 | G37: 711851.94 | H37: ='App.2-CA_OldCGAAP_DepExp_2013'!H41 -> 25 | I37: 0.04 | J37: 28474.0776 | K37: =-'App.2-BA_FA Cont 2014_OldCGAAP'!K31 -> 24534.28 | L37: 3939.7976
A38: 1860 | B38: Meters (Smart Meters) | C38: =+'App.2-CA_OldCGAAP_DepExp_2013'!C42+'App.2-CA_OldCGAAP_DepExp_2013'!F42 -> 1205240.15 | E38: 1205240.15 | F38: ='App.2-BA_FA Cont 2014_OldCGAAP'!F32 -> 5952.43 | G38: 1208216.365 | H38: ='App.2-CA_OldCGAAP_DepExp_2013'!H42 -> 15 | I38: 0.06666666667 | J38: 80547.75767 | K38: =-'App.2-BA_FA Cont 2014_OldCGAAP'!K32 -> 240674.0498 | L38: -160126.2922
A39: 1905 | B39: Land | C39: =+'App.2-CA_OldCGAAP_DepExp_2013'!C43+'App.2-CA_OldCGAAP_DepExp_2013'!F43 -> 8639.65 | E39: 8639.65 | F39: ='App.2-BA_FA Cont 2014_OldCGAAP'!F33 -> 0 | G39: 8639.65 | H39: ='App.2-CA_OldCGAAP_DepExp_2013'!H43 -> 0 | J39: 0 | K39: ='App.2-BA_FA Cont 2014_OldCGAAP'!K33 -> 0 | L39: 0
A40: 1908 | B40: Buildings & Fixtures | C40: =+'App.2-CA_OldCGAAP_DepExp_2013'!C44+'App.2-CA_OldCGAAP_DepExp_2013'!F44 -> 1088697.62 | D40: 0 | E40: 1088697.62 | F40: ='App.2-BA_FA Cont 2014_OldCGAAP'!F34 -> 0 | G40: 1088697.62 | H40: ='App.2-CA_OldCGAAP_DepExp_2013'!H44 -> 50 | I40: 0.02 | J40: 21773.9524 | K40: =-'App.2-BA_FA Cont 2014_OldCGAAP'!K34 -> 23549.97 | L40: -1776.0176
A41: 1908 | B41: Buildings & Fixtures | C41: =+'App.2-CA_OldCGAAP_DepExp_2013'!C45+'App.2-CA_OldCGAAP_DepExp_2013'!F45 -> 0 | E41: 0 | G41: 0 | H41: ='App.2-CA_OldCGAAP_DepExp_2013'!H45 -> 0 | J41: 0 | L41: 0
A42: 1908 | B42: Buildings & Fixtures | C42: =+'App.2-CA_OldCGAAP_DepExp_2013'!C46+'App.2-CA_OldCGAAP_DepExp_2013'!F46 -> 0 | E42: 0 | G42: 0 | H42: ='App.2-CA_OldCGAAP_DepExp_2013'!H46 -> 0 | J42: 0 | L42: 0
A43: 1908 | B43: Buildings & Fixtures | C43: =+'App.2-CA_OldCGAAP_DepExp_2013'!C47+'App.2-CA_OldCGAAP_DepExp_2013'!F47 -> 0 | E43: 0 | G43: 0 | H43: ='App.2-CA_OldCGAAP_DepExp_2013'!H47 -> 0 | J43: 0 | L43: 0
A44: 1908 | B44: Buildings & Fixtures | C44: =+'App.2-CA_OldCGAAP_DepExp_2013'!C48+'App.2-CA_OldCGAAP_DepExp_2013'!F48 -> 0 | E44: 0 | G44: 0 | H44: ='App.2-CA_OldCGAAP_DepExp_2013'!H48 -> 0 | J44: 0 | L44: 0
A45: 1908 | B45: Buildings & Fixtures | C45: =+'App.2-CA_OldCGAAP_DepExp_2013'!C49+'App.2-CA_OldCGAAP_DepExp_2013'!F49 -> 0 | E45: 0 | G45: 0 | H45: ='App.2-CA_OldCGAAP_DepExp_2013'!H49 -> 0 | J45: 0 | L45: 0
A46: 1910 | B46: Leasehold Improvements | C46: =+'App.2-CA_OldCGAAP_DepExp_2013'!C50+'App.2-CA_OldCGAAP_DepExp_2013'!F50 -> 0 | E46: 0 | G46: 0 | H46: ='App.2-CA_OldCGAAP_DepExp_2013'!H50 -> 0 | J46: 0 | L46: 0
A47: 1915 | B47: Office Furniture & Equipment (10 years) | C47: =+'App.2-CA_OldCGAAP_DepExp_2013'!C51+'App.2-CA_OldCGAAP_DepExp_2013'!F51 -> 98897.03 | D47: 41848.28 | E47: 57048.75 | F47: ='App.2-BA_FA Cont 2014_OldCGAAP'!F36 -> 1227.45 | G47: 57662.475 | H47: ='App.2-CA_OldCGAAP_DepExp_2013'!H51 -> 10 | I47: 0.1 | J47: 5766.2475 | K47: =-'App.2-BA_FA Cont 2014_OldCGAAP'!K36 -> 5722.25 | L47: 43.9975
A48: 1915 | B48: Office Furniture & Equipment (5 years) | C48: =+'App.2-CA_OldCGAAP_DepExp_2013'!C52+'App.2-CA_OldCGAAP_DepExp_2013'!F52 -> 0 | E48: 0 | F48: ='App.2-BA_FA Cont 2014_OldCGAAP'!F37 -> 0 | G48: 0 | H48: ='App.2-CA_OldCGAAP_DepExp_2013'!H52 -> 0 | J48: 0 | K48: ='App.2-BA_FA Cont 2014_OldCGAAP'!K37 -> 0 | L48: 0
A49: 1920 | B49: Computer Equipment - Hardware | C49: =+'App.2-CA_OldCGAAP_DepExp_2013'!C53+'App.2-CA_OldCGAAP_DepExp_2013'!F53 -> 304201.355 | D49: 191285.73 | E49: 112915.625 | F49: ='App.2-BA_FA Cont 2014_OldCGAAP'!F38 -> 4801.65 | G49: 115316.45 | H49: ='App.2-CA_OldCGAAP_DepExp_2013'!H53 -> 4 | I49: 0.25 | J49: 28829.1125 | K49: =-'App.2-BA_FA Cont 2014_OldCGAAP'!K38 -> 25468.86 | L49: 3360.2525
A50: 1920 | B50: Computer Equip.-Hardware(Post Mar. 22/04) | C50: =+'App.2-CA_OldCGAAP_DepExp_2013'!C54+'App.2-CA_OldCGAAP_DepExp_2013'!F54 -> 0 | E50: 0 | G50: 0 | H50: ='App.2-CA_OldCGAAP_DepExp_2013'!H54 -> 0 | J50: 0 | L50: 0
A51: 1920 | B51: Computer Equip.-Hardware(Post Mar. 19/07) | C51: =+'App.2-CA_OldCGAAP_DepExp_2013'!C55+'App.2-CA_OldCGAAP_DepExp_2013'!F55 -> 0 | E51: 0 | G51: 0 | H51: ='App.2-CA_OldCGAAP_DepExp_2013'!H55 -> 5 | I51: 0.2 | J51: 0 | L51: 0
A52: 1930 | B52: Transportation Equipment - under 3 Tons | C52: =+'App.2-CA_OldCGAAP_DepExp_2013'!C56+'App.2-CA_OldCGAAP_DepExp_2013'!F56 -> 114737.89 | D52: 56901.53 | E52: 57836.36 | F52: 37625.72 | G52: 76649.22 | H52: ='App.2-CA_OldCGAAP_DepExp_2013'!H56 -> 5 | I52: 0.2 | J52: 15329.844 | K52: 12108.25 | L52: 3221.594
A53: 1930 | B53: Transportation Equipment - 3 Tons & Over | C53: =+'App.2-CA_OldCGAAP_DepExp_2013'!C57+'App.2-CA_OldCGAAP_DepExp_2013'!F57 -> 770754.57 | D53: 425276.39 | E53: 345478.18 | F53: 0 | G53: 345478.18 | H53: ='App.2-CA_OldCGAAP_DepExp_2013'!H57 -> 8 | I53: 0.125 | J53: 43184.7725 | K53: 24967.08 | L53: 18217.6925
A54: 1935 | B54: Stores Equipment | C54: =+'App.2-CA_OldCGAAP_DepExp_2013'!C58+'App.2-CA_OldCGAAP_DepExp_2013'!F58 -> 19934.24 | D54: 19513.04 | E54: 421.2 | F54: ='App.2-BA_FA Cont 2014_OldCGAAP'!F42 -> 0 | G54: 421.2 | H54: ='App.2-CA_OldCGAAP_DepExp_2013'!H58 -> 10 | I54: 0.1 | J54: 42.12 | K54: =-'App.2-BA_FA Cont 2014_OldCGAAP'!K42 -> 21.6 | L54: 20.52
A55: 1940 | B55: Tools, Shop & Garage Equipment | C55: =+'App.2-CA_OldCGAAP_DepExp_2013'!C59+'App.2-CA_OldCGAAP_DepExp_2013'!F59 -> 84432.7 | D55: 24554.2 | E55: =C55-D55 -> 59878.5 | F55: ='App.2-BA_FA Cont 2014_OldCGAAP'!F43 -> 9895.65 | G55: =E55+0.5*F55 -> 64826.325 | H55: ='App.2-CA_OldCGAAP_DepExp_2013'!H59 -> 10 | I55: =IF(H55=0,"",1/H55) -> 0.1 | J55: =IF(H55=0,0,G55/H55) -> 6482.6325 | K55: =-'App.2-BA_FA Cont 2014_OldCGAAP'!K43 -> 6366.23 | L55: 116.4025
A56: 1945 | B56: Measurement & Testing Equipment | C56: =+'App.2-CA_OldCGAAP_DepExp_2013'!C60+'App.2-CA_OldCGAAP_DepExp_2013'!F60 -> 56664.23 | D56: 41282.48 | E56: 15381.75 | F56: ='App.2-BA_FA Cont 2014_OldCGAAP'!F44 -> 0 | G56: 15381.75 | H56: ='App.2-CA_OldCGAAP_DepExp_2013'!H60 -> 10 | I56: 0.1 | J56: 1538.175 | K56: =-'App.2-BA_FA Cont 2014_OldCGAAP'!K44 -> 1537.16 | L56: 1.015
A57: 1950 | B57: Power Operated Equipment | C57: =+'App.2-CA_OldCGAAP_DepExp_2013'!C61+'App.2-CA_OldCGAAP_DepExp_2013'!F61 -> 66172.85 | D57: 66172.85 | E57: 0 | F57: ='App.2-BA_FA Cont 2014_OldCGAAP'!F45 -> 0 | G57: 0 | H57: ='App.2-CA_OldCGAAP_DepExp_2013'!H61 -> 8 | I57: 0.125 | J57: 0 | K57: =-'App.2-BA_FA Cont 2014_OldCGAAP'!K45 -> 0 | L57: 0
A58: 1955 | B58: Communications Equipment | C58: =+'App.2-CA_OldCGAAP_DepExp_2013'!C62+'App.2-CA_OldCGAAP_DepExp_2013'!F62 -> 36119.57 | D58: 23379.81 | E58: 12739.76 | F58: ='App.2-BA_FA Cont 2014_OldCGAAP'!F46 -> 0 | G58: 12739.76 | H58: ='App.2-CA_OldCGAAP_DepExp_2013'!H62 -> 10 | I58: 0.1 | J58: 1273.976 | K58: =-'App.2-BA_FA Cont 2014_OldCGAAP'!K46 -> 907.16 | L58: 366.816
A59: 1955 | B59: Communication Equipment (Smart Meters) | C59: =+'App.2-CA_OldCGAAP_DepExp_2013'!C63+'App.2-CA_OldCGAAP_DepExp_2013'!F63 -> 0 | E59: =C59-D59 -> 0 | F59: ='App.2-BA_FA Cont 2014_OldCGAAP'!F47 -> 0 | G59: =E59+0.5*F59 -> 0 | H59: ='App.2-CA_OldCGAAP_DepExp_2013'!H63 -> 0 | I59: =IF(H59=0,"",1/H59) ->  | J59: =IF(H59=0,0,G59/H59) -> 0 | L59: 0
A60: 1960 | B60: Miscellaneous Equipment | C60: =+'App.2-CA_OldCGAAP_DepExp_2013'!C64+'App.2-CA_OldCGAAP_DepExp_2013'!F64 -> 12803.51 | D60: 12043.59 | E60: 759.92 | F60: ='App.2-BA_FA Cont 2014_OldCGAAP'!F48 -> 0 | G60: 759.92 | H60: ='App.2-CA_OldCGAAP_DepExp_2013'!H64 -> 5 | I60: 0.2 | J60: 151.984 | K60: =-'App.2-BA_FA Cont 2014_OldCGAAP'!K48 -> 152 | L60: -0.016
A61: 1970 | B61: Load Management Controls Customer Premises | C61: =+'App.2-CA_OldCGAAP_DepExp_2013'!C65+'App.2-CA_OldCGAAP_DepExp_2013'!F65 -> 0 | E61: 0 | F61: ='App.2-BA_FA Cont 2014_OldCGAAP'!F49 -> 0 | G61: 0 | H61: ='App.2-CA_OldCGAAP_DepExp_2013'!H65 -> 10 | I61: 0.1 | J61: 0 | L61: 0
A62: 1975 | B62: Load Management Controls Utility Premises | C62: =+'App.2-CA_OldCGAAP_DepExp_2013'!C66+'App.2-CA_OldCGAAP_DepExp_2013'!F66 -> 0 | E62: 0 | F62: ='App.2-BA_FA Cont 2014_OldCGAAP'!F50 -> 0 | G62: 0 | H62: ='App.2-CA_OldCGAAP_DepExp_2013'!H66 -> 10 | I62: 0.1 | J62: 0 | L62: 0
A63: 1980 | B63: System Supervisor Equipment | C63: =+'App.2-CA_OldCGAAP_DepExp_2013'!C67+'App.2-CA_OldCGAAP_DepExp_2013'!F67 -> 258806.31 | D63: 126691.55 | E63: 132114.76 | F63: ='App.2-BA_FA Cont 2014_OldCGAAP'!F51 -> 0 | G63: 132114.76 | H63: ='App.2-CA_OldCGAAP_DepExp_2013'!H67 -> 8 | I63: 0.125 | J63: 16514.345 | K63: =-'App.2-BA_FA Cont 2014_OldCGAAP'!K51 -> 16452 | L63: 62.345
A64: 1985 | B64: Miscellaneous Fixed Assets | C64: =+'App.2-CA_OldCGAAP_DepExp_2013'!C68+'App.2-CA_OldCGAAP_DepExp_2013'!F68 -> 2516.21 | D64: 2516.21 | E64: 0 | F64: ='App.2-BA_FA Cont 2014_OldCGAAP'!F52 -> 0 | G64: 0 | H64: ='App.2-CA_OldCGAAP_DepExp_2013'!H68 -> 10 | I64: =IF(H64=0,"",1/H64) -> 0.1 | J64: =IF(H64=0,0,G64/H64) -> 0 | L64: 0
A65: 1990 | B65: Other Tangible Property | C65: =+'App.2-CA_OldCGAAP_DepExp_2013'!C69+'App.2-CA_OldCGAAP_DepExp_2013'!F69 -> 0 | E65: 0 | F65: ='App.2-BA_FA Cont 2014_OldCGAAP'!F53 -> 0 | G65: 0 | H65: ='App.2-CA_OldCGAAP_DepExp_2013'!H69 -> 0 | J65: 0 | L65: 0
A66: 1995 | B66: Contributions & Grants | C66: =+'App.2-CA_OldCGAAP_DepExp_2013'!C70+'App.2-CA_OldCGAAP_DepExp_2013'!F70 -> -1738113.8 | D66: 0 | E66: -1738113.8 | F66: ='App.2-BA_FA Cont 2014_OldCGAAP'!F54 -> -24615.84 | G66: -1750421.72 | H66: ='App.2-CA_OldCGAAP_DepExp_2013'!H70 -> 25 | I66: 0.04 | J66: -70016.8688 | K66: =-'App.2-BA_FA Cont 2014_OldCGAAP'!K54 -> -70100.6 | L66: 83.7312
C67: =+'App.2-CA_OldCGAAP_DepExp_2013'!C71+'App.2-CA_OldCGAAP_DepExp_2013'!F71 -> 0 | E67: 0 | G67: 0 | H67: ='App.2-CA_OldCGAAP_DepExp_2013'!H71 -> 25 | I67: 0.04 | J67: 0 | L67: 0
C68: =+'App.2-CA_OldCGAAP_DepExp_2013'!C72+'App.2-CA_OldCGAAP_DepExp_2013'!F72 -> 0 | E68: 0 | G68: 0 | H68: ='App.2-CA_OldCGAAP_DepExp_2013'!H72 -> 25 | I68: 0.04 | J68: 0 | L68: 0
A69: 1609 | B69: Other Tangible Property | C69: =+'App.2-CA_OldCGAAP_DepExp_2013'!C73+'App.2-CA_OldCGAAP_DepExp_2013'!F73 -> 0 | D69: 0 | E69: 0 | F69: ='App.2-BA_FA Cont 2014_OldCGAAP'!F58 -> 4602.5 | G69: 2301.25 | H69: ='App.2-CA_OldCGAAP_DepExp_2013'!H73 -> 0 | J69: 0 | K69: =-'App.2-BA_FA Cont 2014_OldCGAAP'!K58 -> 51 | L69: -51
E70: 0 | G70: 0 | J70: 0 | K70: 0 | L70: 0
E71: 0 | G71: 0 | J71: 0 | K71: 0 | L71: 0
E72: 0 | G72: 0 | J72: 0 | K72: =-'App.2-BA_FA Cont 2014_OldCGAAP'!K61 -> 0 | L72: 0
G73: 0 | J73: 0 | L73: 0
B75: Total | C75: =SUM(C16:C74) -> 21685234.16 | D75: =SUM(D16:D74) -> 3138025.47 | E75: =SUM(E16:E74) -> 18547208.68 | F75: =SUM(F16:F74) -> 2398195.18 | G75: =SUM(G16:G74) -> 19746306.28 | J75: =SUM(J16:J74) -> 868622.5544 | K75: =SUM(K16:K74) -> 946080.6298 | L75: -77458.07538
C80: ='App.2-BA_FA Cont 2014_OldCGAAP'!E59 -> 20873270.25 | F80: ='App.2-BA_FA Cont 2014_OldCGAAP'!F62 -> 2398195.18 | K80: =-'App.2-BA_FA Cont 2014_OldCGAAP'!K62 -> 946080.6298
C81: =+C75-C80 -> 811963.9 | F81: =+F75-F80 -> 0 | K81: =+K75-K80 -> 0

Sheet App.2-CA_OldCGAAP_DepExp_2015 (hidden)
K1: File Number: | L1: =EBNUMBER -> 
K2: Exhibit:
K3: Tab:
K4: Schedule:
K5: Page:
K7: Date:
A9: Appendix 2-CA
A10: Depreciation and Amortization Expense
B11: Assumes the applicant made capitalization and depreciation expense accounting policy changes under CGAAP effective January 1, 2013 and will adopt IFRS for financial reporting purposes effective January 1, 2015.
C13: Year | D13: 2015 | E13: Former CGAAP
A14: Account | B14: Description | C14: Opening Regulatory Gross PP&E as at Jan 1, 2015 | D14: Less Fully Depreciated | E14: Net for Depreciation | F14: Additions | G14: Total for Depreciation | H14: Years | I14: Depreciation Rate | J14: 2015 Depreciation Expense | K14: 2015 Depreciation Expense - old CGAAP (l) | L14: Variance 2
C15: (a) | D15: (b) | E15: (c) | F15: (d) | G15: (e) = (c) + ½ x (d) 1 | H15: (f) | I15: (g) = 1 / (f) | J15: (h) = (e) / (f) | L15: (m) = (h) - (l)
A16: 1611 | B16: Computer Software (Formally known as Account 1925) | C16: =+'App.2-CA_OldCGAAP_DepExp_2014'!C16+'App.2-CA_OldCGAAP_DepExp_2014'!F16 -> 612784.5 | E16: =C16-D16 -> 612784.5 | G16: =E16+0.5*F16 -> 612784.5 | H16: 5 | I16: =IF(H16=0,"",1/H16) -> 0.2 | J16: =IF(H16=0,0,G16/H16) -> 122556.9 | K16: 0 | L16: =IF(ISERROR(+J16-K16), "", +J16-K16) -> 122556.9
A17: 1612 | B17: Land Rights (Formally known as Account 1906) | C17: =+'App.2-CA_OldCGAAP_DepExp_2014'!C17+'App.2-CA_OldCGAAP_DepExp_2014'!F17 -> 37132.16 | E17: =C17-D17 -> 37132.16 | G17: =E17+0.5*F17 -> 37132.16 | H17: 20 | I17: 0.05 | J17: 1856.608 | K17: 0 | L17: =IF(ISERROR(+J17-K17), "", +J17-K17) -> 1856.608
A18: 1612 | B18: Land Rights (Formally known as Account 1906) | C18: =+'App.2-CA_OldCGAAP_DepExp_2014'!C18+'App.2-CA_OldCGAAP_DepExp_2014'!F18 -> 0 | E18: 0 | G18: 0 | J18: 0 | K18: 0 | L18: =IF(ISERROR(+J18-K18), "", +J18-K18) -> 0
A19: 1805 | B19: Land | C19: =+'App.2-CA_OldCGAAP_DepExp_2014'!C19+'App.2-CA_OldCGAAP_DepExp_2014'!F19 -> 46065.54 | E19: 46065.54 | G19: 46065.54 | H19: 0 | J19: 0 | K19: 0 | L19: 0
A20: 1808 | B20: Buildings - Equipment | C20: =+'App.2-CA_OldCGAAP_DepExp_2014'!C20+'App.2-CA_OldCGAAP_DepExp_2014'!F20 -> 2307.56 | E20: 2307.56 | G20: 2307.56 | J20: 0 | K20: 0 | L20: 0
A21: 1808 | B21: Buildings - Equipment | C21: =+'App.2-CA_OldCGAAP_DepExp_2014'!C21+'App.2-CA_OldCGAAP_DepExp_2014'!F21 -> 0 | E21: 0 | G21: 0 | J21: 0 | K21: 0 | L21: 0
A22: 1808 | B22: Buildings - Equipment | C22: =+'App.2-CA_OldCGAAP_DepExp_2014'!C22+'App.2-CA_OldCGAAP_DepExp_2014'!F22 -> 0 | E22: 0 | G22: 0 | J22: 0 | K22: 0 | L22: 0
A23: 1808 | B23: Buildings - Major Repairs | C23: =+'App.2-CA_OldCGAAP_DepExp_2014'!C23+'App.2-CA_OldCGAAP_DepExp_2014'!F23 -> 0 | E23: 0 | G23: 0 | J23: 0 | K23: 0 | L23: 0
A24: 1808 | B24: Buildings - Major Repairs | C24: =+'App.2-CA_OldCGAAP_DepExp_2014'!C24+'App.2-CA_OldCGAAP_DepExp_2014'!F24 -> 0 | E24: 0 | G24: 0 | J24: 0 | K24: 0 | L24: 0
A25: 1808 | B25: Buildings - Brick, Stone, Concrete and Steel | C25: =+'App.2-CA_OldCGAAP_DepExp_2014'!C25+'App.2-CA_OldCGAAP_DepExp_2014'!F25 -> 0 | E25: 0 | G25: 0 | H25: 50 | I25: 0.02 | J25: 0 | K25: 0 | L25: 0
A26: 1808 | B26: Buildings - Other | C26: =+'App.2-CA_OldCGAAP_DepExp_2014'!C26+'App.2-CA_OldCGAAP_DepExp_2014'!F26 -> 0 | E26: 0 | G26: 0 | H26: 25 | I26: 0.04 | J26: 0 | K26: 0 | L26: 0
A27: 1810 | B27: Leasehold Improvements | C27: =+'App.2-CA_OldCGAAP_DepExp_2014'!C27+'App.2-CA_OldCGAAP_DepExp_2014'!F27 -> 0 | E27: 0 | G27: 0 | J27: 0 | K27: 0 | L27: 0
A28: 1815 | B28: Transformer Station Equipment >50 kV | C28: =+'App.2-CA_OldCGAAP_DepExp_2014'!C28+'App.2-CA_OldCGAAP_DepExp_2014'!F28 -> 0 | E28: 0 | G28: 0 | J28: 0 | K28: 0 | L28: 0
A29: 1820 | B29: Distribution Station Equipment <50 kV | C29: =+'App.2-CA_OldCGAAP_DepExp_2014'!C29+'App.2-CA_OldCGAAP_DepExp_2014'!F29 -> 5555174 | E29: 5555174 | G29: 5555174 | H29: 30 | I29: 0.03333333333 | J29: 185172.4667 | K29: 0 | L29: 185172.4667
A30: 1825 | B30: Storage Battery Equipment | C30: =+'App.2-CA_OldCGAAP_DepExp_2014'!C30+'App.2-CA_OldCGAAP_DepExp_2014'!F30 -> 2154.99 | E30: 2154.99 | G30: 2154.99 | J30: 0 | K30: 0 | L30: 0
A31: 1830 | B31: Poles, Towers & Fixtures | C31: =+'App.2-CA_OldCGAAP_DepExp_2014'!C31+'App.2-CA_OldCGAAP_DepExp_2014'!F31 -> 2462181.46 | E31: 2462181.46 | G31: 2462181.46 | H31: 25 | I31: 0.04 | J31: 98487.2584 | K31: 0 | L31: 98487.2584
A32: 1835 | B32: Overhead Conductors & Devices | C32: =+'App.2-CA_OldCGAAP_DepExp_2014'!C32+'App.2-CA_OldCGAAP_DepExp_2014'!F32 -> 1772566.31 | E32: 1772566.31 | G32: 1772566.31 | H32: 25 | I32: 0.04 | J32: 70902.6524 | K32: 0 | L32: 70902.6524
A33: 1840 | B33: Underground Conduit | C33: =+'App.2-CA_OldCGAAP_DepExp_2014'!C33+'App.2-CA_OldCGAAP_DepExp_2014'!F33 -> 1587623.5 | E33: 1587623.5 | G33: 1587623.5 | H33: 25 | I33: 0.04 | J33: 63504.94 | K33: 0 | L33: 63504.94
A34: 1845 | B34: Underground Conductors & Devices | C34: =+'App.2-CA_OldCGAAP_DepExp_2014'!C34+'App.2-CA_OldCGAAP_DepExp_2014'!F34 -> 2087032.63 | E34: 2087032.63 | G34: 2087032.63 | H34: 25 | I34: 0.04 | J34: 83481.3052 | K34: 0 | L34: 83481.3052
A35: 1850 | B35: Line Transformers | C35: =+'App.2-CA_OldCGAAP_DepExp_2014'!C35+'App.2-CA_OldCGAAP_DepExp_2014'!F35 -> 3299452.63 | E35: 3299452.63 | G35: 3299452.63 | H35: 25 | I35: 0.04 | J35: 131978.1052 | K35: 0 | L35: 131978.1052
A36: 1855 | B36: Services (Overhead & Underground) | C36: =+'App.2-CA_OldCGAAP_DepExp_2014'!C36+'App.2-CA_OldCGAAP_DepExp_2014'!F36 -> 3311858.78 | E36: 3311858.78 | G36: 3311858.78 | H36: 25 | I36: 0.04 | J36: 132474.3512 | K36: 0 | L36: 132474.3512
A37: 1860 | B37: Meters | C37: =+'App.2-CA_OldCGAAP_DepExp_2014'!C37+'App.2-CA_OldCGAAP_DepExp_2014'!F37 -> 877101.63 | E37: 877101.63 | G37: 877101.63 | H37: 25 | I37: 0.04 | J37: 35084.0652 | K37: 0 | L37: 35084.0652
A38: 1860 | B38: Meters (Smart Meters) | C38: =+'App.2-CA_OldCGAAP_DepExp_2014'!C38+'App.2-CA_OldCGAAP_DepExp_2014'!F38 -> 1211192.58 | E38: 1211192.58 | G38: 1211192.58 | H38: 15 | I38: 0.06666666667 | J38: 80746.172 | K38: 0 | L38: 80746.172
A39: 1905 | B39: Land | C39: =+'App.2-CA_OldCGAAP_DepExp_2014'!C39+'App.2-CA_OldCGAAP_DepExp_2014'!F39 -> 8639.65 | E39: 8639.65 | G39: 8639.65 | H39: 0 | J39: 0 | K39: 0 | L39: 0
A40: 1908 | B40: Buildings & Fixtures | C40: =+'App.2-CA_OldCGAAP_DepExp_2014'!C40+'App.2-CA_OldCGAAP_DepExp_2014'!F40 -> 1088697.62 | E40: 1088697.62 | G40: 1088697.62 | J40: 0 | K40: 0 | L40: 0
A41: 1908 | B41: Buildings & Fixtures | C41: =+'App.2-CA_OldCGAAP_DepExp_2014'!C41+'App.2-CA_OldCGAAP_DepExp_2014'!F41 -> 0 | E41: 0 | G41: 0 | J41: 0 | K41: 0 | L41: 0
A42: 1908 | B42: Buildings & Fixtures | C42: =+'App.2-CA_OldCGAAP_DepExp_2014'!C42+'App.2-CA_OldCGAAP_DepExp_2014'!F42 -> 0 | E42: 0 | G42: 0 | J42: 0 | K42: 0 | L42: 0
A43: 1908 | B43: Buildings & Fixtures | C43: =+'App.2-CA_OldCGAAP_DepExp_2014'!C43+'App.2-CA_OldCGAAP_DepExp_2014'!F43 -> 0 | E43: 0 | G43: 0 | J43: 0 | K43: 0 | L43: 0
A44: 1908 | B44: Buildings & Fixtures | C44: =+'App.2-CA_OldCGAAP_DepExp_2014'!C44+'App.2-CA_OldCGAAP_DepExp_2014'!F44 -> 0 | E44: 0 | G44: 0 | J44: 0 | K44: 0 | L44: 0
A45: 1908 | B45: Buildings & Fixtures | C45: =+'App.2-CA_OldCGAAP_DepExp_2014'!C45+'App.2-CA_OldCGAAP_DepExp_2014'!F45 -> 0 | E45: 0 | G45: 0 | J45: 0 | K45: 0 | L45: 0
A46: 1910 | B46: Leasehold Improvements | C46: =+'App.2-CA_OldCGAAP_DepExp_2014'!C46+'App.2-CA_OldCGAAP_DepExp_2014'!F46 -> 0 | E46: 0 | G46: 0 | H46: 10 | I46: 0.1 | J46: 0 | K46: 0 | L46: 0
A47: 1915 | B47: Office Furniture & Equipment (10 years) | C47: =+'App.2-CA_OldCGAAP_DepExp_2014'!C47+'App.2-CA_OldCGAAP_DepExp_2014'!F47 -> 100124.48 | E47: 100124.48 | G47: 100124.48 | H47: 10 | I47: 0.1 | J47: 10012.448 | K47: 0 | L47: 10012.448
A48: 1915 | B48: Office Furniture & Equipment (5 years) | C48: =+'App.2-CA_OldCGAAP_DepExp_2014'!C48+'App.2-CA_OldCGAAP_DepExp_2014'!F48 -> 0 | E48: 0 | G48: 0 | J48: 0 | K48: 0 | L48: 0
A49: 1920 | B49: Computer Equipment - Hardware | C49: =+'App.2-CA_OldCGAAP_DepExp_2014'!C49+'App.2-CA_OldCGAAP_DepExp_2014'!F49 -> 309003.005 | E49: 309003.005 | G49: 309003.005 | H49: 5 | I49: 0.2 | J49: 61800.601 | K49: 0 | L49: 61800.601
A50: 1920 | B50: Computer Equip.-Hardware(Post Mar. 22/04) | C50: =+'App.2-CA_OldCGAAP_DepExp_2014'!C50+'App.2-CA_OldCGAAP_DepExp_2014'!F50 -> 0 | E50: 0 | G50: 0 | J50: 0 | K50: 0 | L50: 0
A51: 1920 | B51: Computer Equip.-Hardware(Post Mar. 19/07) | C51: =+'App.2-CA_OldCGAAP_DepExp_2014'!C51+'App.2-CA_OldCGAAP_DepExp_2014'!F51 -> 0 | E51: 0 | G51: 0 | H51: 5 | I51: 0.2 | J51: 0 | K51: 0 | L51: 0
A52: 1930 | B52: Transportation Equipment - under 3 Tons | C52: =+'App.2-CA_OldCGAAP_DepExp_2014'!C52+'App.2-CA_OldCGAAP_DepExp_2014'!F52 -> 152363.61 | E52: 152363.61 | G52: 152363.61 | H52: 5 | I52: 0.2 | J52: =IF(H52=0,0,G52/H52) -> 30472.722 | K52: 0 | L52: 30472.722
A53: 1930 | B53: Transportation Equipment - 3 Tons & Over | C53: =+'App.2-CA_OldCGAAP_DepExp_2014'!C53+'App.2-CA_OldCGAAP_DepExp_2014'!F53 -> 770754.57 | E53: 770754.57 | G53: 770754.57 | H53: 8 | I53: 0.125 | J53: 96344.32125 | K53: 0 | L53: 96344.32125
A54: 1935 | B54: Stores Equipment | C54: =+'App.2-CA_OldCGAAP_DepExp_2014'!C54+'App.2-CA_OldCGAAP_DepExp_2014'!F54 -> 19934.24 | E54: 19934.24 | G54: 19934.24 | H54: 10 | I54: 0.1 | J54: 1993.424 | K54: 0 | L54: 1993.424
A55: 1940 | B55: Tools, Shop & Garage Equipment | C55: =+'App.2-CA_OldCGAAP_DepExp_2014'!C55+'App.2-CA_OldCGAAP_DepExp_2014'!F55 -> 94328.35 | E55: =C55-D55 -> 94328.35 | G55: =E55+0.5*F55 -> 94328.35 | H55: 10 | I55: =IF(H55=0,"",1/H55) -> 0.1 | J55: =IF(H55=0,0,G55/H55) -> 9432.835 | K55: 0 | L55: 9432.835
A56: 1945 | B56: Measurement & Testing Equipment | C56: =+'App.2-CA_OldCGAAP_DepExp_2014'!C56+'App.2-CA_OldCGAAP_DepExp_2014'!F56 -> 56664.23 | E56: 56664.23 | G56: 56664.23 | H56: 10 | I56: 0.1 | J56: 5666.423 | K56: 0 | L56: 5666.423
A57: 1950 | B57: Power Operated Equipment | C57: =+'App.2-CA_OldCGAAP_DepExp_2014'!C57+'App.2-CA_OldCGAAP_DepExp_2014'!F57 -> 66172.85 | E57: 66172.85 | G57: 66172.85 | J57: 0 | K57: 0 | L57: 0
A58: 1955 | B58: Communications Equipment | C58: =+'App.2-CA_OldCGAAP_DepExp_2014'!C58+'App.2-CA_OldCGAAP_DepExp_2014'!F58 -> 36119.57 | E58: 36119.57 | G58: 36119.57 | H58: 5 | I58: 0.2 | J58: 7223.914 | K58: 0 | L58: 7223.914
A59: 1955 | B59: Communication Equipment (Smart Meters) | C59: =+'App.2-CA_OldCGAAP_DepExp_2014'!C59+'App.2-CA_OldCGAAP_DepExp_2014'!F59 -> 0 | E59: =C59-D59 -> 0 | G59: =E59+0.5*F59 -> 0 | I59: =IF(H59=0,"",1/H59) ->  | J59: =IF(H59=0,0,G59/H59) -> 0 | K59: 0 | L59: 0
A60: 1960 | B60: Miscellaneous Equipment | C60: =+'App.2-CA_OldCGAAP_DepExp_2014'!C60+'App.2-CA_OldCGAAP_DepExp_2014'!F60 -> 12803.51 | E60: 12803.51 | G60: 12803.51 | H60: 10 | I60: 0.1 | J60: 1280.351 | K60: 0 | L60: 1280.351
A61: 1970 | B61: Load Management Controls Customer Premises | C61: =+'App.2-CA_OldCGAAP_DepExp_2014'!C61+'App.2-CA_OldCGAAP_DepExp_2014'!F61 -> 0 | E61: 0 | G61: =E61+0.5*F61 -> 0 | H61: 10 | I61: 0.1 | J61: 0 | K61: 0 | L61: 0
A62: 1975 | B62: Load Management Controls Utility Premises | C62: =+'App.2-CA_OldCGAAP_DepExp_2014'!C62+'App.2-CA_OldCGAAP_DepExp_2014'!F62 -> 0 | E62: 0 | G62: 0 | H62: 10 | I62: 0.1 | J62: 0 | K62: 0 | L62: 0
A63: 1980 | B63: System Supervisor Equipment | C63: =+'App.2-CA_OldCGAAP_DepExp_2014'!C63+'App.2-CA_OldCGAAP_DepExp_2014'!F63 -> 258806.31 | E63: 258806.31 | G63: 258806.31 | H63: 5 | I63: 0.2 | J63: 51761.262 | K63: 0 | L63: 51761.262
A64: 1985 | B64: Miscellaneous Fixed Assets | C64: =+'App.2-CA_OldCGAAP_DepExp_2014'!C64+'App.2-CA_OldCGAAP_DepExp_2014'!F64 -> 2516.21 | E64: 2516.21 | G64: 2516.21 | J64: 0 | K64: 0 | L64: 0
A65: 1990 | B65: Other Tangible Property | C65: =+'App.2-CA_OldCGAAP_DepExp_2014'!C65+'App.2-CA_OldCGAAP_DepExp_2014'!F65 -> 0 | E65: 0 | G65: 0 | J65: 0 | K65: 0 | L65: 0
A66: 1995 | B66: Contributions & Grants - O/H Conductor | C66: =+'App.2-CA_OldCGAAP_DepExp_2014'!C66+'App.2-CA_OldCGAAP_DepExp_2014'!F66 -> -1762729.64 | E66: -1762729.64 | G66: -1762729.64 | H66: 25 | I66: 0.04 | J66: -70509.1856 | K66: 0 | L66: -70509.1856
A67: 1995 | B67: Contributions & Grants - Poles | C67: =+'App.2-CA_OldCGAAP_DepExp_2014'!C67+'App.2-CA_OldCGAAP_DepExp_2014'!F67 -> 0 | E67: 0 | G67: 0 | H67: 25 | I67: 0.04 | J67: 0 | K67: 0 | L67: 0
A68: 1995 | B68: Contributions & Grants - Transformers | C68: =+'App.2-CA_OldCGAAP_DepExp_2014'!C68+'App.2-CA_OldCGAAP_DepExp_2014'!F68 -> 0 | E68: 0 | G68: 0 | H68: 25 | I68: 0.04 | J68: 0 | K68: 0 | L68: 0
A69: 1995 | B69: Contributions & Grants - Meters | C69: =+'App.2-CA_OldCGAAP_DepExp_2014'!C69+'App.2-CA_OldCGAAP_DepExp_2014'!F69 -> 4602.5 | E69: =C69-D69 -> 4602.5 | G69: =E69+0.5*F69 -> 4602.5 | H69: 15 | I69: =IF(H69=0,"",1/H69) -> 0.06666666667 | J69: =IF(H69=0,0,G69/H69) -> 306.8333333 | K69: 0 | L69: =IF(ISERROR(+J69-K69), "", +J69-K69) -> 306.8333333
A70: 1609 | B70: Other Tangible Property | C70: =+'App.2-CA_OldCGAAP_DepExp_2014'!C70+'App.2-CA_OldCGAAP_DepExp_2014'!F70 -> 0 | E70: 0 | G70: 0 | J70: 0 | K70: 0 | L70: 0
E71: 0 | G71: 0 | J71: 0 | K71: 0 | L71: 0
E72: 0 | G72: 0 | J72: 0 | K72: 0 | L72: 0
E73: 0 | G73: 0 | J73: 0 | K73: 0 | L73: 0
G74: 0 | J74: 0 | K74: 0 | L74: 0
B76: Total | C76: =SUM(C16:C75) -> 24083429.34 | D76: =SUM(D16:D75) -> 0 | E76: =SUM(E16:E75) -> 24083429.34 | F76: =SUM(F16:F75) -> 0 | G76: =SUM(G16:G75) -> 24083429.34 | J76: =SUM(J16:J75) -> 1212030.773 | K76: =SUM(K16:K75) -> 0 | L76: 1212030.773
C81: 14359978 | F81: 492724 | K81: =-'App.2-BA_FA Cont 2015_Old CGAAP'!K64 -> -588339.47
C82: =+C76-C81 -> 9723451.335 | F82: =+F76-F81 -> -492724 | K82: =+K76-K81 -> 588339.47

Sheet App.2-CA_OldCGAAP_DepExp_2016 (hidden)
K1: File Number: | L1: =EBNUMBER -> 
K2: Exhibit:
K3: Tab:
K4: Schedule:
K5: Page:
K7: Date:
A9: Appendix 2-CA
A10: Depreciation and Amortization Expense
B11: Assumes the applicant made capitalization and depreciation expense accounting policy changes under CGAAP effective January 1, 2013 and will adopt IFRS for financial reporting purposes effective January 1, 2015.
C13: Year | D13: 2016 | E13: Former CGAAP
A14: Account | B14: Description | C14: Opening Regulatory Gross PP&E as at Jan 1, 2016 | D14: Less Fully Depreciated | E14: Net for Depreciation | F14: Additions | G14: Total for Depreciation | H14: Years | I14: Depreciation Rate | J14: 2016 Depreciation Expense | K14: 2016 Depreciation Expense - old CGAAP (l) | L14: Variance 2
C15: (a) | D15: (b) | E15: (c) | F15: (d) | G15: (e) = (c) + ½ x (d) 1 | H15: (f) | I15: (g) = 1 / (f) | J15: (h) = (e) / (f) | L15: (m) = (h) - (l)
A16: 1611 | B16: Computer Software (Formally known as Account 1925) | C16: =+'App.2-CA_OldCGAAP_DepExp_2015'!C16+'App.2-CA_OldCGAAP_DepExp_2015'!F16 -> 612784.5 | E16: =C16-D16 -> 612784.5 | G16: =E16+0.5*F16 -> 612784.5 | H16: 5 | I16: =IF(H16=0,"",1/H16) -> 0.2 | J16: =IF(H16=0,0,G16/H16) -> 122556.9 | K16: =-'App.2-BA_FA Cont 2016_Old CGAAP'!K17 -> 0 | L16: =IF(ISERROR(+J16-K16), "", +J16-K16) -> 122556.9
A17: 1612 | B17: Land Rights (Formally known as Account 1906) | C17: =+'App.2-CA_OldCGAAP_DepExp_2015'!C17+'App.2-CA_OldCGAAP_DepExp_2015'!F17 -> 37132.16 | E17: =C17-D17 -> 37132.16 | G17: =E17+0.5*F17 -> 37132.16 | H17: 20 | I17: 0.05 | J17: 1856.608 | K17: =-'App.2-BA_FA Cont 2016_Old CGAAP'!K18 -> 0 | L17: =IF(ISERROR(+J17-K17), "", +J17-K17) -> 1856.608
A18: 1612 | B18: Land Rights (Formally known as Account 1906) | C18: =+'App.2-CA_OldCGAAP_DepExp_2015'!C18+'App.2-CA_OldCGAAP_DepExp_2015'!F18 -> 0 | E18: 0 | G18: 0 | J18: 0 | K18: =-'App.2-BA_FA Cont 2016_Old CGAAP'!K19 -> 0 | L18: =IF(ISERROR(+J18-K18), "", +J18-K18) -> 0
A19: 1805 | B19: Land | C19: =+'App.2-CA_OldCGAAP_DepExp_2015'!C19+'App.2-CA_OldCGAAP_DepExp_2015'!F19 -> 46065.54 | E19: 46065.54 | G19: 46065.54 | H19: 0 | J19: 0 | K19: =-'App.2-BA_FA Cont 2016_Old CGAAP'!K20 -> 0 | L19: 0
A20: 1808 | B20: Buildings - Equipment | C20: =+'App.2-CA_OldCGAAP_DepExp_2015'!C20+'App.2-CA_OldCGAAP_DepExp_2015'!F20 -> 2307.56 | E20: 2307.56 | G20: 2307.56 | J20: 0 | K20: =-'App.2-BA_FA Cont 2016_Old CGAAP'!K21 -> 0 | L20: 0
A21: 1808 | B21: Buildings - Equipment | C21: =+'App.2-CA_OldCGAAP_DepExp_2015'!C21+'App.2-CA_OldCGAAP_DepExp_2015'!F21 -> 0 | E21: 0 | G21: 0 | J21: 0 | K21: =-'App.2-BA_FA Cont 2016_Old CGAAP'!K22 -> 0 | L21: 0
A22: 1808 | B22: Buildings - Equipment | C22: =+'App.2-CA_OldCGAAP_DepExp_2015'!C22+'App.2-CA_OldCGAAP_DepExp_2015'!F22 -> 0 | E22: 0 | G22: 0 | J22: 0 | K22: =-'App.2-BA_FA Cont 2016_Old CGAAP'!K23 -> 0 | L22: 0
A23: 1808 | B23: Buildings - Major Repairs | C23: =+'App.2-CA_OldCGAAP_DepExp_2015'!C23+'App.2-CA_OldCGAAP_DepExp_2015'!F23 -> 0 | E23: 0 | G23: 0 | J23: 0 | K23: =-'App.2-BA_FA Cont 2016_Old CGAAP'!K24 -> 0 | L23: 0
A24: 1808 | B24: Buildings - Major Repairs | C24: =+'App.2-CA_OldCGAAP_DepExp_2015'!C24+'App.2-CA_OldCGAAP_DepExp_2015'!F24 -> 0 | E24: 0 | G24: 0 | J24: 0 | K24: =-'App.2-BA_FA Cont 2016_Old CGAAP'!K25 -> 0 | L24: 0
A25: 1808 | B25: Buildings - Brick, Stone, Concrete and Steel | C25: =+'App.2-CA_OldCGAAP_DepExp_2015'!C25+'App.2-CA_OldCGAAP_DepExp_2015'!F25 -> 0 | E25: 0 | G25: 0 | H25: 50 | I25: 0.02 | J25: 0 | K25: =-'App.2-BA_FA Cont 2016_Old CGAAP'!K26 -> 0 | L25: 0
A26: 1808 | B26: Buildings - Other | C26: =+'App.2-CA_OldCGAAP_DepExp_2015'!C26+'App.2-CA_OldCGAAP_DepExp_2015'!F26 -> 0 | E26: 0 | G26: 0 | H26: 25 | I26: 0.04 | J26: 0 | K26: =-'App.2-BA_FA Cont 2016_Old CGAAP'!K27 -> 0 | L26: 0
A27: 1810 | B27: Leasehold Improvements | C27: =+'App.2-CA_OldCGAAP_DepExp_2015'!C27+'App.2-CA_OldCGAAP_DepExp_2015'!F27 -> 0 | E27: 0 | G27: 0 | J27: 0 | K27: =-'App.2-BA_FA Cont 2016_Old CGAAP'!K28 -> 0 | L27: 0
A28: 1815 | B28: Transformer Station Equipment >50 kV | C28: =+'App.2-CA_OldCGAAP_DepExp_2015'!C28+'App.2-CA_OldCGAAP_DepExp_2015'!F28 -> 0 | E28: 0 | G28: 0 | J28: 0 | K28: =-'App.2-BA_FA Cont 2016_Old CGAAP'!K29 -> 0 | L28: 0
A29: 1820 | B29: Distribution Station Equipment <50 kV | C29: =+'App.2-CA_OldCGAAP_DepExp_2015'!C29+'App.2-CA_OldCGAAP_DepExp_2015'!F29 -> 5555174 | E29: 5555174 | G29: 5555174 | H29: 30 | I29: 0.03333333333 | J29: 185172.4667 | K29: =-'App.2-BA_FA Cont 2016_Old CGAAP'!K30 -> 0 | L29: 185172.4667
A30: 1825 | B30: Storage Battery Equipment | C30: =+'App.2-CA_OldCGAAP_DepExp_2015'!C30+'App.2-CA_OldCGAAP_DepExp_2015'!F30 -> 2154.99 | E30: 2154.99 | G30: 2154.99 | J30: 0 | K30: =-'App.2-BA_FA Cont 2016_Old CGAAP'!K31 -> 0 | L30: 0
A31: 1830 | B31: Poles, Towers & Fixtures | C31: =+'App.2-CA_OldCGAAP_DepExp_2015'!C31+'App.2-CA_OldCGAAP_DepExp_2015'!F31 -> 2462181.46 | E31: 2462181.46 | G31: 2462181.46 | H31: 25 | I31: 0.04 | J31: 98487.2584 | K31: =-'App.2-BA_FA Cont 2016_Old CGAAP'!K32 -> 0 | L31: 98487.2584
A32: 1835 | B32: Overhead Conductors & Devices | C32: =+'App.2-CA_OldCGAAP_DepExp_2015'!C32+'App.2-CA_OldCGAAP_DepExp_2015'!F32 -> 1772566.31 | E32: 1772566.31 | G32: 1772566.31 | H32: 25 | I32: 0.04 | J32: 70902.6524 | K32: =-'App.2-BA_FA Cont 2016_Old CGAAP'!K33 -> 0 | L32: 70902.6524
A33: 1840 | B33: Underground Conduit | C33: =+'App.2-CA_OldCGAAP_DepExp_2015'!C33+'App.2-CA_OldCGAAP_DepExp_2015'!F33 -> 1587623.5 | E33: 1587623.5 | G33: 1587623.5 | H33: 25 | I33: 0.04 | J33: 63504.94 | K33: =-'App.2-BA_FA Cont 2016_Old CGAAP'!K34 -> 0 | L33: 63504.94
A34: 1845 | B34: Underground Conductors & Devices | C34: =+'App.2-CA_OldCGAAP_DepExp_2015'!C34+'App.2-CA_OldCGAAP_DepExp_2015'!F34 -> 2087032.63 | E34: 2087032.63 | G34: 2087032.63 | H34: 25 | I34: 0.04 | J34: 83481.3052 | K34: =-'App.2-BA_FA Cont 2016_Old CGAAP'!K35 -> 0 | L34: 83481.3052
A35: 1850 | B35: Line Transformers | C35: =+'App.2-CA_OldCGAAP_DepExp_2015'!C35+'App.2-CA_OldCGAAP_DepExp_2015'!F35 -> 3299452.63 | E35: 3299452.63 | G35: 3299452.63 | H35: 25 | I35: 0.04 | J35: 131978.1052 | K35: =-'App.2-BA_FA Cont 2016_Old CGAAP'!K36 -> 0 | L35: 131978.1052
A36: 1855 | B36: Services (Overhead & Underground) | C36: =+'App.2-CA_OldCGAAP_DepExp_2015'!C36+'App.2-CA_OldCGAAP_DepExp_2015'!F36 -> 3311858.78 | E36: 3311858.78 | G36: 3311858.78 | H36: 25 | I36: 0.04 | J36: 132474.3512 | K36: =-'App.2-BA_FA Cont 2016_Old CGAAP'!K37 -> 0 | L36: 132474.3512
A37: 1860 | B37: Meters | C37: =+'App.2-CA_OldCGAAP_DepExp_2015'!C37+'App.2-CA_OldCGAAP_DepExp_2015'!F37 -> 877101.63 | E37: 877101.63 | G37: 877101.63 | H37: 25 | I37: 0.04 | J37: 35084.0652 | K37: =-'App.2-BA_FA Cont 2016_Old CGAAP'!K38 -> 0 | L37: 35084.0652
A38: 1860 | B38: Meters (Smart Meters) | C38: =+'App.2-CA_OldCGAAP_DepExp_2015'!C38+'App.2-CA_OldCGAAP_DepExp_2015'!F38 -> 1211192.58 | E38: 1211192.58 | G38: 1211192.58 | H38: 15 | I38: 0.06666666667 | J38: 80746.172 | K38: =-'App.2-BA_FA Cont 2016_Old CGAAP'!K39 -> 0 | L38: 80746.172
A39: 1905 | B39: Land | C39: =+'App.2-CA_OldCGAAP_DepExp_2015'!C39+'App.2-CA_OldCGAAP_DepExp_2015'!F39 -> 8639.65 | E39: 8639.65 | G39: 8639.65 | H39: 0 | J39: 0 | K39: =-'App.2-BA_FA Cont 2016_Old CGAAP'!K40 -> 0 | L39: 0
A40: 1908 | B40: Buildings & Fixtures | C40: =+'App.2-CA_OldCGAAP_DepExp_2015'!C40+'App.2-CA_OldCGAAP_DepExp_2015'!F40 -> 1088697.62 | E40: 1088697.62 | G40: 1088697.62 | J40: 0 | K40: =-'App.2-BA_FA Cont 2016_Old CGAAP'!K41 -> 0 | L40: 0
A41: 1908 | B41: Buildings & Fixtures | C41: =+'App.2-CA_OldCGAAP_DepExp_2015'!C41+'App.2-CA_OldCGAAP_DepExp_2015'!F41 -> 0 | E41: 0 | G41: 0 | J41: 0 | K41: =-'App.2-BA_FA Cont 2016_Old CGAAP'!K42 -> 0 | L41: 0
A42: 1908 | B42: Buildings & Fixtures | C42: =+'App.2-CA_OldCGAAP_DepExp_2015'!C42+'App.2-CA_OldCGAAP_DepExp_2015'!F42 -> 0 | E42: 0 | G42: 0 | J42: 0 | K42: =-'App.2-BA_FA Cont 2016_Old CGAAP'!K43 -> 0 | L42: 0
A43: 1908 | B43: Buildings & Fixtures | C43: =+'App.2-CA_OldCGAAP_DepExp_2015'!C43+'App.2-CA_OldCGAAP_DepExp_2015'!F43 -> 0 | E43: 0 | G43: 0 | J43: 0 | K43: =-'App.2-BA_FA Cont 2016_Old CGAAP'!K44 -> 0 | L43: 0
A44: 1908 | B44: Buildings & Fixtures | C44: =+'App.2-CA_OldCGAAP_DepExp_2015'!C44+'App.2-CA_OldCGAAP_DepExp_2015'!F44 -> 0 | E44: 0 | G44: 0 | J44: 0 | K44: =-'App.2-BA_FA Cont 2016_Old CGAAP'!K45 -> 0 | L44: 0
A45: 1908 | B45: Buildings & Fixtures | C45: =+'App.2-CA_OldCGAAP_DepExp_2015'!C45+'App.2-CA_OldCGAAP_DepExp_2015'!F45 -> 0 | E45: 0 | G45: 0 | J45: 0 | K45: =-'App.2-BA_FA Cont 2016_Old CGAAP'!K46 -> 0 | L45: 0
A46: 1910 | B46: Leasehold Improvements | C46: =+'App.2-CA_OldCGAAP_DepExp_2015'!C46+'App.2-CA_OldCGAAP_DepExp_2015'!F46 -> 0 | E46: 0 | G46: 0 | H46: 10 | I46: 0.1 | J46: 0 | K46: =-'App.2-BA_FA Cont 2016_Old CGAAP'!K47 -> 0 | L46: 0
A47: 1910 | B47: Leasehold Improvements | C47: =+'App.2-CA_OldCGAAP_DepExp_2015'!C47+'App.2-CA_OldCGAAP_DepExp_2015'!F47 -> 100124.48 | E47: =C47-D47 -> 100124.48 | G47: =E47+0.5*F47 -> 100124.48 | H47: 9 | I47: =IF(H47=0,"",1/H47) -> 0.1111111111 | J47: =IF(H47=0,0,G47/H47) -> 11124.94222 | K47: =-'App.2-BA_FA Cont 2016_Old CGAAP'!K48 -> 0 | L47: =IF(ISERROR(+J47-K47), "", +J47-K47) -> 11124.94222
A48: 1915 | B48: Office Furniture & Equipment (10 years) | C48: =+'App.2-CA_OldCGAAP_DepExp_2015'!C48+'App.2-CA_OldCGAAP_DepExp_2015'!F48 -> 0 | E48: 0 | G48: 0 | H48: 10 | I48: 0.1 | J48: 0 | K48: =-'App.2-BA_FA Cont 2016_Old CGAAP'!K49 -> 0 | L48: 0
A49: 1915 | B49: Office Furniture & Equipment (5 years) | C49: =+'App.2-CA_OldCGAAP_DepExp_2015'!C49+'App.2-CA_OldCGAAP_DepExp_2015'!F49 -> 309003.005 | E49: 309003.005 | G49: 309003.005 | J49: 0 | K49: =-'App.2-BA_FA Cont 2016_Old CGAAP'!K50 -> 0 | L49: 0
A50: 1920 | B50: Computer Equipment - Hardware | C50: =+'App.2-CA_OldCGAAP_DepExp_2015'!C50+'App.2-CA_OldCGAAP_DepExp_2015'!F50 -> 0 | E50: 0 | G50: 0 | H50: 5 | I50: 0.2 | J50: 0 | K50: =-'App.2-BA_FA Cont 2016_Old CGAAP'!K51 -> 0 | L50: 0
A51: 1920 | B51: Computer Equip.-Hardware(Post Mar. 22/04) | C51: =+'App.2-CA_OldCGAAP_DepExp_2015'!C51+'App.2-CA_OldCGAAP_DepExp_2015'!F51 -> 0 | E51: 0 | G51: 0 | J51: 0 | K51: =-'App.2-BA_FA Cont 2016_Old CGAAP'!K52 -> 0 | L51: 0
A52: 1920 | B52: Computer Equip.-Hardware(Post Mar. 19/07) | C52: =+'App.2-CA_OldCGAAP_DepExp_2015'!C52+'App.2-CA_OldCGAAP_DepExp_2015'!F52 -> 152363.61 | E52: 152363.61 | G52: 152363.61 | H52: 5 | I52: 0.2 | J52: 30472.722 | K52: =-'App.2-BA_FA Cont 2016_Old CGAAP'!K53 -> 0 | L52: 30472.722
A53: 1930 | B53: Transportation Equipment - under 3 Tons | C53: =+'App.2-CA_OldCGAAP_DepExp_2015'!C53+'App.2-CA_OldCGAAP_DepExp_2015'!F53 -> 770754.57 | E53: 770754.57 | G53: 770754.57 | H53: 5 | I53: 0.2 | J53: 154150.914 | K53: =-'App.2-BA_FA Cont 2016_Old CGAAP'!K54 -> 0 | L53: 154150.914
A54: 1930 | B54: Transportation Equipment - 3 Tons & Over | C54: =+'App.2-CA_OldCGAAP_DepExp_2015'!C54+'App.2-CA_OldCGAAP_DepExp_2015'!F54 -> 19934.24 | E54: 19934.24 | G54: 19934.24 | H54: 8 | I54: 0.125 | J54: 2491.78 | K54: =-'App.2-BA_FA Cont 2016_Old CGAAP'!K55 -> 0 | L54: 2491.78
A55: 1935 | B55: Stores Equipment | C55: =+'App.2-CA_OldCGAAP_DepExp_2015'!C55+'App.2-CA_OldCGAAP_DepExp_2015'!F55 -> 94328.35 | E55: 94328.35 | G55: 94328.35 | H55: 10 | I55: 0.1 | J55: 9432.835 | K55: =-'App.2-BA_FA Cont 2016_Old CGAAP'!K56 -> 0 | L55: 9432.835
A56: 1940 | B56: Tools, Shop & Garage Equipment | C56: =+'App.2-CA_OldCGAAP_DepExp_2015'!C56+'App.2-CA_OldCGAAP_DepExp_2015'!F56 -> 56664.23 | E56: =C56-D56 -> 56664.23 | G56: =E56+0.5*F56 -> 56664.23 | H56: 10 | I56: =IF(H56=0,"",1/H56) -> 0.1 | J56: 5666.423 | K56: =-'App.2-BA_FA Cont 2016_Old CGAAP'!K57 -> 0 | L56: 5666.423
A57: 1945 | B57: Measurement & Testing Equipment | C57: =+'App.2-CA_OldCGAAP_DepExp_2015'!C57+'App.2-CA_OldCGAAP_DepExp_2015'!F57 -> 66172.85 | E57: 66172.85 | G57: 66172.85 | H57: 10 | I57: 0.1 | J57: 6617.285 | K57: =-'App.2-BA_FA Cont 2016_Old CGAAP'!K58 -> 0 | L57: 6617.285
A58: 1950 | B58: Power Operated Equipment | C58: =+'App.2-CA_OldCGAAP_DepExp_2015'!C58+'App.2-CA_OldCGAAP_DepExp_2015'!F58 -> 36119.57 | E58: 36119.57 | G58: 36119.57 | J58: 0 | K58: =-'App.2-BA_FA Cont 2016_Old CGAAP'!K59 -> 0 | L58: 0
A59: 1955 | B59: Communications Equipment | C59: =+'App.2-CA_OldCGAAP_DepExp_2015'!C59+'App.2-CA_OldCGAAP_DepExp_2015'!F59 -> 0 | E59: 0 | G59: 0 | H59: 5 | I59: 0.2 | J59: 0 | K59: =-'App.2-BA_FA Cont 2016_Old CGAAP'!K60 -> 0 | L59: 0
A60: 1955 | B60: Communication Equipment (Smart Meters) | C60: =+'App.2-CA_OldCGAAP_DepExp_2015'!C60+'App.2-CA_OldCGAAP_DepExp_2015'!F60 -> 12803.51 | E60: =C60-D60 -> 12803.51 | G60: =E60+0.5*F60 -> 12803.51 | I60: =IF(H60=0,"",1/H60) ->  | J60: =IF(H60=0,0,G60/H60) -> 0 | K60: =-'App.2-BA_FA Cont 2016_Old CGAAP'!K61 -> 0 | L60: 0
A61: 1960 | B61: Miscellaneous Equipment | C61: =+'App.2-CA_OldCGAAP_DepExp_2015'!C61+'App.2-CA_OldCGAAP_DepExp_2015'!F61 -> 0 | E61: 0 | G61: 0 | H61: 10 | I61: 0.1 | J61: 0 | K61: =-'App.2-BA_FA Cont 2016_Old CGAAP'!K62 -> 0 | L61: 0
A62: 1970 | B62: Load Management Controls Customer Premises | C62: =+'App.2-CA_OldCGAAP_DepExp_2015'!C62+'App.2-CA_OldCGAAP_DepExp_2015'!F62 -> 0 | E62: 0 | G62: =E62+0.5*F62 -> 0 | H62: 10 | I62: 0.1 | J62: 0 | K62: =-'App.2-BA_FA Cont 2016_Old CGAAP'!K63 -> 0 | L62: 0
A63: 1975 | B63: Load Management Controls Utility Premises | C63: =+'App.2-CA_OldCGAAP_DepExp_2015'!C63+'App.2-CA_OldCGAAP_DepExp_2015'!F63 -> 258806.31 | E63: 258806.31 | G63: 258806.31 | H63: 10 | I63: 0.1 | J63: 25880.631 | K63: =-'App.2-BA_FA Cont 2016_Old CGAAP'!K64 -> 0 | L63: 25880.631
A64: 1980 | B64: System Supervisor Equipment | C64: =+'App.2-CA_OldCGAAP_DepExp_2015'!C64+'App.2-CA_OldCGAAP_DepExp_2015'!F64 -> 2516.21 | E64: 2516.21 | G64: 2516.21 | H64: 5 | I64: 0.2 | J64: 503.242 | K64: =-'App.2-BA_FA Cont 2016_Old CGAAP'!K65 -> 0 | L64: 503.242
A65: 1985 | B65: Miscellaneous Fixed Assets | C65: =+'App.2-CA_OldCGAAP_DepExp_2015'!C65+'App.2-CA_OldCGAAP_DepExp_2015'!F65 -> 0 | E65: 0 | G65: 0 | J65: 0 | K65: =-'App.2-BA_FA Cont 2016_Old CGAAP'!K66 -> 0 | L65: 0
A66: 1990 | B66: Other Tangible Property | C66: =+'App.2-CA_OldCGAAP_DepExp_2015'!C66+'App.2-CA_OldCGAAP_DepExp_2015'!F66 -> -1762729.64 | E66: -1762729.64 | G66: -1762729.64 | J66: 0 | K66: =-'App.2-BA_FA Cont 2016_Old CGAAP'!K67 -> 0 | L66: 0
A67: 1995 | B67: Contributions & Grants - O/H Conductor | C67: =+'App.2-CA_OldCGAAP_DepExp_2015'!C67+'App.2-CA_OldCGAAP_DepExp_2015'!F67 -> 0 | E67: 0 | G67: 0 | H67: 25 | I67: 0.04 | J67: 0 | K67: =-'App.2-BA_FA Cont 2016_Old CGAAP'!K68 -> 0 | L67: 0
A68: 1995 | B68: Contributions & Grants - Poles | C68: =+'App.2-CA_OldCGAAP_DepExp_2015'!C68+'App.2-CA_OldCGAAP_DepExp_2015'!F68 -> 0 | E68: 0 | G68: 0 | H68: 25 | I68: 0.04 | J68: 0 | K68: =-'App.2-BA_FA Cont 2016_Old CGAAP'!K69 -> 0 | L68: 0
A69: 1995 | B69: Contributions & Grants - Transformers | C69: =+'App.2-CA_OldCGAAP_DepExp_2015'!C69+'App.2-CA_OldCGAAP_DepExp_2015'!F69 -> 4602.5 | E69: 4602.5 | G69: 4602.5 | H69: 25 | I69: 0.04 | J69: 184.1 | K69: =-'App.2-BA_FA Cont 2016_Old CGAAP'!K70 -> 0 | L69: 184.1
A70: 1995 | B70: Contributions & Grants - Meters | C70: =+'App.2-CA_OldCGAAP_DepExp_2015'!C70+'App.2-CA_OldCGAAP_DepExp_2015'!F70 -> 0 | E70: 0 | G70: 0 | H70: 15 | I70: 0.06666666667 | J70: 0 | K70: =-'App.2-BA_FA Cont 2016_Old CGAAP'!K71 -> 0 | L70: 0
A71: 1609 | B71: Other Tangible Property | C71: =+'App.2-CA_OldCGAAP_DepExp_2015'!C71+'App.2-CA_OldCGAAP_DepExp_2015'!F71 -> 0 | E71: 0 | G71: 0 | J71: 0 | K71: =-'App.2-BA_FA Cont 2016_Old CGAAP'!K72 -> 0 | L71: 0
E72: 0 | G72: 0 | J72: 0 | L72: 0
E73: 0 | G73: 0 | J73: 0 | L73: 0
E74: 0 | G74: 0 | J74: 0 | L74: 0
G75: 0 | J75: 0 | K75: =-'App.2-BA_FA Cont 2016_Old CGAAP'!K63 -> 0 | L75: 0
B77: Total | C77: =SUM(C16:C76) -> 24083429.34 | D77: =SUM(D16:D76) -> 0 | E77: =SUM(E16:E76) -> 24083429.34 | F77: =SUM(F16:F76) -> 0 | G77: =SUM(G16:G76) -> 24083429.34 | J77: =SUM(J16:J76) -> 1252769.698 | K77: =SUM(K16:K76) -> 0 | L77: 1252769.698
C82: =+'App.2-BA_FA Cont 2016_Old CGAAP'!E62 -> 23980562.18 | F82: =+'App.2-BA_FA Cont 2016_Old CGAAP'!F62 -> 0 | K82: =-'App.2-BA_FA Cont 2016_Old CGAAP'!K64 -> 0
C83: =+C77-C82 -> 102867.15 | F83: =+F77-F82 -> 0 | K83: =+K77-K82 -> 0

Sheet App.2-CA_OldCGAAP_DepExp_2017 (hidden)
K1: File Number: | L1: =EBNUMBER -> 
K2: Exhibit:
K3: Tab:
K4: Schedule:
K5: Page:
K7: Date:
A9: Appendix 2-CA
A10: Depreciation and Amortization Expense
B11: Assumes the applicant made capitalization and depreciation expense accounting policy changes under CGAAP effective January 1, 2013 and will adopt IFRS for financial reporting purposes effective January 1, 2015.
C13: Year | D13: 2017 | E13: Former CGAAP
A14: Account | B14: Description | C14: Opening Regulatory Gross PP&E as at Jan 1, 2017 | D14: Less Fully Depreciated | E14: Net for Depreciation | F14: Additions | G14: Total for Depreciation | H14: Years | I14: Depreciation Rate | J14: 2017 Depreciation Expense | K14: 2017 Depreciation Expense - old CGAAP (l) | L14: Variance 2
C15: (a) | D15: (b) | E15: (c) | F15: (d) | G15: (e) = (c) + ½ x (d) 1 | H15: (f) | I15: (g) = 1 / (f) | J15: (h) = (e) / (f) | L15: (m) = (h) - (l)
A16: 1611 | B16: Computer Software (Formally known as Account 1925) | C16: =+'App.2-CA_OldCGAAP_DepExp_2016'!C16+'App.2-CA_OldCGAAP_DepExp_2016'!F16 -> 612784.5 | E16: =C16-D16 -> 612784.5 | G16: =E16+0.5*F16 -> 612784.5 | H16: 5 | I16: =IF(H16=0,"",1/H16) -> 0.2 | J16: =IF(H16=0,0,G16/H16) -> 122556.9 | K16: =-'App.2-BA_FA Cont 2017_Old CGAAP'!K17 -> 0 | L16: =IF(ISERROR(+J16-K16), "", +J16-K16) -> 122556.9
A17: 1612 | B17: Land Rights (Formally known as Account 1906) | C17: =+'App.2-CA_OldCGAAP_DepExp_2016'!C17+'App.2-CA_OldCGAAP_DepExp_2016'!F17 -> 37132.16 | E17: =C17-D17 -> 37132.16 | G17: =E17+0.5*F17 -> 37132.16 | H17: 20 | I17: 0.05 | J17: 1856.608 | K17: =-'App.2-BA_FA Cont 2017_Old CGAAP'!K18 -> 0 | L17: =IF(ISERROR(+J17-K17), "", +J17-K17) -> 1856.608
A18: 1612 | B18: Land Rights (Formally known as Account 1906) | C18: =+'App.2-CA_OldCGAAP_DepExp_2016'!C18+'App.2-CA_OldCGAAP_DepExp_2016'!F18 -> 0 | E18: 0 | G18: 0 | J18: 0 | K18: =-'App.2-BA_FA Cont 2017_Old CGAAP'!K19 -> 0 | L18: =IF(ISERROR(+J18-K18), "", +J18-K18) -> 0
A19: 1805 | B19: Land | C19: =+'App.2-CA_OldCGAAP_DepExp_2016'!C19+'App.2-CA_OldCGAAP_DepExp_2016'!F19 -> 46065.54 | E19: 46065.54 | G19: 46065.54 | H19: 0 | J19: 0 | K19: =-'App.2-BA_FA Cont 2017_Old CGAAP'!K20 -> 0 | L19: 0
A20: 1808 | B20: Buildings - Equipment | C20: =+'App.2-CA_OldCGAAP_DepExp_2016'!C20+'App.2-CA_OldCGAAP_DepExp_2016'!F20 -> 2307.56 | E20: 2307.56 | G20: 2307.56 | J20: 0 | K20: =-'App.2-BA_FA Cont 2017_Old CGAAP'!K21 -> 0 | L20: 0
A21: 1808 | B21: Buildings - Equipment | C21: =+'App.2-CA_OldCGAAP_DepExp_2016'!C21+'App.2-CA_OldCGAAP_DepExp_2016'!F21 -> 0 | E21: 0 | G21: 0 | J21: 0 | K21: =-'App.2-BA_FA Cont 2017_Old CGAAP'!K22 -> 0 | L21: 0
A22: 1808 | B22: Buildings - Equipment | C22: =+'App.2-CA_OldCGAAP_DepExp_2016'!C22+'App.2-CA_OldCGAAP_DepExp_2016'!F22 -> 0 | E22: 0 | G22: 0 | J22: 0 | K22: =-'App.2-BA_FA Cont 2017_Old CGAAP'!K23 -> 0 | L22: 0
A23: 1808 | B23: Buildings - Major Repairs | C23: =+'App.2-CA_OldCGAAP_DepExp_2016'!C23+'App.2-CA_OldCGAAP_DepExp_2016'!F23 -> 0 | E23: 0 | G23: 0 | J23: 0 | K23: =-'App.2-BA_FA Cont 2017_Old CGAAP'!K24 -> 0 | L23: 0
A24: 1808 | B24: Buildings - Major Repairs | C24: =+'App.2-CA_OldCGAAP_DepExp_2016'!C24+'App.2-CA_OldCGAAP_DepExp_2016'!F24 -> 0 | E24: 0 | G24: 0 | J24: 0 | K24: =-'App.2-BA_FA Cont 2017_Old CGAAP'!K25 -> 0 | L24: 0
A25: 1808 | B25: Buildings - Brick, Stone, Concrete and Steel | C25: =+'App.2-CA_OldCGAAP_DepExp_2016'!C25+'App.2-CA_OldCGAAP_DepExp_2016'!F25 -> 0 | E25: 0 | G25: 0 | H25: 50 | I25: 0.02 | J25: 0 | K25: =-'App.2-BA_FA Cont 2017_Old CGAAP'!K26 -> 0 | L25: 0
A26: 1808 | B26: Buildings - Other | C26: =+'App.2-CA_OldCGAAP_DepExp_2016'!C26+'App.2-CA_OldCGAAP_DepExp_2016'!F26 -> 0 | E26: 0 | G26: 0 | H26: 25 | I26: 0.04 | J26: 0 | K26: =-'App.2-BA_FA Cont 2017_Old CGAAP'!K27 -> 0 | L26: 0
A27: 1810 | B27: Leasehold Improvements | C27: =+'App.2-CA_OldCGAAP_DepExp_2016'!C27+'App.2-CA_OldCGAAP_DepExp_2016'!F27 -> 0 | E27: 0 | G27: 0 | J27: 0 | K27: =-'App.2-BA_FA Cont 2017_Old CGAAP'!K28 -> 0 | L27: 0
A28: 1815 | B28: Transformer Station Equipment >50 kV | C28: =+'App.2-CA_OldCGAAP_DepExp_2016'!C28+'App.2-CA_OldCGAAP_DepExp_2016'!F28 -> 0 | E28: 0 | G28: 0 | J28: 0 | K28: =-'App.2-BA_FA Cont 2017_Old CGAAP'!K29 -> 0 | L28: 0
A29: 1820 | B29: Distribution Station Equipment <50 kV | C29: =+'App.2-CA_OldCGAAP_DepExp_2016'!C29+'App.2-CA_OldCGAAP_DepExp_2016'!F29 -> 5555174 | E29: 5555174 | G29: 5555174 | H29: 30 | I29: 0.03333333333 | J29: 185172.4667 | K29: =-'App.2-BA_FA Cont 2017_Old CGAAP'!K30 -> 0 | L29: 185172.4667
A30: 1825 | B30: Storage Battery Equipment | C30: =+'App.2-CA_OldCGAAP_DepExp_2016'!C30+'App.2-CA_OldCGAAP_DepExp_2016'!F30 -> 2154.99 | E30: 2154.99 | G30: 2154.99 | J30: 0 | K30: =-'App.2-BA_FA Cont 2017_Old CGAAP'!K31 -> 0 | L30: 0
A31: 1830 | B31: Poles, Towers & Fixtures | C31: =+'App.2-CA_OldCGAAP_DepExp_2016'!C31+'App.2-CA_OldCGAAP_DepExp_2016'!F31 -> 2462181.46 | E31: 2462181.46 | G31: 2462181.46 | H31: 25 | I31: 0.04 | J31: 98487.2584 | K31: =-'App.2-BA_FA Cont 2017_Old CGAAP'!K32 -> 0 | L31: 98487.2584
A32: 1835 | B32: Overhead Conductors & Devices | C32: =+'App.2-CA_OldCGAAP_DepExp_2016'!C32+'App.2-CA_OldCGAAP_DepExp_2016'!F32 -> 1772566.31 | E32: 1772566.31 | G32: 1772566.31 | H32: 25 | I32: 0.04 | J32: 70902.6524 | K32: =-'App.2-BA_FA Cont 2017_Old CGAAP'!K33 -> 0 | L32: 70902.6524
A33: 1840 | B33: Underground Conduit | C33: =+'App.2-CA_OldCGAAP_DepExp_2016'!C33+'App.2-CA_OldCGAAP_DepExp_2016'!F33 -> 1587623.5 | E33: 1587623.5 | G33: 1587623.5 | H33: 25 | I33: 0.04 | J33: 63504.94 | K33: =-'App.2-BA_FA Cont 2017_Old CGAAP'!K34 -> 0 | L33: 63504.94
A34: 1845 | B34: Underground Conductors & Devices | C34: =+'App.2-CA_OldCGAAP_DepExp_2016'!C34+'App.2-CA_OldCGAAP_DepExp_2016'!F34 -> 2087032.63 | E34: 2087032.63 | G34: 2087032.63 | H34: 25 | I34: 0.04 | J34: 83481.3052 | K34: =-'App.2-BA_FA Cont 2017_Old CGAAP'!K35 -> 0 | L34: 83481.3052
A35: 1850 | B35: Line Transformers | C35: =+'App.2-CA_OldCGAAP_DepExp_2016'!C35+'App.2-CA_OldCGAAP_DepExp_2016'!F35 -> 3299452.63 | E35: 3299452.63 | G35: 3299452.63 | H35: 25 | I35: 0.04 | J35: 131978.1052 | K35: =-'App.2-BA_FA Cont 2017_Old CGAAP'!K36 -> 0 | L35: 131978.1052
A36: 1855 | B36: Services (Overhead & Underground) | C36: =+'App.2-CA_OldCGAAP_DepExp_2016'!C36+'App.2-CA_OldCGAAP_DepExp_2016'!F36 -> 3311858.78 | E36: 3311858.78 | G36: 3311858.78 | H36: 25 | I36: 0.04 | J36: 132474.3512 | K36: =-'App.2-BA_FA Cont 2017_Old CGAAP'!K37 -> 0 | L36: 132474.3512
A37: 1860 | B37: Meters | C37: =+'App.2-CA_OldCGAAP_DepExp_2016'!C37+'App.2-CA_OldCGAAP_DepExp_2016'!F37 -> 877101.63 | E37: 877101.63 | G37: 877101.63 | H37: 25 | I37: 0.04 | J37: 35084.0652 | K37: =-'App.2-BA_FA Cont 2017_Old CGAAP'!K38 -> 0 | L37: 35084.0652
A38: 1860 | B38: Meters (Smart Meters) | C38: =+'App.2-CA_OldCGAAP_DepExp_2016'!C38+'App.2-CA_OldCGAAP_DepExp_2016'!F38 -> 1211192.58 | E38: 1211192.58 | G38: 1211192.58 | H38: 15 | I38: 0.06666666667 | J38: 80746.172 | K38: =-'App.2-BA_FA Cont 2017_Old CGAAP'!K39 -> 0 | L38: 80746.172
A39: 1860 | B39: Smart Meter - addition | C39: =+'App.2-CA_OldCGAAP_DepExp_2016'!C39+'App.2-CA_OldCGAAP_DepExp_2016'!F39 -> 8639.65 | E39: 8639.65 | G39: 8639.65 | H39: 15 | I39: 0.06666666667 | J39: 575.9766667 | K39: =-'App.2-BA_FA Cont 2017_Old CGAAP'!K40 -> 0 | L39: 0.003333333334
A40: 1905 | B40: Land | C40: =+'App.2-CA_OldCGAAP_DepExp_2016'!C40+'App.2-CA_OldCGAAP_DepExp_2016'!F40 -> 1088697.62 | E40: 1088697.62 | G40: 1088697.62 | H40: 0 | J40: 0 | K40: =-'App.2-BA_FA Cont 2017_Old CGAAP'!K41 -> 0 | L40: 0
A41: 1908 | B41: Buildings & Fixtures | C41: =+'App.2-CA_OldCGAAP_DepExp_2016'!C41+'App.2-CA_OldCGAAP_DepExp_2016'!F41 -> 0 | E41: 0 | G41: 0 | J41: 0 | K41: =-'App.2-BA_FA Cont 2017_Old CGAAP'!K42 -> 0 | L41: 0
A42: 1908 | B42: Buildings & Fixtures | C42: =+'App.2-CA_OldCGAAP_DepExp_2016'!C42+'App.2-CA_OldCGAAP_DepExp_2016'!F42 -> 0 | E42: 0 | G42: 0 | J42: 0 | K42: =-'App.2-BA_FA Cont 2017_Old CGAAP'!K43 -> 0 | L42: 0
A43: 1908 | B43: Buildings & Fixtures | C43: =+'App.2-CA_OldCGAAP_DepExp_2016'!C43+'App.2-CA_OldCGAAP_DepExp_2016'!F43 -> 0 | E43: 0 | G43: 0 | J43: 0 | K43: =-'App.2-BA_FA Cont 2017_Old CGAAP'!K44 -> 0 | L43: 0
A44: 1908 | B44: Buildings & Fixtures | C44: =+'App.2-CA_OldCGAAP_DepExp_2016'!C44+'App.2-CA_OldCGAAP_DepExp_2016'!F44 -> 0 | E44: 0 | G44: 0 | J44: 0 | K44: =-'App.2-BA_FA Cont 2017_Old CGAAP'!K45 -> 0 | L44: 0
A45: 1908 | B45: Buildings & Fixtures | C45: =+'App.2-CA_OldCGAAP_DepExp_2016'!C45+'App.2-CA_OldCGAAP_DepExp_2016'!F45 -> 0 | E45: 0 | G45: 0 | J45: 0 | K45: =-'App.2-BA_FA Cont 2017_Old CGAAP'!K46 -> 0 | L45: 0
A46: 1908 | B46: Buildings & Fixtures | C46: =+'App.2-CA_OldCGAAP_DepExp_2016'!C46+'App.2-CA_OldCGAAP_DepExp_2016'!F46 -> 0 | E46: 0 | G46: 0 | J46: 0 | K46: =-'App.2-BA_FA Cont 2017_Old CGAAP'!K47 -> 0 | L46: 0
A47: 1910 | B47: Leasehold Improvements | C47: =+'App.2-CA_OldCGAAP_DepExp_2016'!C47+'App.2-CA_OldCGAAP_DepExp_2016'!F47 -> 100124.48 | E47: 100124.48 | G47: 100124.48 | H47: 10 | I47: 0.1 | J47: 10012.448 | K47: =-'App.2-BA_FA Cont 2017_Old CGAAP'!K48 -> 0 | L47: 10012.448
A48: 1910 | B48: Leasehold Improvements | C48: =+'App.2-CA_OldCGAAP_DepExp_2016'!C48+'App.2-CA_OldCGAAP_DepExp_2016'!F48 -> 0 | E48: 0 | G48: 0 | H48: 9 | I48: 0.1111111111 | J48: 0 | K48: =-'App.2-BA_FA Cont 2017_Old CGAAP'!K49 -> 0 | L48: 0
A49: 1915 | B49: Office Furniture & Equipment (10 years) | C49: =+'App.2-CA_OldCGAAP_DepExp_2016'!C49+'App.2-CA_OldCGAAP_DepExp_2016'!F49 -> 309003.005 | E49: 309003.005 | G49: 309003.005 | H49: 10 | I49: 0.1 | J49: 30900.3005 | K49: =-'App.2-BA_FA Cont 2017_Old CGAAP'!K50 -> 0 | L49: 30900.3005
A50: 1915 | B50: Office Furniture & Equipment (5 years) | C50: =+'App.2-CA_OldCGAAP_DepExp_2016'!C50+'App.2-CA_OldCGAAP_DepExp_2016'!F50 -> 0 | E50: 0 | G50: 0 | J50: 0 | K50: =-'App.2-BA_FA Cont 2017_Old CGAAP'!K51 -> 0 | L50: 0
A51: 1920 | B51: Computer Equipment - Hardware | C51: =+'App.2-CA_OldCGAAP_DepExp_2016'!C51+'App.2-CA_OldCGAAP_DepExp_2016'!F51 -> 0 | E51: 0 | G51: 0 | H51: 5 | I51: 0.2 | J51: 0 | K51: =-'App.2-BA_FA Cont 2017_Old CGAAP'!K52 -> 0 | L51: 0
A52: 1920 | B52: Computer Equip.-Hardware(Post Mar. 22/04) | C52: =+'App.2-CA_OldCGAAP_DepExp_2016'!C52+'App.2-CA_OldCGAAP_DepExp_2016'!F52 -> 152363.61 | E52: 152363.61 | G52: 152363.61 | J52: 0 | K52: =-'App.2-BA_FA Cont 2017_Old CGAAP'!K53 -> 0 | L52: 0
A53: 1920 | B53: Computer Equip.-Hardware(Post Mar. 19/07) | C53: =+'App.2-CA_OldCGAAP_DepExp_2016'!C53+'App.2-CA_OldCGAAP_DepExp_2016'!F53 -> 770754.57 | E53: 770754.57 | G53: 770754.57 | H53: 5 | I53: 0.2 | J53: 154150.914 | K53: =-'App.2-BA_FA Cont 2017_Old CGAAP'!K54 -> 0 | L53: 154150.914
A54: 1930 | B54: Transportation Equipment - under 3 Tons | C54: =+'App.2-CA_OldCGAAP_DepExp_2016'!C54+'App.2-CA_OldCGAAP_DepExp_2016'!F54 -> 19934.24 | E54: 19934.24 | G54: 19934.24 | H54: 5 | I54: 0.2 | J54: 3986.848 | K54: =-'App.2-BA_FA Cont 2017_Old CGAAP'!K55 -> 0 | L54: 3986.848
A55: 1930 | B55: Transportation Equipment - 3 Tons & Over | C55: =+'App.2-CA_OldCGAAP_DepExp_2016'!C55+'App.2-CA_OldCGAAP_DepExp_2016'!F55 -> 94328.35 | E55: 94328.35 | G55: 94328.35 | H55: 8 | I55: 0.125 | J55: 11791.04375 | K55: =-'App.2-BA_FA Cont 2017_Old CGAAP'!K56 -> 0 | L55: 11791.04375
A56: 1935 | B56: Stores Equipment | C56: =+'App.2-CA_OldCGAAP_DepExp_2016'!C56+'App.2-CA_OldCGAAP_DepExp_2016'!F56 -> 56664.23 | E56: 56664.23 | G56: 56664.23 | H56: 10 | I56: 0.1 | J56: 5666.423 | K56: =-'App.2-BA_FA Cont 2017_Old CGAAP'!K57 -> 0 | L56: 5666.423
A57: 1940 | B57: Tools, Shop & Garage Equipment | C57: =+'App.2-CA_OldCGAAP_DepExp_2016'!C57+'App.2-CA_OldCGAAP_DepExp_2016'!F57 -> 66172.85 | E57: =C57-D57 -> 66172.85 | G57: =E57+0.5*F57 -> 66172.85 | H57: 10 | I57: =IF(H57=0,"",1/H57) -> 0.1 | J57: =IF(H57=0,0,G57/H57) -> 6617.285 | K57: =-'App.2-BA_FA Cont 2017_Old CGAAP'!K58 -> 0 | L57: 6617.285
A58: 1945 | B58: Measurement & Testing Equipment | C58: =+'App.2-CA_OldCGAAP_DepExp_2016'!C58+'App.2-CA_OldCGAAP_DepExp_2016'!F58 -> 36119.57 | E58: 36119.57 | G58: 36119.57 | H58: 10 | I58: 0.1 | J58: 3611.957 | K58: =-'App.2-BA_FA Cont 2017_Old CGAAP'!K59 -> 0 | L58: 3611.957
A59: 1950 | B59: Power Operated Equipment | C59: =+'App.2-CA_OldCGAAP_DepExp_2016'!C59+'App.2-CA_OldCGAAP_DepExp_2016'!F59 -> 0 | E59: 0 | G59: 0 | J59: 0 | K59: =-'App.2-BA_FA Cont 2017_Old CGAAP'!K60 -> 0 | L59: 0
A60: 1955 | B60: Communications Equipment | C60: =+'App.2-CA_OldCGAAP_DepExp_2016'!C60+'App.2-CA_OldCGAAP_DepExp_2016'!F60 -> 12803.51 | E60: 12803.51 | G60: 12803.51 | H60: 5 | I60: 0.2 | J60: 2560.702 | K60: =-'App.2-BA_FA Cont 2017_Old CGAAP'!K61 -> 0 | L60: 2560.702
A61: 1955 | B61: Communication Equipment (Smart Meters) | C61: =+'App.2-CA_OldCGAAP_DepExp_2016'!C61+'App.2-CA_OldCGAAP_DepExp_2016'!F61 -> 0 | E61: =C61-D61 -> 0 | G61: =E61+0.5*F61 -> 0 | I61: =IF(H61=0,"",1/H61) ->  | J61: =IF(H61=0,0,G61/H61) -> 0 | K61: =-'App.2-BA_FA Cont 2017_Old CGAAP'!K62 -> 0 | L61: 0
A62: 1960 | B62: Miscellaneous Equipment | C62: =+'App.2-CA_OldCGAAP_DepExp_2016'!C62+'App.2-CA_OldCGAAP_DepExp_2016'!F62 -> 0 | E62: 0 | G62: 0 | H62: 10 | I62: 0.1 | J62: 0 | K62: =-'App.2-BA_FA Cont 2017_Old CGAAP'!K63 -> 0 | L62: 0
A63: 1970 | B63: Load Management Controls Customer Premises | C63: =+'App.2-CA_OldCGAAP_DepExp_2016'!C63+'App.2-CA_OldCGAAP_DepExp_2016'!F63 -> 258806.31 | E63: 258806.31 | G63: =E63+0.5*F63 -> 258806.31 | H63: 10 | I63: 0.1 | J63: 25880.631 | K63: =-'App.2-BA_FA Cont 2017_Old CGAAP'!K64 -> 0 | L63: 25880.631
A64: 1975 | B64: Load Management Controls Utility Premises | C64: =+'App.2-CA_OldCGAAP_DepExp_2016'!C64+'App.2-CA_OldCGAAP_DepExp_2016'!F64 -> 2516.21 | E64: 2516.21 | G64: 2516.21 | H64: 10 | I64: 0.1 | J64: 251.621 | K64: =-'App.2-BA_FA Cont 2017_Old CGAAP'!K65 -> 0 | L64: 251.621
A65: 1980 | B65: System Supervisor Equipment | C65: =+'App.2-CA_OldCGAAP_DepExp_2016'!C65+'App.2-CA_OldCGAAP_DepExp_2016'!F65 -> 0 | E65: 0 | G65: 0 | H65: 20 | I65: 0.05 | J65: 0 | K65: =-'App.2-BA_FA Cont 2017_Old CGAAP'!K66 -> 0 | L65: 0
A66: 1985 | B66: Miscellaneous Fixed Assets | C66: =+'App.2-CA_OldCGAAP_DepExp_2016'!C66+'App.2-CA_OldCGAAP_DepExp_2016'!F66 -> -1762729.64 | E66: -1762729.64 | G66: -1762729.64 | J66: 0 | K66: =-'App.2-BA_FA Cont 2017_Old CGAAP'!K67 -> 0 | L66: 0
A67: 1990 | B67: Other Tangible Property | C67: =+'App.2-CA_OldCGAAP_DepExp_2016'!C67+'App.2-CA_OldCGAAP_DepExp_2016'!F67 -> 0 | E67: 0 | G67: 0 | J67: 0 | K67: =-'App.2-BA_FA Cont 2017_Old CGAAP'!K68 -> 0 | L67: 0
A68: 1995 | B68: Contributions & Grants - O/H Conductor | C68: =+'App.2-CA_OldCGAAP_DepExp_2016'!C68+'App.2-CA_OldCGAAP_DepExp_2016'!F68 -> 0 | E68: 0 | G68: 0 | H68: 25 | I68: 0.04 | J68: 0 | K68: =-'App.2-BA_FA Cont 2017_Old CGAAP'!K69 -> 0 | L68: 0
A69: 1995 | B69: Contributions & Grants - Poles | C69: =+'App.2-CA_OldCGAAP_DepExp_2016'!C69+'App.2-CA_OldCGAAP_DepExp_2016'!F69 -> 4602.5 | E69: 4602.5 | G69: 4602.5 | H69: 25 | I69: 0.04 | J69: 184.1 | K69: =-'App.2-BA_FA Cont 2017_Old CGAAP'!K70 -> 0 | L69: 184.1
A70: 1995 | B70: Contributions & Grants - Transformers | C70: =+'App.2-CA_OldCGAAP_DepExp_2016'!C70+'App.2-CA_OldCGAAP_DepExp_2016'!F70 -> 0 | E70: 0 | G70: 0 | H70: 25 | I70: 0.04 | J70: 0 | K70: =-'App.2-BA_FA Cont 2017_Old CGAAP'!K71 -> 0 | L70: 0
A71: 1995 | B71: Contributions & Grants - Meters | C71: =+'App.2-CA_OldCGAAP_DepExp_2016'!C71+'App.2-CA_OldCGAAP_DepExp_2016'!F71 -> 0 | E71: 0 | G71: 0 | H71: 15 | I71: 0.06666666667 | J71: 0 | K71: =-'App.2-BA_FA Cont 2017_Old CGAAP'!K72 -> 0 | L71: 0
A72: 1609 | B72: Other Tangible Property | C72: =+'App.2-CA_OldCGAAP_DepExp_2016'!C72+'App.2-CA_OldCGAAP_DepExp_2016'!F72 -> 0 | E72: 0 | G72: 0 | J72: 0 | K72: =-'App.2-BA_FA Cont 2017_Old CGAAP'!K73 -> 0 | L72: 0
C73: =+'App.2-CA_OldCGAAP_DepExp_2016'!C72+'App.2-CA_OldCGAAP_DepExp_2016'!F72 -> 0 | E73: 0 | G73: 0 | J73: 0 | L73: 0
C74: =+'App.2-CA_OldCGAAP_DepExp_2016'!C73+'App.2-CA_OldCGAAP_DepExp_2016'!F73 -> 0 | E74: 0 | G74: 0 | J74: 0 | L74: 0
C75: =+'App.2-CA_OldCGAAP_DepExp_2016'!C74+'App.2-CA_OldCGAAP_DepExp_2016'!F74 -> 0 | E75: 0 | G75: 0 | J75: 0 | L75: 0
G76: 0 | J76: 0 | K76: =-'App.2-BA_FA Cont 2017_Old CGAAP'!K64 -> 0 | L76: 0
B78: Total | C78: =SUM(C16:C77) -> 24083429.34 | D78: =SUM(D16:D77) -> 0 | E78: =SUM(E16:E77) -> 24083429.34 | F78: =SUM(F16:F77) -> 0 | G78: =SUM(G16:G77) -> 24083429.34 | J78: =SUM(J16:J77) -> 1262435.074 | K78: =SUM(K16:K77) -> 0 | L78: 1261859.101
C83: =+'App.2-BA_FA Cont 2017_Old CGAAP'!E63 -> 23989201.83 | F83: =+'App.2-BA_FA Cont 2017_Old CGAAP'!F63 -> 0 | K83: =-'App.2-BA_FA Cont 2017_Old CGAAP'!K65 -> 0
C84: =+C78-C83 -> 94227.5 | F84: =+F78-F83 -> 0 | K84: =+K78-K83 -> 0

Sheet App.2-CA_OldCGAAP_DepExp_2018 (hidden)
K1: File Number: | L1: =EBNUMBER -> 
K2: Exhibit:
K3: Tab:
K4: Schedule:
K5: Page:
K7: Date:
A9: Appendix 2-CA
A10: Depreciation and Amortization Expense
B11: Assumes the applicant made capitalization and depreciation expense accounting policy changes under CGAAP effective January 1, 2013 and will adopt IFRS for financial reporting purposes effective January 1, 2015.
C13: Year | D13: 2017 | E13: Former CGAAP
A14: Account | B14: Description | C14: Opening Regulatory Gross PP&E as at Jan 1, 2017 | D14: Less Fully Depreciated | E14: Net for Depreciation | F14: Additions | G14: Total for Depreciation | H14: Years | I14: Depreciation Rate | J14: 2017 Depreciation Expense | K14: 2017 Depreciation Expense - old CGAAP (l) | L14: Variance 2
C15: (a) | D15: (b) | E15: (c) | F15: (d) | G15: (e) = (c) + ½ x (d) 1 | H15: (f) | I15: (g) = 1 / (f) | J15: (h) = (e) / (f) | L15: (m) = (h) - (l)
A16: 1611 | B16: Computer Software (Formally known as Account 1925) | C16: =+'App.2-CA_OldCGAAP_DepExp_2016'!C16+'App.2-CA_OldCGAAP_DepExp_2016'!F16 -> 612784.5 | E16: =C16-D16 -> 612784.5 | G16: =E16+0.5*F16 -> 612784.5 | H16: 5 | I16: =IF(H16=0,"",1/H16) -> 0.2 | J16: =IF(H16=0,0,G16/H16) -> 122556.9 | K16: =-'App.2-BA_FA Cont 2017_Old CGAAP'!K17 -> 0 | L16: =IF(ISERROR(+J16-K16), "", +J16-K16) -> 122556.9
A17: 1612 | B17: Land Rights (Formally known as Account 1906) | C17: =+'App.2-CA_OldCGAAP_DepExp_2016'!C17+'App.2-CA_OldCGAAP_DepExp_2016'!F17 -> 37132.16 | E17: =C17-D17 -> 37132.16 | G17: =E17+0.5*F17 -> 37132.16 | H17: 20 | I17: 0.05 | J17: 1856.608 | K17: =-'App.2-BA_FA Cont 2017_Old CGAAP'!K18 -> 0 | L17: =IF(ISERROR(+J17-K17), "", +J17-K17) -> 1856.608
A18: 1612 | B18: Land Rights (Formally known as Account 1906) | C18: =+'App.2-CA_OldCGAAP_DepExp_2016'!C18+'App.2-CA_OldCGAAP_DepExp_2016'!F18 -> 0 | E18: 0 | G18: 0 | J18: 0 | K18: =-'App.2-BA_FA Cont 2017_Old CGAAP'!K19 -> 0 | L18: =IF(ISERROR(+J18-K18), "", +J18-K18) -> 0
A19: 1805 | B19: Land | C19: =+'App.2-CA_OldCGAAP_DepExp_2016'!C19+'App.2-CA_OldCGAAP_DepExp_2016'!F19 -> 46065.54 | E19: 46065.54 | G19: 46065.54 | H19: 0 | J19: 0 | K19: =-'App.2-BA_FA Cont 2017_Old CGAAP'!K20 -> 0 | L19: 0
A20: 1808 | B20: Buildings - Equipment | C20: =+'App.2-CA_OldCGAAP_DepExp_2016'!C20+'App.2-CA_OldCGAAP_DepExp_2016'!F20 -> 2307.56 | E20: 2307.56 | G20: 2307.56 | J20: 0 | K20: =-'App.2-BA_FA Cont 2017_Old CGAAP'!K21 -> 0 | L20: 0
A21: 1808 | B21: Buildings - Equipment | C21: =+'App.2-CA_OldCGAAP_DepExp_2016'!C21+'App.2-CA_OldCGAAP_DepExp_2016'!F21 -> 0 | E21: 0 | G21: 0 | J21: 0 | K21: =-'App.2-BA_FA Cont 2017_Old CGAAP'!K22 -> 0 | L21: 0
A22: 1808 | B22: Buildings - Equipment | C22: =+'App.2-CA_OldCGAAP_DepExp_2016'!C22+'App.2-CA_OldCGAAP_DepExp_2016'!F22 -> 0 | E22: 0 | G22: 0 | J22: 0 | K22: =-'App.2-BA_FA Cont 2017_Old CGAAP'!K23 -> 0 | L22: 0
A23: 1808 | B23: Buildings - Major Repairs | C23: =+'App.2-CA_OldCGAAP_DepExp_2016'!C23+'App.2-CA_OldCGAAP_DepExp_2016'!F23 -> 0 | E23: 0 | G23: 0 | J23: 0 | K23: =-'App.2-BA_FA Cont 2017_Old CGAAP'!K24 -> 0 | L23: 0
A24: 1808 | B24: Buildings - Major Repairs | C24: =+'App.2-CA_OldCGAAP_DepExp_2016'!C24+'App.2-CA_OldCGAAP_DepExp_2016'!F24 -> 0 | E24: 0 | G24: 0 | J24: 0 | K24: =-'App.2-BA_FA Cont 2017_Old CGAAP'!K25 -> 0 | L24: 0
A25: 1808 | B25: Buildings - Brick, Stone, Concrete and Steel | C25: =+'App.2-CA_OldCGAAP_DepExp_2016'!C25+'App.2-CA_OldCGAAP_DepExp_2016'!F25 -> 0 | E25: 0 | G25: 0 | H25: 50 | I25: 0.02 | J25: 0 | K25: =-'App.2-BA_FA Cont 2017_Old CGAAP'!K26 -> 0 | L25: 0
A26: 1808 | B26: Buildings - Other | C26: =+'App.2-CA_OldCGAAP_DepExp_2016'!C26+'App.2-CA_OldCGAAP_DepExp_2016'!F26 -> 0 | E26: 0 | G26: 0 | H26: 25 | I26: 0.04 | J26: 0 | K26: =-'App.2-BA_FA Cont 2017_Old CGAAP'!K27 -> 0 | L26: 0
A27: 1810 | B27: Leasehold Improvements | C27: =+'App.2-CA_OldCGAAP_DepExp_2016'!C27+'App.2-CA_OldCGAAP_DepExp_2016'!F27 -> 0 | E27: 0 | G27: 0 | J27: 0 | K27: =-'App.2-BA_FA Cont 2017_Old CGAAP'!K28 -> 0 | L27: 0
A28: 1815 | B28: Transformer Station Equipment >50 kV | C28: =+'App.2-CA_OldCGAAP_DepExp_2016'!C28+'App.2-CA_OldCGAAP_DepExp_2016'!F28 -> 0 | E28: 0 | G28: 0 | J28: 0 | K28: =-'App.2-BA_FA Cont 2017_Old CGAAP'!K29 -> 0 | L28: 0
A29: 1820 | B29: Distribution Station Equipment <50 kV | C29: =+'App.2-CA_OldCGAAP_DepExp_2016'!C29+'App.2-CA_OldCGAAP_DepExp_2016'!F29 -> 5555174 | E29: 5555174 | G29: 5555174 | H29: 30 | I29: 0.03333333333 | J29: 185172.4667 | K29: =-'App.2-BA_FA Cont 2017_Old CGAAP'!K30 -> 0 | L29: 185172.4667
A30: 1825 | B30: Storage Battery Equipment | C30: =+'App.2-CA_OldCGAAP_DepExp_2016'!C30+'App.2-CA_OldCGAAP_DepExp_2016'!F30 -> 2154.99 | E30: 2154.99 | G30: 2154.99 | J30: 0 | K30: =-'App.2-BA_FA Cont 2017_Old CGAAP'!K31 -> 0 | L30: 0
A31: 1830 | B31: Poles, Towers & Fixtures | C31: =+'App.2-CA_OldCGAAP_DepExp_2016'!C31+'App.2-CA_OldCGAAP_DepExp_2016'!F31 -> 2462181.46 | E31: 2462181.46 | G31: 2462181.46 | H31: 25 | I31: 0.04 | J31: 98487.2584 | K31: =-'App.2-BA_FA Cont 2017_Old CGAAP'!K32 -> 0 | L31: 98487.2584
A32: 1835 | B32: Overhead Conductors & Devices | C32: =+'App.2-CA_OldCGAAP_DepExp_2016'!C32+'App.2-CA_OldCGAAP_DepExp_2016'!F32 -> 1772566.31 | E32: 1772566.31 | G32: 1772566.31 | H32: 25 | I32: 0.04 | J32: 70902.6524 | K32: =-'App.2-BA_FA Cont 2017_Old CGAAP'!K33 -> 0 | L32: 70902.6524
A33: 1840 | B33: Underground Conduit | C33: =+'App.2-CA_OldCGAAP_DepExp_2016'!C33+'App.2-CA_OldCGAAP_DepExp_2016'!F33 -> 1587623.5 | E33: 1587623.5 | G33: 1587623.5 | H33: 25 | I33: 0.04 | J33: 63504.94 | K33: =-'App.2-BA_FA Cont 2017_Old CGAAP'!K34 -> 0 | L33: 63504.94
A34: 1845 | B34: Underground Conductors & Devices | C34: =+'App.2-CA_OldCGAAP_DepExp_2016'!C34+'App.2-CA_OldCGAAP_DepExp_2016'!F34 -> 2087032.63 | E34: 2087032.63 | G34: 2087032.63 | H34: 25 | I34: 0.04 | J34: 83481.3052 | K34: =-'App.2-BA_FA Cont 2017_Old CGAAP'!K35 -> 0 | L34: 83481.3052
A35: 1850 | B35: Line Transformers | C35: =+'App.2-CA_OldCGAAP_DepExp_2016'!C35+'App.2-CA_OldCGAAP_DepExp_2016'!F35 -> 3299452.63 | E35: 3299452.63 | G35: 3299452.63 | H35: 25 | I35: 0.04 | J35: 131978.1052 | K35: =-'App.2-BA_FA Cont 2017_Old CGAAP'!K36 -> 0 | L35: 131978.1052
A36: 1855 | B36: Services (Overhead & Underground) | C36: =+'App.2-CA_OldCGAAP_DepExp_2016'!C36+'App.2-CA_OldCGAAP_DepExp_2016'!F36 -> 3311858.78 | E36: 3311858.78 | G36: 3311858.78 | H36: 25 | I36: 0.04 | J36: 132474.3512 | K36: =-'App.2-BA_FA Cont 2017_Old CGAAP'!K37 -> 0 | L36: 132474.3512
A37: 1860 | B37: Meters | C37: =+'App.2-CA_OldCGAAP_DepExp_2016'!C37+'App.2-CA_OldCGAAP_DepExp_2016'!F37 -> 877101.63 | E37: 877101.63 | G37: 877101.63 | H37: 25 | I37: 0.04 | J37: 35084.0652 | K37: =-'App.2-BA_FA Cont 2017_Old CGAAP'!K38 -> 0 | L37: 35084.0652
A38: 1860 | B38: Meters (Smart Meters) | C38: =+'App.2-CA_OldCGAAP_DepExp_2016'!C38+'App.2-CA_OldCGAAP_DepExp_2016'!F38 -> 1211192.58 | E38: 1211192.58 | G38: 1211192.58 | H38: 15 | I38: 0.06666666667 | J38: 80746.172 | K38: =-'App.2-BA_FA Cont 2017_Old CGAAP'!K39 -> 0 | L38: 80746.172
A39: 1860 | B39: Smart Meter - addition | C39: =+'App.2-CA_OldCGAAP_DepExp_2016'!C39+'App.2-CA_OldCGAAP_DepExp_2016'!F39 -> 8639.65 | E39: 8639.65 | G39: 8639.65 | H39: 15 | I39: 0.06666666667 | J39: 575.9766667 | K39: =-'App.2-BA_FA Cont 2017_Old CGAAP'!K40 -> 0 | L39: 0.003333333334
A40: 1905 | B40: Land | C40: =+'App.2-CA_OldCGAAP_DepExp_2016'!C40+'App.2-CA_OldCGAAP_DepExp_2016'!F40 -> 1088697.62 | E40: 1088697.62 | G40: 1088697.62 | H40: 0 | J40: 0 | K40: =-'App.2-BA_FA Cont 2017_Old CGAAP'!K41 -> 0 | L40: 0
A41: 1908 | B41: Buildings & Fixtures | C41: =+'App.2-CA_OldCGAAP_DepExp_2016'!C41+'App.2-CA_OldCGAAP_DepExp_2016'!F41 -> 0 | E41: 0 | G41: 0 | J41: 0 | K41: =-'App.2-BA_FA Cont 2017_Old CGAAP'!K42 -> 0 | L41: 0
A42: 1908 | B42: Buildings & Fixtures | C42: =+'App.2-CA_OldCGAAP_DepExp_2016'!C42+'App.2-CA_OldCGAAP_DepExp_2016'!F42 -> 0 | E42: 0 | G42: 0 | J42: 0 | K42: =-'App.2-BA_FA Cont 2017_Old CGAAP'!K43 -> 0 | L42: 0
A43: 1908 | B43: Buildings & Fixtures | C43: =+'App.2-CA_OldCGAAP_DepExp_2016'!C43+'App.2-CA_OldCGAAP_DepExp_2016'!F43 -> 0 | E43: 0 | G43: 0 | J43: 0 | K43: =-'App.2-BA_FA Cont 2017_Old CGAAP'!K44 -> 0 | L43: 0
A44: 1908 | B44: Buildings & Fixtures | C44: =+'App.2-CA_OldCGAAP_DepExp_2016'!C44+'App.2-CA_OldCGAAP_DepExp_2016'!F44 -> 0 | E44: 0 | G44: 0 | J44: 0 | K44: =-'App.2-BA_FA Cont 2017_Old CGAAP'!K45 -> 0 | L44: 0
A45: 1908 | B45: Buildings & Fixtures | C45: =+'App.2-CA_OldCGAAP_DepExp_2016'!C45+'App.2-CA_OldCGAAP_DepExp_2016'!F45 -> 0 | E45: 0 | G45: 0 | J45: 0 | K45: =-'App.2-BA_FA Cont 2017_Old CGAAP'!K46 -> 0 | L45: 0
A46: 1908 | B46: Buildings & Fixtures | C46: =+'App.2-CA_OldCGAAP_DepExp_2016'!C46+'App.2-CA_OldCGAAP_DepExp_2016'!F46 -> 0 | E46: 0 | G46: 0 | J46: 0 | K46: =-'App.2-BA_FA Cont 2017_Old CGAAP'!K47 -> 0 | L46: 0
A47: 1910 | B47: Leasehold Improvements | C47: =+'App.2-CA_OldCGAAP_DepExp_2016'!C47+'App.2-CA_OldCGAAP_DepExp_2016'!F47 -> 100124.48 | E47: 100124.48 | G47: 100124.48 | H47: 10 | I47: 0.1 | J47: 10012.448 | K47: =-'App.2-BA_FA Cont 2017_Old CGAAP'!K48 -> 0 | L47: 10012.448
A48: 1910 | B48: Leasehold Improvements | C48: =+'App.2-CA_OldCGAAP_DepExp_2016'!C48+'App.2-CA_OldCGAAP_DepExp_2016'!F48 -> 0 | E48: 0 | G48: 0 | H48: 9 | I48: 0.1111111111 | J48: 0 | K48: =-'App.2-BA_FA Cont 2017_Old CGAAP'!K49 -> 0 | L48: 0
A49: 1915 | B49: Office Furniture & Equipment (10 years) | C49: =+'App.2-CA_OldCGAAP_DepExp_2016'!C49+'App.2-CA_OldCGAAP_DepExp_2016'!F49 -> 309003.005 | E49: 309003.005 | G49: 309003.005 | H49: 10 | I49: 0.1 | J49: 30900.3005 | K49: =-'App.2-BA_FA Cont 2017_Old CGAAP'!K50 -> 0 | L49: 30900.3005
A50: 1915 | B50: Office Furniture & Equipment (5 years) | C50: =+'App.2-CA_OldCGAAP_DepExp_2016'!C50+'App.2-CA_OldCGAAP_DepExp_2016'!F50 -> 0 | E50: 0 | G50: 0 | J50: 0 | K50: =-'App.2-BA_FA Cont 2017_Old CGAAP'!K51 -> 0 | L50: 0
A51: 1920 | B51: Computer Equipment - Hardware | C51: =+'App.2-CA_OldCGAAP_DepExp_2016'!C51+'App.2-CA_OldCGAAP_DepExp_2016'!F51 -> 0 | E51: 0 | G51: 0 | H51: 5 | I51: 0.2 | J51: 0 | K51: =-'App.2-BA_FA Cont 2017_Old CGAAP'!K52 -> 0 | L51: 0
A52: 1920 | B52: Computer Equip.-Hardware(Post Mar. 22/04) | C52: =+'App.2-CA_OldCGAAP_DepExp_2016'!C52+'App.2-CA_OldCGAAP_DepExp_2016'!F52 -> 152363.61 | E52: 152363.61 | G52: 152363.61 | J52: 0 | K52: =-'App.2-BA_FA Cont 2017_Old CGAAP'!K53 -> 0 | L52: 0
A53: 1920 | B53: Computer Equip.-Hardware(Post Mar. 19/07) | C53: =+'App.2-CA_OldCGAAP_DepExp_2016'!C53+'App.2-CA_OldCGAAP_DepExp_2016'!F53 -> 770754.57 | E53: 770754.57 | G53: 770754.57 | H53: 5 | I53: 0.2 | J53: 154150.914 | K53: =-'App.2-BA_FA Cont 2017_Old CGAAP'!K54 -> 0 | L53: 154150.914
A54: 1930 | B54: Transportation Equipment - under 3 Tons | C54: =+'App.2-CA_OldCGAAP_DepExp_2016'!C54+'App.2-CA_OldCGAAP_DepExp_2016'!F54 -> 19934.24 | E54: 19934.24 | G54: 19934.24 | H54: 5 | I54: 0.2 | J54: 3986.848 | K54: =-'App.2-BA_FA Cont 2017_Old CGAAP'!K55 -> 0 | L54: 3986.848
A55: 1930 | B55: Transportation Equipment - 3 Tons & Over | C55: =+'App.2-CA_OldCGAAP_DepExp_2016'!C55+'App.2-CA_OldCGAAP_DepExp_2016'!F55 -> 94328.35 | E55: 94328.35 | G55: 94328.35 | H55: 8 | I55: 0.125 | J55: 11791.04375 | K55: =-'App.2-BA_FA Cont 2017_Old CGAAP'!K56 -> 0 | L55: 11791.04375
A56: 1935 | B56: Stores Equipment | C56: =+'App.2-CA_OldCGAAP_DepExp_2016'!C56+'App.2-CA_OldCGAAP_DepExp_2016'!F56 -> 56664.23 | E56: 56664.23 | G56: 56664.23 | H56: 10 | I56: 0.1 | J56: 5666.423 | K56: =-'App.2-BA_FA Cont 2017_Old CGAAP'!K57 -> 0 | L56: 5666.423
A57: 1940 | B57: Tools, Shop & Garage Equipment | C57: =+'App.2-CA_OldCGAAP_DepExp_2016'!C57+'App.2-CA_OldCGAAP_DepExp_2016'!F57 -> 66172.85 | E57: =C57-D57 -> 66172.85 | G57: =E57+0.5*F57 -> 66172.85 | H57: 10 | I57: =IF(H57=0,"",1/H57) -> 0.1 | J57: =IF(H57=0,0,G57/H57) -> 6617.285 | K57: =-'App.2-BA_FA Cont 2017_Old CGAAP'!K58 -> 0 | L57: 6617.285
A58: 1945 | B58: Measurement & Testing Equipment | C58: =+'App.2-CA_OldCGAAP_DepExp_2016'!C58+'App.2-CA_OldCGAAP_DepExp_2016'!F58 -> 36119.57 | E58: 36119.57 | G58: 36119.57 | H58: 10 | I58: 0.1 | J58: 3611.957 | K58: =-'App.2-BA_FA Cont 2017_Old CGAAP'!K59 -> 0 | L58: 3611.957
A59: 1950 | B59: Power Operated Equipment | C59: =+'App.2-CA_OldCGAAP_DepExp_2016'!C59+'App.2-CA_OldCGAAP_DepExp_2016'!F59 -> 0 | E59: 0 | G59: 0 | J59: 0 | K59: =-'App.2-BA_FA Cont 2017_Old CGAAP'!K60 -> 0 | L59: 0
A60: 1955 | B60: Communications Equipment | C60: =+'App.2-CA_OldCGAAP_DepExp_2016'!C60+'App.2-CA_OldCGAAP_DepExp_2016'!F60 -> 12803.51 | E60: 12803.51 | G60: 12803.51 | H60: 5 | I60: 0.2 | J60: 2560.702 | K60: =-'App.2-BA_FA Cont 2017_Old CGAAP'!K61 -> 0 | L60: 2560.702
A61: 1955 | B61: Communication Equipment (Smart Meters) | C61: =+'App.2-CA_OldCGAAP_DepExp_2016'!C61+'App.2-CA_OldCGAAP_DepExp_2016'!F61 -> 0 | E61: =C61-D61 -> 0 | G61: =E61+0.5*F61 -> 0 | I61: =IF(H61=0,"",1/H61) ->  | J61: =IF(H61=0,0,G61/H61) -> 0 | K61: =-'App.2-BA_FA Cont 2017_Old CGAAP'!K62 -> 0 | L61: 0
A62: 1960 | B62: Miscellaneous Equipment | C62: =+'App.2-CA_OldCGAAP_DepExp_2016'!C62+'App.2-CA_OldCGAAP_DepExp_2016'!F62 -> 0 | E62: 0 | G62: 0 | H62: 10 | I62: 0.1 | J62: 0 | K62: =-'App.2-BA_FA Cont 2017_Old CGAAP'!K63 -> 0 | L62: 0
A63: 1970 | B63: Load Management Controls Customer Premises | C63: =+'App.2-CA_OldCGAAP_DepExp_2016'!C63+'App.2-CA_OldCGAAP_DepExp_2016'!F63 -> 258806.31 | E63: 258806.31 | G63: =E63+0.5*F63 -> 258806.31 | H63: 10 | I63: 0.1 | J63: 25880.631 | K63: =-'App.2-BA_FA Cont 2017_Old CGAAP'!K64 -> 0 | L63: 25880.631
A64: 1975 | B64: Load Management Controls Utility Premises | C64: =+'App.2-CA_OldCGAAP_DepExp_2016'!C64+'App.2-CA_OldCGAAP_DepExp_2016'!F64 -> 2516.21 | E64: 2516.21 | G64: 2516.21 | H64: 10 | I64: 0.1 | J64: 251.621 | K64: =-'App.2-BA_FA Cont 2017_Old CGAAP'!K65 -> 0 | L64: 251.621
A65: 1980 | B65: System Supervisor Equipment | C65: =+'App.2-CA_OldCGAAP_DepExp_2016'!C65+'App.2-CA_OldCGAAP_DepExp_2016'!F65 -> 0 | E65: 0 | G65: 0 | H65: 20 | I65: 0.05 | J65: 0 | K65: =-'App.2-BA_FA Cont 2017_Old CGAAP'!K66 -> 0 | L65: 0
A66: 1985 | B66: Miscellaneous Fixed Assets | C66: =+'App.2-CA_OldCGAAP_DepExp_2016'!C66+'App.2-CA_OldCGAAP_DepExp_2016'!F66 -> -1762729.64 | E66: -1762729.64 | G66: -1762729.64 | J66: 0 | K66: =-'App.2-BA_FA Cont 2017_Old CGAAP'!K67 -> 0 | L66: 0
A67: 1990 | B67: Other Tangible Property | C67: =+'App.2-CA_OldCGAAP_DepExp_2016'!C67+'App.2-CA_OldCGAAP_DepExp_2016'!F67 -> 0 | E67: 0 | G67: 0 | J67: 0 | K67: =-'App.2-BA_FA Cont 2017_Old CGAAP'!K68 -> 0 | L67: 0
A68: 1995 | B68: Contributions & Grants - O/H Conductor | C68: =+'App.2-CA_OldCGAAP_DepExp_2016'!C68+'App.2-CA_OldCGAAP_DepExp_2016'!F68 -> 0 | E68: 0 | G68: 0 | H68: 25 | I68: 0.04 | J68: 0 | K68: =-'App.2-BA_FA Cont 2017_Old CGAAP'!K69 -> 0 | L68: 0
A69: 1995 | B69: Contributions & Grants - Poles | C69: =+'App.2-CA_OldCGAAP_DepExp_2016'!C69+'App.2-CA_OldCGAAP_DepExp_2016'!F69 -> 4602.5 | E69: 4602.5 | G69: 4602.5 | H69: 25 | I69: 0.04 | J69: 184.1 | K69: =-'App.2-BA_FA Cont 2017_Old CGAAP'!K70 -> 0 | L69: 184.1
A70: 1995 | B70: Contributions & Grants - Transformers | C70: =+'App.2-CA_OldCGAAP_DepExp_2016'!C70+'App.2-CA_OldCGAAP_DepExp_2016'!F70 -> 0 | E70: 0 | G70: 0 | H70: 25 | I70: 0.04 | J70: 0 | K70: =-'App.2-BA_FA Cont 2017_Old CGAAP'!K71 -> 0 | L70: 0
A71: 1995 | B71: Contributions & Grants - Meters | C71: =+'App.2-CA_OldCGAAP_DepExp_2016'!C71+'App.2-CA_OldCGAAP_DepExp_2016'!F71 -> 0 | E71: 0 | G71: 0 | H71: 15 | I71: 0.06666666667 | J71: 0 | K71: =-'App.2-BA_FA Cont 2017_Old CGAAP'!K72 -> 0 | L71: 0
A72: 1609 | B72: Other Tangible Property | C72: =+'App.2-CA_OldCGAAP_DepExp_2016'!C72+'App.2-CA_OldCGAAP_DepExp_2016'!F72 -> 0 | E72: 0 | G72: 0 | J72: 0 | K72: =-'App.2-BA_FA Cont 2017_Old CGAAP'!K73 -> 0 | L72: 0
C73: =+'App.2-CA_OldCGAAP_DepExp_2016'!C72+'App.2-CA_OldCGAAP_DepExp_2016'!F72 -> 0 | E73: 0 | G73: 0 | J73: 0 | L73: 0
C74: =+'App.2-CA_OldCGAAP_DepExp_2016'!C73+'App.2-CA_OldCGAAP_DepExp_2016'!F73 -> 0 | E74: 0 | G74: 0 | J74: 0 | L74: 0
C75: =+'App.2-CA_OldCGAAP_DepExp_2016'!C74+'App.2-CA_OldCGAAP_DepExp_2016'!F74 -> 0 | E75: 0 | G75: 0 | J75: 0 | L75: 0
G76: 0 | J76: 0 | K76: =-'App.2-BA_FA Cont 2017_Old CGAAP'!K64 -> 0 | L76: 0
B78: Total | C78: =SUM(C16:C77) -> 24083429.34 | D78: =SUM(D16:D77) -> 0 | E78: =SUM(E16:E77) -> 24083429.34 | F78: =SUM(F16:F77) -> 0 | G78: =SUM(G16:G77) -> 24083429.34 | J78: =SUM(J16:J77) -> 1262435.074 | K78: =SUM(K16:K77) -> 0 | L78: 1261859.101
C83: =+'App.2-BA_FA Cont 2017_Old CGAAP'!E63 -> 23989201.83 | F83: =+'App.2-BA_FA Cont 2017_Old CGAAP'!F63 -> 0 | K83: =-'App.2-BA_FA Cont 2017_Old CGAAP'!K65 -> 0
C84: =+C78-C83 -> 94227.5 | F84: =+F78-F83 -> 0 | K84: =+K78-K83 -> 0

Sheet Appendix 2-BB Service Life
M1: File Number: | O1: 0
M2: Exhibit:
M3: Tab:
M4: Schedule:
M5: Page:
M7: Date:
A9: Appendix 2-BB
A10: Service Life Comparison
A11: Table F-1 from Kinetrics Report1
C15: Asset Details | F15: Useful Life | J15: USoA Account Number | K15: USoA Account Description | L15: Current | N15: Proposed | P15: Outside Range of Min, Max TUL?
A16: Parent* | B16: # | C16: Category| Component | Type | F16: MIN UL | G16: TUL | H16: MAX UL | L16: Years | M16: Rate | N16: Years | O16: Rate | P16: Below Min TUL | Q16: Above Max TUL | U16: Account # | V16: Description | W16: CWH Useful Life | X16: Exisiting Useful Life | Y16: Kinectric's Study
A17: OH | B17: 1 | C17: Fully Dressed Wood Poles | D17: Overall | F17: 35 | G17: 45 | H17: 75 | J17: 1830 | K17: Poles, Towers & Fixtures | L17: 45 | M17: =IF(ISERROR(1/L17), "", 1/L17) -> 0.02222222222 | N17: 45 | O17: =IF(ISERROR(1/N17), "", 1/N17) -> 0.02222222222 | P17: =IF(ISBLANK(N17),"",IF(N17<F17,"Yes","No")) -> No | Q17: =IF(ISBLANK(N17),"",IF(N17>H17,"Yes","No")) -> No
D18: Cross Arm | E18: Wood | F18: 20 | G18: 40 | H18: 55 | M18: =IF(ISERROR(1/L18), "", 1/L18) ->  | O18: =IF(ISERROR(1/N18), "", 1/N18) ->  | P18: =IF(ISBLANK(N18),"",IF(N18<F18,"Yes","No")) ->  | Q18: =IF(ISBLANK(N18),"",IF(N18>H18,"Yes","No")) -> 
E19: Steel | F19: 30 | G19: 70 | H19: 95 | U19: 1806 | V19: Land Rights | W19: 50 | X19: 25 | Y19: 50
B20: 2 | C20: Fully Dressed Concrete Poles | D20: Overall | F20: 50 | G20: 60 | H20: 80 | J20: 1830 | K20: Poles, Towers & Fixtures | L20: 60 | M20: 0.01666666667 | N20: 60 | O20: 0.01666666667 | P20: No | Q20: No | U20: 1820 | V20: Distribution Stations | W20: 45 | X20: 25 | Y20: 45
D21: Cross Arm | E21: Wood | F21: 20 | G21: 40 | H21: 55 | U21: 1825 | V21: Storage Battery Equip | W21: 25 | X21: 25 | Y21: 25
E22: Steel | F22: 30 | G22: 70 | H22: 95 | U22: 1830 | V22: Poles - Concrete/Steel | W22: 60 | X22: 25 | Y22: 60
B23: 3 | C23: Fully Dressed Steel Poles | D23: Overall | F23: 60 | G23: 60 | H23: 80 | U23: 1830 | V23: Poles - Wood | W23: 45 | X23: 25 | Y23: 45
D24: Cross Arm | E24: Wood | F24: 20 | G24: 40 | H24: 55 | U24: 1835 | V24: OH Conductors | W24: 60 | X24: 25 | Y24: 60
E25: Steel | F25: 30 | G25: 70 | H25: 95 | U25: 1840 | V25: UG Conduits | W25: 70 | X25: 25 | Y25: 70
B26: 4 | C26: OH Line Switch | F26: 30 | G26: 45 | H26: 55 | U26: 1845 | V26: UG Conductors | W26: 55 | X26: 25 | Y26: 55
B27: 5 | C27: OH Line Switch Motor | F27: 15 | G27: 25 | H27: 25 | U27: 1850 | V27: Transformers -UG | W27: 30 | X27: 25 | Y27: 40
B28: 6 | C28: OH Line Switch RTU | F28: 15 | G28: 20 | H28: 20 | U28: 1850 | V28: Transformers -OH | W28: 40 | X28: 25 | Y28: 40
B29: 7 | C29: OH Integral Switches | F29: 35 | G29: 45 | H29: 60 | U29: 1855 | V29: OH Secondary Services | W29: 60 | X29: 25 | Y29: 60
B30: 8 | C30: OH Conductors | F30: 50 | G30: 60 | H30: 75 | J30: 1835 | K30: O/H Conductor and Devices | L30: 60 | M30: 0.01666666667 | N30: 60 | O30: 0.01666666667 | P30: No | Q30: No | U30: 1855 | V30: UG Secondary Services | W30: 55 | X30: 25 | Y30: 55
B31: 9 | C31: OH Transformers & Voltage Regulators | F31: 30 | G31: 40 | H31: 60 | J31: 1850 | K31: Line Transformers | L31: 40 | M31: 0.025 | N31: 40 | O31: 0.025 | P31: No | Q31: No | U31: 1860 | V31: Meters | W31: 15 | X31: 25 | Y31: 25-35
B32: 10 | C32: OH Shunt Capacitor Banks | F32: 25 | G32: 30 | H32: 40 | U32: 1860 | V32: CT's & PT's (meters) | W32: 50 | X32: 25 | Y32: 35-50
B33: 11 | C33: Reclosers | F33: 25 | G33: 40 | H33: 55 | U33: 1908 | V33: Building & Fixtures | W33: 25-50 | X33: 40 | Y33: 50-75
A34: TS & MS | B34: 12 | C34: Power Transformers | D34: Overall | F34: 30 | G34: 45 | H34: 60 | J34: 1820 | K34: Distribution Station Equipment | L34: 45 | M34: 0.02222222222 | N34: 45 | O34: 0.02222222222 | P34: No | Q34: No | U34: 1915 | V34: Office Furniture & Equipment | W34: 10 | X34: 10 | Y34: 5-15
D35: Bushing | F35: 10 | G35: 20 | H35: 30 | U35: 1920 | V35: Computer Hardware* | W35: 3 | X35: 3 | Y35: 3-5
D36: Tap Changer | F36: 20 | G36: 30 | H36: 60 | U36: 1925 | V36: Computer Software | W36: 5 | X36: 5 | Y36: 2-5
B37: 13 | C37: Station Service Transformer | F37: 30 | G37: 45 | H37: 55 | U37: 1930 | V37: Transportation*** | W37: 7-12 | X37: 12 | Y37: 5-50
B38: 14 | C38: Station Grounding Transformer | F38: 30 | G38: 40 | H38: 40 | U38: 1935 | V38: Stores Equipment | W38: 10 | X38: 10 | Y38: 5-10
B39: 15 | C39: Station DC System | D39: Overall | F39: 10 | G39: 20 | H39: 30 | U39: 1940 | V39: Tools, Shop & Garage Equipment | W39: 10 | X39: 10 | Y39: 5-10
D40: Battery Bank | F40: 10 | G40: 15 | H40: 15 | U40: 1945 | V40: Measurement & Testing Equipment | W40: 10 | X40: 10 | Y40: 5-10
D41: Charger | F41: 20 | G41: 20 | H41: 30 | U41: 1950 | V41: Power Operated Equipment | W41: 8 | X41: 8 | Y41: 5-10
B42: 16 | C42: Station Metal Clad Switchgear | D42: Overall | F42: 30 | G42: 40 | H42: 60 | U42: 1955 | V42: Communication | W42: 10 | X42: 10 | Y42: 2-10
D43: Removable Breaker | F43: 25 | G43: 40 | H43: 60 | U43: 1980 | V43: System Supervisory Equipment** | W43: 15 | X43: 15 | Y43: 20
B44: 17 | C44: Station Independent Breakers | F44: 35 | G44: 45 | H44: 65
B45: 18 | C45: Station Switch | F45: 30 | G45: 50 | H45: 60
B46: 19 | C46: Electromechanical Relays | F46: 25 | G46: 35 | H46: 50
B47: 20 | C47: Solid State Relays | F47: 10 | G47: 30 | H47: 45
B48: 21 | C48: Digital & Numeric Relays | F48: 15 | G48: 20 | H48: 20
B49: 22 | C49: Rigid Busbars | F49: 30 | G49: 55 | H49: 60
B50: 23 | C50: Steel Structure | F50: 35 | G50: 50 | H50: 90
A51: UG | B51: 24 | C51: Primary Paper Insulated Lead Covered (PILC) Cables | F51: 60 | G51: 65 | H51: 75
B52: 25 | C52: Primary Ethylene-Propylene Rubber (EPR) Cables | F52: 20 | G52: 25 | H52: 25
B53: 26 | C53: Primary Non-Tree Retardant (TR) Cross Linked Polyethylene (XLPE) Cables Direct Buried | F53: 20 | G53: 25 | H53: 30
B54: 27 | C54: Primary Non-TR XLPE Cables in Duct | F54: 20 | G54: 25 | H54: 30
B55: 29 | C55: Primary TR XLPE Cables in Duct | F55: 35 | G55: 40 | H55: 55 | J55: 1845 | K55: UG Conductors and Devices | L55: 55 | M55: 0.01818181818 | N55: 55 | O55: 0.01818181818 | P55: No | Q55: No
B56: 30 | C56: Secondary PILC Cables | F56: 70 | G56: 75 | H56: 80
B57: 31 | C57: Secondary Cables Direct Buried | F57: 25 | G57: 35 | H57: 40
B58: 32 | C58: Secondary Cables in Duct | F58: 35 | G58: 35 | H58: 60 | J58: 1855 | K58: UG Secondary Services | L58: 55 | M58: 0.01818181818 | N58: 55 | O58: 0.01818181818 | P58: No | Q58: No
B59: 33 | C59: Network Tranformers | D59: Overall | F59: 20 | G59: 35 | H59: 50
D60: Protector | F60: 20 | G60: 35 | H60: 40
B61: 34 | C61: Pad-Mounted Transformers | F61: 25 | G61: 40 | H61: 45 | J61: 1850 | K61: UG Transformers | L61: 30 | M61: 0.03333333333 | N61: 30 | O61: 0.03333333333 | P61: No | Q61: No
B62: 35 | C62: Submersible/Vault Transformers | F62: 25 | G62: 35 | H62: 45
B63: 36 | C63: UG Foundation | F63: 35 | G63: 55 | H63: 70
B64: 37 | C64: UG Vaults | D64: Overall | F64: 40 | G64: 60 | H64: 80
D65: Roof | F65: 20 | G65: 30 | H65: 45
B66: 38 | C66: UG Vault Switches | F66: 20 | G66: 35 | H66: 50
B67: 39 | C67: Pad-Mounted Switchgear | F67: 20 | G67: 30 | H67: 45
B68: 40 | C68: Ducts | F68: 30 | G68: 50 | H68: 85 | J68: 1840 | K68: UG Conduit | L68: 70 | M68: 0.01428571429 | N68: 70 | O68: 0.01428571429 | P68: No | Q68: No
B69: 41 | C69: Concrete Encased Duct Banks | F69: 35 | G69: 55 | H69: 80
B70: 42 | C70: Cable Chambers | F70: 50 | G70: 60 | H70: 80
A71: S | B71: 43 | C71: Remote SCADA | F71: 15 | G71: 20 | H71: 30 | J71: 1980 | K71: System Supervisory Equipment | L71: 15 | M71: 0.06666666667 | N71: 15 | O71: 0.06666666667 | P71: No | Q71: No
A74: Table F-2 from Kinetrics Report1
C76: Asset Details | F76: Useful Life Range | J76: USoA Account Number | K76: USoA Account Description | L76: Current | N76: Proposed | P76: Outside Range of Min, Max TUL?
B77: # | C77: Category| Component | Type | L77: Years | M77: Rate | N77: Years | O77: Rate | P77: Below Min Range | Q77: Above Max Range
B78: 1 | C78: Office Equipment | F78: 5 | G78: 15 | J78: 1915 | K78: Office Furniture and Equipment | L78: 10 | M78: =IF(ISERROR(1/L78), "", 1/L78) -> 0.1 | N78: 10 | O78: =IF(ISERROR(1/N78), "", 1/N78) -> 0.1 | P78: =IF(ISBLANK(N78),"",IF(N78<F78,"Yes","No")) -> No | Q78: =IF(ISBLANK(N78),"",IF(N78>G78,"Yes","No")) -> No
B79: 2 | C79: Vehicles | D79: Trucks & Buckets | F79: 5 | G79: 15 | J79: 1930 | K79: Transportation Equipment - Trucks/Buckets | L79: 12 | M79: =IF(ISERROR(1/L79), "", 1/L79) -> 0.08333333333 | N79: 12 | O79: =IF(ISERROR(1/N79), "", 1/N79) -> 0.08333333333 | P79: =IF(ISBLANK(N79),"",IF(N79<F79,"Yes","No")) -> No | Q79: =IF(ISBLANK(N79),"",IF(N79>G79,"Yes","No")) -> No
D80: Trailers | F80: 5 | G80: 20 | J80: 1930 | K80: Transportation Equipment - Trailers | L80: 12 | M80: 0.08333333333 | N80: 12 | O80: 0.08333333333 | P80: No | Q80: No
D81: Vans | F81: 5 | G81: 10 | J81: 1930 | K81: Transportation Equipment - Pickup/Cars | L81: 7 | M81: 0.1428571429 | N81: 7 | O81: 0.1428571429 | P81: No | Q81: No
B82: 3 | C82: Administrative Buildings | F82: 50 | G82: 75 | J82: 1908 | K82: Buildings - Office | L82: 50 | M82: 0.02 | N82: 50 | O82: 0.02 | P82: No | Q82: No
B83: 4 | C83: Leasehold Improvements | F83: Lease dependent
B84: 5 | C84: Station Buildings | D84: Station Buildings | F84: 50 | G84: 75
D85: Parking | F85: 25 | G85: 30
D86: Fence | F86: 25 | G86: 60
D87: Roof | F87: 20 | G87: 30
B88: 6 | C88: Computer Equipment | D88: Hardware | F88: 3 | G88: 5 | J88: 1920 | K88: Computer Hardware | L88: 4 | M88: =IF(ISERROR(1/L88), "", 1/L88) -> 0.25 | N88: 3 | O88: 0.3333333333 | P88: No | Q88: No
D89: Software | F89: 2 | G89: 5 | J89: 1925 | K89: Computer Software | L89: 5 | M89: 0.2 | N89: 5 | O89: 0.2 | P89: No | Q89: No
B90: 7 | C90: Equipment | D90: Power Operated | F90: 5 | G90: 10 | J90: 1950 | K90: Power Operated Equipment | L90: 8 | M90: 0.125 | N90: 8 | O90: 0.125 | P90: No | Q90: No
D91: Stores | F91: 5 | G91: 10 | J91: 1935 | K91: Stores Equipment | L91: 10 | M91: 0.1 | N91: 10 | O91: 0.1 | P91: No | Q91: No
D92: Tools, Shop, Garage Equipment | F92: 5 | G92: 10 | J92: 1940 | K92: Tools, Shop, Garage Equipment | L92: 10 | M92: 0.1 | N92: 10 | O92: 0.1 | P92: No | Q92: No
D93: Measurement & Testing Equipment | F93: 5 | G93: 10 | J93: 1945 | K93: Measurement & Testing Equipment | L93: 10 | M93: 0.1 | N93: 10 | O93: 0.1 | P93: No | Q93: No
B94: 8 | C94: Communication | D94: Towers | F94: 60 | G94: 70
D95: Wireless | F95: 2 | G95: 10 | J95: 1955 | K95: Communication | L95: 10 | M95: 0.1 | N95: 10 | O95: 0.1 | P95: No | Q95: No
B96: 9 | C96: Residential Energy Meters | F96: 25 | G96: 35 | J96: 1860 | K96: Stranded Meters | L96: 25 | M96: 0.04 | N96: 25 | O96: 0.04 | P96: No | Q96: No
B97: 10 | C97: Industrial/Commercial Energy Meters | F97: 25 | G97: 35 | J97: 1860 | K97: Industrial/Commercial Energy Meters | L97: 25 | M97: 0.04 | N97: 25 | O97: 0.04 | P97: No | Q97: No
B98: 11 | C98: Wholesale Energy Meters | F98: 15 | G98: 30 | L98: 25
B99: 12 | C99: Current & Potential Transformer (CT & PT) | F99: 35 | G99: 50 | J99: 1860 | K99: Meters - CTs PTs | L99: 50 | M99: 0.02 | N99: 50 | O99: 0.02 | P99: No | Q99: No
B100: 13 | C100: Smart Meters | F100: 5 | G100: 15 | J100: 1860 | K100: Smart Meters | L100: 15 | M100: 0.06666666667 | N100: 15 | O100: 0.06666666667 | P100: No | Q100: No
B101: 14 | C101: Repeaters - Smart Metering | F101: 10 | G101: 15
B102: 15 | C102: Data Collectors - Smart Metering | F102: 15 | G102: 20
A105: * TS & MS = Transformer and Municipal Stations UG = Underground Systems S = Monitoring and Control Systems
A107: Note 1: | B107: Tables F-1 and F-2 above are to be used as a reference in order to complete columns J, K, L and N.
B108: See pages 17-19 of Kinetrics Report

Sheet App.2-BA_FA Cont 2013 NewCGAAP
N1: File Number: | O1: =EBNUMBER -> 
N2: Exhibit:
N3: Tab:
N4: Schedule:
N5: Page:
N7: Date:
B9: Appendix 2-BA
B10: Fixed Asset Continuity Schedule
F12: Accounting Standard | G12: CGAAP | H12: New CGAAP
F13: Year | G13: 2013
A15: RHI | B15: OEB | E15: Cost | L15: Accumulated Depreciation
A16: CCA Class | B16: CCA Class | C16: OEB | D16: Description | E16: Opening Balance | F16: Additions | G16: Disposals | H16: Closing Balance | J16: Opening Balance | K16: ADJ to Opening Balance | L16: Additions | M16: Disposals | N16: Closing Balance | O16: Net Book Value
C17: 1609 | D17: Capital Contributions Paid | E17: 0 | H17: =E17+F17+G17 -> 0 | N17: =SUM(J17:M17) -> 0 | O17: =H17+N17 -> 0
A18: 12 | B18: 12 | C18: 1611 | D18: Computer Software (Formally known as Account 1925) | E18: 414814 | F18: 171607.43 | H18: =E18+F18+G18 -> 586421.43 | J18: -383372.04 | L18: -129286.34 | N18: =SUM(J18:M18) -> -512658.38 | O18: =H18+N18 -> 73763.05
A19: CEC | B19: CEC | C19: 1612 | D19: Land Rights (Formally known as Account 1906) | E19: 37132.16 | H19: =E19+F19+G19 -> 37132.16 | J19: -6963.4 | L19: -743.4 | N19: =SUM(J19:M19) -> -7706.8 | O19: 29425.36
A20: N/A | B20: N/A | C20: 1805 | D20: Land | E20: 46065.54 | H20: =E20+F20+G20 -> 46065.54 | J20: =+'App.2-BA_FA Cont 2012 OldCGAAP'!M19 -> 0 | N20: 0 | O20: 46065.54
A21: 1 | B21: 47 | C21: 1808 | D21: Buildings - Brick | E21: 2307.56 | H21: =E21+F21+G21 -> 2307.56 | J21: -2307.56 | N21: -2307.56 | O21: 0
A22: 1 | B22: 47 | C22: 1808 | D22: Buildings - Other | E22: =+'App.2-BA_FA Cont 2012 OldCGAAP'!H21 -> 0 | H22: =E22+F22+G22 -> 0 | J22: =+'App.2-BA_FA Cont 2012 OldCGAAP'!M21 -> 0 | N22: 0 | O22: 0
A23: 1 | B23: 47 | C23: 1808 | D23: Building - Opeongo Rd | E23: =+'App.2-BA_FA Cont 2012 OldCGAAP'!H22 -> 0 | H23: =E23+F23+G23 -> 0 | J23: =+'App.2-BA_FA Cont 2012 OldCGAAP'!M22 -> 0 | N23: 0 | O23: 0
B24: 13 | C24: 1810 | D24: Leasehold Improvements | E24: =+'App.2-BA_FA Cont 2012 OldCGAAP'!H23 -> 0 | H24: 0 | J24: =+'App.2-BA_FA Cont 2012 OldCGAAP'!M23 -> 0 | N24: 0 | O24: 0
B25: 47 | C25: 1815 | D25: Transformer Station Equipment >50 kV | E25: =+'App.2-BA_FA Cont 2012 OldCGAAP'!H24 -> 0 | H25: 0 | J25: =+'App.2-BA_FA Cont 2012 OldCGAAP'!M24 -> 0 | N25: 0 | O25: 0
A26: 1/47 | B26: 47 | C26: 1820 | D26: Transmission Lines | E26: 2391027.15 | F26: 1238510.45 | G26: -43321.03 | H26: =E26+F26+G26 -> 3586216.57 | J26: -856539.05 | L26: -133423.28 | M26: 43321.03 | N26: -946641.3 | O26: 2639575.27
A27: 1/47 | B27: 47 | C27: 1820 | D27: Dist Stn Eq <50 kV MS 1 - Bldg & Infrastructure | E27: =+'App.2-BA_FA Cont 2012 OldCGAAP'!H26 -> 0 | H27: 0 | J27: =+'App.2-BA_FA Cont 2012 OldCGAAP'!M26 -> 0 | N27: 0 | O27: 0
A28: 1/47 | B28: 47 | C28: 1820 | D28: Dist Stn Eq <50 kV MS 1 - Equipment | E28: =+'App.2-BA_FA Cont 2012 OldCGAAP'!H27 -> 0 | H28: =E28+F28+G28 -> 0 | J28: =+'App.2-BA_FA Cont 2012 OldCGAAP'!M27 -> 0 | N28: 0 | O28: 0
A29: 1/47 | B29: 47 | C29: 1820 | D29: Dist Stn Eq <50 kV MS 1 - Transformers | E29: =+'App.2-BA_FA Cont 2012 OldCGAAP'!H28 -> 0 | H29: 0 | J29: =+'App.2-BA_FA Cont 2012 OldCGAAP'!M28 -> 0 | N29: 0 | O29: 0
A30: 1/47 | B30: 47 | C30: 1820 | D30: Dist Stn Eq <50 kV MS 2 - Bldg & Infrastructure | E30: =+'App.2-BA_FA Cont 2012 OldCGAAP'!H29 -> 0 | H30: 0 | J30: =+'App.2-BA_FA Cont 2012 OldCGAAP'!M29 -> 0 | N30: 0 | O30: 0
A31: 1/47 | B31: 47 | C31: 1820 | D31: Dist Stn Eq <50 kV MS 2 - Electrics Equipment | E31: =+'App.2-BA_FA Cont 2012 OldCGAAP'!H30 -> 0 | H31: =E31+F31+G31 -> 0 | J31: =+'App.2-BA_FA Cont 2012 OldCGAAP'!M30 -> 0 | N31: 0 | O31: 0
A32: 1/47 | B32: 47 | C32: 1820 | D32: Dist Stn Eq <50 kV MS 2 - Equipment | E32: =+'App.2-BA_FA Cont 2012 OldCGAAP'!H31 -> 0 | H32: =E32+F32+G32 -> 0 | J32: =+'App.2-BA_FA Cont 2012 OldCGAAP'!M31 -> 0 | N32: 0 | O32: 0
A33: 1/47 | B33: 47 | C33: 1820 | D33: Dist Stn Eq <50 kV MS 2 - Transformers | E33: =+'App.2-BA_FA Cont 2012 OldCGAAP'!H32 -> 0 | H33: 0 | J33: =+'App.2-BA_FA Cont 2012 OldCGAAP'!M32 -> 0 | N33: 0 | O33: 0
A34: 1/47 | B34: 47 | C34: 1820 | D34: Dist Stn Eq <50 kV MS 3 - Bldg & Infrastructure | E34: =+'App.2-BA_FA Cont 2012 OldCGAAP'!H33 -> 0 | H34: 0 | J34: =+'App.2-BA_FA Cont 2012 OldCGAAP'!M33 -> 0 | N34: 0 | O34: 0
A35: 1/47 | B35: 47 | C35: 1820 | D35: Dist Stn Eq <50 kV MS 3 - Equipment | E35: =+'App.2-BA_FA Cont 2012 OldCGAAP'!H34 -> 0 | H35: 0 | J35: =+'App.2-BA_FA Cont 2012 OldCGAAP'!M34 -> 0 | N35: 0 | O35: 0
A36: 1/47 | B36: 47 | C36: 1820 | D36: Dist Stn Eq <50 kV MS 3 - Transformers | E36: =+'App.2-BA_FA Cont 2012 OldCGAAP'!H35 -> 0 | H36: 0 | J36: =+'App.2-BA_FA Cont 2012 OldCGAAP'!M35 -> 0 | N36: 0 | O36: 0
A37: 1/47 | B37: 47 | C37: 1820 | D37: Dist Stn Eq <50 kV MS 4 - Bldg & Infrastructure | E37: =+'App.2-BA_FA Cont 2012 OldCGAAP'!H36 -> 0 | H37: =E37+F37+G37 -> 0 | J37: =+'App.2-BA_FA Cont 2012 OldCGAAP'!M36 -> 0 | N37: 0 | O37: 0
A38: 1/47 | B38: 47 | C38: 1820 | D38: Dist Stn Eq <50 kV MS 4 - Misc Bldg Infrastructure | E38: =+'App.2-BA_FA Cont 2012 OldCGAAP'!H37 -> 0 | H38: 0 | J38: =+'App.2-BA_FA Cont 2012 OldCGAAP'!M37 -> 0 | N38: 0 | O38: 0
A39: 1/47 | B39: 47 | C39: 1820 | D39: Dist Stn Eq <50 kV MS 4 - Electrics Equip | E39: =+'App.2-BA_FA Cont 2012 OldCGAAP'!H38 -> 0 | H39: 0 | J39: =+'App.2-BA_FA Cont 2012 OldCGAAP'!M38 -> 0 | N39: 0 | O39: 0
A40: 1/47 | B40: 47 | C40: 1820 | D40: Dist Stn Eq <50 kV MS 4 - Equipment | E40: =+'App.2-BA_FA Cont 2012 OldCGAAP'!H39 -> 0 | H40: =E40+F40+G40 -> 0 | J40: =+'App.2-BA_FA Cont 2012 OldCGAAP'!M39 -> 0 | N40: 0 | O40: 0
A41: 1/47 | B41: 47 | C41: 1820 | D41: Dist Stn Eq <50 kV MS 4 - Transformers | E41: =+'App.2-BA_FA Cont 2012 OldCGAAP'!H40 -> 0 | H41: 0 | J41: =+'App.2-BA_FA Cont 2012 OldCGAAP'!M40 -> 0 | N41: 0 | O41: 0
A42: 1/47 | B42: 47 | C42: 1820 | D42: Dist Stn Eq <50 kV MS 5 - Bldg & Infrastructure | E42: =+'App.2-BA_FA Cont 2012 OldCGAAP'!H41 -> 0 | H42: 0 | J42: =+'App.2-BA_FA Cont 2012 OldCGAAP'!M41 -> 0 | N42: 0 | O42: 0
A43: 1/47 | B43: 47 | C43: 1820 | D43: Dist Stn Eq <50 kV MS 5 - Misc Bldg Infrastructure | E43: =+'App.2-BA_FA Cont 2012 OldCGAAP'!H42 -> 0 | H43: 0 | J43: =+'App.2-BA_FA Cont 2012 OldCGAAP'!M42 -> 0 | N43: 0 | O43: 0
A44: 1/47 | B44: 47 | C44: 1820 | D44: Dist Stn Eq <50 kV MS 5 - Electrics Equip | E44: =+'App.2-BA_FA Cont 2012 OldCGAAP'!H43 -> 0 | H44: 0 | J44: =+'App.2-BA_FA Cont 2012 OldCGAAP'!M43 -> 0 | N44: 0 | O44: 0
A45: 1/47 | B45: 47 | C45: 1820 | D45: Dist Stn Eq <50 kV MS 5 - Equipment | E45: =+'App.2-BA_FA Cont 2012 OldCGAAP'!H44 -> 0 | H45: =E45+F45+G45 -> 0 | J45: =+'App.2-BA_FA Cont 2012 OldCGAAP'!M44 -> 0 | N45: 0 | O45: 0
A46: 1/47 | B46: 47 | C46: 1820 | D46: Dist Stn Eq <50 kV MS 5 - Transformers | E46: =+'App.2-BA_FA Cont 2012 OldCGAAP'!H45 -> 0 | H46: 0 | J46: =+'App.2-BA_FA Cont 2012 OldCGAAP'!M45 -> 0 | N46: 0 | O46: 0
B48: 47 | C48: 1825 | D48: Storage Battery Equipment | E48: 2154.99 | H48: 2154.99 | J48: -2154.99 | N48: -2154.99 | O48: 0
A49: 1/47 | B49: 47 | C49: 1830 | D49: Poles, Towers & Fixtures - Wood | E49: ='[2]1830 Poles'!$B$4+0.09 -> 1454122.9 | F49: 226218.67 | G49: ='[2]1830 Poles'!D4 -> -8443.65 | H49: 1671897.92 | J49: ='[2]1830 Poles'!G4 -> -651422.66 | L49: ='[2]1830 Poles'!H4 -> -24688.5 | M49: ='[2]1830 Poles'!I4 -> 5482.05 | N49: -670629.11 | O49: 1001268.81
A50: 1/48 | B50: 47 | C50: 1830 | D50: Poles, Towers & Fixtures - Concrete/Steel | E50: ='[2]1830 Poles'!$B$5 -> 655684.67 | G50: ='[2]1830 Poles'!D5 -> -1448.19 | H50: 654236.48 | J50: ='[2]1830 Poles'!G5 -> -312907.74 | L50: ='[2]1830 Poles'!H5 -> -7458.27 | M50: ='[2]1830 Poles'!I5-0.02 -> 862.09 | N50: =SUM(J50:M50) -> -319503.92 | O50: =H50+N50 -> 334732.56
A51: 1/47 | B51: 47 | C51: 1835 | D51: Overhead Conductors & Devices | E51: 1503509.87 | F51: 175901.4 | G51: -2058.68 | H51: 1677352.59 | J51: -680467.58 | L51: -19526.1 | M51: 1904.08 | N51: -698089.6 | O51: 979262.99
A52: 1/47 | B52: 47 | C52: 1840 | D52: Underground Conduit | E52: 1365762.93 | F52: 211337.7 | H52: 1577100.63 | J52: -704006.58 | L52: -12941.73 | N52: -716948.31 | O52: =H52+N52 -> 860152.32
A53: 1/47 | B53: 47 | C53: 1845 | D53: Underground Conductors & Devices | E53: 1781739.98 | F53: 161871.16 | G53: -21939 | H53: 1921672.14 | J53: -1047270.66 | L53: -18143.45 | M53: 19107 | N53: -1046307.11 | O53: 875365.03
A54: 1/47 | B54: 47 | C54: 1850 | D54: Line Transformers - Overhead | E54: 806387.28 | F54: 2050.85 | G54: -19694 | H54: 788744.13 | J54: -523438.35 | L54: -21982.4 | M54: 19694 | N54: -525726.75 | O54: 263017.38
B55: 47 | C55: 1850 | D55: Line Transformers - Underground | E55: 2385836.48 | F55: 98632.31 | G55: -35912 | H55: 2448556.79 | J55: -1255935.25 | L55: -61956.34 | M55: 35912 | N55: -1281979.59 | O55: 1166577.2
A56: 1/47 | B56: 47 | C56: 1855 | D56: Sevices - Overhead | E56: 472628.26 | F56: 3624.49 | H56: 476252.75 | J56: -282015.55 | L56: -6450.04 | N56: -288465.59 | O56: 187787.16
A57: 1/47 | B57: 47 | C57: 1855 | D57: Services - Underground | E57: 2714096.13 | F57: 95580.58 | H57: =E57+F57+G57 -> 2809676.71 | J57: -1874493.71 | L57: -20705.95 | N57: -1895199.66 | O57: 914477.05
A58: 1/47 | B58: 47 | C58: 1860 | D58: Meters | E58: 778063.5 | F58: 198.6 | G58: -704709.88 | H58: 73552.22 | J58: -562169.1 | L58: -5303.22 | M58: 530736.84 | N58: -36735.48 | O58: 36816.74
D59: Meters CTs PTs | E59: =74253.57+22349.46 -> 96603.03 | F59: 1260 | G59: -1495.57 | H59: 96367.46 | J59: =-27663.26-8926.39 -> -36589.65 | L59: =-1515.11-429.69 -> -1944.8 | M59: 186.01 | N59: =SUM(J59:M59) -> -38348.44 | O59: =H59+N59 -> 58019.02
A60: 47 | B60: 47 | C60: 1860 | D60: Meters (Smart Meters) | E60: 1191255.27 | F60: 13984.88 | H60: 1205240.15 | J60: -263140 | L60: =-84840.28+0.51-211.95 -> -85051.72 | N60: -348191.72 | O60: 857048.43
B61: N/A | C61: 1905 | D61: Land | E61: 8639.65 | H61: 8639.65 | J61: =+'App.2-BA_FA Cont 2012 OldCGAAP'!M56 -> 0 | N61: 0 | O61: 8639.65
B62: 47 | C62: 1908 | D62: Buildings & Fixtures (25 years) | E62: 69888.13 | H62: 69888.13 | J62: -28132.81 | L62: -2795.25 | N62: -30928.06 | O62: 38960.07
C63: 1908 | D63: Buildings & Fixtures (50 years) | E63: 1018809.49 | H63: 1018809.49 | J63: -295042.53 | L63: -20754.72 | N63: -315797.25 | O63: 703012.24
B64: 13 | C64: 1910 | D64: Leasehold Improvements | E64: =+'App.2-BA_FA Cont 2012 OldCGAAP'!H58 -> 0 | H64: 0 | N64: 0 | O64: 0
A65: 8 | B65: 8 | C65: 1915 | D65: Office Furniture & Equipment (10 years) | E65: 94602.03 | F65: 4295 | H65: 98897.03 | J65: -65755.73 | L65: -5878.92 | N65: -71634.65 | O65: 27262.38
B66: 8 | C66: 1915 | D66: Office Furniture & Equipment (5 years) | E66: =+'App.2-BA_FA Cont 2012 OldCGAAP'!H60 -> 0 | H66: 0 | J66: =+'App.2-BA_FA Cont 2012 OldCGAAP'!M60 -> 0 | N66: 0 | O66: 0
A67: 10 | B67: 10 | C67: 1920 | D67: Computer Equipment - Hardware 3 years | E67: =206603.06-0.01 -> 206603.05 | H67: 206603.05 | J67: -174108.46 | L67: =-23516.41-1 -> -23517.41 | N67: -197625.87 | O67: 8977.18
B68: 45 | C68: 1920 | D68: Computer Equip.-Hardware(4 years) | E68: 22911.8 | F68: 48900.08 | H68: 71811.88 | J68: -25039.4 | L68: -6112.51 | N68: -31151.91 | O68: 40659.97
B69: 45 | C69: 1920 | D69: Computer Equip.-Hardware(5 years) | E69: 10219.285 | H69: 10219.285 | J69: -2320.16 | N69: -2320.16 | O69: 7899.125
D70: Computer Equip.-Hardware(6 years)
D71: Computer Equip.-Hardware(10 years)
D72: Computer Equip Smart Meter Entry | E72: 0 | F72: 15567.14 | H72: 15567.14 | J72: 0 | L72: -13648.41 | N72: =SUM(J72:M72) -> -13648.41 | O72: =H72+N72 -> 1918.73
A73: 10 | B73: 10 | C73: 1930 | D73: Transportation Equipment >3 ton | E73: 707111.44 | H73: 707111.44 | J73: -651022.23 | L73: -10196.29 | N73: -661218.52 | O73: 45892.92
A74: 10 | B74: 10 | C74: 1930 | D74: Transportation Equipment <3 ton | E74: 114737.89 | H74: =E74+F74+G74 -> 114737.89 | J74: -92262.71 | L74: -5608.11 | N74: -97870.82 | O74: 16867.07
A75: 10 | B75: 10 | C75: 1930 | D75: Transportation Equipment Trailers | E75: 48493.13 | F75: 15150 | H75: =E75+F75+G75 -> 63643.13 | J75: -19901.25 | L75: -5345.63 | N75: =SUM(J75:M75) -> -25246.88 | O75: =H75+N75 -> 38396.25
A76: 8 | B76: 8 | C76: 1935 | D76: Stores Equipment | E76: 19934.24 | G76: -5616 | H76: 14318.24 | J76: -19870.64 | L76: -42 | M76: 5616 | N76: -14296.64 | O76: =H76+N76 -> 21.6
A77: 8 | B77: 8 | C77: 1940 | D77: Tools, Shop & Garage Equipment | E77: 76941.28 | F77: 7491.42 | H77: 84432.7 | J77: -53284.97 | L77: -5962.63 | N77: -59247.6 | O77: 25185.1
B78: 8 | C78: 1945 | D78: Measurement & Testing Equipment | E78: 56664.23 | G78: -1215.42 | H78: 55448.81 | J78: -43926.37 | L78: -1581.41 | M78: 1215.42 | N78: -44292.36 | O78: 11156.45
B79: 8 | C79: 1950 | D79: Power Operated Equipment | E79: 66172.85 | H79: 66172.85 | J79: -65265.89 | L79: -906.96 | N79: -66172.85 | O79: 0
B80: 8 | C80: 1955 | D80: Communications Equipment | E80: 31304.6 | F80: 4814.97 | H80: 36119.57 | J80: -29316.01 | L80: -1032.43 | N80: -30348.44 | O80: 5771.13
B81: 8 | C81: 1955 | D81: Communication Equipment (Smart Meters) | E81: =+'App.2-BA_FA Cont 2012 OldCGAAP'!H71 -> 0 | H81: 0 | N81: 0 | O81: 0
B82: 8 | C82: 1960 | D82: Miscellaneous Equipment | E82: 12803.51 | H82: 12803.51 | J82: -12012.9 | L82: -410.66 | N82: -12423.56 | O82: 379.95
B83: 47 | C83: 1970 | D83: Load Management Controls Customer Premises | E83: =+'App.2-BA_FA Cont 2012 OldCGAAP'!H73 -> 0 | H83: 0 | J83: =+'App.2-BA_FA Cont 2012 OldCGAAP'!M73 -> 0 | N83: 0 | O83: 0
B84: 47 | C84: 1975 | D84: Load Management Controls Utility Premises | E84: =+'App.2-BA_FA Cont 2012 OldCGAAP'!H74 -> 0 | H84: 0 | J84: =+'App.2-BA_FA Cont 2012 OldCGAAP'!M74 -> 0 | N84: 0 | O84: 0
B85: 47 | C85: 1980 | D85: System Supervisor Equipment | E85: 258806.31 | H85: 258806.31 | J85: -135575.94 | L85: -17201 | N85: -152776.94 | O85: 106029.37
B86: 47 | C86: 1985 | D86: Miscellaneous Fixed Assets | E86: 2516.21 | H86: 2516.21 | J86: -2516.21 | N86: -2516.21 | O86: 0
B87: 47 | C87: 1990 | D87: Other Tangible Property | E87: =+'App.2-BA_FA Cont 2012 OldCGAAP'!H77 -> 0 | H87: 0 | J87: =+'App.2-BA_FA Cont 2012 OldCGAAP'!M77 -> 0 | N87: 0 | O87: 0
C88: 1995 | D88: Contributions & Grants - PolesTwrs Fix | E88: -157251.51 | H88: -157251.51 | J88: 18762.6 | L88: 3278.53 | N88: 22041.13 | O88: -135210.38
C89: 1995 | D89: Contributions & Grants - O/H Conductor | E89: -65625.99 | F89: -4409.3 | H89: =E89+F89+G89 -> -70035.29 | J89: 11423.69 | L89: 1002.62 | N89: 12426.31 | O89: -57608.98
C90: 1995 | D90: Contributions & Grants - UG Conduit | E90: -305491.57 | F90: -45206.68 | H90: -350698.25 | J90: 110654.7 | L90: 3510.52 | N90: 114165.22 | O90: -236533.03
C91: 1995 | D91: Contributions & Grants - UG Cond&Dev | E91: -393665.07 | F91: -15165.04 | H91: -408830.11 | J91: 121628.4 | L91: 5853.35 | N91: 127481.75 | O91: -281348.36
C92: 1995 | D92: Contributions & Grants - OHLine Trans | E92: -4185.76 | H92: -4185.76 | J92: 1465.39 | L92: 86.82 | N92: 1552.21 | O92: -2633.55
C93: 1995 | D93: Contributions & Grants - UGLine Trans | E93: -304179.77 | F93: -27025.3 | H93: -331205.07 | J93: 104723.03 | L93: 12776.52 | N93: 117499.55 | O93: -213705.52
C94: 1995 | D94: Contributions & Grants - OHServices | E94: -7212.01 | F94: -714.92 | H94: -7926.93 | J94: 1197.04 | L94: 113.53 | N94: 1310.57 | O94: -6616.36
C95: 1995 | D95: Contributions & Grants - UGServices | E95: -337381.14 | F95: -31205.62 | H95: -368586.76 | J95: 122147.47 | L95: 4941.07 | N95: 127088.54 | O95: -241498.22
C96: 1995 | D96: Contributions & Grants - Meters | E96: -35935.73 | F96: -826.13 | H96: -36761.86 | J96: 9275.35 | L96: 3495.8 | N96: 12771.15 | O96: -23990.71
C97: 1995 | D97: Contributions & Grants - Meters PTs CTs | E97: -2632.26 | H97: =E97+F97+G97 -> -2632.26 | J97: 52.65 | L97: 52.11 | N97: 104.76 | O97: -2527.5
C99: 2440 | D99: Deferred Revenue5 | E99: =+'App.2-BA_FA Cont 2012 OldCGAAP'!H81 -> 0 | J99: =+'App.2-BA_FA Cont 2012 OldCGAAP'!M81 -> 0 | N99: 0
H100: 0 | N100: =SUM(J100:M100) -> 0 | O100: =H100+N100 -> 0
D101: Sub-Total | E101: =SUM(E18:E100) -> 19312790.01 | F101: =SUM(F18:F100) -> 2372444.14 | G101: =SUM(G18:G100) -> -845853.42 | H101: =SUM(H17:H100) -> 20839380.73 | J101: =SUM(J18:J100) -> -10659217.76 | K101: 0 | L101: -635489.01 | M101: 664036.52 | N101: -10630670.25 | O101: 10208710.48
D102: Less Socialized Renewable Energy Generation Investments (input as negative) | H102: =E102+F102+G102 -> 0 | N102: =J102+L102+M102 -> 0 | O102: =H102+N102 -> 0
D103: Less Other Non Rate-Regulated Utility Assets (input as negative) | H103: 0 | N103: =J103+L103+M103 -> 0 | O103: =H103+N103 -> 0
D104: Total PP&E | E104: =SUM(E101:E103) -> 19312790.01 | F104: =SUM(F101:F103) -> 2372444.14 | G104: -845853.42 | H104: 20839380.73 | J104: =SUM(J101:J103) -> -10659217.76 | K104: 0 | L104: -635489.01 | M104: 664036.52 | N104: =SUM(N101:N103) -> -10630670.25 | O104: =SUM(O101:O103) -> 10208710.48
D105: Depreciation Expense adj. from gain or loss on the retirement of assets (pool of like assets), if applicable6
D106: Total | L106: =SUM(K104:L104) -> -635489.01
D108: BALANCE FROM 2013 CAPITAL ADDITIONS AND DISPOSALS AT YEAR END | E108: 18121534.75 | F108: 3563699.41 | G108: -845853.42 | H108: 20839380.74 | J108: -10396327.54 | L108: -898414.14 | M108: 664071.43 | N108: -10630670.25 | O108: 10208710.49 | Q108: Balances to Trial balance
D109: Difference | E109: =+E104-E108 -> 1191255.265 | F109: =+F104-F108 -> -1191255.27 | G109: 0 | H109: -0.005000002682 | I109: 0 | J109: =+J104-J108 -> -262890.22 | K109: =+K104-K108 -> 0 | L109: =+L104-L108 -> 262925.13 | M109: -34.91 | N109: =+N104-N108 -> 0 | O109: =+O104-O108 -> -0.00500000082
J110: Less: Fully Allocated Depreciation
B111: 10 | D111: Transportation | J111: Transportation | M111: -21150.03
B112: 8 | D112: Stores Equipment | J112: Stores Equipment | M112: -42
J113: Net Depreciation | M113: =L106-M111-M112 -> -614296.98
B115: Originally hydro distribution assets were added to Class 1 for tax purposes. This was changed a few years ago and all new additions are now in Class 47.
B117: Notes:
B119: 1 | C119: Tables in the format outlined above covering all fixed asset accounts should be submitted for the Test Year, Bridge Year and all relevant historical years. At a minimum , the applicant must provide data for the earlier of: 1) all historical years back to its last rebasing; or 2) at least three years of historical actuals, in addition to Bridge Year and Test Year forecasts.
